Workbook

Sheet Kastare
A1: Kod | B1: Namn | C1: Klubb | D1: Klass
A2: 1163 | B2: Tobias Vikström | C2: Växjö Hsk | D2: 4 | F2: Klass 1 | G2: =COUNTIF(D$2:D$1000,1) -> 15
A3: 1039 | B3: Bela Bodi | C3: Växjö Hsk | D3: 3 | F3: Klass 2 | G3: =COUNTIF(D$2:D$1000,2) -> 20
A4: 1026 | B4: Bengt Andersson | C4: Växjö Hsk | D4: 2 | F4: Klass 3 | G4: =COUNTIF(D$2:D$1000,3) -> 40
A5: 1183 | B5: Bertil Westergren | C5: Växjö Hsk | D5: 4 | F5: Klass 4 | G5: =COUNTIF(D$2:D$1000,4) -> 151
A6: 1018 | B6: Dan Hallstan | C6: Växjö Hsk | D6: 2 | F6: Minior | G6: =COUNTIF(D$2:D$1000,"m") -> 21
A7: 1056 | B7: Günther Iraschko | C7: Växjö Hsk | D7: 3
A8: 1007 | B8: Hathaichonlanne Phaengphui | C8: Växjö Hsk | D8: 1
A9: 1022 | B9: Kerstin Svensson | C9: Växjö Hsk | D9: 3
A10: 1042 | B10: Maire Johansson | C10: Växjö Hsk | D10: 2
A11: 1182 | B11: Maj-Britt Jarl | C11: Växjö Hsk | D11: 4
A12: 1001 | B12: Sandor Bodi | C12: Växjö Hsk | D12: 1
A13: 1002 | B13: Sandra Widlund | C13: Växjö Hsk | D13: 2
A14: 1058 | B14: Solveig Axelsson | C14: Växjö Hsk | D14: 4
A15: 1051 | B15: Thomas Dahl | C15: Växjö Hsk | D15: 3
A16: 1084 | B16: Tomas Lindedal | C16: Växjö Hsk | D16: 4
A17: 1010 | B17: Yamonlada Damnoenngam | C17: Växjö Hsk | D17: 1
A18: 1175 | B18: Albin Rydell | C18: VärendsMIN | D18: m
A19: 1177 | B19: Alex Rydell | C19: VärendsMIN | D19: m
A20: 1176 | B20: Elvin Rydell | C20: VärendsMIN | D20: m
A21: 1068 | B21: Anders Karlsson | C21: Värends Hsk | D21: 4
A22: 1122 | B22: Christer Brincner | C22: Värends Hsk | D22: 3
A23: 1072 | B23: Clara Larsson | C23: Värends Hsk | D23: 3
A24: 1079 | B24: Karin Gullbrand | C24: Värends Hsk | D24: 4
A25: 1012 | B25: Lasse Brincner | C25: Värends Hsk | D25: 2
A26: 1166 | B26: Martin Antic | C26: Värends Hsk | D26: 4
A27: 1114 | B27: Sandra Rydell | C27: Värends Hsk | D27: 4
A28: 1081 | B28: Thomas Marklund | C28: Värends Hsk | D28: 4
A29: 1139 | B29: Tommy Svensson | C29: Värends Hsk | D29: 4
A30: 1101 | B30: Ulrika Rydell | C30: Värends Hsk | D30: 4
A31: 1197 | B31: Björn Enström | C31: Viby HSK | D31: 4
A32: 1209 | B32: Mimmi Dahlman | C32: Viby HSK | D32: 4
A33: 1207 | B33: Rebecka Fresk | C33: Viby HSK | D33: 4
A34: 1208 | B34: Annelie Thörnqvist | C34: Vaxö Skola | D34: 4
A35: 1202 | B35: Linda Ewertzh | C35: Vaxö Skola | D35: 4
A36: 1199 | B36: Patrik Håkansson | C36: Vaxö Skola | D36: 4
A37: 1091 | B37: Andreas Gundersen | C37: Vaxholm Hsk | D37: 4
A38: 1033 | B38: Björn Gabrielsson | C38: Vaxholm Hsk | D38: 3
A39: 1126 | B39: Björn Hansson | C39: Vaxholm Hsk | D39: 4
A40: 1020 | B40: Björn Landberg | C40: Vaxholm Hsk | D40: 3
A41: 1153 | B41: Charlotte Jacobsson | C41: Vaxholm Hsk | D41: 4
A42: 1186 | B42: Christoffer Lindh | C42: Vaxholm Hsk | D42: 4
A43: 1127 | B43: Daniel Becker | C43: Vaxholm Hsk | D43: 4
A44: 1059 | B44: Erik Smiding | C44: Vaxholm Hsk | D44: 4
A45: 1102 | B45: Göran Örjebo | C45: Vaxholm Hsk | D45: 4
A46: 1113 | B46: Heidi Bühlmann | C46: Vaxholm Hsk | D46: 4
A47: 1130 | B47: Jimmy Carlsson | C47: Vaxholm Hsk | D47: 4
A48: 1119 | B48: Johan Ullgren | C48: Vaxholm Hsk | D48: 4
A49: 1029 | B49: Kristian Jältsäter | C49: Vaxholm Hsk | D49: 3
A50: 1090 | B50: Lotta Sundin | C50: Vaxholm Hsk | D50: 4
A51: 1106 | B51: Matthias Zetterlund | C51: Vaxholm Hsk | D51: 4
A52: 1181 | B52: Melker Gundersen | C52: Vaxholm Hsk | D52: m
A53: 1095 | B53: Mikael Klaving | C53: Vaxholm Hsk | D53: 4
A54: 1138 | B54: Pia Brovold | C54: Vaxholm Hsk | D54: 4
A55: 1189 | B55: Sabina Rydberg | C55: Vaxholm Hsk | D55: 4
A56: 1137 | B56: Thomas Diedrichs | C56: Vaxholm Hsk | D56: 4
A57: 1117 | B57: Victor Bengtsson | C57: Vaxholm Hsk | D57: 4
A58: 1180 | B58: Victor Fernandez | C58: Vaxholm Hsk | D58: m
A59: 1179 | B59: William Fernandez | C59: Vaxholm Hsk | D59: m
A60: 1191 | B60: Alice Jältsäter | C60: Vaxholm | D60: m
A61: 1174 | B61: Ebba Strömberg | C61: Vaxholm | D61: m
A62: 1203 | B62: Isabelle Åkesson | C62: Vaxholm | D62: 4
A63: 1195 | B63: Johanna Jacobsson | C63: Vaxholm | D63: 4
A64: 1196 | B64: Karen Jältsäter | C64: Vaxholm | D64: 4
A65: 1193 | B65: Majken Strömberg | C65: Vaxholm | D65: m
A66: 1206 | B66: Nils Brovold | C66: Vaxholm | D66: 4
A67: 1192 | B67: Sofia H | C67: Vaxholm | D67: m
A68: 1142 | B68: Peter Skörd | C68: Täby | D68: 4
A69: 1099 | B69: Anders Bergqvist | C69: Tingsryd Hsc | D69: 4
A70: 1155 | B70: Anne-Marie Larsson | C70: Tingsryd Hsc | D70: 4
A71: 1164 | B71: Christina Holmberg | C71: Tingsryd Hsc | D71: 4
A72: 1069 | B72: Gunnar Lundbeck | C72: Tingsryd Hsc | D72: 4
A73: 1077 | B73: Hasse Johansson | C73: Tingsryd Hsc | D73: 3
A74: 1040 | B74: Janne Johansson | C74: Tingsryd Hsc | D74: 3
A75: 1025 | B75: Johan Johansson | C75: Tingsryd Hsc | D75: 2
A76: 1073 | B76: Laila Johansson | C76: Tingsryd Hsc | D76: 4
A77: 1011 | B77: Lennart Karlsson | C77: Tingsryd Hsc | D77: 2
A78: 1036 | B78: Lisbeth Nygaard-Karlsson | C78: Tingsryd Hsc | D78: 2
A79: 1161 | B79: Robert Johansson | C79: Tingsryd Hsc | D79: 4
A80: 1141 | B80: Roland Sjöstrand | C80: Tingsryd Hsc | D80: 4
A81: 1064 | B81: Åke Bergqvist | C81: Tingsryd Hsc | D81: 3
A82: 1078 | B82: Billy Klarström | C82: Team Småland | D82: 4
A83: 1053 | B83: Jonas Klarström | C83: Team Småland | D83: 4
A84: 1038 | B84: Maria Andersson | C84: Team Småland | D84: 3
A85: 1158 | B85: Mikael Sellén | C85: Team Småland | D85: 4
A86: 1123 | B86: Mats Svensson | C86: Stadslaget | D86: 4
A87: 1149 | B87: Niclas Nyberg | C87: Stadslaget | D87: 4
A88: 1121 | B88: Tomas Röhl | C88: Stadslaget | D88: 4
A89: 1152 | B89: Åse Larsson | C89: Stadslaget | D89: 4
A90: 1118 | B90: Birgit Brown | C90: Sollentuna | D90: 4
A91: 1109 | B91: Scott Brown | C91: Sollentuna | D91: 4
A92: 1074 | B92: Anton Alexandersson | C92: Sibbamåla | D92: 3
A93: 1041 | B93: Carina Gneupel | C93: Sibbamåla | D93: 2
A94: 1075 | B94: Julius Gneupel | C94: Sibbamåla | D94: 4
A95: 1120 | B95: Linnea Gneupel | C95: Sibbamåla | D95: 4
A96: 1083 | B96: Magnus Israelsson | C96: Sibbamåla | D96: 3
A97: 1017 | B97: Matthias Gneupel | C97: Sibbamåla | D97: 1
A98: 1112 | B98: Mikael Grönskog | C98: Sibbamåla | D98: 4
A99: 1035 | B99: Sebastian Israelsson | C99: Sibbamåla | D99: 2
A100: 1009 | B100: Tobias Gneupel | C100: Sibbamåla | D100: 1
A101: 1151 | B101: Alexander Bergström | C101: PBHSPC | D101: 4
A102: 1148 | B102: Carl Sternås | C102: PBHSPC | D102: 4
A103: 1157 | B103: Pontus Karlsson | C103: PBHSPC | D103: 4
A104: 1154 | B104: Pontus Strandell | C104: PBHSPC | D104: 4
A105: 1140 | B105: Sonlard Berglund | C105: PBHSPC | D105: 4
A106: 1168 | B106: Fredrik Nilsson | C106: Linköping Hsk | D106: 4
A107: 1173 | B107: Christer Blomgren | C107: Lanternan | D107: 3
A108: 1085 | B108: Arne Blihd | C108: Lanternan | D108: 4
A109: 1027 | B109: Berndt Pettersson | C109: Lanternan | D109: 2
A110: 1124 | B110: Eva Åkesson | C110: Lanternan | D110: 4
A111: 1050 | B111: Gilbert Pettersson | C111: Lanternan | D111: 3
A112: 1034 | B112: Ingegerd Pettersson | C112: Lanternan | D112: 3
A114: 1093 | B114: Irene Pettersson | C114: Lanternan | D114: 4
A115: 1063 | B115: Jan Petersson | C115: Lanternan | D115: 3
A116: 1135 | B116: Kent Svensson | C116: Lanternan | D116: 4
A117: 1096 | B117: Kjell Åkesson | C117: Lanternan | D117: 4
A118: 1031 | B118: Lars-Erik Ottosson | C118: Lanternan | D118: 3
A119: 1080 | B119: Lisbeth Blihd | C119: Lanternan | D119: 4
A120: 1111 | B120: Roland Andreasson | C120: Lanternan | D120: 4
A121: 1023 | B121: Ronny Lundberg | C121: Lanternan | D121: 2
A122: 1136 | B122: Susanne Simonsson | C122: Lanternan | D122: 4
A123: 1067 | B123: Alf Svensson | C123: Korpen Åseda | D123: 3
A124: 1185 | B124: Bo Trulsson | C124: Korpen Åseda | D124: 4
A125: 1184 | B125: Börje Carlsson | C125: Korpen Åseda | D125: 4
A126: 1024 | B126: Dan Madayang | C126: Korpen Åseda | D126: 2
A127: 1082 | B127: Emil Rehn | C127: Korpen Åseda | D127: 4
A128: 1131 | B128: Erik Isaksson | C128: Korpen Åseda | D128: 4
A129: 1065 | B129: Gebriela Kostantinos | C129: Korpen Åseda | D129: 2
A130: 1004 | B130: Gert Karlsson | C130: Korpen Åseda | D130: 1
A131: 1116 | B131: Joakim Strand | C131: Korpen Åseda | D131: 4
A132: 1003 | B132: Matz Karlsson | C132: Korpen Åseda | D132: 1
A133: 1013 | B133: Tomas Lindahl | C133: Korpen Åseda | D133: 1
A134: 1048 | B134: Bo Petersson | C134: Korpen Nybro | D134: 2
A135: 1028 | B135: Göran Olofsson | C135: Korpen Nybro | D135: 2
A136: 1129 | B136: Kjell Rydh | C136: Korpen Nybro | D136: 4
A137: 1110 | B137: Nisse Hansson | C137: Korpen Nybro | D137: 4
A138: 1162 | B138: Risato Maljanovski | C138: Korpen Nybro | D138: 4
A139: 1019 | B139: Stefan Olofsson | C139: Korpen Nybro | D139: 3
A140: 1100 | B140: Sune Olsson | C140: Korpen Nybro | D140: 3
A141: 1169 | B141: Sune Andersson | C141: Jämjö Hsk | D141: 4
A142: 1054 | B142: Astrid Martinez | C142: Jämjö Hsk | D142: 4
A143: 1061 | B143: Bernt Olsson | C143: Jämjö Hsk | D143: 3
A144: 1055 | B144: Daniel Mårtensson | C144: Jämjö Hsk | D144: 3
A145: 1057 | B145: Ewa Malmqvist | C145: Jämjö Hsk | D145: 2
A146: 1032 | B146: Göran Mårtensson | C146: Jämjö Hsk | D146: 3
A147: 1103 | B147: Hanna Karlberg | C147: Jämjö Hsk | D147: 4
A148: 1046 | B148: Hernan Hernandez | C148: Jämjö Hsk | D148: 3
A149: 1062 | B149: Inge Skoglöv | C149: Jämjö Hsk | D149: 3
A150: 1108 | B150: Keyri Hernandez | C150: Jämjö Hsk | D150: 4
A151: 1060 | B151: Lars Johannesson | C151: Jämjö Hsk | D151: 4
A152: 1097 | B152: Marcus Karlsson | C152: Jämjö Hsk | D152: 3
A153: 1086 | B153: Marianne Karlsson | C153: Jämjö Hsk | D153: 4
A154: 1030 | B154: Mathias Karlberg | C154: Jämjö Hsk | D154: 3
A155: 1070 | B155: Mats Mårtensson | C155: Jämjö Hsk | D155: 3
A156: 1178 | B156: Saga Karlberg | C156: Jämjö Hsk | D156: m
A157: 1144 | B157: Saga Karlberg | C157: Jämjö Hsk | D157: m
A158: 1115 | B158: Anders Johansson | C158: Dynapac Hsc | D158: 4
A159: 1014 | B159: Anitha Fabbeke | C159: Dynapac Hsc | D159: 1
A160: 1037 | B160: Bengt Fabbeke | C160: Dynapac Hsc | D160: 3
A161: 1167 | B161: Dennis Bern | C161: Dynapac Hsc | D161: 4
A162: 1045 | B162: Elin Olsson | C162: Dynapac Hsc | D162: 3
A163: 1047 | B163: Louise Tollstam | C163: Dynapac Hsc | D163: 3
A164: 1092 | B164: Lukas Bern | C164: Dynapac Hsc | D164: 3
A165: 1044 | B165: Mattias Olsson | C165: Dynapac Hsc | D165: 2
A166: 1105 | B166: Morgan Athle | C166: Dynapac Hsc | D166: 4
A167: 1021 | B167: Olle Ottosson | C167: Dynapac Hsc | D167: 1
A168: 1104 | B168: Per-Olof Johansson | C168: Dynapac Hsc | D168: 4
A169: 1134 | B169: Peter Edlund | C169: Dynapac Hsc | D169: 3
A170: 1008 | B170: Peter Olsson | C170: Dynapac Hsc | D170: 1
A171: 1052 | B171: Roy Dahlén | C171: Dynapac Hsc | D171: 2
A172: 1150 | B172: Salli Fransson | C172: Dynapac Hsc | D172: 4
A173: 1172 | B173: Stefan Tollstam | C173: Dynapac Hsc | D173: 3
A174: 1125 | B174: Danny Borgström | C174: Carlskrona Hsc | D174: 4
A175: 1005 | B175: Ingvar Eriksson | C175: Carlskrona Hsc | D175: 1
A176: 1016 | B176: Joel Sundahl | C176: Carlskrona Hsc | D176: 1
A177: 1000 | B177: Kent Sundahl | C177: Carlskrona Hsc | D177: 1
A178: 1071 | B178: Leif Sundahl | C178: Carlskrona Hsc | D178: 3
A179: 1006 | B179: Leo Andersson | C179: Carlskrona Hsc | D179: 1
A180: 1128 | B180: Mona Andersson | C180: Carlskrona Hsc | D180: 4
A181: 1015 | B181: Natalie Sundahl | C181: Carlskrona Hsc | D181: 2
A182: 1107 | B182: Tony Borgström | C182: Carlskrona Hsc | D182: 4
A183: 1156 | B183: Anders Möller | C183: Balders HSK | D183: 4
A184: 1145 | B184: Christoffer Lovén | C184: Balders HSK | D184: 4
A185: 1201 | B185: Fredrik Sandelius | C185: Balders HSK | D185: 3
A186: 1049 | B186: Henrik Fresk | C186: Balders HSK | D186: 4
A187: 1098 | B187: Janne Pettersson | C187: Balders Hsk | D187: 4
A188: 1165 | B188: Jarita Fredriksson Väre | C188: Balders Hsk | D188: 4
A189: 1170 | B189: Jean Fredriksson Väre | C189: Balders Hsk | D189: 4
A190: 1160 | B190: Johanna Hagerman | C190: Balders HSK | D190: 4
A191: 1133 | B191: Jonas Bergqvist | C191: Balders HSK | D191: 4
A192: 1076 | B192: Jonny Åberg | C192: Balders HSK | D192: 4
A193: 1089 | B193: Lars Eriksson | C193: Balders HSK | D193: 4
A194: 1146 | B194: Magnus Hagerman | C194: Balders HSK | D194: 4
A195: 1143 | B195: Malin Löwberg | C195: Balders Hsk | D195: 4
A196: 1171 | B196: Malira Eriksson | C196: Balders HSK | D196: 4
A197: 1066 | B197: Martin Anjou | C197: Balders HSK | D197: 4
A198: 1190 | B198: Martin Smeds | C198: Balders HSK | D198: 4
A199: 1087 | B199: Olle Lovén | C199: Balders HSK | D199: m
A200: 1194 | B200: Pascal Letter | C200: Balders HSK | D200: 3
A201: 1043 | B201: Robin Malm | C201: Balders HSK | D201: m
... 119 more rows

Sheet Lag
A1: Kod | B1: Lag
A2: 100 | B2: Dynapac Hsc 1
A3: 101 | B3: Korpen Åseda 1
A4: 102 | B4: Carlskrona Hsc 1
A5: 103 | B5: Växjö Hsk 1
A6: 104 | B6: Sibbamåla if 1
A7: 105 | B7: Växjö Hsk 2
A8: 106 | B8: Tingsryd Hsc 1
A9: 107 | B9: Dynapac Hsc 2
A10: 108 | B10: Jämjö Hsk 2
A11: 109 | B11: Vaxholm Hsk 1
A12: 110 | B12: Sibbamåla if 2
A13: 111 | B13: Lanternan 1
A14: 112 | B14: Värends Hsk 1
A15: 113 | B15: Vaxholm Hsk 2
A16: 114 | B16: Korpen Nybro 1
A17: 115 | B17: Balders Hsk 1
A18: 116 | B18: Carlskrona Hsc 2
A19: 117 | B19: Lanternan 2
A20: 118 | B20: Jämjö Hsk 1
A21: 119 | B21: Växjö Hsk 3
A22: 120 | B22: Tingsryd Hsc 2
A23: 121 | B23: Balders Hsk 2
A24: 122 | B24: Stadslaget
A25: 123 | B25: Balders Hsk 3
A26: 124 | B26: Team Småland
A27: 125 | B27: Teachers Pets
A28: 126 | B28: PBHSPC
A29: 127 | B29: Jämjö Hsk 3
A30: 128 | B30: Lanternan 3
A31: 129 | B31: Korpen Åseda 2
A32: 130 | B32: JINK
A33: 131 | B33: Athleterna
A34: 132 | B34: Vaxö Skola
A35: 133 | B35: Viby HS
A36: 134 | B36: Balders Hsk 4
A37: 135 | B37: Balders Hsk 5
A38: 136 | B38: Värends Hsk 2
A39: 137 | B39: Belfrage Bygg
A40: 138 | B40: Vaxholm Hsk 3
A41: 139 | B41: Dynapac Hsc 3
A42: 140 | B42: Sketnabäck

Sheet Sortering
A1: Datum för
A2: uppdatering
A3: SLUTSTÄLLNING
A5: Tabeller som
A6: skall
A7: uppdateras
A8: Sverigeranking | B8: x
A9: Miniorranking | B9: X
A10: Lagranking
A11: Bonusjakten | B11: x
A12: Klass 1
A13: Klass 2
A14: Klass 3
A15: Klass 4

Sheet Svenska Rekord
B1: Svenska Rekord | C1: =MAX(E4:E28) -> 2022-06-18
A2: Utomhus 25 kast | C2: Klubb | D2: poäng | E2: När | F2: Var
A4: Herrar | B4: Leo Andersson | C4: Carlskrona Hsc | D4: 309 | E4: 2007-08-04 | F4: Carlskrona Cup
A5: Damer | B5: Sandra Widlund | C5: Växjö | D5: 295 | E5: 2020-06-14 | F5: SM i Kristianopel
A6: Pojkminior | B6: Alexander Lundqvist | C6: Alvesta | D6: 233 | E6: 2015-05-30 | F6: Björkenäs Open
A7: Flickminior | B7: Sandra Widlund | C7: Växjö | D7: 250 | E7: 2019-06-16 | F7: SM i Tingsryd
A8: Pojkjunior | B8: Mattias Olsson | C8: Dynapac Södra | D8: 280 | E8: 2007-06-02 | F8: Björkenäs Open
A9: Flickjunior | B9: Sandra Widlund | C9: Växjö | D9: 295 | E9: 2020-06-14 | F9: SM i Kristianopel
A10: Minior dubbel | B10: Pontus Vikström / Tobias Vikström | C10: Växjö | D10: 173 | E10: 2004-06-13 | F10: SM i Stensjö
A11: Junior dubbel | B11: Hathaichonlanee Phaengphui/Sandra Widlund | C11: Växjö | D11: 378 | E11: 2022-06-18 | F11: SM i Kristianopel
A12: Senior dubbel | B12: Sandra Widlund/Sandor Bodi | C12: Växjö | D12: 510 | E12: 2020-06-14 | F12: SM i Kristianopel
A13: Mixed dubbel | B13: Sandra Widlund/Sandor Bodi | C13: Växjö | D13: 510 | E13: 2020-06-14 | F13: SM i Kristianopel
A14: 4-mannalag | B14: Kent Sundahl, Nathalie Sundahl | C14: Carlskrona Hsc | D14: 872 | E14: 2019-05-11 | F14: Moheda Open
B15: Joel Sundahl, Ingvar Eriksson
A16: Utomhus 50 kast
A18: Herrar | B18: Peter Olsson | C18: Dynapac | D18: 540 | E18: 2019-05-18 | F18: Jämjö Open
A19: Damer | B19: Sandra Widlund | C19: Växjö | D19: 476 | E19: 2020-06-14 | F19: SM i Kristianopel
A20: Pojkminior | B20: Alexander Lundqvist | C20: Alvesta | D20: 405 | E20: 2015-08-29 | F20: Åseda Open
A21: Flickminior | B21: Sandra Widlund | C21: Växjö | D21: 415 | E21: 2019-06-16 | F21: SM i Tingsryd
A22: Pojkjunior | B22: Tobias Vikström | C22: Växjö | D22: 457 | E22: 2012-05-12 | F22: Växjö Open
A23: Flickjunior | B23: Sandra Widlund | C23: Växjö | D23: 476 | E23: 2020-06-14 | F23: SM i Kristianopel
A24: Minior dubbel | B24: Pontus Vikström / Tobias Vikström | C24: Växjö | D24: 330 | E24: 2004-06-13 | F24: SM i Stensjö
A25: Junior dubbel | B25: Hathaichonlanee Phaengphui/Sandra Widlund | C25: Växjö | D25: 719 | E25: 2022-06-18 | F25: SM i Kristianopel
A26: Senior dubbel | B26: Hathaichonlanee Phaengphui/Sandor Bodi | C26: Växjö | D26: 902 | E26: 2019-06-16 | F26: SM i Tingsryd
A27: Mixed dubbel | B27: Hathaichonlanee Phaengphui/Sandor Bodi | C27: Växjö | D27: 902 | E27: 2019-06-16 | F27: SM i Tingsryd
A28: 4-mannalag | B28: Tobias Vikström / Jabir Malghouth | C28: Växjö | D28: 1667 | E28: 2013-06-01 | F28: Björkenäs Open
B29: Maj-Britt Jarl / Sandor Bodi
B32: Svenska Rekord | C32: =MAX(E35:E60) -> 2023-01-21
A33: Inomhus 25 kast
A35: Herrar | B35: Sandor Bodi | C35: Växjö | D35: 361 | E35: 2012-03-31 | F35: Seriespel
A36: Damer | B36: Malira Eriksson | C36: Balder | D36: 268 | E36: 2023-01-21 | F36: Seriespel
A37: Pojkminior | B37: Alexander Lundqvist | C37: Alvesta | D37: 352 | E37: 2016-03-05 | F37: Smålands-DM
A38: Flickminior | B38: Sandra Widlund | C38: Växjö | D38: 252 | E38: 2019-03-30 | F38: Seriespel
A39: Pojkjunior | B39: Tobias Gneupel | C39: Sibbamåla | D39: 320 | E39: 2012-09-22 | F39: Seriespel
A40: Flickjunior | B40: Sandra Widlund | C40: Växjö | D40: 253 | E40: 2021-10-02/2022-04-02 | F40: Seriespel
A41: Minior dubbel | B41: Tobias Gneupel / Emil Milsten | C41: Sibbamåla | D41: 294 | E41: 2009-02-21 | F41: Seriespel
A42: Junior dubbel | B42: Hathaichonlanee Phaengphui/Sandra Widlund | C42: Växjö | D42: 433 | E42: 2022-04-02 | F42: Seriespel
A43: Senior dubbel | B43: Sandor Bodi / Tobias Vikström | C43: Växjö | D43: 568 | E43: 2013-09-21 | F43: Seriespel
A44: Mixed dubbel | B44: Sandor Bodi / Maj-Britt Jarl | C44: Växjö | D44: 544 | E44: 2011-02-19 | F44: Seriespel
A45: 4-mannalag | B45: Jabir Malghouth, Maj-Britt Jarl | C45: Växjö | D45: 836 | E45: 2014-04-26 | F45: Tingsryd Open
B46: Sandor Bodi, Tobias Vikström
A48: Inomhus 50 kast
A50: Herrar | B50: Sandor Bodi | C50: Växjö | D50: 553 | E50: 2014-04-26 | F50: Tingsryd Open
A51: Damer | B51: Hathaichonlanee Phaengphui | C51: Växjö | D51: 426 | E51: 2020-10-24 | F51: Carlskrona Cup
A52: Pojkminior | B52: Alexander Lundqvist | C52: Alvesta | D52: 558 | E52: 2016-03-05 | F52: Smålands-DM
A53: Flickminior | B53: Sandra Widlund | C53: Växjö | D53: 351 | E53: 2019-03-16 | F53: Värendspokalen
A54: Pojkjunior | B54: Tobias Gneupel | C54: Sibbamåla IF | D54: 463 | E54: 2012-03-25 | F54: Blekinge-DM
A55: Flickjunior | B55: Hathaichonlanee Phaengphui | C55: Växjö | D55: 426 | E55: 2020-10-24 | F55: Carlskrona Cup
A56: Minior dubbel | B56: Tobias Gneupel / Emil Milsten | C56: Sibbamåla | D56: 481 | E56: 2009-02-07 | F56: SM i Karlskrona
A57: Junior dubbel | B57: Hathaichonlanee Phaengphui/Sandra Widlund | C57: Växjö | D57: 682 | E57: 2022-02-05 | F57: SM i Växjö
A58: Senior dubbel | B58: Kent Sundahl, Leo Andersson | C58: Carlskrona | D58: 951 | E58: 2010-02-27 | F58: DM i Karlskrona
A59: Mixed dubbel | B59: Jabir Malghouth / Maj-Britt Jarl | C59: Växjö | D59: 800 | E59: 2009-02-07 | F59: SM i Karlskrona
A60: 4-mannalag | B60: Jabir Malghouth, Maj-Britt Jarl | C60: Växjö | D60: 1515 | E60: 2014-04-26 | F60: Tingsryd Open
B61: Sandor Bodi, Tobias Vikström

Sheet Sverigeranking
B1: Svenska Hästskokastarförbundets Sverigeranking
B2: Säsong 2022 / 2023 | C2: SLUTSTÄLLNING | F2: Deltagare | I2: =COUNTIF(I4:I400,">0")+(Miniorranking!I2) -> 66 | J2: =COUNTIF(J4:J400,">0")+(Miniorranking!J1) -> 48 | K2: =COUNTIF(K4:K400,">0")+(Miniorranking!K2) -> 0 | L2: =COUNTIF(L4:L400,">0")+(Miniorranking!L2) -> 68 | M2: =COUNTIF(M4:M400,">0")+(Miniorranking!M2-1) -> 96 | N2: =COUNTIF(N4:N400,">0")+(Miniorranking!N2-1) -> 81 | O2: =COUNTIF(O4:O400,">0")+(Miniorranking!O2) -> 49 | P2: =COUNTIF(P4:P400,">0")+(Miniorranking!P2) -> 57 | Q2: =COUNTIF(Q4:Q400,">0")+(Miniorranking!Q2) -> 51 | R2: =COUNTIF(R4:R400,">0")+(Miniorranking!R2) -> 30 | S2: =COUNTIF(S4:S400,">0")+(Miniorranking!S2) -> 36 | T2: =COUNTIF(T4:T400,">0")+(Miniorranking!T2) -> 20 | U2: =COUNTIF(U4:U400,">0")+(Miniorranking!U2) -> 59 | V2: =COUNTIF(V4:V400,">0")+(Miniorranking!V2) -> 50 | W2: =COUNTIF(W4:W400,">0")+(Miniorranking!W2) -> 58 | X2: =COUNTIF(X4:X400,">0")+(Miniorranking!X2) -> 67 | Y2: =COUNTIF(Y4:Y400,">0")+(Miniorranking!Y2) -> 35 | Z2: =COUNTIF(Z4:Z400,">0")+(Miniorranking!Z2) -> 76 | AA2: =COUNTIF(AA4:AA400,">0")+(Miniorranking!AA2) -> 0 | AB2: =COUNTIF(AB4:AB400,">0")+(Miniorranking!AB2) -> 30 | AC2: =COUNTIF(AC4:AC400,">0")+(Miniorranking!AC2) -> 34 | AD2: =COUNTIF(AD4:AD400,">0")+(Miniorranking!AD2) -> 57
A3: Plac. | B3: Kastare | C3: Klubb | D3: Rankingpoäng | F3: Antal tävlingar | G3: Snitt per serie | I3: ='Tingsryd Open'!$B$1 -> Tingsryd Open | J3: ='Jämjö Open'!$B$1 -> Jämjö Open | K3: ='Viby Open'!$B$1 -> Viby Open | L3: ='Björkenäs Open'!$B$1 -> Björkenäs Open | M3: ='SM ute Lö'!$B$1 -> SM ute Lö | N3: ='SM ute Sö'!$B$1 -> SM ute Sö | O3: ='Roslagen Open'!$B$1 -> Roslagen Open | P3: ='Vaxholm Open'!$B$1 -> Vaxholm Open | Q3: ='Dynapac Open'!$B$1 -> Dynapac Open | R3: ='SmålandsDM ute'!$B$1 -> SmålandsDM ute | S3: ='BlekingeDM ute'!$B$1 -> BlekingeDM ute | T3: ='StockholmsDM ute'!$B$1 -> StockholmsDM ute | U3: ='Åseda Open'!$B$1 -> Åseda Open | V3: =Höstskon!$B$1 -> Höstskon | W3: ='Carlskrona Cup'!$B$1 -> Carlskrona Cup | X3: ='Sibbamåla Open'!$B$1 -> Sibbamåla Open | Y3: ='Vaxholm Indoor'!$B$1 -> Vaxholm Indoor | Z3: ='SM inne'!$B$1 -> SM inne | AA3: ='SmålandsDM inne'!$B$1 -> SmålandsDM inne | AB3: ='BlekingeDM inne'!$B$1 -> BlekingeDM inne | AC3: ='StockholmsDM inne'!$B$1 -> StockholmsDM inne | AD3: =Värendspokalen!$B$1 -> Värendspokalen | AG3: Kod
A4: 1 | B4: Kent Sundahl | C4: Carlskrona Hsc | D4: =IF(B4="",0,IF($F4>0,LARGE($I4:$AD4,1),"")+IF($F4>0,LARGE($I4:$AD4,2),"")+IF($F4>0,LARGE($I4:$AD4,3),"")+IF($F4>0,LARGE($I4:$AD4,4),"")+IF($F4>0,LARGE($I4:$AD4,5),"")+IF($F4>0,LARGE($I4:$AD4,6),"")+IF($F4>0,LARGE($I4:$AD4,7),"")+IF($F4>0,LARGE($I4:$AD4,8),"")+IF($F4>0,LARGE($I4:$AD4,9),"")+IF($F4>0,LARGE($I4:$AD4,10),"")+IF($F4>0,LARGE($I4:$AD4,11),"")+IF($F4>0,LARGE($I4:$AD4,12),"")) -> 4334 | F4: =COUNTIF(I4:AD4,">0") -> 16 | G4: =IF(F4=0,"",SUM(H4:AD4)/(F4*2)) -> 167.96875 | I4: =IF(AG4="","",SUMIF('Tingsryd Open'!U$4:U$400,AG4,'Tingsryd Open'!P$4:P$400)) -> 317 | J4: =IF(AG4="","",SUMIF('Jämjö Open'!U$4:U$400,AG4,'Jämjö Open'!P$4:P$400)) -> 373 | K4: =IF(AG4="","",SUMIF('Viby Open'!U$4:U$400,AG4,'Viby Open'!P$4:P$400)) -> 0 | L4: =IF(AG4="","",SUMIF('Björkenäs Open'!U$4:U$400,AG4,'Björkenäs Open'!P$4:P$400)) -> 341 | M4: =IF(AG4="","",SUMIF('SM ute Lö'!U$4:U$400,AG4,'SM ute Lö'!P$4:P$400)) -> 283 | N4: =IF(AG4="","",SUMIF('SM ute Sö'!U$4:U$401,AG4,'SM ute Sö'!P$4:P$401)) -> 341 | O4: =IF(AG4="","",SUMIF('Roslagen Open'!U$4:U$400,AG4,'Roslagen Open'!P$4:P$400)) -> 196 | P4: =IF(AG4="","",SUMIF('Vaxholm Open'!U$4:U$400,AG4,'Vaxholm Open'!P$4:P$400)) -> 298 | Q4: =IF(AG4="","",SUMIF('Dynapac Open'!U$4:U$400,AG4,'Dynapac Open'!P$4:P$400)) -> 329 | R4: =IF(AG4="","",SUMIF('SmålandsDM ute'!U$4:U$400,AG4,'SmålandsDM ute'!P$4:P$400)) -> 0 | S4: =IF(AG4="","",SUMIF('BlekingeDM ute'!U$4:U$400,AG4,'BlekingeDM ute'!P$4:P$400)) -> 297 | T4: =IF(AG4="","",SUMIF('StockholmsDM ute'!U$4:U$400,AG4,'StockholmsDM ute'!P$4:P$400)) -> 0 | U4: =IF(AG4="","",SUMIF('Åseda Open'!U$4:U$406,AG4,'Åseda Open'!P$4:P$406)) -> 392 | V4: =IF(AG4="","",SUMIF(Höstskon!U$4:U$400,AG4,Höstskon!P$4:P$400)) -> 282 | W4: =IF(AG4="","",SUMIF('Carlskrona Cup'!U$4:U$400,AG4,'Carlskrona Cup'!P$4:P$400)) -> 410 | X4: =IF(AG4="","",SUMIF('Sibbamåla Open'!U$4:U$400,AG4,'Sibbamåla Open'!P$4:P$400)) -> 394 | Y4: =IF(AG4="","",SUMIF('Vaxholm Indoor'!U$4:U$400,AG4,'Vaxholm Indoor'!P$4:P$400)) -> 0 | Z4: =IF(AG4="","",SUMIF('SM inne'!U$4:U$400,AG4,'SM inne'!P$4:P$400)) -> 280 | AA4: =IF(AG4="","",SUMIF('SmålandsDM inne'!U$4:U$400,AG4,'SmålandsDM inne'!P$4:P$400)) -> 0 | AB4: =IF(AG4="","",SUMIF('BlekingeDM inne'!U$4:U$400,AG4,'BlekingeDM inne'!P$4:P$400)) -> 472 | AC4: =IF(AG4="","",SUMIF('StockholmsDM inne'!U$4:U$400,AG4,'StockholmsDM inne'!P$4:P$400)) -> 0 | AD4: =IF(AG4="","",SUMIF(Värendspokalen!U$4:U$400,AG4,Värendspokalen!P$4:P$400)) -> 370 | AG4: =IF(B4="","",SUMIF(Kastare!B$2:B$2999,B4,Kastare!A$2:A$2999)) -> 1000
A5: =IF(B5="","",IF(D5<D4,ROW(2:2),A4)) -> 2 | B5: Leo Andersson | C5: Carlskrona Hsc | D5: 4083 | F5: 17 | G5: 155.1470588 | I5: =IF(AG5="","",SUMIF('Tingsryd Open'!U$4:U$400,AG5,'Tingsryd Open'!P$4:P$400)) -> 274 | J5: =IF(AG5="","",SUMIF('Jämjö Open'!U$4:U$400,AG5,'Jämjö Open'!P$4:P$400)) -> 341 | K5: =IF(AG5="","",SUMIF('Viby Open'!U$4:U$400,AG5,'Viby Open'!P$4:P$400)) -> 0 | L5: =IF(AG5="","",SUMIF('Björkenäs Open'!U$4:U$400,AG5,'Björkenäs Open'!P$4:P$400)) -> 333 | M5: =IF(AG5="","",SUMIF('SM ute Lö'!U$4:U$400,AG5,'SM ute Lö'!P$4:P$400)) -> 384 | N5: =IF(AG5="","",SUMIF('SM ute Sö'!U$4:U$401,AG5,'SM ute Sö'!P$4:P$401)) -> 412 | O5: =IF(AG5="","",SUMIF('Roslagen Open'!U$4:U$400,AG5,'Roslagen Open'!P$4:P$400)) -> 270 | P5: =IF(AG5="","",SUMIF('Vaxholm Open'!U$4:U$400,AG5,'Vaxholm Open'!P$4:P$400)) -> 215 | Q5: =IF(AG5="","",SUMIF('Dynapac Open'!U$4:U$400,AG5,'Dynapac Open'!P$4:P$400)) -> 202 | R5: =IF(AG5="","",SUMIF('SmålandsDM ute'!U$4:U$400,AG5,'SmålandsDM ute'!P$4:P$400)) -> 0 | S5: =IF(AG5="","",SUMIF('BlekingeDM ute'!U$4:U$400,AG5,'BlekingeDM ute'!P$4:P$400)) -> 267 | T5: =IF(AG5="","",SUMIF('StockholmsDM ute'!U$4:U$400,AG5,'StockholmsDM ute'!P$4:P$400)) -> 0 | U5: =IF(AG5="","",SUMIF('Åseda Open'!U$4:U$406,AG5,'Åseda Open'!P$4:P$406)) -> 364 | V5: =IF(AG5="","",SUMIF(Höstskon!U$4:U$400,AG5,Höstskon!P$4:P$400)) -> 273 | W5: =IF(AG5="","",SUMIF('Carlskrona Cup'!U$4:U$400,AG5,'Carlskrona Cup'!P$4:P$400)) -> 259 | X5: =IF(AG5="","",SUMIF('Sibbamåla Open'!U$4:U$400,AG5,'Sibbamåla Open'!P$4:P$400)) -> 308 | Y5: =IF(AG5="","",SUMIF('Vaxholm Indoor'!U$4:U$400,AG5,'Vaxholm Indoor'!P$4:P$400)) -> 427 | Z5: =IF(AG5="","",SUMIF('SM inne'!U$4:U$400,AG5,'SM inne'!P$4:P$400)) -> 249 | AA5: =IF(AG5="","",SUMIF('SmålandsDM inne'!U$4:U$400,AG5,'SmålandsDM inne'!P$4:P$400)) -> 0 | AB5: =IF(AG5="","",SUMIF('BlekingeDM inne'!U$4:U$400,AG5,'BlekingeDM inne'!P$4:P$400)) -> 354 | AC5: =IF(AG5="","",SUMIF('StockholmsDM inne'!U$4:U$400,AG5,'StockholmsDM inne'!P$4:P$400)) -> 0 | AD5: =IF(AG5="","",SUMIF(Värendspokalen!U$4:U$400,AG5,Värendspokalen!P$4:P$400)) -> 343 | AG5: =IF(B5="","",SUMIF(Kastare!B$2:B$2999,B5,Kastare!A$2:A$2999)) -> 1006
A6: 3 | B6: Ingvar Eriksson | C6: Carlskrona Hsc | D6: 4000 | F6: 14 | G6: 159.4285714 | I6: =IF(AG6="","",SUMIF('Tingsryd Open'!U$4:U$400,AG6,'Tingsryd Open'!P$4:P$400)) -> 263 | J6: =IF(AG6="","",SUMIF('Jämjö Open'!U$4:U$400,AG6,'Jämjö Open'!P$4:P$400)) -> 278 | K6: =IF(AG6="","",SUMIF('Viby Open'!U$4:U$400,AG6,'Viby Open'!P$4:P$400)) -> 0 | L6: =IF(AG6="","",SUMIF('Björkenäs Open'!U$4:U$400,AG6,'Björkenäs Open'!P$4:P$400)) -> 319 | M6: =IF(AG6="","",SUMIF('SM ute Lö'!U$4:U$400,AG6,'SM ute Lö'!P$4:P$400)) -> 330 | N6: =IF(AG6="","",SUMIF('SM ute Sö'!U$4:U$401,AG6,'SM ute Sö'!P$4:P$401)) -> 321 | O6: =IF(AG6="","",SUMIF('Roslagen Open'!U$4:U$400,AG6,'Roslagen Open'!P$4:P$400)) -> 0 | P6: =IF(AG6="","",SUMIF('Vaxholm Open'!U$4:U$400,AG6,'Vaxholm Open'!P$4:P$400)) -> 0 | Q6: =IF(AG6="","",SUMIF('Dynapac Open'!U$4:U$400,AG6,'Dynapac Open'!P$4:P$400)) -> 345 | R6: =IF(AG6="","",SUMIF('SmålandsDM ute'!U$4:U$400,AG6,'SmålandsDM ute'!P$4:P$400)) -> 0 | S6: =IF(AG6="","",SUMIF('BlekingeDM ute'!U$4:U$400,AG6,'BlekingeDM ute'!P$4:P$400)) -> 316 | T6: =IF(AG6="","",SUMIF('StockholmsDM ute'!U$4:U$400,AG6,'StockholmsDM ute'!P$4:P$400)) -> 0 | U6: =IF(AG6="","",SUMIF('Åseda Open'!U$4:U$406,AG6,'Åseda Open'!P$4:P$406)) -> 347 | V6: =IF(AG6="","",SUMIF(Höstskon!U$4:U$400,AG6,Höstskon!P$4:P$400)) -> 230 | W6: =IF(AG6="","",SUMIF('Carlskrona Cup'!U$4:U$400,AG6,'Carlskrona Cup'!P$4:P$400)) -> 361 | X6: =IF(AG6="","",SUMIF('Sibbamåla Open'!U$4:U$400,AG6,'Sibbamåla Open'!P$4:P$400)) -> 356 | Y6: =IF(AG6="","",SUMIF('Vaxholm Indoor'!U$4:U$400,AG6,'Vaxholm Indoor'!P$4:P$400)) -> 0 | Z6: =IF(AG6="","",SUMIF('SM inne'!U$4:U$400,AG6,'SM inne'!P$4:P$400)) -> 234 | AA6: =IF(AG6="","",SUMIF('SmålandsDM inne'!U$4:U$400,AG6,'SmålandsDM inne'!P$4:P$400)) -> 0 | AB6: =IF(AG6="","",SUMIF('BlekingeDM inne'!U$4:U$400,AG6,'BlekingeDM inne'!P$4:P$400)) -> 394 | AC6: =IF(AG6="","",SUMIF('StockholmsDM inne'!U$4:U$400,AG6,'StockholmsDM inne'!P$4:P$400)) -> 0 | AD6: =IF(AG6="","",SUMIF(Värendspokalen!U$4:U$400,AG6,Värendspokalen!P$4:P$400)) -> 370 | AG6: =IF(B6="","",SUMIF(Kastare!B$2:B$2999,B6,Kastare!A$2:A$2999)) -> 1005
A7: 4 | B7: Matz Karlsson | C7: Korpen Åseda | D7: 3930 | F7: 12 | G7: 163.75 | I7: =IF(AG7="","",SUMIF('Tingsryd Open'!U$4:U$400,AG7,'Tingsryd Open'!P$4:P$400)) -> 287 | J7: =IF(AG7="","",SUMIF('Jämjö Open'!U$4:U$400,AG7,'Jämjö Open'!P$4:P$400)) -> 297 | K7: =IF(AG7="","",SUMIF('Viby Open'!U$4:U$400,AG7,'Viby Open'!P$4:P$400)) -> 0 | L7: =IF(AG7="","",SUMIF('Björkenäs Open'!U$4:U$400,AG7,'Björkenäs Open'!P$4:P$400)) -> 314 | M7: =IF(AG7="","",SUMIF('SM ute Lö'!U$4:U$400,AG7,'SM ute Lö'!P$4:P$400)) -> 316 | N7: =IF(AG7="","",SUMIF('SM ute Sö'!U$4:U$401,AG7,'SM ute Sö'!P$4:P$401)) -> 361 | O7: =IF(AG7="","",SUMIF('Roslagen Open'!U$4:U$400,AG7,'Roslagen Open'!P$4:P$400)) -> 0 | P7: =IF(AG7="","",SUMIF('Vaxholm Open'!U$4:U$400,AG7,'Vaxholm Open'!P$4:P$400)) -> 0 | Q7: =IF(AG7="","",SUMIF('Dynapac Open'!U$4:U$400,AG7,'Dynapac Open'!P$4:P$400)) -> 363 | R7: =IF(AG7="","",SUMIF('SmålandsDM ute'!U$4:U$400,AG7,'SmålandsDM ute'!P$4:P$400)) -> 294 | S7: =IF(AG7="","",SUMIF('BlekingeDM ute'!U$4:U$400,AG7,'BlekingeDM ute'!P$4:P$400)) -> 0 | T7: =IF(AG7="","",SUMIF('StockholmsDM ute'!U$4:U$400,AG7,'StockholmsDM ute'!P$4:P$400)) -> 0 | U7: =IF(AG7="","",SUMIF('Åseda Open'!U$4:U$406,AG7,'Åseda Open'!P$4:P$406)) -> 288 | V7: =IF(AG7="","",SUMIF(Höstskon!U$4:U$400,AG7,Höstskon!P$4:P$400)) -> 417 | W7: =IF(AG7="","",SUMIF('Carlskrona Cup'!U$4:U$400,AG7,'Carlskrona Cup'!P$4:P$400)) -> 361 | X7: =IF(AG7="","",SUMIF('Sibbamåla Open'!U$4:U$400,AG7,'Sibbamåla Open'!P$4:P$400)) -> 328 | Y7: =IF(AG7="","",SUMIF('Vaxholm Indoor'!U$4:U$400,AG7,'Vaxholm Indoor'!P$4:P$400)) -> 0 | Z7: =IF(AG7="","",SUMIF('SM inne'!U$4:U$400,AG7,'SM inne'!P$4:P$400)) -> 0 | AA7: =IF(AG7="","",SUMIF('SmålandsDM inne'!U$4:U$400,AG7,'SmålandsDM inne'!P$4:P$400)) -> 0 | AB7: =IF(AG7="","",SUMIF('BlekingeDM inne'!U$4:U$400,AG7,'BlekingeDM inne'!P$4:P$400)) -> 0 | AC7: =IF(AG7="","",SUMIF('StockholmsDM inne'!U$4:U$400,AG7,'StockholmsDM inne'!P$4:P$400)) -> 0 | AD7: =IF(AG7="","",SUMIF(Värendspokalen!U$4:U$400,AG7,Värendspokalen!P$4:P$400)) -> 304 | AG7: =IF(B7="","",SUMIF(Kastare!B$2:B$2999,B7,Kastare!A$2:A$2999)) -> 1003
A8: 5 | B8: Jean Fredriksson Väre | C8: Balders Hsk | D8: 3761 | F8: 13 | G8: 152.2307692 | I8: =IF(AG8="","",SUMIF('Tingsryd Open'!U$4:U$400,AG8,'Tingsryd Open'!P$4:P$400)) -> 299 | J8: =IF(AG8="","",SUMIF('Jämjö Open'!U$4:U$400,AG8,'Jämjö Open'!P$4:P$400)) -> 0 | K8: =IF(AG8="","",SUMIF('Viby Open'!U$4:U$400,AG8,'Viby Open'!P$4:P$400)) -> 0 | L8: =IF(AG8="","",SUMIF('Björkenäs Open'!U$4:U$400,AG8,'Björkenäs Open'!P$4:P$400)) -> 307 | M8: =IF(AG8="","",SUMIF('SM ute Lö'!U$4:U$400,AG8,'SM ute Lö'!P$4:P$400)) -> 213 | N8: =IF(AG8="","",SUMIF('SM ute Sö'!U$4:U$401,AG8,'SM ute Sö'!P$4:P$401)) -> 360 | O8: =IF(AG8="","",SUMIF('Roslagen Open'!U$4:U$400,AG8,'Roslagen Open'!P$4:P$400)) -> 231 | P8: =IF(AG8="","",SUMIF('Vaxholm Open'!U$4:U$400,AG8,'Vaxholm Open'!P$4:P$400)) -> 197 | Q8: =IF(AG8="","",SUMIF('Dynapac Open'!U$4:U$400,AG8,'Dynapac Open'!P$4:P$400)) -> 0 | R8: =IF(AG8="","",SUMIF('SmålandsDM ute'!U$4:U$400,AG8,'SmålandsDM ute'!P$4:P$400)) -> 0 | S8: =IF(AG8="","",SUMIF('BlekingeDM ute'!U$4:U$400,AG8,'BlekingeDM ute'!P$4:P$400)) -> 0 | T8: =IF(AG8="","",SUMIF('StockholmsDM ute'!U$4:U$400,AG8,'StockholmsDM ute'!P$4:P$400)) -> 397 | U8: =IF(AG8="","",SUMIF('Åseda Open'!U$4:U$406,AG8,'Åseda Open'!P$4:P$406)) -> 0 | V8: =IF(AG8="","",SUMIF(Höstskon!U$4:U$400,AG8,Höstskon!P$4:P$400)) -> 0 | W8: =IF(AG8="","",SUMIF('Carlskrona Cup'!U$4:U$400,AG8,'Carlskrona Cup'!P$4:P$400)) -> 319 | X8: =IF(AG8="","",SUMIF('Sibbamåla Open'!U$4:U$400,AG8,'Sibbamåla Open'!P$4:P$400)) -> 352 | Y8: =IF(AG8="","",SUMIF('Vaxholm Indoor'!U$4:U$400,AG8,'Vaxholm Indoor'!P$4:P$400)) -> 314 | Z8: =IF(AG8="","",SUMIF('SM inne'!U$4:U$400,AG8,'SM inne'!P$4:P$400)) -> 267 | AA8: =IF(AG8="","",SUMIF('SmålandsDM inne'!U$4:U$400,AG8,'SmålandsDM inne'!P$4:P$400)) -> 0 | AB8: =IF(AG8="","",SUMIF('BlekingeDM inne'!U$4:U$400,AG8,'BlekingeDM inne'!P$4:P$400)) -> 0 | AC8: =IF(AG8="","",SUMIF('StockholmsDM inne'!U$4:U$400,AG8,'StockholmsDM inne'!P$4:P$400)) -> 339 | AD8: =IF(AG8="","",SUMIF(Värendspokalen!U$4:U$400,AG8,Värendspokalen!P$4:P$400)) -> 363 | AG8: =IF(B8="","",SUMIF(Kastare!B$2:B$2999,B8,Kastare!A$2:A$2999)) -> 1170
A9: 6 | B9: Peter Olsson | C9: Dynapac Hsc | D9: 3698 | F9: 15 | G9: 140.0333333 | I9: =IF(AG9="","",SUMIF('Tingsryd Open'!U$4:U$400,AG9,'Tingsryd Open'!P$4:P$400)) -> 359 | J9: =IF(AG9="","",SUMIF('Jämjö Open'!U$4:U$400,AG9,'Jämjö Open'!P$4:P$400)) -> 211 | K9: =IF(AG9="","",SUMIF('Viby Open'!U$4:U$400,AG9,'Viby Open'!P$4:P$400)) -> 0 | L9: =IF(AG9="","",SUMIF('Björkenäs Open'!U$4:U$400,AG9,'Björkenäs Open'!P$4:P$400)) -> 266 | M9: =IF(AG9="","",SUMIF('SM ute Lö'!U$4:U$400,AG9,'SM ute Lö'!P$4:P$400)) -> 293 | N9: =IF(AG9="","",SUMIF('SM ute Sö'!U$4:U$401,AG9,'SM ute Sö'!P$4:P$401)) -> 178 | O9: =IF(AG9="","",SUMIF('Roslagen Open'!U$4:U$400,AG9,'Roslagen Open'!P$4:P$400)) -> 308 | P9: =IF(AG9="","",SUMIF('Vaxholm Open'!U$4:U$400,AG9,'Vaxholm Open'!P$4:P$400)) -> 114 | Q9: =IF(AG9="","",SUMIF('Dynapac Open'!U$4:U$400,AG9,'Dynapac Open'!P$4:P$400)) -> 242 | R9: =IF(AG9="","",SUMIF('SmålandsDM ute'!U$4:U$400,AG9,'SmålandsDM ute'!P$4:P$400)) -> 0 | S9: =IF(AG9="","",SUMIF('BlekingeDM ute'!U$4:U$400,AG9,'BlekingeDM ute'!P$4:P$400)) -> 257 | T9: =IF(AG9="","",SUMIF('StockholmsDM ute'!U$4:U$400,AG9,'StockholmsDM ute'!P$4:P$400)) -> 0 | U9: =IF(AG9="","",SUMIF('Åseda Open'!U$4:U$406,AG9,'Åseda Open'!P$4:P$406)) -> 248 | V9: =IF(AG9="","",SUMIF(Höstskon!U$4:U$400,AG9,Höstskon!P$4:P$400)) -> 386 | W9: =IF(AG9="","",SUMIF('Carlskrona Cup'!U$4:U$400,AG9,'Carlskrona Cup'!P$4:P$400)) -> 289 | X9: =IF(AG9="","",SUMIF('Sibbamåla Open'!U$4:U$400,AG9,'Sibbamåla Open'!P$4:P$400)) -> 305 | Y9: =IF(AG9="","",SUMIF('Vaxholm Indoor'!U$4:U$400,AG9,'Vaxholm Indoor'!P$4:P$400)) -> 0 | Z9: =IF(AG9="","",SUMIF('SM inne'!U$4:U$400,AG9,'SM inne'!P$4:P$400)) -> 296 | AA9: =IF(AG9="","",SUMIF('SmålandsDM inne'!U$4:U$400,AG9,'SmålandsDM inne'!P$4:P$400)) -> 0 | AB9: =IF(AG9="","",SUMIF('BlekingeDM inne'!U$4:U$400,AG9,'BlekingeDM inne'!P$4:P$400)) -> 449 | AC9: =IF(AG9="","",SUMIF('StockholmsDM inne'!U$4:U$400,AG9,'StockholmsDM inne'!P$4:P$400)) -> 0 | AD9: =IF(AG9="","",SUMIF(Värendspokalen!U$4:U$400,AG9,Värendspokalen!P$4:P$400)) -> 0 | AG9: =IF(B9="","",SUMIF(Kastare!B$2:B$2999,B9,Kastare!A$2:A$2999)) -> 1008
A10: 7 | B10: Sandor Bodi | C10: Växjö Hsk | D10: 3696 | F10: 10 | G10: 184.8 | I10: =IF(AG10="","",SUMIF('Tingsryd Open'!U$4:U$400,AG10,'Tingsryd Open'!P$4:P$400)) -> 306 | J10: =IF(AG10="","",SUMIF('Jämjö Open'!U$4:U$400,AG10,'Jämjö Open'!P$4:P$400)) -> 0 | K10: =IF(AG10="","",SUMIF('Viby Open'!U$4:U$400,AG10,'Viby Open'!P$4:P$400)) -> 0 | L10: =IF(AG10="","",SUMIF('Björkenäs Open'!U$4:U$400,AG10,'Björkenäs Open'!P$4:P$400)) -> 0 | M10: =IF(AG10="","",SUMIF('SM ute Lö'!U$4:U$400,AG10,'SM ute Lö'!P$4:P$400)) -> 380 | N10: =IF(AG10="","",SUMIF('SM ute Sö'!U$4:U$401,AG10,'SM ute Sö'!P$4:P$401)) -> 329 | O10: =IF(AG10="","",SUMIF('Roslagen Open'!U$4:U$400,AG10,'Roslagen Open'!P$4:P$400)) -> 0 | P10: =IF(AG10="","",SUMIF('Vaxholm Open'!U$4:U$400,AG10,'Vaxholm Open'!P$4:P$400)) -> 0 | Q10: =IF(AG10="","",SUMIF('Dynapac Open'!U$4:U$400,AG10,'Dynapac Open'!P$4:P$400)) -> 410 | R10: =IF(AG10="","",SUMIF('SmålandsDM ute'!U$4:U$400,AG10,'SmålandsDM ute'!P$4:P$400)) -> 362 | S10: =IF(AG10="","",SUMIF('BlekingeDM ute'!U$4:U$400,AG10,'BlekingeDM ute'!P$4:P$400)) -> 0 | T10: =IF(AG10="","",SUMIF('StockholmsDM ute'!U$4:U$400,AG10,'StockholmsDM ute'!P$4:P$400)) -> 0 | U10: =IF(AG10="","",SUMIF('Åseda Open'!U$4:U$406,AG10,'Åseda Open'!P$4:P$406)) -> 439 | V10: =IF(AG10="","",SUMIF(Höstskon!U$4:U$400,AG10,Höstskon!P$4:P$400)) -> 349 | W10: =IF(AG10="","",SUMIF('Carlskrona Cup'!U$4:U$400,AG10,'Carlskrona Cup'!P$4:P$400)) -> 0 | X10: =IF(AG10="","",SUMIF('Sibbamåla Open'!U$4:U$400,AG10,'Sibbamåla Open'!P$4:P$400)) -> 339 | Y10: =IF(AG10="","",SUMIF('Vaxholm Indoor'!U$4:U$400,AG10,'Vaxholm Indoor'!P$4:P$400)) -> 0 | Z10: =IF(AG10="","",SUMIF('SM inne'!U$4:U$400,AG10,'SM inne'!P$4:P$400)) -> 336 | AA10: =IF(AG10="","",SUMIF('SmålandsDM inne'!U$4:U$400,AG10,'SmålandsDM inne'!P$4:P$400)) -> 0 | AB10: =IF(AG10="","",SUMIF('BlekingeDM inne'!U$4:U$400,AG10,'BlekingeDM inne'!P$4:P$400)) -> 0 | AC10: =IF(AG10="","",SUMIF('StockholmsDM inne'!U$4:U$400,AG10,'StockholmsDM inne'!P$4:P$400)) -> 0 | AD10: =IF(AG10="","",SUMIF(Värendspokalen!U$4:U$400,AG10,Värendspokalen!P$4:P$400)) -> 446 | AG10: =IF(B10="","",SUMIF(Kastare!B$2:B$2999,B10,Kastare!A$2:A$2999)) -> 1001
A11: 8 | B11: Magnus Israelsson | C11: Sibbamåla IF | D11: 3360 | F11: 16 | G11: 129.21875 | I11: =IF(AG11="","",SUMIF('Tingsryd Open'!U$4:U$400,AG11,'Tingsryd Open'!P$4:P$400)) -> 214 | J11: =IF(AG11="","",SUMIF('Jämjö Open'!U$4:U$400,AG11,'Jämjö Open'!P$4:P$400)) -> 294 | K11: =IF(AG11="","",SUMIF('Viby Open'!U$4:U$400,AG11,'Viby Open'!P$4:P$400)) -> 0 | L11: =IF(AG11="","",SUMIF('Björkenäs Open'!U$4:U$400,AG11,'Björkenäs Open'!P$4:P$400)) -> 217 | M11: =IF(AG11="","",SUMIF('SM ute Lö'!U$4:U$400,AG11,'SM ute Lö'!P$4:P$400)) -> 186 | N11: =IF(AG11="","",SUMIF('SM ute Sö'!U$4:U$401,AG11,'SM ute Sö'!P$4:P$401)) -> 345 | O11: =IF(AG11="","",SUMIF('Roslagen Open'!U$4:U$400,AG11,'Roslagen Open'!P$4:P$400)) -> 190 | P11: =IF(AG11="","",SUMIF('Vaxholm Open'!U$4:U$400,AG11,'Vaxholm Open'!P$4:P$400)) -> 206 | Q11: =IF(AG11="","",SUMIF('Dynapac Open'!U$4:U$400,AG11,'Dynapac Open'!P$4:P$400)) -> 239 | R11: =IF(AG11="","",SUMIF('SmålandsDM ute'!U$4:U$400,AG11,'SmålandsDM ute'!P$4:P$400)) -> 0 | S11: =IF(AG11="","",SUMIF('BlekingeDM ute'!U$4:U$400,AG11,'BlekingeDM ute'!P$4:P$400)) -> 239 | T11: =IF(AG11="","",SUMIF('StockholmsDM ute'!U$4:U$400,AG11,'StockholmsDM ute'!P$4:P$400)) -> 0 | U11: =IF(AG11="","",SUMIF('Åseda Open'!U$4:U$406,AG11,'Åseda Open'!P$4:P$406)) -> 291 | V11: =IF(AG11="","",SUMIF(Höstskon!U$4:U$400,AG11,Höstskon!P$4:P$400)) -> 313 | W11: =IF(AG11="","",SUMIF('Carlskrona Cup'!U$4:U$400,AG11,'Carlskrona Cup'!P$4:P$400)) -> 371 | X11: =IF(AG11="","",SUMIF('Sibbamåla Open'!U$4:U$400,AG11,'Sibbamåla Open'!P$4:P$400)) -> 193 | Y11: =IF(AG11="","",SUMIF('Vaxholm Indoor'!U$4:U$400,AG11,'Vaxholm Indoor'!P$4:P$400)) -> 0 | Z11: =IF(AG11="","",SUMIF('SM inne'!U$4:U$400,AG11,'SM inne'!P$4:P$400)) -> 241 | AA11: =IF(AG11="","",SUMIF('SmålandsDM inne'!U$4:U$400,AG11,'SmålandsDM inne'!P$4:P$400)) -> 0 | AB11: =IF(AG11="","",SUMIF('BlekingeDM inne'!U$4:U$400,AG11,'BlekingeDM inne'!P$4:P$400)) -> 315 | AC11: =IF(AG11="","",SUMIF('StockholmsDM inne'!U$4:U$400,AG11,'StockholmsDM inne'!P$4:P$400)) -> 0 | AD11: =IF(AG11="","",SUMIF(Värendspokalen!U$4:U$400,AG11,Värendspokalen!P$4:P$400)) -> 281 | AG11: =IF(B11="","",SUMIF(Kastare!B$2:B$2999,B11,Kastare!A$2:A$2999)) -> 1083
A12: 9 | B12: Tobias Gneupel | C12: Sibbamåla IF | D12: 3246 | F12: 9 | G12: 180.3333333 | I12: =IF(AG12="","",SUMIF('Tingsryd Open'!U$4:U$400,AG12,'Tingsryd Open'!P$4:P$400)) -> 295 | J12: =IF(AG12="","",SUMIF('Jämjö Open'!U$4:U$400,AG12,'Jämjö Open'!P$4:P$400)) -> 0 | K12: =IF(AG12="","",SUMIF('Viby Open'!U$4:U$400,AG12,'Viby Open'!P$4:P$400)) -> 0 | L12: =IF(AG12="","",SUMIF('Björkenäs Open'!U$4:U$400,AG12,'Björkenäs Open'!P$4:P$400)) -> 301 | M12: =IF(AG12="","",SUMIF('SM ute Lö'!U$4:U$400,AG12,'SM ute Lö'!P$4:P$400)) -> 306 | N12: =IF(AG12="","",SUMIF('SM ute Sö'!U$4:U$401,AG12,'SM ute Sö'!P$4:P$401)) -> 410 | O12: =IF(AG12="","",SUMIF('Roslagen Open'!U$4:U$400,AG12,'Roslagen Open'!P$4:P$400)) -> 0 | P12: =IF(AG12="","",SUMIF('Vaxholm Open'!U$4:U$400,AG12,'Vaxholm Open'!P$4:P$400)) -> 0 | Q12: =IF(AG12="","",SUMIF('Dynapac Open'!U$4:U$400,AG12,'Dynapac Open'!P$4:P$400)) -> 0 | R12: =IF(AG12="","",SUMIF('SmålandsDM ute'!U$4:U$400,AG12,'SmålandsDM ute'!P$4:P$400)) -> 0 | S12: =IF(AG12="","",SUMIF('BlekingeDM ute'!U$4:U$400,AG12,'BlekingeDM ute'!P$4:P$400)) -> 359 | T12: =IF(AG12="","",SUMIF('StockholmsDM ute'!U$4:U$400,AG12,'StockholmsDM ute'!P$4:P$400)) -> 0 | U12: =IF(AG12="","",SUMIF('Åseda Open'!U$4:U$406,AG12,'Åseda Open'!P$4:P$406)) -> 0 | V12: =IF(AG12="","",SUMIF(Höstskon!U$4:U$400,AG12,Höstskon!P$4:P$400)) -> 0 | W12: =IF(AG12="","",SUMIF('Carlskrona Cup'!U$4:U$400,AG12,'Carlskrona Cup'!P$4:P$400)) -> 373 | X12: =IF(AG12="","",SUMIF('Sibbamåla Open'!U$4:U$400,AG12,'Sibbamåla Open'!P$4:P$400)) -> 368 | Y12: =IF(AG12="","",SUMIF('Vaxholm Indoor'!U$4:U$400,AG12,'Vaxholm Indoor'!P$4:P$400)) -> 0 | Z12: =IF(AG12="","",SUMIF('SM inne'!U$4:U$400,AG12,'SM inne'!P$4:P$400)) -> 420 | AA12: =IF(AG12="","",SUMIF('SmålandsDM inne'!U$4:U$400,AG12,'SmålandsDM inne'!P$4:P$400)) -> 0 | AB12: =IF(AG12="","",SUMIF('BlekingeDM inne'!U$4:U$400,AG12,'BlekingeDM inne'!P$4:P$400)) -> 414 | AC12: =IF(AG12="","",SUMIF('StockholmsDM inne'!U$4:U$400,AG12,'StockholmsDM inne'!P$4:P$400)) -> 0 | AD12: =IF(AG12="","",SUMIF(Värendspokalen!U$4:U$400,AG12,Värendspokalen!P$4:P$400)) -> 0 | AG12: =IF(B12="","",SUMIF(Kastare!B$2:B$2999,B12,Kastare!A$2:A$2999)) -> 1009
A13: 10 | B13: Gert Karlsson | C13: Korpen Åseda | D13: 3223 | F13: 12 | G13: 134.2916667 | I13: =IF(AG13="","",SUMIF('Tingsryd Open'!U$4:U$400,AG13,'Tingsryd Open'!P$4:P$400)) -> 225 | J13: =IF(AG13="","",SUMIF('Jämjö Open'!U$4:U$400,AG13,'Jämjö Open'!P$4:P$400)) -> 294 | K13: =IF(AG13="","",SUMIF('Viby Open'!U$4:U$400,AG13,'Viby Open'!P$4:P$400)) -> 0 | L13: =IF(AG13="","",SUMIF('Björkenäs Open'!U$4:U$400,AG13,'Björkenäs Open'!P$4:P$400)) -> 316 | M13: =IF(AG13="","",SUMIF('SM ute Lö'!U$4:U$400,AG13,'SM ute Lö'!P$4:P$400)) -> 262 | N13: =IF(AG13="","",SUMIF('SM ute Sö'!U$4:U$401,AG13,'SM ute Sö'!P$4:P$401)) -> 0 | O13: =IF(AG13="","",SUMIF('Roslagen Open'!U$4:U$400,AG13,'Roslagen Open'!P$4:P$400)) -> 240 | P13: =IF(AG13="","",SUMIF('Vaxholm Open'!U$4:U$400,AG13,'Vaxholm Open'!P$4:P$400)) -> 180 | Q13: =IF(AG13="","",SUMIF('Dynapac Open'!U$4:U$400,AG13,'Dynapac Open'!P$4:P$400)) -> 246 | R13: =IF(AG13="","",SUMIF('SmålandsDM ute'!U$4:U$400,AG13,'SmålandsDM ute'!P$4:P$400)) -> 274 | S13: =IF(AG13="","",SUMIF('BlekingeDM ute'!U$4:U$400,AG13,'BlekingeDM ute'!P$4:P$400)) -> 0 | T13: =IF(AG13="","",SUMIF('StockholmsDM ute'!U$4:U$400,AG13,'StockholmsDM ute'!P$4:P$400)) -> 0 | U13: =IF(AG13="","",SUMIF('Åseda Open'!U$4:U$406,AG13,'Åseda Open'!P$4:P$406)) -> 247 | V13: =IF(AG13="","",SUMIF(Höstskon!U$4:U$400,AG13,Höstskon!P$4:P$400)) -> 316 | W13: =IF(AG13="","",SUMIF('Carlskrona Cup'!U$4:U$400,AG13,'Carlskrona Cup'!P$4:P$400)) -> 302 | X13: =IF(AG13="","",SUMIF('Sibbamåla Open'!U$4:U$400,AG13,'Sibbamåla Open'!P$4:P$400)) -> 0 | Y13: =IF(AG13="","",SUMIF('Vaxholm Indoor'!U$4:U$400,AG13,'Vaxholm Indoor'!P$4:P$400)) -> 0 | Z13: =IF(AG13="","",SUMIF('SM inne'!U$4:U$400,AG13,'SM inne'!P$4:P$400)) -> 0 | AA13: =IF(AG13="","",SUMIF('SmålandsDM inne'!U$4:U$400,AG13,'SmålandsDM inne'!P$4:P$400)) -> 0 | AB13: =IF(AG13="","",SUMIF('BlekingeDM inne'!U$4:U$400,AG13,'BlekingeDM inne'!P$4:P$400)) -> 0 | AC13: =IF(AG13="","",SUMIF('StockholmsDM inne'!U$4:U$400,AG13,'StockholmsDM inne'!P$4:P$400)) -> 0 | AD13: =IF(AG13="","",SUMIF(Värendspokalen!U$4:U$400,AG13,Värendspokalen!P$4:P$400)) -> 321 | AG13: =IF(B13="","",SUMIF(Kastare!B$2:B$2999,B13,Kastare!A$2:A$2999)) -> 1004
A14: 11 | B14: Inge Skoglöv | C14: Jämjö Hsk | D14: 3153 | F14: 16 | G14: 120.09375 | I14: =IF(AG14="","",SUMIF('Tingsryd Open'!U$4:U$400,AG14,'Tingsryd Open'!P$4:P$400)) -> 220 | J14: =IF(AG14="","",SUMIF('Jämjö Open'!U$4:U$400,AG14,'Jämjö Open'!P$4:P$400)) -> 244 | K14: =IF(AG14="","",SUMIF('Viby Open'!U$4:U$400,AG14,'Viby Open'!P$4:P$400)) -> 0 | L14: =IF(AG14="","",SUMIF('Björkenäs Open'!U$4:U$400,AG14,'Björkenäs Open'!P$4:P$400)) -> 171 | M14: =IF(AG14="","",SUMIF('SM ute Lö'!U$4:U$400,AG14,'SM ute Lö'!P$4:P$400)) -> 211 | N14: =IF(AG14="","",SUMIF('SM ute Sö'!U$4:U$401,AG14,'SM ute Sö'!P$4:P$401)) -> 290 | O14: =IF(AG14="","",SUMIF('Roslagen Open'!U$4:U$400,AG14,'Roslagen Open'!P$4:P$400)) -> 191 | P14: =IF(AG14="","",SUMIF('Vaxholm Open'!U$4:U$400,AG14,'Vaxholm Open'!P$4:P$400)) -> 179 | Q14: =IF(AG14="","",SUMIF('Dynapac Open'!U$4:U$400,AG14,'Dynapac Open'!P$4:P$400)) -> 249 | R14: =IF(AG14="","",SUMIF('SmålandsDM ute'!U$4:U$400,AG14,'SmålandsDM ute'!P$4:P$400)) -> 0 | S14: =IF(AG14="","",SUMIF('BlekingeDM ute'!U$4:U$400,AG14,'BlekingeDM ute'!P$4:P$400)) -> 149 | T14: =IF(AG14="","",SUMIF('StockholmsDM ute'!U$4:U$400,AG14,'StockholmsDM ute'!P$4:P$400)) -> 0 | U14: =IF(AG14="","",SUMIF('Åseda Open'!U$4:U$406,AG14,'Åseda Open'!P$4:P$406)) -> 297 | V14: =IF(AG14="","",SUMIF(Höstskon!U$4:U$400,AG14,Höstskon!P$4:P$400)) -> 255 | W14: =IF(AG14="","",SUMIF('Carlskrona Cup'!U$4:U$400,AG14,'Carlskrona Cup'!P$4:P$400)) -> 350 | X14: =IF(AG14="","",SUMIF('Sibbamåla Open'!U$4:U$400,AG14,'Sibbamåla Open'!P$4:P$400)) -> 231 | Y14: =IF(AG14="","",SUMIF('Vaxholm Indoor'!U$4:U$400,AG14,'Vaxholm Indoor'!P$4:P$400)) -> 0 | Z14: =IF(AG14="","",SUMIF('SM inne'!U$4:U$400,AG14,'SM inne'!P$4:P$400)) -> 281 | AA14: =IF(AG14="","",SUMIF('SmålandsDM inne'!U$4:U$400,AG14,'SmålandsDM inne'!P$4:P$400)) -> 0 | AB14: =IF(AG14="","",SUMIF('BlekingeDM inne'!U$4:U$400,AG14,'BlekingeDM inne'!P$4:P$400)) -> 202 | AC14: =IF(AG14="","",SUMIF('StockholmsDM inne'!U$4:U$400,AG14,'StockholmsDM inne'!P$4:P$400)) -> 0 | AD14: =IF(AG14="","",SUMIF(Värendspokalen!U$4:U$400,AG14,Värendspokalen!P$4:P$400)) -> 323 | AG14: =IF(B14="","",SUMIF(Kastare!B$2:B$2999,B14,Kastare!A$2:A$2999)) -> 1062
A15: 12 | B15: Anitha Fabbeke | C15: Dynapac Hsc | D15: 3107 | F15: 15 | G15: 119.0333333 | I15: =IF(AG15="","",SUMIF('Tingsryd Open'!U$4:U$400,AG15,'Tingsryd Open'!P$4:P$400)) -> 157 | J15: =IF(AG15="","",SUMIF('Jämjö Open'!U$4:U$400,AG15,'Jämjö Open'!P$4:P$400)) -> 227 | K15: =IF(AG15="","",SUMIF('Viby Open'!U$4:U$400,AG15,'Viby Open'!P$4:P$400)) -> 0 | L15: =IF(AG15="","",SUMIF('Björkenäs Open'!U$4:U$400,AG15,'Björkenäs Open'!P$4:P$400)) -> 289 | M15: =IF(AG15="","",SUMIF('SM ute Lö'!U$4:U$400,AG15,'SM ute Lö'!P$4:P$400)) -> 303 | N15: =IF(AG15="","",SUMIF('SM ute Sö'!U$4:U$401,AG15,'SM ute Sö'!P$4:P$401)) -> 354 | O15: =IF(AG15="","",SUMIF('Roslagen Open'!U$4:U$400,AG15,'Roslagen Open'!P$4:P$400)) -> 170 | P15: =IF(AG15="","",SUMIF('Vaxholm Open'!U$4:U$400,AG15,'Vaxholm Open'!P$4:P$400)) -> 138 | Q15: =IF(AG15="","",SUMIF('Dynapac Open'!U$4:U$400,AG15,'Dynapac Open'!P$4:P$400)) -> 227 | R15: =IF(AG15="","",SUMIF('SmålandsDM ute'!U$4:U$400,AG15,'SmålandsDM ute'!P$4:P$400)) -> 0 | S15: =IF(AG15="","",SUMIF('BlekingeDM ute'!U$4:U$400,AG15,'BlekingeDM ute'!P$4:P$400)) -> 169 | T15: =IF(AG15="","",SUMIF('StockholmsDM ute'!U$4:U$400,AG15,'StockholmsDM ute'!P$4:P$400)) -> 0 | U15: =IF(AG15="","",SUMIF('Åseda Open'!U$4:U$406,AG15,'Åseda Open'!P$4:P$406)) -> 300 | V15: =IF(AG15="","",SUMIF(Höstskon!U$4:U$400,AG15,Höstskon!P$4:P$400)) -> 272 | W15: =IF(AG15="","",SUMIF('Carlskrona Cup'!U$4:U$400,AG15,'Carlskrona Cup'!P$4:P$400)) -> 379 | X15: =IF(AG15="","",SUMIF('Sibbamåla Open'!U$4:U$400,AG15,'Sibbamåla Open'!P$4:P$400)) -> 221 | Y15: =IF(AG15="","",SUMIF('Vaxholm Indoor'!U$4:U$400,AG15,'Vaxholm Indoor'!P$4:P$400)) -> 0 | Z15: =IF(AG15="","",SUMIF('SM inne'!U$4:U$400,AG15,'SM inne'!P$4:P$400)) -> 179 | AA15: =IF(AG15="","",SUMIF('SmålandsDM inne'!U$4:U$400,AG15,'SmålandsDM inne'!P$4:P$400)) -> 0 | AB15: =IF(AG15="","",SUMIF('BlekingeDM inne'!U$4:U$400,AG15,'BlekingeDM inne'!P$4:P$400)) -> 186 | AC15: =IF(AG15="","",SUMIF('StockholmsDM inne'!U$4:U$400,AG15,'StockholmsDM inne'!P$4:P$400)) -> 0 | AD15: =IF(AG15="","",SUMIF(Värendspokalen!U$4:U$400,AG15,Värendspokalen!P$4:P$400)) -> 0 | AG15: =IF(B15="","",SUMIF(Kastare!B$2:B$2999,B15,Kastare!A$2:A$2999)) -> 1014
A16: 13 | B16: Lars-Erik Ottosson | C16: Lanternan B.c | D16: 3097 | F16: 14 | G16: 122.3571429 | I16: =IF(AG16="","",SUMIF('Tingsryd Open'!U$4:U$400,AG16,'Tingsryd Open'!P$4:P$400)) -> 139 | J16: =IF(AG16="","",SUMIF('Jämjö Open'!U$4:U$400,AG16,'Jämjö Open'!P$4:P$400)) -> 240 | K16: =IF(AG16="","",SUMIF('Viby Open'!U$4:U$400,AG16,'Viby Open'!P$4:P$400)) -> 0 | L16: =IF(AG16="","",SUMIF('Björkenäs Open'!U$4:U$400,AG16,'Björkenäs Open'!P$4:P$400)) -> 210 | M16: =IF(AG16="","",SUMIF('SM ute Lö'!U$4:U$400,AG16,'SM ute Lö'!P$4:P$400)) -> 285 | N16: =IF(AG16="","",SUMIF('SM ute Sö'!U$4:U$401,AG16,'SM ute Sö'!P$4:P$401)) -> 321 | O16: =IF(AG16="","",SUMIF('Roslagen Open'!U$4:U$400,AG16,'Roslagen Open'!P$4:P$400)) -> 0 | P16: =IF(AG16="","",SUMIF('Vaxholm Open'!U$4:U$400,AG16,'Vaxholm Open'!P$4:P$400)) -> 0 | Q16: =IF(AG16="","",SUMIF('Dynapac Open'!U$4:U$400,AG16,'Dynapac Open'!P$4:P$400)) -> 195 | R16: =IF(AG16="","",SUMIF('SmålandsDM ute'!U$4:U$400,AG16,'SmålandsDM ute'!P$4:P$400)) -> 0 | S16: =IF(AG16="","",SUMIF('BlekingeDM ute'!U$4:U$400,AG16,'BlekingeDM ute'!P$4:P$400)) -> 245 | T16: =IF(AG16="","",SUMIF('StockholmsDM ute'!U$4:U$400,AG16,'StockholmsDM ute'!P$4:P$400)) -> 0 | U16: =IF(AG16="","",SUMIF('Åseda Open'!U$4:U$406,AG16,'Åseda Open'!P$4:P$406)) -> 248 | V16: =IF(AG16="","",SUMIF(Höstskon!U$4:U$400,AG16,Höstskon!P$4:P$400)) -> 190 | W16: =IF(AG16="","",SUMIF('Carlskrona Cup'!U$4:U$400,AG16,'Carlskrona Cup'!P$4:P$400)) -> 269 | X16: =IF(AG16="","",SUMIF('Sibbamåla Open'!U$4:U$400,AG16,'Sibbamåla Open'!P$4:P$400)) -> 293 | Y16: =IF(AG16="","",SUMIF('Vaxholm Indoor'!U$4:U$400,AG16,'Vaxholm Indoor'!P$4:P$400)) -> 0 | Z16: =IF(AG16="","",SUMIF('SM inne'!U$4:U$400,AG16,'SM inne'!P$4:P$400)) -> 293 | AA16: =IF(AG16="","",SUMIF('SmålandsDM inne'!U$4:U$400,AG16,'SmålandsDM inne'!P$4:P$400)) -> 0 | AB16: =IF(AG16="","",SUMIF('BlekingeDM inne'!U$4:U$400,AG16,'BlekingeDM inne'!P$4:P$400)) -> 308 | AC16: =IF(AG16="","",SUMIF('StockholmsDM inne'!U$4:U$400,AG16,'StockholmsDM inne'!P$4:P$400)) -> 0 | AD16: =IF(AG16="","",SUMIF(Värendspokalen!U$4:U$400,AG16,Värendspokalen!P$4:P$400)) -> 190 | AG16: =IF(B16="","",SUMIF(Kastare!B$2:B$2999,B16,Kastare!A$2:A$2999)) -> 1031
A17: 14 | B17: Joel Sundahl | C17: Carlskrona Hsc | D17: 3096 | F17: 14 | G17: 124.5714286 | I17: =IF(AG17="","",SUMIF('Tingsryd Open'!U$4:U$400,AG17,'Tingsryd Open'!P$4:P$400)) -> 273 | J17: =IF(AG17="","",SUMIF('Jämjö Open'!U$4:U$400,AG17,'Jämjö Open'!P$4:P$400)) -> 357 | K17: =IF(AG17="","",SUMIF('Viby Open'!U$4:U$400,AG17,'Viby Open'!P$4:P$400)) -> 0 | L17: =IF(AG17="","",SUMIF('Björkenäs Open'!U$4:U$400,AG17,'Björkenäs Open'!P$4:P$400)) -> 214 | M17: =IF(AG17="","",SUMIF('SM ute Lö'!U$4:U$400,AG17,'SM ute Lö'!P$4:P$400)) -> 231 | N17: =IF(AG17="","",SUMIF('SM ute Sö'!U$4:U$401,AG17,'SM ute Sö'!P$4:P$401)) -> 238 | O17: =IF(AG17="","",SUMIF('Roslagen Open'!U$4:U$400,AG17,'Roslagen Open'!P$4:P$400)) -> 210 | P17: =IF(AG17="","",SUMIF('Vaxholm Open'!U$4:U$400,AG17,'Vaxholm Open'!P$4:P$400)) -> 200 | Q17: =IF(AG17="","",SUMIF('Dynapac Open'!U$4:U$400,AG17,'Dynapac Open'!P$4:P$400)) -> 0 | R17: =IF(AG17="","",SUMIF('SmålandsDM ute'!U$4:U$400,AG17,'SmålandsDM ute'!P$4:P$400)) -> 0 | S17: =IF(AG17="","",SUMIF('BlekingeDM ute'!U$4:U$400,AG17,'BlekingeDM ute'!P$4:P$400)) -> 200 | T17: =IF(AG17="","",SUMIF('StockholmsDM ute'!U$4:U$400,AG17,'StockholmsDM ute'!P$4:P$400)) -> 0 | U17: =IF(AG17="","",SUMIF('Åseda Open'!U$4:U$406,AG17,'Åseda Open'!P$4:P$406)) -> 275 | V17: =IF(AG17="","",SUMIF(Höstskon!U$4:U$400,AG17,Höstskon!P$4:P$400)) -> 0 | W17: =IF(AG17="","",SUMIF('Carlskrona Cup'!U$4:U$400,AG17,'Carlskrona Cup'!P$4:P$400)) -> 257 | X17: =IF(AG17="","",SUMIF('Sibbamåla Open'!U$4:U$400,AG17,'Sibbamåla Open'!P$4:P$400)) -> 339 | Y17: =IF(AG17="","",SUMIF('Vaxholm Indoor'!U$4:U$400,AG17,'Vaxholm Indoor'!P$4:P$400)) -> 0 | Z17: =IF(AG17="","",SUMIF('SM inne'!U$4:U$400,AG17,'SM inne'!P$4:P$400)) -> 192 | AA17: =IF(AG17="","",SUMIF('SmålandsDM inne'!U$4:U$400,AG17,'SmålandsDM inne'!P$4:P$400)) -> 0 | AB17: =IF(AG17="","",SUMIF('BlekingeDM inne'!U$4:U$400,AG17,'BlekingeDM inne'!P$4:P$400)) -> 237 | AC17: =IF(AG17="","",SUMIF('StockholmsDM inne'!U$4:U$400,AG17,'StockholmsDM inne'!P$4:P$400)) -> 0 | AD17: =IF(AG17="","",SUMIF(Värendspokalen!U$4:U$400,AG17,Värendspokalen!P$4:P$400)) -> 265 | AG17: =IF(B17="","",SUMIF(Kastare!B$2:B$2999,B17,Kastare!A$2:A$2999)) -> 1016
A18: 15 | B18: Mattias Olsson | C18: Dynapac Hsc | D18: 3007 | F18: 15 | G18: 119.2333333 | I18: =IF(AG18="","",SUMIF('Tingsryd Open'!U$4:U$400,AG18,'Tingsryd Open'!P$4:P$400)) -> 192 | J18: =IF(AG18="","",SUMIF('Jämjö Open'!U$4:U$400,AG18,'Jämjö Open'!P$4:P$400)) -> 255 | K18: =IF(AG18="","",SUMIF('Viby Open'!U$4:U$400,AG18,'Viby Open'!P$4:P$400)) -> 0 | L18: =IF(AG18="","",SUMIF('Björkenäs Open'!U$4:U$400,AG18,'Björkenäs Open'!P$4:P$400)) -> 257 | M18: =IF(AG18="","",SUMIF('SM ute Lö'!U$4:U$400,AG18,'SM ute Lö'!P$4:P$400)) -> 268 | N18: =IF(AG18="","",SUMIF('SM ute Sö'!U$4:U$401,AG18,'SM ute Sö'!P$4:P$401)) -> 211 | O18: =IF(AG18="","",SUMIF('Roslagen Open'!U$4:U$400,AG18,'Roslagen Open'!P$4:P$400)) -> 257 | P18: =IF(AG18="","",SUMIF('Vaxholm Open'!U$4:U$400,AG18,'Vaxholm Open'!P$4:P$400)) -> 231 | Q18: =IF(AG18="","",SUMIF('Dynapac Open'!U$4:U$400,AG18,'Dynapac Open'!P$4:P$400)) -> 255 | R18: =IF(AG18="","",SUMIF('SmålandsDM ute'!U$4:U$400,AG18,'SmålandsDM ute'!P$4:P$400)) -> 0 | S18: =IF(AG18="","",SUMIF('BlekingeDM ute'!U$4:U$400,AG18,'BlekingeDM ute'!P$4:P$400)) -> 283 | T18: =IF(AG18="","",SUMIF('StockholmsDM ute'!U$4:U$400,AG18,'StockholmsDM ute'!P$4:P$400)) -> 0 | U18: =IF(AG18="","",SUMIF('Åseda Open'!U$4:U$406,AG18,'Åseda Open'!P$4:P$406)) -> 204 | V18: =IF(AG18="","",SUMIF(Höstskon!U$4:U$400,AG18,Höstskon!P$4:P$400)) -> 200 | W18: =IF(AG18="","",SUMIF('Carlskrona Cup'!U$4:U$400,AG18,'Carlskrona Cup'!P$4:P$400)) -> 293 | X18: =IF(AG18="","",SUMIF('Sibbamåla Open'!U$4:U$400,AG18,'Sibbamåla Open'!P$4:P$400)) -> 213 | Y18: =IF(AG18="","",SUMIF('Vaxholm Indoor'!U$4:U$400,AG18,'Vaxholm Indoor'!P$4:P$400)) -> 0 | Z18: =IF(AG18="","",SUMIF('SM inne'!U$4:U$400,AG18,'SM inne'!P$4:P$400)) -> 178 | AA18: =IF(AG18="","",SUMIF('SmålandsDM inne'!U$4:U$400,AG18,'SmålandsDM inne'!P$4:P$400)) -> 0 | AB18: =IF(AG18="","",SUMIF('BlekingeDM inne'!U$4:U$400,AG18,'BlekingeDM inne'!P$4:P$400)) -> 280 | AC18: =IF(AG18="","",SUMIF('StockholmsDM inne'!U$4:U$400,AG18,'StockholmsDM inne'!P$4:P$400)) -> 0 | AD18: =IF(AG18="","",SUMIF(Värendspokalen!U$4:U$400,AG18,Värendspokalen!P$4:P$400)) -> 0 | AG18: =IF(B18="","",SUMIF(Kastare!B$2:B$2999,B18,Kastare!A$2:A$2999)) -> 1044
A19: 16 | B19: Matthias Gneupel | C19: Sibbamåla IF | D19: 2988 | F19: 12 | G19: 124.5 | I19: =IF(AG19="","",SUMIF('Tingsryd Open'!U$4:U$400,AG19,'Tingsryd Open'!P$4:P$400)) -> 185 | J19: =IF(AG19="","",SUMIF('Jämjö Open'!U$4:U$400,AG19,'Jämjö Open'!P$4:P$400)) -> 241 | K19: =IF(AG19="","",SUMIF('Viby Open'!U$4:U$400,AG19,'Viby Open'!P$4:P$400)) -> 0 | L19: =IF(AG19="","",SUMIF('Björkenäs Open'!U$4:U$400,AG19,'Björkenäs Open'!P$4:P$400)) -> 249 | M19: =IF(AG19="","",SUMIF('SM ute Lö'!U$4:U$400,AG19,'SM ute Lö'!P$4:P$400)) -> 265 | N19: =IF(AG19="","",SUMIF('SM ute Sö'!U$4:U$401,AG19,'SM ute Sö'!P$4:P$401)) -> 288 | O19: =IF(AG19="","",SUMIF('Roslagen Open'!U$4:U$400,AG19,'Roslagen Open'!P$4:P$400)) -> 0 | P19: =IF(AG19="","",SUMIF('Vaxholm Open'!U$4:U$400,AG19,'Vaxholm Open'!P$4:P$400)) -> 0 | Q19: =IF(AG19="","",SUMIF('Dynapac Open'!U$4:U$400,AG19,'Dynapac Open'!P$4:P$400)) -> 220 | R19: =IF(AG19="","",SUMIF('SmålandsDM ute'!U$4:U$400,AG19,'SmålandsDM ute'!P$4:P$400)) -> 0 | S19: =IF(AG19="","",SUMIF('BlekingeDM ute'!U$4:U$400,AG19,'BlekingeDM ute'!P$4:P$400)) -> 219 | T19: =IF(AG19="","",SUMIF('StockholmsDM ute'!U$4:U$400,AG19,'StockholmsDM ute'!P$4:P$400)) -> 0 | U19: =IF(AG19="","",SUMIF('Åseda Open'!U$4:U$406,AG19,'Åseda Open'!P$4:P$406)) -> 207 | V19: =IF(AG19="","",SUMIF(Höstskon!U$4:U$400,AG19,Höstskon!P$4:P$400)) -> 302 | W19: =IF(AG19="","",SUMIF('Carlskrona Cup'!U$4:U$400,AG19,'Carlskrona Cup'!P$4:P$400)) -> 280 | X19: =IF(AG19="","",SUMIF('Sibbamåla Open'!U$4:U$400,AG19,'Sibbamåla Open'!P$4:P$400)) -> 286 | Y19: =IF(AG19="","",SUMIF('Vaxholm Indoor'!U$4:U$400,AG19,'Vaxholm Indoor'!P$4:P$400)) -> 0 | Z19: =IF(AG19="","",SUMIF('SM inne'!U$4:U$400,AG19,'SM inne'!P$4:P$400)) -> 0 | AA19: =IF(AG19="","",SUMIF('SmålandsDM inne'!U$4:U$400,AG19,'SmålandsDM inne'!P$4:P$400)) -> 0 | AB19: =IF(AG19="","",SUMIF('BlekingeDM inne'!U$4:U$400,AG19,'BlekingeDM inne'!P$4:P$400)) -> 246 | AC19: =IF(AG19="","",SUMIF('StockholmsDM inne'!U$4:U$400,AG19,'StockholmsDM inne'!P$4:P$400)) -> 0 | AD19: =IF(AG19="","",SUMIF(Värendspokalen!U$4:U$400,AG19,Värendspokalen!P$4:P$400)) -> 0 | AG19: =IF(B19="","",SUMIF(Kastare!B$2:B$2999,B19,Kastare!A$2:A$2999)) -> 1017
A20: 17 | B20: Olle Ottosson | C20: Dynapac Hsc | D20: 2915 | F20: 13 | G20: 117.3461538 | I20: =IF(AG20="","",SUMIF('Tingsryd Open'!U$4:U$400,AG20,'Tingsryd Open'!P$4:P$400)) -> 217 | J20: =IF(AG20="","",SUMIF('Jämjö Open'!U$4:U$400,AG20,'Jämjö Open'!P$4:P$400)) -> 182 | K20: =IF(AG20="","",SUMIF('Viby Open'!U$4:U$400,AG20,'Viby Open'!P$4:P$400)) -> 0 | L20: =IF(AG20="","",SUMIF('Björkenäs Open'!U$4:U$400,AG20,'Björkenäs Open'!P$4:P$400)) -> 241 | M20: =IF(AG20="","",SUMIF('SM ute Lö'!U$4:U$400,AG20,'SM ute Lö'!P$4:P$400)) -> 232 | N20: =IF(AG20="","",SUMIF('SM ute Sö'!U$4:U$401,AG20,'SM ute Sö'!P$4:P$401)) -> 191 | O20: =IF(AG20="","",SUMIF('Roslagen Open'!U$4:U$400,AG20,'Roslagen Open'!P$4:P$400)) -> 0 | P20: =IF(AG20="","",SUMIF('Vaxholm Open'!U$4:U$400,AG20,'Vaxholm Open'!P$4:P$400)) -> 0 | Q20: =IF(AG20="","",SUMIF('Dynapac Open'!U$4:U$400,AG20,'Dynapac Open'!P$4:P$400)) -> 136 | R20: =IF(AG20="","",SUMIF('SmålandsDM ute'!U$4:U$400,AG20,'SmålandsDM ute'!P$4:P$400)) -> 0 | S20: =IF(AG20="","",SUMIF('BlekingeDM ute'!U$4:U$400,AG20,'BlekingeDM ute'!P$4:P$400)) -> 278 | T20: =IF(AG20="","",SUMIF('StockholmsDM ute'!U$4:U$400,AG20,'StockholmsDM ute'!P$4:P$400)) -> 0 | U20: =IF(AG20="","",SUMIF('Åseda Open'!U$4:U$406,AG20,'Åseda Open'!P$4:P$406)) -> 283 | V20: =IF(AG20="","",SUMIF(Höstskon!U$4:U$400,AG20,Höstskon!P$4:P$400)) -> 230 | W20: =IF(AG20="","",SUMIF('Carlskrona Cup'!U$4:U$400,AG20,'Carlskrona Cup'!P$4:P$400)) -> 339 | X20: =IF(AG20="","",SUMIF('Sibbamåla Open'!U$4:U$400,AG20,'Sibbamåla Open'!P$4:P$400)) -> 291 | Y20: =IF(AG20="","",SUMIF('Vaxholm Indoor'!U$4:U$400,AG20,'Vaxholm Indoor'!P$4:P$400)) -> 0 | Z20: =IF(AG20="","",SUMIF('SM inne'!U$4:U$400,AG20,'SM inne'!P$4:P$400)) -> 177 | AA20: =IF(AG20="","",SUMIF('SmålandsDM inne'!U$4:U$400,AG20,'SmålandsDM inne'!P$4:P$400)) -> 0 | AB20: =IF(AG20="","",SUMIF('BlekingeDM inne'!U$4:U$400,AG20,'BlekingeDM inne'!P$4:P$400)) -> 254 | AC20: =IF(AG20="","",SUMIF('StockholmsDM inne'!U$4:U$400,AG20,'StockholmsDM inne'!P$4:P$400)) -> 0 | AD20: =IF(AG20="","",SUMIF(Värendspokalen!U$4:U$400,AG20,Värendspokalen!P$4:P$400)) -> 0 | AG20: =IF(B20="","",SUMIF(Kastare!B$2:B$2999,B20,Kastare!A$2:A$2999)) -> 1021
A21: 18 | B21: Göran Mårtensson | C21: Jämjö Hsk | D21: 2837 | F21: 16 | G21: 108.09375 | I21: =IF(AG21="","",SUMIF('Tingsryd Open'!U$4:U$400,AG21,'Tingsryd Open'!P$4:P$400)) -> 217 | J21: =IF(AG21="","",SUMIF('Jämjö Open'!U$4:U$400,AG21,'Jämjö Open'!P$4:P$400)) -> 189 | K21: =IF(AG21="","",SUMIF('Viby Open'!U$4:U$400,AG21,'Viby Open'!P$4:P$400)) -> 0 | L21: =IF(AG21="","",SUMIF('Björkenäs Open'!U$4:U$400,AG21,'Björkenäs Open'!P$4:P$400)) -> 321 | M21: =IF(AG21="","",SUMIF('SM ute Lö'!U$4:U$400,AG21,'SM ute Lö'!P$4:P$400)) -> 205 | N21: =IF(AG21="","",SUMIF('SM ute Sö'!U$4:U$401,AG21,'SM ute Sö'!P$4:P$401)) -> 245 | O21: =IF(AG21="","",SUMIF('Roslagen Open'!U$4:U$400,AG21,'Roslagen Open'!P$4:P$400)) -> 170 | P21: =IF(AG21="","",SUMIF('Vaxholm Open'!U$4:U$400,AG21,'Vaxholm Open'!P$4:P$400)) -> 180 | Q21: =IF(AG21="","",SUMIF('Dynapac Open'!U$4:U$400,AG21,'Dynapac Open'!P$4:P$400)) -> 136 | R21: =IF(AG21="","",SUMIF('SmålandsDM ute'!U$4:U$400,AG21,'SmålandsDM ute'!P$4:P$400)) -> 0 | S21: =IF(AG21="","",SUMIF('BlekingeDM ute'!U$4:U$400,AG21,'BlekingeDM ute'!P$4:P$400)) -> 215 | T21: =IF(AG21="","",SUMIF('StockholmsDM ute'!U$4:U$400,AG21,'StockholmsDM ute'!P$4:P$400)) -> 0 | U21: =IF(AG21="","",SUMIF('Åseda Open'!U$4:U$406,AG21,'Åseda Open'!P$4:P$406)) -> 257 | V21: =IF(AG21="","",SUMIF(Höstskon!U$4:U$400,AG21,Höstskon!P$4:P$400)) -> 276 | W21: =IF(AG21="","",SUMIF('Carlskrona Cup'!U$4:U$400,AG21,'Carlskrona Cup'!P$4:P$400)) -> 242 | X21: =IF(AG21="","",SUMIF('Sibbamåla Open'!U$4:U$400,AG21,'Sibbamåla Open'!P$4:P$400)) -> 243 | Y21: =IF(AG21="","",SUMIF('Vaxholm Indoor'!U$4:U$400,AG21,'Vaxholm Indoor'!P$4:P$400)) -> 0 | Z21: =IF(AG21="","",SUMIF('SM inne'!U$4:U$400,AG21,'SM inne'!P$4:P$400)) -> 179 | AA21: =IF(AG21="","",SUMIF('SmålandsDM inne'!U$4:U$400,AG21,'SmålandsDM inne'!P$4:P$400)) -> 0 | AB21: =IF(AG21="","",SUMIF('BlekingeDM inne'!U$4:U$400,AG21,'BlekingeDM inne'!P$4:P$400)) -> 137 | AC21: =IF(AG21="","",SUMIF('StockholmsDM inne'!U$4:U$400,AG21,'StockholmsDM inne'!P$4:P$400)) -> 0 | AD21: =IF(AG21="","",SUMIF(Värendspokalen!U$4:U$400,AG21,Värendspokalen!P$4:P$400)) -> 247 | AG21: =IF(B21="","",SUMIF(Kastare!B$2:B$2999,B21,Kastare!A$2:A$2999)) -> 1032
A22: 19 | B22: Gilbert Pettersson | C22: Lanternan | D22: 2825 | F22: 12 | G22: 117.7083333 | I22: =IF(AG22="","",SUMIF('Tingsryd Open'!U$4:U$400,AG22,'Tingsryd Open'!P$4:P$400)) -> 213 | J22: =IF(AG22="","",SUMIF('Jämjö Open'!U$4:U$400,AG22,'Jämjö Open'!P$4:P$400)) -> 148 | K22: =IF(AG22="","",SUMIF('Viby Open'!U$4:U$400,AG22,'Viby Open'!P$4:P$400)) -> 0 | L22: =IF(AG22="","",SUMIF('Björkenäs Open'!U$4:U$400,AG22,'Björkenäs Open'!P$4:P$400)) -> 255 | M22: =IF(AG22="","",SUMIF('SM ute Lö'!U$4:U$400,AG22,'SM ute Lö'!P$4:P$400)) -> 194 | N22: =IF(AG22="","",SUMIF('SM ute Sö'!U$4:U$401,AG22,'SM ute Sö'!P$4:P$401)) -> 0 | O22: =IF(AG22="","",SUMIF('Roslagen Open'!U$4:U$400,AG22,'Roslagen Open'!P$4:P$400)) -> 0 | P22: =IF(AG22="","",SUMIF('Vaxholm Open'!U$4:U$400,AG22,'Vaxholm Open'!P$4:P$400)) -> 0 | Q22: =IF(AG22="","",SUMIF('Dynapac Open'!U$4:U$400,AG22,'Dynapac Open'!P$4:P$400)) -> 0 | R22: =IF(AG22="","",SUMIF('SmålandsDM ute'!U$4:U$400,AG22,'SmålandsDM ute'!P$4:P$400)) -> 0 | S22: =IF(AG22="","",SUMIF('BlekingeDM ute'!U$4:U$400,AG22,'BlekingeDM ute'!P$4:P$400)) -> 278 | T22: =IF(AG22="","",SUMIF('StockholmsDM ute'!U$4:U$400,AG22,'StockholmsDM ute'!P$4:P$400)) -> 0 | U22: =IF(AG22="","",SUMIF('Åseda Open'!U$4:U$406,AG22,'Åseda Open'!P$4:P$406)) -> 253 | V22: =IF(AG22="","",SUMIF(Höstskon!U$4:U$400,AG22,Höstskon!P$4:P$400)) -> 225 | W22: =IF(AG22="","",SUMIF('Carlskrona Cup'!U$4:U$400,AG22,'Carlskrona Cup'!P$4:P$400)) -> 344 | X22: =IF(AG22="","",SUMIF('Sibbamåla Open'!U$4:U$400,AG22,'Sibbamåla Open'!P$4:P$400)) -> 236 | Y22: =IF(AG22="","",SUMIF('Vaxholm Indoor'!U$4:U$400,AG22,'Vaxholm Indoor'!P$4:P$400)) -> 0 | Z22: =IF(AG22="","",SUMIF('SM inne'!U$4:U$400,AG22,'SM inne'!P$4:P$400)) -> 236 | AA22: =IF(AG22="","",SUMIF('SmålandsDM inne'!U$4:U$400,AG22,'SmålandsDM inne'!P$4:P$400)) -> 0 | AB22: =IF(AG22="","",SUMIF('BlekingeDM inne'!U$4:U$400,AG22,'BlekingeDM inne'!P$4:P$400)) -> 268 | AC22: =IF(AG22="","",SUMIF('StockholmsDM inne'!U$4:U$400,AG22,'StockholmsDM inne'!P$4:P$400)) -> 0 | AD22: =IF(AG22="","",SUMIF(Värendspokalen!U$4:U$400,AG22,Värendspokalen!P$4:P$400)) -> 175 | AG22: =IF(B22="","",SUMIF(Kastare!B$2:B$2999,B22,Kastare!A$2:A$2999)) -> 1050
A23: 20 | B23: Bengt Fabbeke | C23: Dynapac Hsc | D23: 2631 | F23: 15 | G23: 102.2 | I23: =IF(AG23="","",SUMIF('Tingsryd Open'!U$4:U$400,AG23,'Tingsryd Open'!P$4:P$400)) -> 208 | J23: =IF(AG23="","",SUMIF('Jämjö Open'!U$4:U$400,AG23,'Jämjö Open'!P$4:P$400)) -> 187 | K23: =IF(AG23="","",SUMIF('Viby Open'!U$4:U$400,AG23,'Viby Open'!P$4:P$400)) -> 0 | L23: =IF(AG23="","",SUMIF('Björkenäs Open'!U$4:U$400,AG23,'Björkenäs Open'!P$4:P$400)) -> 158 | M23: =IF(AG23="","",SUMIF('SM ute Lö'!U$4:U$400,AG23,'SM ute Lö'!P$4:P$400)) -> 264 | N23: =IF(AG23="","",SUMIF('SM ute Sö'!U$4:U$401,AG23,'SM ute Sö'!P$4:P$401)) -> 305 | O23: =IF(AG23="","",SUMIF('Roslagen Open'!U$4:U$400,AG23,'Roslagen Open'!P$4:P$400)) -> 179 | P23: =IF(AG23="","",SUMIF('Vaxholm Open'!U$4:U$400,AG23,'Vaxholm Open'!P$4:P$400)) -> 121 | Q23: =IF(AG23="","",SUMIF('Dynapac Open'!U$4:U$400,AG23,'Dynapac Open'!P$4:P$400)) -> 156 | R23: =IF(AG23="","",SUMIF('SmålandsDM ute'!U$4:U$400,AG23,'SmålandsDM ute'!P$4:P$400)) -> 0 | S23: =IF(AG23="","",SUMIF('BlekingeDM ute'!U$4:U$400,AG23,'BlekingeDM ute'!P$4:P$400)) -> 185 | T23: =IF(AG23="","",SUMIF('StockholmsDM ute'!U$4:U$400,AG23,'StockholmsDM ute'!P$4:P$400)) -> 0 | U23: =IF(AG23="","",SUMIF('Åseda Open'!U$4:U$406,AG23,'Åseda Open'!P$4:P$406)) -> 259 | V23: =IF(AG23="","",SUMIF(Höstskon!U$4:U$400,AG23,Höstskon!P$4:P$400)) -> 210 | W23: =IF(AG23="","",SUMIF('Carlskrona Cup'!U$4:U$400,AG23,'Carlskrona Cup'!P$4:P$400)) -> 198 | X23: =IF(AG23="","",SUMIF('Sibbamåla Open'!U$4:U$400,AG23,'Sibbamåla Open'!P$4:P$400)) -> 242 | Y23: =IF(AG23="","",SUMIF('Vaxholm Indoor'!U$4:U$400,AG23,'Vaxholm Indoor'!P$4:P$400)) -> 0 | Z23: =IF(AG23="","",SUMIF('SM inne'!U$4:U$400,AG23,'SM inne'!P$4:P$400)) -> 188 | AA23: =IF(AG23="","",SUMIF('SmålandsDM inne'!U$4:U$400,AG23,'SmålandsDM inne'!P$4:P$400)) -> 0 | AB23: =IF(AG23="","",SUMIF('BlekingeDM inne'!U$4:U$400,AG23,'BlekingeDM inne'!P$4:P$400)) -> 206 | AC23: =IF(AG23="","",SUMIF('StockholmsDM inne'!U$4:U$400,AG23,'StockholmsDM inne'!P$4:P$400)) -> 0 | AD23: =IF(AG23="","",SUMIF(Värendspokalen!U$4:U$400,AG23,Värendspokalen!P$4:P$400)) -> 0 | AG23: =IF(B23="","",SUMIF(Kastare!B$2:B$2999,B23,Kastare!A$2:A$2999)) -> 1037
A24: 21 | B24: Berndt Pettersson | C24: Lanternan B.c | D24: 2625 | F24: 13 | G24: 105.9230769 | I24: =IF(AG24="","",SUMIF('Tingsryd Open'!U$4:U$400,AG24,'Tingsryd Open'!P$4:P$400)) -> 164 | J24: =IF(AG24="","",SUMIF('Jämjö Open'!U$4:U$400,AG24,'Jämjö Open'!P$4:P$400)) -> 0 | K24: =IF(AG24="","",SUMIF('Viby Open'!U$4:U$400,AG24,'Viby Open'!P$4:P$400)) -> 0 | L24: =IF(AG24="","",SUMIF('Björkenäs Open'!U$4:U$400,AG24,'Björkenäs Open'!P$4:P$400)) -> 213 | M24: =IF(AG24="","",SUMIF('SM ute Lö'!U$4:U$400,AG24,'SM ute Lö'!P$4:P$400)) -> 163 | N24: =IF(AG24="","",SUMIF('SM ute Sö'!U$4:U$401,AG24,'SM ute Sö'!P$4:P$401)) -> 231 | O24: =IF(AG24="","",SUMIF('Roslagen Open'!U$4:U$400,AG24,'Roslagen Open'!P$4:P$400)) -> 0 | P24: =IF(AG24="","",SUMIF('Vaxholm Open'!U$4:U$400,AG24,'Vaxholm Open'!P$4:P$400)) -> 0 | Q24: =IF(AG24="","",SUMIF('Dynapac Open'!U$4:U$400,AG24,'Dynapac Open'!P$4:P$400)) -> 160 | R24: =IF(AG24="","",SUMIF('SmålandsDM ute'!U$4:U$400,AG24,'SmålandsDM ute'!P$4:P$400)) -> 0 | S24: =IF(AG24="","",SUMIF('BlekingeDM ute'!U$4:U$400,AG24,'BlekingeDM ute'!P$4:P$400)) -> 164 | T24: =IF(AG24="","",SUMIF('StockholmsDM ute'!U$4:U$400,AG24,'StockholmsDM ute'!P$4:P$400)) -> 0 | U24: =IF(AG24="","",SUMIF('Åseda Open'!U$4:U$406,AG24,'Åseda Open'!P$4:P$406)) -> 211 | V24: =IF(AG24="","",SUMIF(Höstskon!U$4:U$400,AG24,Höstskon!P$4:P$400)) -> 206 | W24: =IF(AG24="","",SUMIF('Carlskrona Cup'!U$4:U$400,AG24,'Carlskrona Cup'!P$4:P$400)) -> 318 | X24: =IF(AG24="","",SUMIF('Sibbamåla Open'!U$4:U$400,AG24,'Sibbamåla Open'!P$4:P$400)) -> 211 | Y24: =IF(AG24="","",SUMIF('Vaxholm Indoor'!U$4:U$400,AG24,'Vaxholm Indoor'!P$4:P$400)) -> 0 | Z24: =IF(AG24="","",SUMIF('SM inne'!U$4:U$400,AG24,'SM inne'!P$4:P$400)) -> 129 | AA24: =IF(AG24="","",SUMIF('SmålandsDM inne'!U$4:U$400,AG24,'SmålandsDM inne'!P$4:P$400)) -> 0 | AB24: =IF(AG24="","",SUMIF('BlekingeDM inne'!U$4:U$400,AG24,'BlekingeDM inne'!P$4:P$400)) -> 357 | AC24: =IF(AG24="","",SUMIF('StockholmsDM inne'!U$4:U$400,AG24,'StockholmsDM inne'!P$4:P$400)) -> 0 | AD24: =IF(AG24="","",SUMIF(Värendspokalen!U$4:U$400,AG24,Värendspokalen!P$4:P$400)) -> 227 | AG24: =IF(B24="","",SUMIF(Kastare!B$2:B$2999,B24,Kastare!A$2:A$2999)) -> 1027
A25: 22 | B25: Kristian Jältsäter | C25: Vaxholm Hsk | D25: 2597 | F25: 8 | G25: 162.3125 | I25: =IF(AG25="","",SUMIF('Tingsryd Open'!U$4:U$400,AG25,'Tingsryd Open'!P$4:P$400)) -> 0 | J25: =IF(AG25="","",SUMIF('Jämjö Open'!U$4:U$400,AG25,'Jämjö Open'!P$4:P$400)) -> 0 | K25: =IF(AG25="","",SUMIF('Viby Open'!U$4:U$400,AG25,'Viby Open'!P$4:P$400)) -> 0 | L25: =IF(AG25="","",SUMIF('Björkenäs Open'!U$4:U$400,AG25,'Björkenäs Open'!P$4:P$400)) -> 0 | M25: =IF(AG25="","",SUMIF('SM ute Lö'!U$4:U$400,AG25,'SM ute Lö'!P$4:P$400)) -> 228 | N25: =IF(AG25="","",SUMIF('SM ute Sö'!U$4:U$401,AG25,'SM ute Sö'!P$4:P$401)) -> 342 | O25: =IF(AG25="","",SUMIF('Roslagen Open'!U$4:U$400,AG25,'Roslagen Open'!P$4:P$400)) -> 237 | P25: =IF(AG25="","",SUMIF('Vaxholm Open'!U$4:U$400,AG25,'Vaxholm Open'!P$4:P$400)) -> 188 | Q25: =IF(AG25="","",SUMIF('Dynapac Open'!U$4:U$400,AG25,'Dynapac Open'!P$4:P$400)) -> 0 | R25: =IF(AG25="","",SUMIF('SmålandsDM ute'!U$4:U$400,AG25,'SmålandsDM ute'!P$4:P$400)) -> 0 | S25: =IF(AG25="","",SUMIF('BlekingeDM ute'!U$4:U$400,AG25,'BlekingeDM ute'!P$4:P$400)) -> 0 | T25: =IF(AG25="","",SUMIF('StockholmsDM ute'!U$4:U$400,AG25,'StockholmsDM ute'!P$4:P$400)) -> 391 | U25: =IF(AG25="","",SUMIF('Åseda Open'!U$4:U$406,AG25,'Åseda Open'!P$4:P$406)) -> 0 | V25: =IF(AG25="","",SUMIF(Höstskon!U$4:U$400,AG25,Höstskon!P$4:P$400)) -> 0 | W25: =IF(AG25="","",SUMIF('Carlskrona Cup'!U$4:U$400,AG25,'Carlskrona Cup'!P$4:P$400)) -> 0 | X25: =IF(AG25="","",SUMIF('Sibbamåla Open'!U$4:U$400,AG25,'Sibbamåla Open'!P$4:P$400)) -> 0 | Y25: =IF(AG25="","",SUMIF('Vaxholm Indoor'!U$4:U$400,AG25,'Vaxholm Indoor'!P$4:P$400)) -> 383 | Z25: =IF(AG25="","",SUMIF('SM inne'!U$4:U$400,AG25,'SM inne'!P$4:P$400)) -> 371 | AA25: =IF(AG25="","",SUMIF('SmålandsDM inne'!U$4:U$400,AG25,'SmålandsDM inne'!P$4:P$400)) -> 0 | AB25: =IF(AG25="","",SUMIF('BlekingeDM inne'!U$4:U$400,AG25,'BlekingeDM inne'!P$4:P$400)) -> 0 | AC25: =IF(AG25="","",SUMIF('StockholmsDM inne'!U$4:U$400,AG25,'StockholmsDM inne'!P$4:P$400)) -> 457 | AD25: =IF(AG25="","",SUMIF(Värendspokalen!U$4:U$400,AG25,Värendspokalen!P$4:P$400)) -> 0 | AG25: =IF(B25="","",SUMIF(Kastare!B$2:B$2999,B25,Kastare!A$2:A$2999)) -> 1029
A26: 23 | B26: Ronny Lundberg | C26: Lanternan B.c | D26: 2582 | F26: 12 | G26: 107.5833333 | I26: =IF(AG26="","",SUMIF('Tingsryd Open'!U$4:U$400,AG26,'Tingsryd Open'!P$4:P$400)) -> 144 | J26: =IF(AG26="","",SUMIF('Jämjö Open'!U$4:U$400,AG26,'Jämjö Open'!P$4:P$400)) -> 0 | K26: =IF(AG26="","",SUMIF('Viby Open'!U$4:U$400,AG26,'Viby Open'!P$4:P$400)) -> 0 | L26: =IF(AG26="","",SUMIF('Björkenäs Open'!U$4:U$400,AG26,'Björkenäs Open'!P$4:P$400)) -> 207 | M26: =IF(AG26="","",SUMIF('SM ute Lö'!U$4:U$400,AG26,'SM ute Lö'!P$4:P$400)) -> 230 | N26: =IF(AG26="","",SUMIF('SM ute Sö'!U$4:U$401,AG26,'SM ute Sö'!P$4:P$401)) -> 242 | O26: =IF(AG26="","",SUMIF('Roslagen Open'!U$4:U$400,AG26,'Roslagen Open'!P$4:P$400)) -> 0 | P26: =IF(AG26="","",SUMIF('Vaxholm Open'!U$4:U$400,AG26,'Vaxholm Open'!P$4:P$400)) -> 0 | Q26: =IF(AG26="","",SUMIF('Dynapac Open'!U$4:U$400,AG26,'Dynapac Open'!P$4:P$400)) -> 185 | R26: =IF(AG26="","",SUMIF('SmålandsDM ute'!U$4:U$400,AG26,'SmålandsDM ute'!P$4:P$400)) -> 0 | S26: =IF(AG26="","",SUMIF('BlekingeDM ute'!U$4:U$400,AG26,'BlekingeDM ute'!P$4:P$400)) -> 218 | T26: =IF(AG26="","",SUMIF('StockholmsDM ute'!U$4:U$400,AG26,'StockholmsDM ute'!P$4:P$400)) -> 0 | U26: =IF(AG26="","",SUMIF('Åseda Open'!U$4:U$406,AG26,'Åseda Open'!P$4:P$406)) -> 221 | V26: =IF(AG26="","",SUMIF(Höstskon!U$4:U$400,AG26,Höstskon!P$4:P$400)) -> 203 | W26: =IF(AG26="","",SUMIF('Carlskrona Cup'!U$4:U$400,AG26,'Carlskrona Cup'!P$4:P$400)) -> 243 | X26: =IF(AG26="","",SUMIF('Sibbamåla Open'!U$4:U$400,AG26,'Sibbamåla Open'!P$4:P$400)) -> 272 | Y26: =IF(AG26="","",SUMIF('Vaxholm Indoor'!U$4:U$400,AG26,'Vaxholm Indoor'!P$4:P$400)) -> 0 | Z26: =IF(AG26="","",SUMIF('SM inne'!U$4:U$400,AG26,'SM inne'!P$4:P$400)) -> 166 | AA26: =IF(AG26="","",SUMIF('SmålandsDM inne'!U$4:U$400,AG26,'SmålandsDM inne'!P$4:P$400)) -> 0 | AB26: =IF(AG26="","",SUMIF('BlekingeDM inne'!U$4:U$400,AG26,'BlekingeDM inne'!P$4:P$400)) -> 0 | AC26: =IF(AG26="","",SUMIF('StockholmsDM inne'!U$4:U$400,AG26,'StockholmsDM inne'!P$4:P$400)) -> 0 | AD26: =IF(AG26="","",SUMIF(Värendspokalen!U$4:U$400,AG26,Värendspokalen!P$4:P$400)) -> 251 | AG26: =IF(B26="","",SUMIF(Kastare!B$2:B$2999,B26,Kastare!A$2:A$2999)) -> 1023
A27: 24 | B27: Carina Gneupel | C27: Sibbamåla IF | D27: 2554 | F27: 14 | G27: 100.8571429 | I27: =IF(AG27="","",SUMIF('Tingsryd Open'!U$4:U$400,AG27,'Tingsryd Open'!P$4:P$400)) -> 166 | J27: =IF(AG27="","",SUMIF('Jämjö Open'!U$4:U$400,AG27,'Jämjö Open'!P$4:P$400)) -> 213 | K27: =IF(AG27="","",SUMIF('Viby Open'!U$4:U$400,AG27,'Viby Open'!P$4:P$400)) -> 0 | L27: =IF(AG27="","",SUMIF('Björkenäs Open'!U$4:U$400,AG27,'Björkenäs Open'!P$4:P$400)) -> 207 | M27: =IF(AG27="","",SUMIF('SM ute Lö'!U$4:U$400,AG27,'SM ute Lö'!P$4:P$400)) -> 227 | N27: =IF(AG27="","",SUMIF('SM ute Sö'!U$4:U$401,AG27,'SM ute Sö'!P$4:P$401)) -> 235 | O27: =IF(AG27="","",SUMIF('Roslagen Open'!U$4:U$400,AG27,'Roslagen Open'!P$4:P$400)) -> 0 | P27: =IF(AG27="","",SUMIF('Vaxholm Open'!U$4:U$400,AG27,'Vaxholm Open'!P$4:P$400)) -> 0 | Q27: =IF(AG27="","",SUMIF('Dynapac Open'!U$4:U$400,AG27,'Dynapac Open'!P$4:P$400)) -> 149 | R27: =IF(AG27="","",SUMIF('SmålandsDM ute'!U$4:U$400,AG27,'SmålandsDM ute'!P$4:P$400)) -> 0 | S27: =IF(AG27="","",SUMIF('BlekingeDM ute'!U$4:U$400,AG27,'BlekingeDM ute'!P$4:P$400)) -> 121 | T27: =IF(AG27="","",SUMIF('StockholmsDM ute'!U$4:U$400,AG27,'StockholmsDM ute'!P$4:P$400)) -> 0 | U27: =IF(AG27="","",SUMIF('Åseda Open'!U$4:U$406,AG27,'Åseda Open'!P$4:P$406)) -> 177 | V27: =IF(AG27="","",SUMIF(Höstskon!U$4:U$400,AG27,Höstskon!P$4:P$400)) -> 279 | W27: =IF(AG27="","",SUMIF('Carlskrona Cup'!U$4:U$400,AG27,'Carlskrona Cup'!P$4:P$400)) -> 152 | X27: =IF(AG27="","",SUMIF('Sibbamåla Open'!U$4:U$400,AG27,'Sibbamåla Open'!P$4:P$400)) -> 223 | Y27: =IF(AG27="","",SUMIF('Vaxholm Indoor'!U$4:U$400,AG27,'Vaxholm Indoor'!P$4:P$400)) -> 0 | Z27: =IF(AG27="","",SUMIF('SM inne'!U$4:U$400,AG27,'SM inne'!P$4:P$400)) -> 211 | AA27: =IF(AG27="","",SUMIF('SmålandsDM inne'!U$4:U$400,AG27,'SmålandsDM inne'!P$4:P$400)) -> 0 | AB27: =IF(AG27="","",SUMIF('BlekingeDM inne'!U$4:U$400,AG27,'BlekingeDM inne'!P$4:P$400)) -> 245 | AC27: =IF(AG27="","",SUMIF('StockholmsDM inne'!U$4:U$400,AG27,'StockholmsDM inne'!P$4:P$400)) -> 0 | AD27: =IF(AG27="","",SUMIF(Värendspokalen!U$4:U$400,AG27,Värendspokalen!P$4:P$400)) -> 219 | AG27: =IF(B27="","",SUMIF(Kastare!B$2:B$2999,B27,Kastare!A$2:A$2999)) -> 1041
A28: 25 | B28: Hathaichonlanne Phaengphui | C28: Växjö Hsk | D28: 2494 | F28: 8 | G28: 155.875 | I28: =IF(AG28="","",SUMIF('Tingsryd Open'!U$4:U$400,AG28,'Tingsryd Open'!P$4:P$400)) -> 329 | J28: =IF(AG28="","",SUMIF('Jämjö Open'!U$4:U$400,AG28,'Jämjö Open'!P$4:P$400)) -> 0 | K28: =IF(AG28="","",SUMIF('Viby Open'!U$4:U$400,AG28,'Viby Open'!P$4:P$400)) -> 0 | L28: =IF(AG28="","",SUMIF('Björkenäs Open'!U$4:U$400,AG28,'Björkenäs Open'!P$4:P$400)) -> 308 | M28: =IF(AG28="","",SUMIF('SM ute Lö'!U$4:U$400,AG28,'SM ute Lö'!P$4:P$400)) -> 277 | N28: =IF(AG28="","",SUMIF('SM ute Sö'!U$4:U$401,AG28,'SM ute Sö'!P$4:P$401)) -> 382 | O28: =IF(AG28="","",SUMIF('Roslagen Open'!U$4:U$400,AG28,'Roslagen Open'!P$4:P$400)) -> 0 | P28: =IF(AG28="","",SUMIF('Vaxholm Open'!U$4:U$400,AG28,'Vaxholm Open'!P$4:P$400)) -> 0 | Q28: =IF(AG28="","",SUMIF('Dynapac Open'!U$4:U$400,AG28,'Dynapac Open'!P$4:P$400)) -> 0 | R28: =IF(AG28="","",SUMIF('SmålandsDM ute'!U$4:U$400,AG28,'SmålandsDM ute'!P$4:P$400)) -> 199 | S28: =IF(AG28="","",SUMIF('BlekingeDM ute'!U$4:U$400,AG28,'BlekingeDM ute'!P$4:P$400)) -> 0 | T28: =IF(AG28="","",SUMIF('StockholmsDM ute'!U$4:U$400,AG28,'StockholmsDM ute'!P$4:P$400)) -> 0 | U28: =IF(AG28="","",SUMIF('Åseda Open'!U$4:U$406,AG28,'Åseda Open'!P$4:P$406)) -> 256 | V28: =IF(AG28="","",SUMIF(Höstskon!U$4:U$400,AG28,Höstskon!P$4:P$400)) -> 0 | W28: =IF(AG28="","",SUMIF('Carlskrona Cup'!U$4:U$400,AG28,'Carlskrona Cup'!P$4:P$400)) -> 0 | X28: =IF(AG28="","",SUMIF('Sibbamåla Open'!U$4:U$400,AG28,'Sibbamåla Open'!P$4:P$400)) -> 0 | Y28: =IF(AG28="","",SUMIF('Vaxholm Indoor'!U$4:U$400,AG28,'Vaxholm Indoor'!P$4:P$400)) -> 0 | Z28: =IF(AG28="","",SUMIF('SM inne'!U$4:U$400,AG28,'SM inne'!P$4:P$400)) -> 384 | AA28: =IF(AG28="","",SUMIF('SmålandsDM inne'!U$4:U$400,AG28,'SmålandsDM inne'!P$4:P$400)) -> 0 | AB28: =IF(AG28="","",SUMIF('BlekingeDM inne'!U$4:U$400,AG28,'BlekingeDM inne'!P$4:P$400)) -> 0 | AC28: =IF(AG28="","",SUMIF('StockholmsDM inne'!U$4:U$400,AG28,'StockholmsDM inne'!P$4:P$400)) -> 0 | AD28: =IF(AG28="","",SUMIF(Värendspokalen!U$4:U$400,AG28,Värendspokalen!P$4:P$400)) -> 359 | AG28: =IF(B28="","",SUMIF(Kastare!B$2:B$2999,B28,Kastare!A$2:A$2999)) -> 1007
A29: 26 | B29: Elin Olsson | C29: Dynapac Hsc | D29: 2434 | F29: 13 | G29: 97.76923077 | I29: =IF(AG29="","",SUMIF('Tingsryd Open'!U$4:U$400,AG29,'Tingsryd Open'!P$4:P$400)) -> 108 | J29: =IF(AG29="","",SUMIF('Jämjö Open'!U$4:U$400,AG29,'Jämjö Open'!P$4:P$400)) -> 190 | K29: =IF(AG29="","",SUMIF('Viby Open'!U$4:U$400,AG29,'Viby Open'!P$4:P$400)) -> 0 | L29: =IF(AG29="","",SUMIF('Björkenäs Open'!U$4:U$400,AG29,'Björkenäs Open'!P$4:P$400)) -> 150 | M29: =IF(AG29="","",SUMIF('SM ute Lö'!U$4:U$400,AG29,'SM ute Lö'!P$4:P$400)) -> 211 | N29: =IF(AG29="","",SUMIF('SM ute Sö'!U$4:U$401,AG29,'SM ute Sö'!P$4:P$401)) -> 166 | O29: =IF(AG29="","",SUMIF('Roslagen Open'!U$4:U$400,AG29,'Roslagen Open'!P$4:P$400)) -> 142 | P29: =IF(AG29="","",SUMIF('Vaxholm Open'!U$4:U$400,AG29,'Vaxholm Open'!P$4:P$400)) -> 232 | Q29: =IF(AG29="","",SUMIF('Dynapac Open'!U$4:U$400,AG29,'Dynapac Open'!P$4:P$400)) -> 193 | R29: =IF(AG29="","",SUMIF('SmålandsDM ute'!U$4:U$400,AG29,'SmålandsDM ute'!P$4:P$400)) -> 0 | S29: =IF(AG29="","",SUMIF('BlekingeDM ute'!U$4:U$400,AG29,'BlekingeDM ute'!P$4:P$400)) -> 204 | T29: =IF(AG29="","",SUMIF('StockholmsDM ute'!U$4:U$400,AG29,'StockholmsDM ute'!P$4:P$400)) -> 0 | U29: =IF(AG29="","",SUMIF('Åseda Open'!U$4:U$406,AG29,'Åseda Open'!P$4:P$406)) -> 0 | V29: =IF(AG29="","",SUMIF(Höstskon!U$4:U$400,AG29,Höstskon!P$4:P$400)) -> 189 | W29: =IF(AG29="","",SUMIF('Carlskrona Cup'!U$4:U$400,AG29,'Carlskrona Cup'!P$4:P$400)) -> 280 | X29: =IF(AG29="","",SUMIF('Sibbamåla Open'!U$4:U$400,AG29,'Sibbamåla Open'!P$4:P$400)) -> 295 | Y29: =IF(AG29="","",SUMIF('Vaxholm Indoor'!U$4:U$400,AG29,'Vaxholm Indoor'!P$4:P$400)) -> 0 | Z29: =IF(AG29="","",SUMIF('SM inne'!U$4:U$400,AG29,'SM inne'!P$4:P$400)) -> 0 | AA29: =IF(AG29="","",SUMIF('SmålandsDM inne'!U$4:U$400,AG29,'SmålandsDM inne'!P$4:P$400)) -> 0 | AB29: =IF(AG29="","",SUMIF('BlekingeDM inne'!U$4:U$400,AG29,'BlekingeDM inne'!P$4:P$400)) -> 182 | AC29: =IF(AG29="","",SUMIF('StockholmsDM inne'!U$4:U$400,AG29,'StockholmsDM inne'!P$4:P$400)) -> 0 | AD29: =IF(AG29="","",SUMIF(Värendspokalen!U$4:U$400,AG29,Värendspokalen!P$4:P$400)) -> 0 | AG29: =IF(B29="","",SUMIF(Kastare!B$2:B$2999,B29,Kastare!A$2:A$2999)) -> 1045
A30: 26 | B30: Daniel Mårtensson | C30: Jämjö Hsk | D30: 2434 | F30: 16 | G30: 93.125 | I30: =IF(AG30="","",SUMIF('Tingsryd Open'!U$4:U$400,AG30,'Tingsryd Open'!P$4:P$400)) -> 186 | J30: =IF(AG30="","",SUMIF('Jämjö Open'!U$4:U$400,AG30,'Jämjö Open'!P$4:P$400)) -> 119 | K30: =IF(AG30="","",SUMIF('Viby Open'!U$4:U$400,AG30,'Viby Open'!P$4:P$400)) -> 0 | L30: =IF(AG30="","",SUMIF('Björkenäs Open'!U$4:U$400,AG30,'Björkenäs Open'!P$4:P$400)) -> 204 | M30: =IF(AG30="","",SUMIF('SM ute Lö'!U$4:U$400,AG30,'SM ute Lö'!P$4:P$400)) -> 195 | N30: =IF(AG30="","",SUMIF('SM ute Sö'!U$4:U$401,AG30,'SM ute Sö'!P$4:P$401)) -> 233 | O30: =IF(AG30="","",SUMIF('Roslagen Open'!U$4:U$400,AG30,'Roslagen Open'!P$4:P$400)) -> 163 | P30: =IF(AG30="","",SUMIF('Vaxholm Open'!U$4:U$400,AG30,'Vaxholm Open'!P$4:P$400)) -> 202 | Q30: =IF(AG30="","",SUMIF('Dynapac Open'!U$4:U$400,AG30,'Dynapac Open'!P$4:P$400)) -> 154 | R30: =IF(AG30="","",SUMIF('SmålandsDM ute'!U$4:U$400,AG30,'SmålandsDM ute'!P$4:P$400)) -> 0 | S30: =IF(AG30="","",SUMIF('BlekingeDM ute'!U$4:U$400,AG30,'BlekingeDM ute'!P$4:P$400)) -> 262 | T30: =IF(AG30="","",SUMIF('StockholmsDM ute'!U$4:U$400,AG30,'StockholmsDM ute'!P$4:P$400)) -> 0 | U30: =IF(AG30="","",SUMIF('Åseda Open'!U$4:U$406,AG30,'Åseda Open'!P$4:P$406)) -> 218 | V30: =IF(AG30="","",SUMIF(Höstskon!U$4:U$400,AG30,Höstskon!P$4:P$400)) -> 140 | W30: =IF(AG30="","",SUMIF('Carlskrona Cup'!U$4:U$400,AG30,'Carlskrona Cup'!P$4:P$400)) -> 147 | X30: =IF(AG30="","",SUMIF('Sibbamåla Open'!U$4:U$400,AG30,'Sibbamåla Open'!P$4:P$400)) -> 199 | Y30: =IF(AG30="","",SUMIF('Vaxholm Indoor'!U$4:U$400,AG30,'Vaxholm Indoor'!P$4:P$400)) -> 0 | Z30: =IF(AG30="","",SUMIF('SM inne'!U$4:U$400,AG30,'SM inne'!P$4:P$400)) -> 140 | AA30: =IF(AG30="","",SUMIF('SmålandsDM inne'!U$4:U$400,AG30,'SmålandsDM inne'!P$4:P$400)) -> 0 | AB30: =IF(AG30="","",SUMIF('BlekingeDM inne'!U$4:U$400,AG30,'BlekingeDM inne'!P$4:P$400)) -> 266 | AC30: =IF(AG30="","",SUMIF('StockholmsDM inne'!U$4:U$400,AG30,'StockholmsDM inne'!P$4:P$400)) -> 0 | AD30: =IF(AG30="","",SUMIF(Värendspokalen!U$4:U$400,AG30,Värendspokalen!P$4:P$400)) -> 152 | AG30: =IF(B30="","",SUMIF(Kastare!B$2:B$2999,B30,Kastare!A$2:A$2999)) -> 1055
A31: 28 | B31: Göran Olofsson | C31: Korpen Nybro | D31: 2395 | F31: 13 | G31: 97.34615385 | I31: =IF(AG31="","",SUMIF('Tingsryd Open'!U$4:U$400,AG31,'Tingsryd Open'!P$4:P$400)) -> 160 | J31: =IF(AG31="","",SUMIF('Jämjö Open'!U$4:U$400,AG31,'Jämjö Open'!P$4:P$400)) -> 234 | K31: =IF(AG31="","",SUMIF('Viby Open'!U$4:U$400,AG31,'Viby Open'!P$4:P$400)) -> 0 | L31: =IF(AG31="","",SUMIF('Björkenäs Open'!U$4:U$400,AG31,'Björkenäs Open'!P$4:P$400)) -> 196 | M31: =IF(AG31="","",SUMIF('SM ute Lö'!U$4:U$400,AG31,'SM ute Lö'!P$4:P$400)) -> 156 | N31: =IF(AG31="","",SUMIF('SM ute Sö'!U$4:U$401,AG31,'SM ute Sö'!P$4:P$401)) -> 152 | O31: =IF(AG31="","",SUMIF('Roslagen Open'!U$4:U$400,AG31,'Roslagen Open'!P$4:P$400)) -> 0 | P31: =IF(AG31="","",SUMIF('Vaxholm Open'!U$4:U$400,AG31,'Vaxholm Open'!P$4:P$400)) -> 0 | Q31: =IF(AG31="","",SUMIF('Dynapac Open'!U$4:U$400,AG31,'Dynapac Open'!P$4:P$400)) -> 136 | R31: =IF(AG31="","",SUMIF('SmålandsDM ute'!U$4:U$400,AG31,'SmålandsDM ute'!P$4:P$400)) -> 138 | S31: =IF(AG31="","",SUMIF('BlekingeDM ute'!U$4:U$400,AG31,'BlekingeDM ute'!P$4:P$400)) -> 0 | T31: =IF(AG31="","",SUMIF('StockholmsDM ute'!U$4:U$400,AG31,'StockholmsDM ute'!P$4:P$400)) -> 0 | U31: =IF(AG31="","",SUMIF('Åseda Open'!U$4:U$406,AG31,'Åseda Open'!P$4:P$406)) -> 194 | V31: =IF(AG31="","",SUMIF(Höstskon!U$4:U$400,AG31,Höstskon!P$4:P$400)) -> 211 | W31: =IF(AG31="","",SUMIF('Carlskrona Cup'!U$4:U$400,AG31,'Carlskrona Cup'!P$4:P$400)) -> 226 | X31: =IF(AG31="","",SUMIF('Sibbamåla Open'!U$4:U$400,AG31,'Sibbamåla Open'!P$4:P$400)) -> 277 | Y31: =IF(AG31="","",SUMIF('Vaxholm Indoor'!U$4:U$400,AG31,'Vaxholm Indoor'!P$4:P$400)) -> 0 | Z31: =IF(AG31="","",SUMIF('SM inne'!U$4:U$400,AG31,'SM inne'!P$4:P$400)) -> 179 | AA31: =IF(AG31="","",SUMIF('SmålandsDM inne'!U$4:U$400,AG31,'SmålandsDM inne'!P$4:P$400)) -> 0 | AB31: =IF(AG31="","",SUMIF('BlekingeDM inne'!U$4:U$400,AG31,'BlekingeDM inne'!P$4:P$400)) -> 0 | AC31: =IF(AG31="","",SUMIF('StockholmsDM inne'!U$4:U$400,AG31,'StockholmsDM inne'!P$4:P$400)) -> 0 | AD31: =IF(AG31="","",SUMIF(Värendspokalen!U$4:U$400,AG31,Värendspokalen!P$4:P$400)) -> 272 | AG31: =IF(B31="","",SUMIF(Kastare!B$2:B$2999,B31,Kastare!A$2:A$2999)) -> 1028
A32: 29 | B32: Roy Dahlén | C32: Dynapac Hsc | D32: 2349 | F32: 13 | G32: 94.30769231 | I32: =IF(AG32="","",SUMIF('Tingsryd Open'!U$4:U$400,AG32,'Tingsryd Open'!P$4:P$400)) -> 210 | J32: =IF(AG32="","",SUMIF('Jämjö Open'!U$4:U$400,AG32,'Jämjö Open'!P$4:P$400)) -> 184 | K32: =IF(AG32="","",SUMIF('Viby Open'!U$4:U$400,AG32,'Viby Open'!P$4:P$400)) -> 0 | L32: =IF(AG32="","",SUMIF('Björkenäs Open'!U$4:U$400,AG32,'Björkenäs Open'!P$4:P$400)) -> 141 | M32: =IF(AG32="","",SUMIF('SM ute Lö'!U$4:U$400,AG32,'SM ute Lö'!P$4:P$400)) -> 117 | N32: =IF(AG32="","",SUMIF('SM ute Sö'!U$4:U$401,AG32,'SM ute Sö'!P$4:P$401)) -> 168 | O32: =IF(AG32="","",SUMIF('Roslagen Open'!U$4:U$400,AG32,'Roslagen Open'!P$4:P$400)) -> 207 | P32: =IF(AG32="","",SUMIF('Vaxholm Open'!U$4:U$400,AG32,'Vaxholm Open'!P$4:P$400)) -> 165 | Q32: =IF(AG32="","",SUMIF('Dynapac Open'!U$4:U$400,AG32,'Dynapac Open'!P$4:P$400)) -> 0 | R32: =IF(AG32="","",SUMIF('SmålandsDM ute'!U$4:U$400,AG32,'SmålandsDM ute'!P$4:P$400)) -> 0 | S32: =IF(AG32="","",SUMIF('BlekingeDM ute'!U$4:U$400,AG32,'BlekingeDM ute'!P$4:P$400)) -> 172 | T32: =IF(AG32="","",SUMIF('StockholmsDM ute'!U$4:U$400,AG32,'StockholmsDM ute'!P$4:P$400)) -> 0 | U32: =IF(AG32="","",SUMIF('Åseda Open'!U$4:U$406,AG32,'Åseda Open'!P$4:P$406)) -> 103 | V32: =IF(AG32="","",SUMIF(Höstskon!U$4:U$400,AG32,Höstskon!P$4:P$400)) -> 251 | W32: =IF(AG32="","",SUMIF('Carlskrona Cup'!U$4:U$400,AG32,'Carlskrona Cup'!P$4:P$400)) -> 238 | X32: =IF(AG32="","",SUMIF('Sibbamåla Open'!U$4:U$400,AG32,'Sibbamåla Open'!P$4:P$400)) -> 240 | Y32: =IF(AG32="","",SUMIF('Vaxholm Indoor'!U$4:U$400,AG32,'Vaxholm Indoor'!P$4:P$400)) -> 0 | Z32: =IF(AG32="","",SUMIF('SM inne'!U$4:U$400,AG32,'SM inne'!P$4:P$400)) -> 0 | AA32: =IF(AG32="","",SUMIF('SmålandsDM inne'!U$4:U$400,AG32,'SmålandsDM inne'!P$4:P$400)) -> 0 | AB32: =IF(AG32="","",SUMIF('BlekingeDM inne'!U$4:U$400,AG32,'BlekingeDM inne'!P$4:P$400)) -> 256 | AC32: =IF(AG32="","",SUMIF('StockholmsDM inne'!U$4:U$400,AG32,'StockholmsDM inne'!P$4:P$400)) -> 0 | AD32: =IF(AG32="","",SUMIF(Värendspokalen!U$4:U$400,AG32,Värendspokalen!P$4:P$400)) -> 0 | AG32: =IF(B32="","",SUMIF(Kastare!B$2:B$2999,B32,Kastare!A$2:A$2999)) -> 1052
A33: 30 | B33: Sandra Widlund | C33: Växjö Hsk | D33: 2323 | F33: 8 | G33: 145.1875 | I33: =IF(AG33="","",SUMIF('Tingsryd Open'!U$4:U$400,AG33,'Tingsryd Open'!P$4:P$400)) -> 328 | J33: =IF(AG33="","",SUMIF('Jämjö Open'!U$4:U$400,AG33,'Jämjö Open'!P$4:P$400)) -> 0 | K33: =IF(AG33="","",SUMIF('Viby Open'!U$4:U$400,AG33,'Viby Open'!P$4:P$400)) -> 0 | L33: =IF(AG33="","",SUMIF('Björkenäs Open'!U$4:U$400,AG33,'Björkenäs Open'!P$4:P$400)) -> 361 | M33: =IF(AG33="","",SUMIF('SM ute Lö'!U$4:U$400,AG33,'SM ute Lö'!P$4:P$400)) -> 316 | N33: =IF(AG33="","",SUMIF('SM ute Sö'!U$4:U$401,AG33,'SM ute Sö'!P$4:P$401)) -> 337 | O33: =IF(AG33="","",SUMIF('Roslagen Open'!U$4:U$400,AG33,'Roslagen Open'!P$4:P$400)) -> 0 | P33: =IF(AG33="","",SUMIF('Vaxholm Open'!U$4:U$400,AG33,'Vaxholm Open'!P$4:P$400)) -> 0 | Q33: =IF(AG33="","",SUMIF('Dynapac Open'!U$4:U$400,AG33,'Dynapac Open'!P$4:P$400)) -> 0 | R33: =IF(AG33="","",SUMIF('SmålandsDM ute'!U$4:U$400,AG33,'SmålandsDM ute'!P$4:P$400)) -> 224 | S33: =IF(AG33="","",SUMIF('BlekingeDM ute'!U$4:U$400,AG33,'BlekingeDM ute'!P$4:P$400)) -> 0 | T33: =IF(AG33="","",SUMIF('StockholmsDM ute'!U$4:U$400,AG33,'StockholmsDM ute'!P$4:P$400)) -> 0 | U33: =IF(AG33="","",SUMIF('Åseda Open'!U$4:U$406,AG33,'Åseda Open'!P$4:P$406)) -> 252 | V33: =IF(AG33="","",SUMIF(Höstskon!U$4:U$400,AG33,Höstskon!P$4:P$400)) -> 0 | W33: =IF(AG33="","",SUMIF('Carlskrona Cup'!U$4:U$400,AG33,'Carlskrona Cup'!P$4:P$400)) -> 0 | X33: =IF(AG33="","",SUMIF('Sibbamåla Open'!U$4:U$400,AG33,'Sibbamåla Open'!P$4:P$400)) -> 0 | Y33: =IF(AG33="","",SUMIF('Vaxholm Indoor'!U$4:U$400,AG33,'Vaxholm Indoor'!P$4:P$400)) -> 0 | Z33: =IF(AG33="","",SUMIF('SM inne'!U$4:U$400,AG33,'SM inne'!P$4:P$400)) -> 235 | AA33: =IF(AG33="","",SUMIF('SmålandsDM inne'!U$4:U$400,AG33,'SmålandsDM inne'!P$4:P$400)) -> 0 | AB33: =IF(AG33="","",SUMIF('BlekingeDM inne'!U$4:U$400,AG33,'BlekingeDM inne'!P$4:P$400)) -> 0 | AC33: =IF(AG33="","",SUMIF('StockholmsDM inne'!U$4:U$400,AG33,'StockholmsDM inne'!P$4:P$400)) -> 0 | AD33: =IF(AG33="","",SUMIF(Värendspokalen!U$4:U$400,AG33,Värendspokalen!P$4:P$400)) -> 270 | AG33: =IF(B33="","",SUMIF(Kastare!B$2:B$2999,B33,Kastare!A$2:A$2999)) -> 1002
A34: 31 | B34: Stefan Olofsson | C34: Korpen Nybro | D34: 2282 | F34: 11 | G34: 103.7272727 | I34: =IF(AG34="","",SUMIF('Tingsryd Open'!U$4:U$400,AG34,'Tingsryd Open'!P$4:P$400)) -> 180 | J34: =IF(AG34="","",SUMIF('Jämjö Open'!U$4:U$400,AG34,'Jämjö Open'!P$4:P$400)) -> 179 | K34: =IF(AG34="","",SUMIF('Viby Open'!U$4:U$400,AG34,'Viby Open'!P$4:P$400)) -> 0 | L34: =IF(AG34="","",SUMIF('Björkenäs Open'!U$4:U$400,AG34,'Björkenäs Open'!P$4:P$400)) -> 229 | M34: =IF(AG34="","",SUMIF('SM ute Lö'!U$4:U$400,AG34,'SM ute Lö'!P$4:P$400)) -> 161 | N34: =IF(AG34="","",SUMIF('SM ute Sö'!U$4:U$401,AG34,'SM ute Sö'!P$4:P$401)) -> 0 | O34: =IF(AG34="","",SUMIF('Roslagen Open'!U$4:U$400,AG34,'Roslagen Open'!P$4:P$400)) -> 0 | P34: =IF(AG34="","",SUMIF('Vaxholm Open'!U$4:U$400,AG34,'Vaxholm Open'!P$4:P$400)) -> 0 | Q34: =IF(AG34="","",SUMIF('Dynapac Open'!U$4:U$400,AG34,'Dynapac Open'!P$4:P$400)) -> 205 | R34: =IF(AG34="","",SUMIF('SmålandsDM ute'!U$4:U$400,AG34,'SmålandsDM ute'!P$4:P$400)) -> 242 | S34: =IF(AG34="","",SUMIF('BlekingeDM ute'!U$4:U$400,AG34,'BlekingeDM ute'!P$4:P$400)) -> 0 | T34: =IF(AG34="","",SUMIF('StockholmsDM ute'!U$4:U$400,AG34,'StockholmsDM ute'!P$4:P$400)) -> 0 | U34: =IF(AG34="","",SUMIF('Åseda Open'!U$4:U$406,AG34,'Åseda Open'!P$4:P$406)) -> 220 | V34: =IF(AG34="","",SUMIF(Höstskon!U$4:U$400,AG34,Höstskon!P$4:P$400)) -> 0 | W34: =IF(AG34="","",SUMIF('Carlskrona Cup'!U$4:U$400,AG34,'Carlskrona Cup'!P$4:P$400)) -> 281 | X34: =IF(AG34="","",SUMIF('Sibbamåla Open'!U$4:U$400,AG34,'Sibbamåla Open'!P$4:P$400)) -> 202 | Y34: =IF(AG34="","",SUMIF('Vaxholm Indoor'!U$4:U$400,AG34,'Vaxholm Indoor'!P$4:P$400)) -> 0 | Z34: =IF(AG34="","",SUMIF('SM inne'!U$4:U$400,AG34,'SM inne'!P$4:P$400)) -> 151 | AA34: =IF(AG34="","",SUMIF('SmålandsDM inne'!U$4:U$400,AG34,'SmålandsDM inne'!P$4:P$400)) -> 0 | AB34: =IF(AG34="","",SUMIF('BlekingeDM inne'!U$4:U$400,AG34,'BlekingeDM inne'!P$4:P$400)) -> 0 | AC34: =IF(AG34="","",SUMIF('StockholmsDM inne'!U$4:U$400,AG34,'StockholmsDM inne'!P$4:P$400)) -> 0 | AD34: =IF(AG34="","",SUMIF(Värendspokalen!U$4:U$400,AG34,Värendspokalen!P$4:P$400)) -> 232 | AG34: =IF(B34="","",SUMIF(Kastare!B$2:B$2999,B34,Kastare!A$2:A$2999)) -> 1019
A35: 32 | B35: Kerstin Svensson | C35: Växjö Hsk | D35: 2247 | F35: 11 | G35: 102.1363636 | I35: =IF(AG35="","",SUMIF('Tingsryd Open'!U$4:U$400,AG35,'Tingsryd Open'!P$4:P$400)) -> 117 | J35: =IF(AG35="","",SUMIF('Jämjö Open'!U$4:U$400,AG35,'Jämjö Open'!P$4:P$400)) -> 0 | K35: =IF(AG35="","",SUMIF('Viby Open'!U$4:U$400,AG35,'Viby Open'!P$4:P$400)) -> 0 | L35: =IF(AG35="","",SUMIF('Björkenäs Open'!U$4:U$400,AG35,'Björkenäs Open'!P$4:P$400)) -> 0 | M35: =IF(AG35="","",SUMIF('SM ute Lö'!U$4:U$400,AG35,'SM ute Lö'!P$4:P$400)) -> 133 | N35: =IF(AG35="","",SUMIF('SM ute Sö'!U$4:U$401,AG35,'SM ute Sö'!P$4:P$401)) -> 241 | O35: =IF(AG35="","",SUMIF('Roslagen Open'!U$4:U$400,AG35,'Roslagen Open'!P$4:P$400)) -> 0 | P35: =IF(AG35="","",SUMIF('Vaxholm Open'!U$4:U$400,AG35,'Vaxholm Open'!P$4:P$400)) -> 0 | Q35: =IF(AG35="","",SUMIF('Dynapac Open'!U$4:U$400,AG35,'Dynapac Open'!P$4:P$400)) -> 207 | R35: =IF(AG35="","",SUMIF('SmålandsDM ute'!U$4:U$400,AG35,'SmålandsDM ute'!P$4:P$400)) -> 226 | S35: =IF(AG35="","",SUMIF('BlekingeDM ute'!U$4:U$400,AG35,'BlekingeDM ute'!P$4:P$400)) -> 0 | T35: =IF(AG35="","",SUMIF('StockholmsDM ute'!U$4:U$400,AG35,'StockholmsDM ute'!P$4:P$400)) -> 0 | U35: =IF(AG35="","",SUMIF('Åseda Open'!U$4:U$406,AG35,'Åseda Open'!P$4:P$406)) -> 197 | V35: =IF(AG35="","",SUMIF(Höstskon!U$4:U$400,AG35,Höstskon!P$4:P$400)) -> 223 | W35: =IF(AG35="","",SUMIF('Carlskrona Cup'!U$4:U$400,AG35,'Carlskrona Cup'!P$4:P$400)) -> 238 | X35: =IF(AG35="","",SUMIF('Sibbamåla Open'!U$4:U$400,AG35,'Sibbamåla Open'!P$4:P$400)) -> 208 | Y35: =IF(AG35="","",SUMIF('Vaxholm Indoor'!U$4:U$400,AG35,'Vaxholm Indoor'!P$4:P$400)) -> 0 | Z35: =IF(AG35="","",SUMIF('SM inne'!U$4:U$400,AG35,'SM inne'!P$4:P$400)) -> 220 | AA35: =IF(AG35="","",SUMIF('SmålandsDM inne'!U$4:U$400,AG35,'SmålandsDM inne'!P$4:P$400)) -> 0 | AB35: =IF(AG35="","",SUMIF('BlekingeDM inne'!U$4:U$400,AG35,'BlekingeDM inne'!P$4:P$400)) -> 0 | AC35: =IF(AG35="","",SUMIF('StockholmsDM inne'!U$4:U$400,AG35,'StockholmsDM inne'!P$4:P$400)) -> 0 | AD35: =IF(AG35="","",SUMIF(Värendspokalen!U$4:U$400,AG35,Värendspokalen!P$4:P$400)) -> 237 | AG35: =IF(B35="","",SUMIF(Kastare!B$2:B$2999,B35,Kastare!A$2:A$2999)) -> 1022
A36: 33 | B36: Natalie Sundahl | C36: Carlskrona Hsc | D36: =IF(B36="",0,IF($F36>0,LARGE($I36:$AD36,1),"")+IF($F36>0,LARGE($I36:$AD36,2),"")+IF($F36>0,LARGE($I36:$AD36,3),"")+IF($F36>0,LARGE($I36:$AD36,4),"")+IF($F36>0,LARGE($I36:$AD36,5),"")+IF($F36>0,LARGE($I36:$AD36,6),"")+IF($F36>0,LARGE($I36:$AD36,7),"")+IF($F36>0,LARGE($I36:$AD36,8),"")+IF($F36>0,LARGE($I36:$AD36,9),"")+IF($F36>0,LARGE($I36:$AD36,10),"")+IF($F36>0,LARGE($I36:$AD36,11),"")+IF($F36>0,LARGE($I36:$AD36,12),"")) -> 2216 | F36: =COUNTIF(I36:AD36,">0") -> 14 | G36: =IF(F36=0,"",SUM(H36:AD36)/(F36*2)) -> 87.89285714 | I36: =IF(AG36="","",SUMIF('Tingsryd Open'!U$4:U$400,AG36,'Tingsryd Open'!P$4:P$400)) -> 138 | J36: =IF(AG36="","",SUMIF('Jämjö Open'!U$4:U$400,AG36,'Jämjö Open'!P$4:P$400)) -> 210 | K36: =IF(AG36="","",SUMIF('Viby Open'!U$4:U$400,AG36,'Viby Open'!P$4:P$400)) -> 0 | L36: =IF(AG36="","",SUMIF('Björkenäs Open'!U$4:U$400,AG36,'Björkenäs Open'!P$4:P$400)) -> 198 | M36: =IF(AG36="","",SUMIF('SM ute Lö'!U$4:U$400,AG36,'SM ute Lö'!P$4:P$400)) -> 136 | N36: =IF(AG36="","",SUMIF('SM ute Sö'!U$4:U$401,AG36,'SM ute Sö'!P$4:P$401)) -> 198 | O36: =IF(AG36="","",SUMIF('Roslagen Open'!U$4:U$400,AG36,'Roslagen Open'!P$4:P$400)) -> 109 | P36: =IF(AG36="","",SUMIF('Vaxholm Open'!U$4:U$400,AG36,'Vaxholm Open'!P$4:P$400)) -> 201 | Q36: =IF(AG36="","",SUMIF('Dynapac Open'!U$4:U$400,AG36,'Dynapac Open'!P$4:P$400)) -> 184 | R36: =IF(AG36="","",SUMIF('SmålandsDM ute'!U$4:U$400,AG36,'SmålandsDM ute'!P$4:P$400)) -> 0 | S36: =IF(AG36="","",SUMIF('BlekingeDM ute'!U$4:U$400,AG36,'BlekingeDM ute'!P$4:P$400)) -> 219 | T36: =IF(AG36="","",SUMIF('StockholmsDM ute'!U$4:U$400,AG36,'StockholmsDM ute'!P$4:P$400)) -> 0 | U36: =IF(AG36="","",SUMIF('Åseda Open'!U$4:U$406,AG36,'Åseda Open'!P$4:P$406)) -> 0 | V36: =IF(AG36="","",SUMIF(Höstskon!U$4:U$400,AG36,Höstskon!P$4:P$400)) -> 0 | W36: =IF(AG36="","",SUMIF('Carlskrona Cup'!U$4:U$400,AG36,'Carlskrona Cup'!P$4:P$400)) -> 177 | X36: =IF(AG36="","",SUMIF('Sibbamåla Open'!U$4:U$400,AG36,'Sibbamåla Open'!P$4:P$400)) -> 140 | Y36: =IF(AG36="","",SUMIF('Vaxholm Indoor'!U$4:U$400,AG36,'Vaxholm Indoor'!P$4:P$400)) -> 0 | Z36: =IF(AG36="","",SUMIF('SM inne'!U$4:U$400,AG36,'SM inne'!P$4:P$400)) -> 152 | AA36: =IF(AG36="","",SUMIF('SmålandsDM inne'!U$4:U$400,AG36,'SmålandsDM inne'!P$4:P$400)) -> 0 | AB36: =IF(AG36="","",SUMIF('BlekingeDM inne'!U$4:U$400,AG36,'BlekingeDM inne'!P$4:P$400)) -> 166 | AC36: =IF(AG36="","",SUMIF('StockholmsDM inne'!U$4:U$400,AG36,'StockholmsDM inne'!P$4:P$400)) -> 0 | AD36: =IF(AG36="","",SUMIF(Värendspokalen!U$4:U$400,AG36,Värendspokalen!P$4:P$400)) -> 233 | AG36: =IF(B36="","",SUMIF(Kastare!B$2:B$2999,B36,Kastare!A$2:A$2999)) -> 1015
A37: 34 | B37: Torgny Rågfeldt | C37: Balders HSK | D37: 2207 | F37: 9 | G37: 122.6111111 | I37: =IF(AG37="","",SUMIF('Tingsryd Open'!U$4:U$400,AG37,'Tingsryd Open'!P$4:P$400)) -> 218 | J37: =IF(AG37="","",SUMIF('Jämjö Open'!U$4:U$400,AG37,'Jämjö Open'!P$4:P$400)) -> 0 | K37: =IF(AG37="","",SUMIF('Viby Open'!U$4:U$400,AG37,'Viby Open'!P$4:P$400)) -> 0 | L37: =IF(AG37="","",SUMIF('Björkenäs Open'!U$4:U$400,AG37,'Björkenäs Open'!P$4:P$400)) -> 0 | M37: =IF(AG37="","",SUMIF('SM ute Lö'!U$4:U$400,AG37,'SM ute Lö'!P$4:P$400)) -> 285 | N37: =IF(AG37="","",SUMIF('SM ute Sö'!U$4:U$401,AG37,'SM ute Sö'!P$4:P$401)) -> 152 | O37: =IF(AG37="","",SUMIF('Roslagen Open'!U$4:U$400,AG37,'Roslagen Open'!P$4:P$400)) -> 211 | P37: =IF(AG37="","",SUMIF('Vaxholm Open'!U$4:U$400,AG37,'Vaxholm Open'!P$4:P$400)) -> 302 | Q37: =IF(AG37="","",SUMIF('Dynapac Open'!U$4:U$400,AG37,'Dynapac Open'!P$4:P$400)) -> 0 | R37: =IF(AG37="","",SUMIF('SmålandsDM ute'!U$4:U$400,AG37,'SmålandsDM ute'!P$4:P$400)) -> 0 | S37: =IF(AG37="","",SUMIF('BlekingeDM ute'!U$4:U$400,AG37,'BlekingeDM ute'!P$4:P$400)) -> 0 | T37: =IF(AG37="","",SUMIF('StockholmsDM ute'!U$4:U$400,AG37,'StockholmsDM ute'!P$4:P$400)) -> 284 | U37: =IF(AG37="","",SUMIF('Åseda Open'!U$4:U$406,AG37,'Åseda Open'!P$4:P$406)) -> 0 | V37: =IF(AG37="","",SUMIF(Höstskon!U$4:U$400,AG37,Höstskon!P$4:P$400)) -> 0 | W37: =IF(AG37="","",SUMIF('Carlskrona Cup'!U$4:U$400,AG37,'Carlskrona Cup'!P$4:P$400)) -> 0 | X37: =IF(AG37="","",SUMIF('Sibbamåla Open'!U$4:U$400,AG37,'Sibbamåla Open'!P$4:P$400)) -> 0 | Y37: =IF(AG37="","",SUMIF('Vaxholm Indoor'!U$4:U$400,AG37,'Vaxholm Indoor'!P$4:P$400)) -> 236 | Z37: =IF(AG37="","",SUMIF('SM inne'!U$4:U$400,AG37,'SM inne'!P$4:P$400)) -> 282 | AA37: =IF(AG37="","",SUMIF('SmålandsDM inne'!U$4:U$400,AG37,'SmålandsDM inne'!P$4:P$400)) -> 0 | AB37: =IF(AG37="","",SUMIF('BlekingeDM inne'!U$4:U$400,AG37,'BlekingeDM inne'!P$4:P$400)) -> 0 | AC37: =IF(AG37="","",SUMIF('StockholmsDM inne'!U$4:U$400,AG37,'StockholmsDM inne'!P$4:P$400)) -> 237 | AD37: =IF(AG37="","",SUMIF(Värendspokalen!U$4:U$400,AG37,Värendspokalen!P$4:P$400)) -> 0 | AG37: =IF(B37="","",SUMIF(Kastare!B$2:B$2999,B37,Kastare!A$2:A$2999)) -> 1210
A38: 35 | B38: Louise Tollstam | C38: Dynapac Hsc | D38: 2091 | F38: 10 | G38: 104.55 | I38: =IF(AG38="","",SUMIF('Tingsryd Open'!U$4:U$400,AG38,'Tingsryd Open'!P$4:P$400)) -> 230 | J38: =IF(AG38="","",SUMIF('Jämjö Open'!U$4:U$400,AG38,'Jämjö Open'!P$4:P$400)) -> 187 | K38: =IF(AG38="","",SUMIF('Viby Open'!U$4:U$400,AG38,'Viby Open'!P$4:P$400)) -> 0 | L38: =IF(AG38="","",SUMIF('Björkenäs Open'!U$4:U$400,AG38,'Björkenäs Open'!P$4:P$400)) -> 209 | M38: =IF(AG38="","",SUMIF('SM ute Lö'!U$4:U$400,AG38,'SM ute Lö'!P$4:P$400)) -> 249 | N38: =IF(AG38="","",SUMIF('SM ute Sö'!U$4:U$401,AG38,'SM ute Sö'!P$4:P$401)) -> 209 | O38: =IF(AG38="","",SUMIF('Roslagen Open'!U$4:U$400,AG38,'Roslagen Open'!P$4:P$400)) -> 0 | P38: =IF(AG38="","",SUMIF('Vaxholm Open'!U$4:U$400,AG38,'Vaxholm Open'!P$4:P$400)) -> 0 | Q38: =IF(AG38="","",SUMIF('Dynapac Open'!U$4:U$400,AG38,'Dynapac Open'!P$4:P$400)) -> 183 | R38: =IF(AG38="","",SUMIF('SmålandsDM ute'!U$4:U$400,AG38,'SmålandsDM ute'!P$4:P$400)) -> 0 | S38: =IF(AG38="","",SUMIF('BlekingeDM ute'!U$4:U$400,AG38,'BlekingeDM ute'!P$4:P$400)) -> 234 | T38: =IF(AG38="","",SUMIF('StockholmsDM ute'!U$4:U$400,AG38,'StockholmsDM ute'!P$4:P$400)) -> 0 | U38: =IF(AG38="","",SUMIF('Åseda Open'!U$4:U$406,AG38,'Åseda Open'!P$4:P$406)) -> 0 | V38: =IF(AG38="","",SUMIF(Höstskon!U$4:U$400,AG38,Höstskon!P$4:P$400)) -> 0 | W38: =IF(AG38="","",SUMIF('Carlskrona Cup'!U$4:U$400,AG38,'Carlskrona Cup'!P$4:P$400)) -> 196 | X38: =IF(AG38="","",SUMIF('Sibbamåla Open'!U$4:U$400,AG38,'Sibbamåla Open'!P$4:P$400)) -> 0 | Y38: =IF(AG38="","",SUMIF('Vaxholm Indoor'!U$4:U$400,AG38,'Vaxholm Indoor'!P$4:P$400)) -> 0 | Z38: =IF(AG38="","",SUMIF('SM inne'!U$4:U$400,AG38,'SM inne'!P$4:P$400)) -> 197 | AA38: =IF(AG38="","",SUMIF('SmålandsDM inne'!U$4:U$400,AG38,'SmålandsDM inne'!P$4:P$400)) -> 0 | AB38: =IF(AG38="","",SUMIF('BlekingeDM inne'!U$4:U$400,AG38,'BlekingeDM inne'!P$4:P$400)) -> 197 | AC38: =IF(AG38="","",SUMIF('StockholmsDM inne'!U$4:U$400,AG38,'StockholmsDM inne'!P$4:P$400)) -> 0 | AD38: =IF(AG38="","",SUMIF(Värendspokalen!U$4:U$400,AG38,Värendspokalen!P$4:P$400)) -> 0 | AG38: =IF(B38="","",SUMIF(Kastare!B$2:B$2999,B38,Kastare!A$2:A$2999)) -> 1047
A39: 36 | B39: Dan Hallstan | C39: Växjö Hsk | D39: 2080 | F39: 12 | G39: 86.66666667 | I39: =IF(AG39="","",SUMIF('Tingsryd Open'!U$4:U$400,AG39,'Tingsryd Open'!P$4:P$400)) -> 173 | J39: =IF(AG39="","",SUMIF('Jämjö Open'!U$4:U$400,AG39,'Jämjö Open'!P$4:P$400)) -> 189 | K39: =IF(AG39="","",SUMIF('Viby Open'!U$4:U$400,AG39,'Viby Open'!P$4:P$400)) -> 0 | L39: =IF(AG39="","",SUMIF('Björkenäs Open'!U$4:U$400,AG39,'Björkenäs Open'!P$4:P$400)) -> 0 | M39: =IF(AG39="","",SUMIF('SM ute Lö'!U$4:U$400,AG39,'SM ute Lö'!P$4:P$400)) -> 111 | N39: =IF(AG39="","",SUMIF('SM ute Sö'!U$4:U$401,AG39,'SM ute Sö'!P$4:P$401)) -> 213 | O39: =IF(AG39="","",SUMIF('Roslagen Open'!U$4:U$400,AG39,'Roslagen Open'!P$4:P$400)) -> 0 | P39: =IF(AG39="","",SUMIF('Vaxholm Open'!U$4:U$400,AG39,'Vaxholm Open'!P$4:P$400)) -> 0 | Q39: =IF(AG39="","",SUMIF('Dynapac Open'!U$4:U$400,AG39,'Dynapac Open'!P$4:P$400)) -> 162 | R39: =IF(AG39="","",SUMIF('SmålandsDM ute'!U$4:U$400,AG39,'SmålandsDM ute'!P$4:P$400)) -> 195 | S39: =IF(AG39="","",SUMIF('BlekingeDM ute'!U$4:U$400,AG39,'BlekingeDM ute'!P$4:P$400)) -> 0 | T39: =IF(AG39="","",SUMIF('StockholmsDM ute'!U$4:U$400,AG39,'StockholmsDM ute'!P$4:P$400)) -> 0 | U39: =IF(AG39="","",SUMIF('Åseda Open'!U$4:U$406,AG39,'Åseda Open'!P$4:P$406)) -> 213 | V39: =IF(AG39="","",SUMIF(Höstskon!U$4:U$400,AG39,Höstskon!P$4:P$400)) -> 222 | W39: =IF(AG39="","",SUMIF('Carlskrona Cup'!U$4:U$400,AG39,'Carlskrona Cup'!P$4:P$400)) -> 184 | X39: =IF(AG39="","",SUMIF('Sibbamåla Open'!U$4:U$400,AG39,'Sibbamåla Open'!P$4:P$400)) -> 179 | Y39: =IF(AG39="","",SUMIF('Vaxholm Indoor'!U$4:U$400,AG39,'Vaxholm Indoor'!P$4:P$400)) -> 0 | Z39: =IF(AG39="","",SUMIF('SM inne'!U$4:U$400,AG39,'SM inne'!P$4:P$400)) -> 106 | AA39: =IF(AG39="","",SUMIF('SmålandsDM inne'!U$4:U$400,AG39,'SmålandsDM inne'!P$4:P$400)) -> 0 | AB39: =IF(AG39="","",SUMIF('BlekingeDM inne'!U$4:U$400,AG39,'BlekingeDM inne'!P$4:P$400)) -> 0 | AC39: =IF(AG39="","",SUMIF('StockholmsDM inne'!U$4:U$400,AG39,'StockholmsDM inne'!P$4:P$400)) -> 0 | AD39: =IF(AG39="","",SUMIF(Värendspokalen!U$4:U$400,AG39,Värendspokalen!P$4:P$400)) -> 133 | AG39: =IF(B39="","",SUMIF(Kastare!B$2:B$2999,B39,Kastare!A$2:A$2999)) -> 1018
A40: 37 | B40: Mats Mårtensson | C40: Jämjö Hsk | D40: 2076 | F40: 11 | G40: 94.36363636 | I40: =IF(AG40="","",SUMIF('Tingsryd Open'!U$4:U$400,AG40,'Tingsryd Open'!P$4:P$400)) -> 0 | J40: =IF(AG40="","",SUMIF('Jämjö Open'!U$4:U$400,AG40,'Jämjö Open'!P$4:P$400)) -> 217 | K40: =IF(AG40="","",SUMIF('Viby Open'!U$4:U$400,AG40,'Viby Open'!P$4:P$400)) -> 0 | L40: =IF(AG40="","",SUMIF('Björkenäs Open'!U$4:U$400,AG40,'Björkenäs Open'!P$4:P$400)) -> 289 | M40: =IF(AG40="","",SUMIF('SM ute Lö'!U$4:U$400,AG40,'SM ute Lö'!P$4:P$400)) -> 138 | N40: =IF(AG40="","",SUMIF('SM ute Sö'!U$4:U$401,AG40,'SM ute Sö'!P$4:P$401)) -> 212 | O40: =IF(AG40="","",SUMIF('Roslagen Open'!U$4:U$400,AG40,'Roslagen Open'!P$4:P$400)) -> 193 | P40: =IF(AG40="","",SUMIF('Vaxholm Open'!U$4:U$400,AG40,'Vaxholm Open'!P$4:P$400)) -> 178 | Q40: =IF(AG40="","",SUMIF('Dynapac Open'!U$4:U$400,AG40,'Dynapac Open'!P$4:P$400)) -> 122 | R40: =IF(AG40="","",SUMIF('SmålandsDM ute'!U$4:U$400,AG40,'SmålandsDM ute'!P$4:P$400)) -> 0 | S40: =IF(AG40="","",SUMIF('BlekingeDM ute'!U$4:U$400,AG40,'BlekingeDM ute'!P$4:P$400)) -> 0 | T40: =IF(AG40="","",SUMIF('StockholmsDM ute'!U$4:U$400,AG40,'StockholmsDM ute'!P$4:P$400)) -> 0 | U40: =IF(AG40="","",SUMIF('Åseda Open'!U$4:U$406,AG40,'Åseda Open'!P$4:P$406)) -> 0 | V40: =IF(AG40="","",SUMIF(Höstskon!U$4:U$400,AG40,Höstskon!P$4:P$400)) -> 0 | W40: =IF(AG40="","",SUMIF('Carlskrona Cup'!U$4:U$400,AG40,'Carlskrona Cup'!P$4:P$400)) -> 0 | X40: =IF(AG40="","",SUMIF('Sibbamåla Open'!U$4:U$400,AG40,'Sibbamåla Open'!P$4:P$400)) -> 234 | Y40: =IF(AG40="","",SUMIF('Vaxholm Indoor'!U$4:U$400,AG40,'Vaxholm Indoor'!P$4:P$400)) -> 0 | Z40: =IF(AG40="","",SUMIF('SM inne'!U$4:U$400,AG40,'SM inne'!P$4:P$400)) -> 131 | AA40: =IF(AG40="","",SUMIF('SmålandsDM inne'!U$4:U$400,AG40,'SmålandsDM inne'!P$4:P$400)) -> 0 | AB40: =IF(AG40="","",SUMIF('BlekingeDM inne'!U$4:U$400,AG40,'BlekingeDM inne'!P$4:P$400)) -> 176 | AC40: =IF(AG40="","",SUMIF('StockholmsDM inne'!U$4:U$400,AG40,'StockholmsDM inne'!P$4:P$400)) -> 0 | AD40: =IF(AG40="","",SUMIF(Värendspokalen!U$4:U$400,AG40,Värendspokalen!P$4:P$400)) -> 186 | AG40: =IF(B40="","",SUMIF(Kastare!B$2:B$2999,B40,Kastare!A$2:A$2999)) -> 1070
A41: 38 | B41: Maire Johansson | C41: Växjö Hsk | D41: 2073 | F41: 10 | G41: 103.65 | I41: =IF(AG41="","",SUMIF('Tingsryd Open'!U$4:U$400,AG41,'Tingsryd Open'!P$4:P$400)) -> 163 | J41: =IF(AG41="","",SUMIF('Jämjö Open'!U$4:U$400,AG41,'Jämjö Open'!P$4:P$400)) -> 229 | K41: =IF(AG41="","",SUMIF('Viby Open'!U$4:U$400,AG41,'Viby Open'!P$4:P$400)) -> 0 | L41: =IF(AG41="","",SUMIF('Björkenäs Open'!U$4:U$400,AG41,'Björkenäs Open'!P$4:P$400)) -> 0 | M41: =IF(AG41="","",SUMIF('SM ute Lö'!U$4:U$400,AG41,'SM ute Lö'!P$4:P$400)) -> 225 | N41: =IF(AG41="","",SUMIF('SM ute Sö'!U$4:U$401,AG41,'SM ute Sö'!P$4:P$401)) -> 208 | O41: =IF(AG41="","",SUMIF('Roslagen Open'!U$4:U$400,AG41,'Roslagen Open'!P$4:P$400)) -> 0 | P41: =IF(AG41="","",SUMIF('Vaxholm Open'!U$4:U$400,AG41,'Vaxholm Open'!P$4:P$400)) -> 0 | Q41: =IF(AG41="","",SUMIF('Dynapac Open'!U$4:U$400,AG41,'Dynapac Open'!P$4:P$400)) -> 0 | R41: =IF(AG41="","",SUMIF('SmålandsDM ute'!U$4:U$400,AG41,'SmålandsDM ute'!P$4:P$400)) -> 155 | S41: =IF(AG41="","",SUMIF('BlekingeDM ute'!U$4:U$400,AG41,'BlekingeDM ute'!P$4:P$400)) -> 0 | T41: =IF(AG41="","",SUMIF('StockholmsDM ute'!U$4:U$400,AG41,'StockholmsDM ute'!P$4:P$400)) -> 0 | U41: =IF(AG41="","",SUMIF('Åseda Open'!U$4:U$406,AG41,'Åseda Open'!P$4:P$406)) -> 283 | V41: =IF(AG41="","",SUMIF(Höstskon!U$4:U$400,AG41,Höstskon!P$4:P$400)) -> 175 | W41: =IF(AG41="","",SUMIF('Carlskrona Cup'!U$4:U$400,AG41,'Carlskrona Cup'!P$4:P$400)) -> 0 | X41: =IF(AG41="","",SUMIF('Sibbamåla Open'!U$4:U$400,AG41,'Sibbamåla Open'!P$4:P$400)) -> 178 | Y41: =IF(AG41="","",SUMIF('Vaxholm Indoor'!U$4:U$400,AG41,'Vaxholm Indoor'!P$4:P$400)) -> 0 | Z41: =IF(AG41="","",SUMIF('SM inne'!U$4:U$400,AG41,'SM inne'!P$4:P$400)) -> 174 | AA41: =IF(AG41="","",SUMIF('SmålandsDM inne'!U$4:U$400,AG41,'SmålandsDM inne'!P$4:P$400)) -> 0 | AB41: =IF(AG41="","",SUMIF('BlekingeDM inne'!U$4:U$400,AG41,'BlekingeDM inne'!P$4:P$400)) -> 0 | AC41: =IF(AG41="","",SUMIF('StockholmsDM inne'!U$4:U$400,AG41,'StockholmsDM inne'!P$4:P$400)) -> 0 | AD41: =IF(AG41="","",SUMIF(Värendspokalen!U$4:U$400,AG41,Värendspokalen!P$4:P$400)) -> 283 | AG41: =IF(B41="","",SUMIF(Kastare!B$2:B$2999,B41,Kastare!A$2:A$2999)) -> 1042
A42: 39 | B42: Lasse Brincner | C42: Värends Hsk | D42: 2066 | F42: 11 | G42: 93.90909091 | I42: =IF(AG42="","",SUMIF('Tingsryd Open'!U$4:U$400,AG42,'Tingsryd Open'!P$4:P$400)) -> 135 | J42: =IF(AG42="","",SUMIF('Jämjö Open'!U$4:U$400,AG42,'Jämjö Open'!P$4:P$400)) -> 0 | K42: =IF(AG42="","",SUMIF('Viby Open'!U$4:U$400,AG42,'Viby Open'!P$4:P$400)) -> 0 | L42: =IF(AG42="","",SUMIF('Björkenäs Open'!U$4:U$400,AG42,'Björkenäs Open'!P$4:P$400)) -> 166 | M42: =IF(AG42="","",SUMIF('SM ute Lö'!U$4:U$400,AG42,'SM ute Lö'!P$4:P$400)) -> 128 | N42: =IF(AG42="","",SUMIF('SM ute Sö'!U$4:U$401,AG42,'SM ute Sö'!P$4:P$401)) -> 183 | O42: =IF(AG42="","",SUMIF('Roslagen Open'!U$4:U$400,AG42,'Roslagen Open'!P$4:P$400)) -> 0 | P42: =IF(AG42="","",SUMIF('Vaxholm Open'!U$4:U$400,AG42,'Vaxholm Open'!P$4:P$400)) -> 0 | Q42: =IF(AG42="","",SUMIF('Dynapac Open'!U$4:U$400,AG42,'Dynapac Open'!P$4:P$400)) -> 0 | R42: =IF(AG42="","",SUMIF('SmålandsDM ute'!U$4:U$400,AG42,'SmålandsDM ute'!P$4:P$400)) -> 86 | S42: =IF(AG42="","",SUMIF('BlekingeDM ute'!U$4:U$400,AG42,'BlekingeDM ute'!P$4:P$400)) -> 0 | T42: =IF(AG42="","",SUMIF('StockholmsDM ute'!U$4:U$400,AG42,'StockholmsDM ute'!P$4:P$400)) -> 0 | U42: =IF(AG42="","",SUMIF('Åseda Open'!U$4:U$406,AG42,'Åseda Open'!P$4:P$406)) -> 152 | V42: =IF(AG42="","",SUMIF(Höstskon!U$4:U$400,AG42,Höstskon!P$4:P$400)) -> 260 | W42: =IF(AG42="","",SUMIF('Carlskrona Cup'!U$4:U$400,AG42,'Carlskrona Cup'!P$4:P$400)) -> 254 | X42: =IF(AG42="","",SUMIF('Sibbamåla Open'!U$4:U$400,AG42,'Sibbamåla Open'!P$4:P$400)) -> 233 | Y42: =IF(AG42="","",SUMIF('Vaxholm Indoor'!U$4:U$400,AG42,'Vaxholm Indoor'!P$4:P$400)) -> 0 | Z42: =IF(AG42="","",SUMIF('SM inne'!U$4:U$400,AG42,'SM inne'!P$4:P$400)) -> 233 | AA42: =IF(AG42="","",SUMIF('SmålandsDM inne'!U$4:U$400,AG42,'SmålandsDM inne'!P$4:P$400)) -> 0 | AB42: =IF(AG42="","",SUMIF('BlekingeDM inne'!U$4:U$400,AG42,'BlekingeDM inne'!P$4:P$400)) -> 0 | AC42: =IF(AG42="","",SUMIF('StockholmsDM inne'!U$4:U$400,AG42,'StockholmsDM inne'!P$4:P$400)) -> 0 | AD42: =IF(AG42="","",SUMIF(Värendspokalen!U$4:U$400,AG42,Värendspokalen!P$4:P$400)) -> 236 | AG42: =IF(B42="","",SUMIF(Kastare!B$2:B$2999,B42,Kastare!A$2:A$2999)) -> 1012
A43: 40 | B43: Irene Pettersson | C43: Lanternan B.c | D43: 1943 | F43: 13 | G43: 76.92307692 | I43: =IF(AG43="","",SUMIF('Tingsryd Open'!U$4:U$400,AG43,'Tingsryd Open'!P$4:P$400)) -> 104 | J43: =IF(AG43="","",SUMIF('Jämjö Open'!U$4:U$400,AG43,'Jämjö Open'!P$4:P$400)) -> 120 | K43: =IF(AG43="","",SUMIF('Viby Open'!U$4:U$400,AG43,'Viby Open'!P$4:P$400)) -> 0 | L43: =IF(AG43="","",SUMIF('Björkenäs Open'!U$4:U$400,AG43,'Björkenäs Open'!P$4:P$400)) -> 175 | M43: =IF(AG43="","",SUMIF('SM ute Lö'!U$4:U$400,AG43,'SM ute Lö'!P$4:P$400)) -> 92 | N43: =IF(AG43="","",SUMIF('SM ute Sö'!U$4:U$401,AG43,'SM ute Sö'!P$4:P$401)) -> 201 | O43: =IF(AG43="","",SUMIF('Roslagen Open'!U$4:U$400,AG43,'Roslagen Open'!P$4:P$400)) -> 0 | P43: =IF(AG43="","",SUMIF('Vaxholm Open'!U$4:U$400,AG43,'Vaxholm Open'!P$4:P$400)) -> 0 | Q43: =IF(AG43="","",SUMIF('Dynapac Open'!U$4:U$400,AG43,'Dynapac Open'!P$4:P$400)) -> 146 | R43: =IF(AG43="","",SUMIF('SmålandsDM ute'!U$4:U$400,AG43,'SmålandsDM ute'!P$4:P$400)) -> 0 | S43: =IF(AG43="","",SUMIF('BlekingeDM ute'!U$4:U$400,AG43,'BlekingeDM ute'!P$4:P$400)) -> 169 | T43: =IF(AG43="","",SUMIF('StockholmsDM ute'!U$4:U$400,AG43,'StockholmsDM ute'!P$4:P$400)) -> 0 | U43: =IF(AG43="","",SUMIF('Åseda Open'!U$4:U$406,AG43,'Åseda Open'!P$4:P$406)) -> 0 | V43: =IF(AG43="","",SUMIF(Höstskon!U$4:U$400,AG43,Höstskon!P$4:P$400)) -> 149 | W43: =IF(AG43="","",SUMIF('Carlskrona Cup'!U$4:U$400,AG43,'Carlskrona Cup'!P$4:P$400)) -> 239 | X43: =IF(AG43="","",SUMIF('Sibbamåla Open'!U$4:U$400,AG43,'Sibbamåla Open'!P$4:P$400)) -> 227 | Y43: =IF(AG43="","",SUMIF('Vaxholm Indoor'!U$4:U$400,AG43,'Vaxholm Indoor'!P$4:P$400)) -> 0 | Z43: =IF(AG43="","",SUMIF('SM inne'!U$4:U$400,AG43,'SM inne'!P$4:P$400)) -> 138 | AA43: =IF(AG43="","",SUMIF('SmålandsDM inne'!U$4:U$400,AG43,'SmålandsDM inne'!P$4:P$400)) -> 0 | AB43: =IF(AG43="","",SUMIF('BlekingeDM inne'!U$4:U$400,AG43,'BlekingeDM inne'!P$4:P$400)) -> 57 | AC43: =IF(AG43="","",SUMIF('StockholmsDM inne'!U$4:U$400,AG43,'StockholmsDM inne'!P$4:P$400)) -> 0 | AD43: =IF(AG43="","",SUMIF(Värendspokalen!U$4:U$400,AG43,Värendspokalen!P$4:P$400)) -> 183 | AG43: =IF(B43="","",SUMIF(Kastare!B$2:B$2999,B43,Kastare!A$2:A$2999)) -> 1093
A44: 41 | B44: Jarita Fredriksson Väre | C44: Balders Hsk | D44: 1931 | F44: 12 | G44: 80.45833333 | I44: =IF(AG44="","",SUMIF('Tingsryd Open'!U$4:U$400,AG44,'Tingsryd Open'!P$4:P$400)) -> 0 | J44: =IF(AG44="","",SUMIF('Jämjö Open'!U$4:U$400,AG44,'Jämjö Open'!P$4:P$400)) -> 0 | K44: =IF(AG44="","",SUMIF('Viby Open'!U$4:U$400,AG44,'Viby Open'!P$4:P$400)) -> 0 | L44: =IF(AG44="","",SUMIF('Björkenäs Open'!U$4:U$400,AG44,'Björkenäs Open'!P$4:P$400)) -> 153 | M44: =IF(AG44="","",SUMIF('SM ute Lö'!U$4:U$400,AG44,'SM ute Lö'!P$4:P$400)) -> 120 | N44: =IF(AG44="","",SUMIF('SM ute Sö'!U$4:U$401,AG44,'SM ute Sö'!P$4:P$401)) -> 175 | O44: =IF(AG44="","",SUMIF('Roslagen Open'!U$4:U$400,AG44,'Roslagen Open'!P$4:P$400)) -> 113 | P44: =IF(AG44="","",SUMIF('Vaxholm Open'!U$4:U$400,AG44,'Vaxholm Open'!P$4:P$400)) -> 150 | Q44: =IF(AG44="","",SUMIF('Dynapac Open'!U$4:U$400,AG44,'Dynapac Open'!P$4:P$400)) -> 0 | R44: =IF(AG44="","",SUMIF('SmålandsDM ute'!U$4:U$400,AG44,'SmålandsDM ute'!P$4:P$400)) -> 0 | S44: =IF(AG44="","",SUMIF('BlekingeDM ute'!U$4:U$400,AG44,'BlekingeDM ute'!P$4:P$400)) -> 0 | T44: =IF(AG44="","",SUMIF('StockholmsDM ute'!U$4:U$400,AG44,'StockholmsDM ute'!P$4:P$400)) -> 178 | U44: =IF(AG44="","",SUMIF('Åseda Open'!U$4:U$406,AG44,'Åseda Open'!P$4:P$406)) -> 0 | V44: =IF(AG44="","",SUMIF(Höstskon!U$4:U$400,AG44,Höstskon!P$4:P$400)) -> 0 | W44: =IF(AG44="","",SUMIF('Carlskrona Cup'!U$4:U$400,AG44,'Carlskrona Cup'!P$4:P$400)) -> 194 | X44: =IF(AG44="","",SUMIF('Sibbamåla Open'!U$4:U$400,AG44,'Sibbamåla Open'!P$4:P$400)) -> 181 | Y44: =IF(AG44="","",SUMIF('Vaxholm Indoor'!U$4:U$400,AG44,'Vaxholm Indoor'!P$4:P$400)) -> 181 | Z44: =IF(AG44="","",SUMIF('SM inne'!U$4:U$400,AG44,'SM inne'!P$4:P$400)) -> 168 | AA44: =IF(AG44="","",SUMIF('SmålandsDM inne'!U$4:U$400,AG44,'SmålandsDM inne'!P$4:P$400)) -> 0 | AB44: =IF(AG44="","",SUMIF('BlekingeDM inne'!U$4:U$400,AG44,'BlekingeDM inne'!P$4:P$400)) -> 0 | AC44: =IF(AG44="","",SUMIF('StockholmsDM inne'!U$4:U$400,AG44,'StockholmsDM inne'!P$4:P$400)) -> 151 | AD44: =IF(AG44="","",SUMIF(Värendspokalen!U$4:U$400,AG44,Värendspokalen!P$4:P$400)) -> 167 | AG44: =IF(B44="","",SUMIF(Kastare!B$2:B$2999,B44,Kastare!A$2:A$2999)) -> 1165
A45: 42 | B45: Alf Svensson | C45: Korpen Åseda | D45: 1928 | F45: 12 | G45: 80.33333333 | I45: =IF(AG45="","",SUMIF('Tingsryd Open'!U$4:U$400,AG45,'Tingsryd Open'!P$4:P$400)) -> 85 | J45: =IF(AG45="","",SUMIF('Jämjö Open'!U$4:U$400,AG45,'Jämjö Open'!P$4:P$400)) -> 122 | K45: =IF(AG45="","",SUMIF('Viby Open'!U$4:U$400,AG45,'Viby Open'!P$4:P$400)) -> 0 | L45: =IF(AG45="","",SUMIF('Björkenäs Open'!U$4:U$400,AG45,'Björkenäs Open'!P$4:P$400)) -> 155 | M45: =IF(AG45="","",SUMIF('SM ute Lö'!U$4:U$400,AG45,'SM ute Lö'!P$4:P$400)) -> 170 | N45: =IF(AG45="","",SUMIF('SM ute Sö'!U$4:U$401,AG45,'SM ute Sö'!P$4:P$401)) -> 150 | O45: =IF(AG45="","",SUMIF('Roslagen Open'!U$4:U$400,AG45,'Roslagen Open'!P$4:P$400)) -> 0 | P45: =IF(AG45="","",SUMIF('Vaxholm Open'!U$4:U$400,AG45,'Vaxholm Open'!P$4:P$400)) -> 0 | Q45: =IF(AG45="","",SUMIF('Dynapac Open'!U$4:U$400,AG45,'Dynapac Open'!P$4:P$400)) -> 174 | R45: =IF(AG45="","",SUMIF('SmålandsDM ute'!U$4:U$400,AG45,'SmålandsDM ute'!P$4:P$400)) -> 167 | S45: =IF(AG45="","",SUMIF('BlekingeDM ute'!U$4:U$400,AG45,'BlekingeDM ute'!P$4:P$400)) -> 0 | T45: =IF(AG45="","",SUMIF('StockholmsDM ute'!U$4:U$400,AG45,'StockholmsDM ute'!P$4:P$400)) -> 0 | U45: =IF(AG45="","",SUMIF('Åseda Open'!U$4:U$406,AG45,'Åseda Open'!P$4:P$406)) -> 228 | V45: =IF(AG45="","",SUMIF(Höstskon!U$4:U$400,AG45,Höstskon!P$4:P$400)) -> 143 | W45: =IF(AG45="","",SUMIF('Carlskrona Cup'!U$4:U$400,AG45,'Carlskrona Cup'!P$4:P$400)) -> 189 | X45: =IF(AG45="","",SUMIF('Sibbamåla Open'!U$4:U$400,AG45,'Sibbamåla Open'!P$4:P$400)) -> 203 | Y45: =IF(AG45="","",SUMIF('Vaxholm Indoor'!U$4:U$400,AG45,'Vaxholm Indoor'!P$4:P$400)) -> 0 | Z45: =IF(AG45="","",SUMIF('SM inne'!U$4:U$400,AG45,'SM inne'!P$4:P$400)) -> 0 | AA45: =IF(AG45="","",SUMIF('SmålandsDM inne'!U$4:U$400,AG45,'SmålandsDM inne'!P$4:P$400)) -> 0 | AB45: =IF(AG45="","",SUMIF('BlekingeDM inne'!U$4:U$400,AG45,'BlekingeDM inne'!P$4:P$400)) -> 0 | AC45: =IF(AG45="","",SUMIF('StockholmsDM inne'!U$4:U$400,AG45,'StockholmsDM inne'!P$4:P$400)) -> 0 | AD45: =IF(AG45="","",SUMIF(Värendspokalen!U$4:U$400,AG45,Värendspokalen!P$4:P$400)) -> 142 | AG45: =IF(B45="","",SUMIF(Kastare!B$2:B$2999,B45,Kastare!A$2:A$2999)) -> 1067
A46: 43 | B46: Björn Gabrielsson | C46: Vaxholm Hsk | D46: 1921 | F46: 8 | G46: 120.0625 | I46: =IF(AG46="","",SUMIF('Tingsryd Open'!U$4:U$400,AG46,'Tingsryd Open'!P$4:P$400)) -> 0 | J46: =IF(AG46="","",SUMIF('Jämjö Open'!U$4:U$400,AG46,'Jämjö Open'!P$4:P$400)) -> 0 | K46: =IF(AG46="","",SUMIF('Viby Open'!U$4:U$400,AG46,'Viby Open'!P$4:P$400)) -> 0 | L46: =IF(AG46="","",SUMIF('Björkenäs Open'!U$4:U$400,AG46,'Björkenäs Open'!P$4:P$400)) -> 0 | M46: =IF(AG46="","",SUMIF('SM ute Lö'!U$4:U$400,AG46,'SM ute Lö'!P$4:P$400)) -> 289 | N46: =IF(AG46="","",SUMIF('SM ute Sö'!U$4:U$401,AG46,'SM ute Sö'!P$4:P$401)) -> 232 | O46: =IF(AG46="","",SUMIF('Roslagen Open'!U$4:U$400,AG46,'Roslagen Open'!P$4:P$400)) -> 179 | P46: =IF(AG46="","",SUMIF('Vaxholm Open'!U$4:U$400,AG46,'Vaxholm Open'!P$4:P$400)) -> 140 | Q46: =IF(AG46="","",SUMIF('Dynapac Open'!U$4:U$400,AG46,'Dynapac Open'!P$4:P$400)) -> 0 | R46: =IF(AG46="","",SUMIF('SmålandsDM ute'!U$4:U$400,AG46,'SmålandsDM ute'!P$4:P$400)) -> 0 | S46: =IF(AG46="","",SUMIF('BlekingeDM ute'!U$4:U$400,AG46,'BlekingeDM ute'!P$4:P$400)) -> 0 | T46: =IF(AG46="","",SUMIF('StockholmsDM ute'!U$4:U$400,AG46,'StockholmsDM ute'!P$4:P$400)) -> 269 | U46: =IF(AG46="","",SUMIF('Åseda Open'!U$4:U$406,AG46,'Åseda Open'!P$4:P$406)) -> 0 | V46: =IF(AG46="","",SUMIF(Höstskon!U$4:U$400,AG46,Höstskon!P$4:P$400)) -> 0 | W46: =IF(AG46="","",SUMIF('Carlskrona Cup'!U$4:U$400,AG46,'Carlskrona Cup'!P$4:P$400)) -> 0 | X46: =IF(AG46="","",SUMIF('Sibbamåla Open'!U$4:U$400,AG46,'Sibbamåla Open'!P$4:P$400)) -> 0 | Y46: =IF(AG46="","",SUMIF('Vaxholm Indoor'!U$4:U$400,AG46,'Vaxholm Indoor'!P$4:P$400)) -> 299 | Z46: =IF(AG46="","",SUMIF('SM inne'!U$4:U$400,AG46,'SM inne'!P$4:P$400)) -> 221 | AA46: =IF(AG46="","",SUMIF('SmålandsDM inne'!U$4:U$400,AG46,'SmålandsDM inne'!P$4:P$400)) -> 0 | AB46: =IF(AG46="","",SUMIF('BlekingeDM inne'!U$4:U$400,AG46,'BlekingeDM inne'!P$4:P$400)) -> 0 | AC46: =IF(AG46="","",SUMIF('StockholmsDM inne'!U$4:U$400,AG46,'StockholmsDM inne'!P$4:P$400)) -> 292 | AD46: =IF(AG46="","",SUMIF(Värendspokalen!U$4:U$400,AG46,Värendspokalen!P$4:P$400)) -> 0 | AG46: =IF(B46="","",SUMIF(Kastare!B$2:B$2999,B46,Kastare!A$2:A$2999)) -> 1033
A47: 44 | B47: Ingegerd Pettersson | C47: Lanternan B.c | D47: 1906 | F47: 11 | G47: 86.63636364 | I47: =IF(AG47="","",SUMIF('Tingsryd Open'!U$4:U$400,AG47,'Tingsryd Open'!P$4:P$400)) -> 81 | J47: =IF(AG47="","",SUMIF('Jämjö Open'!U$4:U$400,AG47,'Jämjö Open'!P$4:P$400)) -> 0 | K47: =IF(AG47="","",SUMIF('Viby Open'!U$4:U$400,AG47,'Viby Open'!P$4:P$400)) -> 0 | L47: =IF(AG47="","",SUMIF('Björkenäs Open'!U$4:U$400,AG47,'Björkenäs Open'!P$4:P$400)) -> 203 | M47: =IF(AG47="","",SUMIF('SM ute Lö'!U$4:U$400,AG47,'SM ute Lö'!P$4:P$400)) -> 146 | N47: =IF(AG47="","",SUMIF('SM ute Sö'!U$4:U$401,AG47,'SM ute Sö'!P$4:P$401)) -> 175 | O47: =IF(AG47="","",SUMIF('Roslagen Open'!U$4:U$400,AG47,'Roslagen Open'!P$4:P$400)) -> 0 | P47: =IF(AG47="","",SUMIF('Vaxholm Open'!U$4:U$400,AG47,'Vaxholm Open'!P$4:P$400)) -> 0 | Q47: =IF(AG47="","",SUMIF('Dynapac Open'!U$4:U$400,AG47,'Dynapac Open'!P$4:P$400)) -> 152 | R47: =IF(AG47="","",SUMIF('SmålandsDM ute'!U$4:U$400,AG47,'SmålandsDM ute'!P$4:P$400)) -> 0 | S47: =IF(AG47="","",SUMIF('BlekingeDM ute'!U$4:U$400,AG47,'BlekingeDM ute'!P$4:P$400)) -> 128 | T47: =IF(AG47="","",SUMIF('StockholmsDM ute'!U$4:U$400,AG47,'StockholmsDM ute'!P$4:P$400)) -> 0 | U47: =IF(AG47="","",SUMIF('Åseda Open'!U$4:U$406,AG47,'Åseda Open'!P$4:P$406)) -> 0 | V47: =IF(AG47="","",SUMIF(Höstskon!U$4:U$400,AG47,Höstskon!P$4:P$400)) -> 249 | W47: =IF(AG47="","",SUMIF('Carlskrona Cup'!U$4:U$400,AG47,'Carlskrona Cup'!P$4:P$400)) -> 190 | X47: =IF(AG47="","",SUMIF('Sibbamåla Open'!U$4:U$400,AG47,'Sibbamåla Open'!P$4:P$400)) -> 234 | Y47: =IF(AG47="","",SUMIF('Vaxholm Indoor'!U$4:U$400,AG47,'Vaxholm Indoor'!P$4:P$400)) -> 0 | Z47: =IF(AG47="","",SUMIF('SM inne'!U$4:U$400,AG47,'SM inne'!P$4:P$400)) -> 180 | AA47: =IF(AG47="","",SUMIF('SmålandsDM inne'!U$4:U$400,AG47,'SmålandsDM inne'!P$4:P$400)) -> 0 | AB47: =IF(AG47="","",SUMIF('BlekingeDM inne'!U$4:U$400,AG47,'BlekingeDM inne'!P$4:P$400)) -> 0 | AC47: =IF(AG47="","",SUMIF('StockholmsDM inne'!U$4:U$400,AG47,'StockholmsDM inne'!P$4:P$400)) -> 0 | AD47: =IF(AG47="","",SUMIF(Värendspokalen!U$4:U$400,AG47,Värendspokalen!P$4:P$400)) -> 168 | AG47: =IF(B47="","",SUMIF(Kastare!B$2:B$2999,B47,Kastare!A$2:A$2999)) -> 1034
A48: 45 | B48: Solveig Axelsson | C48: Växjö Hsk | D48: 1892 | F48: 13 | G48: 77.46153846 | I48: =IF(AG48="","",SUMIF('Tingsryd Open'!U$4:U$400,AG48,'Tingsryd Open'!P$4:P$400)) -> 140 | J48: =IF(AG48="","",SUMIF('Jämjö Open'!U$4:U$400,AG48,'Jämjö Open'!P$4:P$400)) -> 160 | K48: =IF(AG48="","",SUMIF('Viby Open'!U$4:U$400,AG48,'Viby Open'!P$4:P$400)) -> 0 | L48: =IF(AG48="","",SUMIF('Björkenäs Open'!U$4:U$400,AG48,'Björkenäs Open'!P$4:P$400)) -> 132 | M48: =IF(AG48="","",SUMIF('SM ute Lö'!U$4:U$400,AG48,'SM ute Lö'!P$4:P$400)) -> 199 | N48: =IF(AG48="","",SUMIF('SM ute Sö'!U$4:U$401,AG48,'SM ute Sö'!P$4:P$401)) -> 164 | O48: =IF(AG48="","",SUMIF('Roslagen Open'!U$4:U$400,AG48,'Roslagen Open'!P$4:P$400)) -> 0 | P48: =IF(AG48="","",SUMIF('Vaxholm Open'!U$4:U$400,AG48,'Vaxholm Open'!P$4:P$400)) -> 0 | Q48: =IF(AG48="","",SUMIF('Dynapac Open'!U$4:U$400,AG48,'Dynapac Open'!P$4:P$400)) -> 122 | R48: =IF(AG48="","",SUMIF('SmålandsDM ute'!U$4:U$400,AG48,'SmålandsDM ute'!P$4:P$400)) -> 153 | S48: =IF(AG48="","",SUMIF('BlekingeDM ute'!U$4:U$400,AG48,'BlekingeDM ute'!P$4:P$400)) -> 0 | T48: =IF(AG48="","",SUMIF('StockholmsDM ute'!U$4:U$400,AG48,'StockholmsDM ute'!P$4:P$400)) -> 0 | U48: =IF(AG48="","",SUMIF('Åseda Open'!U$4:U$406,AG48,'Åseda Open'!P$4:P$406)) -> 163 | V48: =IF(AG48="","",SUMIF(Höstskon!U$4:U$400,AG48,Höstskon!P$4:P$400)) -> 156 | W48: =IF(AG48="","",SUMIF('Carlskrona Cup'!U$4:U$400,AG48,'Carlskrona Cup'!P$4:P$400)) -> 160 | X48: =IF(AG48="","",SUMIF('Sibbamåla Open'!U$4:U$400,AG48,'Sibbamåla Open'!P$4:P$400)) -> 156 | Y48: =IF(AG48="","",SUMIF('Vaxholm Indoor'!U$4:U$400,AG48,'Vaxholm Indoor'!P$4:P$400)) -> 0 | Z48: =IF(AG48="","",SUMIF('SM inne'!U$4:U$400,AG48,'SM inne'!P$4:P$400)) -> 164 | AA48: =IF(AG48="","",SUMIF('SmålandsDM inne'!U$4:U$400,AG48,'SmålandsDM inne'!P$4:P$400)) -> 0 | AB48: =IF(AG48="","",SUMIF('BlekingeDM inne'!U$4:U$400,AG48,'BlekingeDM inne'!P$4:P$400)) -> 0 | AC48: =IF(AG48="","",SUMIF('StockholmsDM inne'!U$4:U$400,AG48,'StockholmsDM inne'!P$4:P$400)) -> 0 | AD48: =IF(AG48="","",SUMIF(Värendspokalen!U$4:U$400,AG48,Värendspokalen!P$4:P$400)) -> 145 | AG48: =IF(B48="","",SUMIF(Kastare!B$2:B$2999,B48,Kastare!A$2:A$2999)) -> 1058
A49: 46 | B49: Björn Landberg | C49: Vaxholm Hsk | D49: 1866 | F49: 8 | G49: 116.625 | I49: =IF(AG49="","",SUMIF('Tingsryd Open'!U$4:U$400,AG49,'Tingsryd Open'!P$4:P$400)) -> 0 | J49: =IF(AG49="","",SUMIF('Jämjö Open'!U$4:U$400,AG49,'Jämjö Open'!P$4:P$400)) -> 0 | K49: =IF(AG49="","",SUMIF('Viby Open'!U$4:U$400,AG49,'Viby Open'!P$4:P$400)) -> 0 | L49: =IF(AG49="","",SUMIF('Björkenäs Open'!U$4:U$400,AG49,'Björkenäs Open'!P$4:P$400)) -> 0 | M49: =IF(AG49="","",SUMIF('SM ute Lö'!U$4:U$400,AG49,'SM ute Lö'!P$4:P$400)) -> 177 | N49: =IF(AG49="","",SUMIF('SM ute Sö'!U$4:U$401,AG49,'SM ute Sö'!P$4:P$401)) -> 247 | O49: =IF(AG49="","",SUMIF('Roslagen Open'!U$4:U$400,AG49,'Roslagen Open'!P$4:P$400)) -> 188 | P49: =IF(AG49="","",SUMIF('Vaxholm Open'!U$4:U$400,AG49,'Vaxholm Open'!P$4:P$400)) -> 174 | Q49: =IF(AG49="","",SUMIF('Dynapac Open'!U$4:U$400,AG49,'Dynapac Open'!P$4:P$400)) -> 0 | R49: =IF(AG49="","",SUMIF('SmålandsDM ute'!U$4:U$400,AG49,'SmålandsDM ute'!P$4:P$400)) -> 0 | S49: =IF(AG49="","",SUMIF('BlekingeDM ute'!U$4:U$400,AG49,'BlekingeDM ute'!P$4:P$400)) -> 0 | T49: =IF(AG49="","",SUMIF('StockholmsDM ute'!U$4:U$400,AG49,'StockholmsDM ute'!P$4:P$400)) -> 298 | U49: =IF(AG49="","",SUMIF('Åseda Open'!U$4:U$406,AG49,'Åseda Open'!P$4:P$406)) -> 0 | V49: =IF(AG49="","",SUMIF(Höstskon!U$4:U$400,AG49,Höstskon!P$4:P$400)) -> 0 | W49: =IF(AG49="","",SUMIF('Carlskrona Cup'!U$4:U$400,AG49,'Carlskrona Cup'!P$4:P$400)) -> 0 | X49: =IF(AG49="","",SUMIF('Sibbamåla Open'!U$4:U$400,AG49,'Sibbamåla Open'!P$4:P$400)) -> 0 | Y49: =IF(AG49="","",SUMIF('Vaxholm Indoor'!U$4:U$400,AG49,'Vaxholm Indoor'!P$4:P$400)) -> 235 | Z49: =IF(AG49="","",SUMIF('SM inne'!U$4:U$400,AG49,'SM inne'!P$4:P$400)) -> 305 | AA49: =IF(AG49="","",SUMIF('SmålandsDM inne'!U$4:U$400,AG49,'SmålandsDM inne'!P$4:P$400)) -> 0 | AB49: =IF(AG49="","",SUMIF('BlekingeDM inne'!U$4:U$400,AG49,'BlekingeDM inne'!P$4:P$400)) -> 0 | AC49: =IF(AG49="","",SUMIF('StockholmsDM inne'!U$4:U$400,AG49,'StockholmsDM inne'!P$4:P$400)) -> 242 | AD49: =IF(AG49="","",SUMIF(Värendspokalen!U$4:U$400,AG49,Värendspokalen!P$4:P$400)) -> 0 | AG49: =IF(B49="","",SUMIF(Kastare!B$2:B$2999,B49,Kastare!A$2:A$2999)) -> 1020
A50: 47 | B50: Jonny Åberg | C50: Balders Hsk | D50: 1829 | F50: 8 | G50: 114.3125 | I50: =IF(AG50="","",SUMIF('Tingsryd Open'!U$4:U$400,AG50,'Tingsryd Open'!P$4:P$400)) -> 0 | J50: =IF(AG50="","",SUMIF('Jämjö Open'!U$4:U$400,AG50,'Jämjö Open'!P$4:P$400)) -> 0 | K50: =IF(AG50="","",SUMIF('Viby Open'!U$4:U$400,AG50,'Viby Open'!P$4:P$400)) -> 0 | L50: =IF(AG50="","",SUMIF('Björkenäs Open'!U$4:U$400,AG50,'Björkenäs Open'!P$4:P$400)) -> 0 | M50: =IF(AG50="","",SUMIF('SM ute Lö'!U$4:U$400,AG50,'SM ute Lö'!P$4:P$400)) -> 270 | N50: =IF(AG50="","",SUMIF('SM ute Sö'!U$4:U$401,AG50,'SM ute Sö'!P$4:P$401)) -> 274 | O50: =IF(AG50="","",SUMIF('Roslagen Open'!U$4:U$400,AG50,'Roslagen Open'!P$4:P$400)) -> 146 | P50: =IF(AG50="","",SUMIF('Vaxholm Open'!U$4:U$400,AG50,'Vaxholm Open'!P$4:P$400)) -> 153 | Q50: =IF(AG50="","",SUMIF('Dynapac Open'!U$4:U$400,AG50,'Dynapac Open'!P$4:P$400)) -> 0 | R50: =IF(AG50="","",SUMIF('SmålandsDM ute'!U$4:U$400,AG50,'SmålandsDM ute'!P$4:P$400)) -> 0 | S50: =IF(AG50="","",SUMIF('BlekingeDM ute'!U$4:U$400,AG50,'BlekingeDM ute'!P$4:P$400)) -> 0 | T50: =IF(AG50="","",SUMIF('StockholmsDM ute'!U$4:U$400,AG50,'StockholmsDM ute'!P$4:P$400)) -> 264 | U50: =IF(AG50="","",SUMIF('Åseda Open'!U$4:U$406,AG50,'Åseda Open'!P$4:P$406)) -> 0 | V50: =IF(AG50="","",SUMIF(Höstskon!U$4:U$400,AG50,Höstskon!P$4:P$400)) -> 0 | W50: =IF(AG50="","",SUMIF('Carlskrona Cup'!U$4:U$400,AG50,'Carlskrona Cup'!P$4:P$400)) -> 0 | X50: =IF(AG50="","",SUMIF('Sibbamåla Open'!U$4:U$400,AG50,'Sibbamåla Open'!P$4:P$400)) -> 0 | Y50: =IF(AG50="","",SUMIF('Vaxholm Indoor'!U$4:U$400,AG50,'Vaxholm Indoor'!P$4:P$400)) -> 272 | Z50: =IF(AG50="","",SUMIF('SM inne'!U$4:U$400,AG50,'SM inne'!P$4:P$400)) -> 197 | AA50: =IF(AG50="","",SUMIF('SmålandsDM inne'!U$4:U$400,AG50,'SmålandsDM inne'!P$4:P$400)) -> 0 | AB50: =IF(AG50="","",SUMIF('BlekingeDM inne'!U$4:U$400,AG50,'BlekingeDM inne'!P$4:P$400)) -> 0 | AC50: =IF(AG50="","",SUMIF('StockholmsDM inne'!U$4:U$400,AG50,'StockholmsDM inne'!P$4:P$400)) -> 253 | AD50: =IF(AG50="","",SUMIF(Värendspokalen!U$4:U$400,AG50,Värendspokalen!P$4:P$400)) -> 0 | AG50: =IF(B50="","",SUMIF(Kastare!B$2:B$2999,B50,Kastare!A$2:A$2999)) -> 1076
A51: 48 | B51: Bernt Olsson | C51: Jämjö Hsk | D51: 1812 | F51: 10 | G51: 90.6 | I51: =IF(AG51="","",SUMIF('Tingsryd Open'!U$4:U$400,AG51,'Tingsryd Open'!P$4:P$400)) -> 160 | J51: =IF(AG51="","",SUMIF('Jämjö Open'!U$4:U$400,AG51,'Jämjö Open'!P$4:P$400)) -> 160 | K51: =IF(AG51="","",SUMIF('Viby Open'!U$4:U$400,AG51,'Viby Open'!P$4:P$400)) -> 0 | L51: =IF(AG51="","",SUMIF('Björkenäs Open'!U$4:U$400,AG51,'Björkenäs Open'!P$4:P$400)) -> 174 | M51: =IF(AG51="","",SUMIF('SM ute Lö'!U$4:U$400,AG51,'SM ute Lö'!P$4:P$400)) -> 190 | N51: =IF(AG51="","",SUMIF('SM ute Sö'!U$4:U$401,AG51,'SM ute Sö'!P$4:P$401)) -> 162 | O51: =IF(AG51="","",SUMIF('Roslagen Open'!U$4:U$400,AG51,'Roslagen Open'!P$4:P$400)) -> 0 | P51: =IF(AG51="","",SUMIF('Vaxholm Open'!U$4:U$400,AG51,'Vaxholm Open'!P$4:P$400)) -> 0 | Q51: =IF(AG51="","",SUMIF('Dynapac Open'!U$4:U$400,AG51,'Dynapac Open'!P$4:P$400)) -> 193 | R51: =IF(AG51="","",SUMIF('SmålandsDM ute'!U$4:U$400,AG51,'SmålandsDM ute'!P$4:P$400)) -> 0 | S51: =IF(AG51="","",SUMIF('BlekingeDM ute'!U$4:U$400,AG51,'BlekingeDM ute'!P$4:P$400)) -> 0 | T51: =IF(AG51="","",SUMIF('StockholmsDM ute'!U$4:U$400,AG51,'StockholmsDM ute'!P$4:P$400)) -> 0 | U51: =IF(AG51="","",SUMIF('Åseda Open'!U$4:U$406,AG51,'Åseda Open'!P$4:P$406)) -> 179 | V51: =IF(AG51="","",SUMIF(Höstskon!U$4:U$400,AG51,Höstskon!P$4:P$400)) -> 0 | W51: =IF(AG51="","",SUMIF('Carlskrona Cup'!U$4:U$400,AG51,'Carlskrona Cup'!P$4:P$400)) -> 0 | X51: =IF(AG51="","",SUMIF('Sibbamåla Open'!U$4:U$400,AG51,'Sibbamåla Open'!P$4:P$400)) -> 172 | Y51: =IF(AG51="","",SUMIF('Vaxholm Indoor'!U$4:U$400,AG51,'Vaxholm Indoor'!P$4:P$400)) -> 0 | Z51: =IF(AG51="","",SUMIF('SM inne'!U$4:U$400,AG51,'SM inne'!P$4:P$400)) -> 0 | AA51: =IF(AG51="","",SUMIF('SmålandsDM inne'!U$4:U$400,AG51,'SmålandsDM inne'!P$4:P$400)) -> 0 | AB51: =IF(AG51="","",SUMIF('BlekingeDM inne'!U$4:U$400,AG51,'BlekingeDM inne'!P$4:P$400)) -> 219 | AC51: =IF(AG51="","",SUMIF('StockholmsDM inne'!U$4:U$400,AG51,'StockholmsDM inne'!P$4:P$400)) -> 0 | AD51: =IF(AG51="","",SUMIF(Värendspokalen!U$4:U$400,AG51,Värendspokalen!P$4:P$400)) -> 203 | AG51: =IF(B51="","",SUMIF(Kastare!B$2:B$2999,B51,Kastare!A$2:A$2999)) -> 1061
A52: 49 | B52: Malira Eriksson | C52: Balders HSK | D52: 1808 | F52: 7 | G52: 129.1428571 | I52: =IF(AG52="","",SUMIF('Tingsryd Open'!U$4:U$400,AG52,'Tingsryd Open'!P$4:P$400)) -> 0 | J52: =IF(AG52="","",SUMIF('Jämjö Open'!U$4:U$400,AG52,'Jämjö Open'!P$4:P$400)) -> 0 | K52: =IF(AG52="","",SUMIF('Viby Open'!U$4:U$400,AG52,'Viby Open'!P$4:P$400)) -> 0 | L52: =IF(AG52="","",SUMIF('Björkenäs Open'!U$4:U$400,AG52,'Björkenäs Open'!P$4:P$400)) -> 0 | M52: =IF(AG52="","",SUMIF('SM ute Lö'!U$4:U$400,AG52,'SM ute Lö'!P$4:P$400)) -> 238 | N52: =IF(AG52="","",SUMIF('SM ute Sö'!U$4:U$401,AG52,'SM ute Sö'!P$4:P$401)) -> 0 | O52: =IF(AG52="","",SUMIF('Roslagen Open'!U$4:U$400,AG52,'Roslagen Open'!P$4:P$400)) -> 282 | P52: =IF(AG52="","",SUMIF('Vaxholm Open'!U$4:U$400,AG52,'Vaxholm Open'!P$4:P$400)) -> 176 | Q52: =IF(AG52="","",SUMIF('Dynapac Open'!U$4:U$400,AG52,'Dynapac Open'!P$4:P$400)) -> 0 | R52: =IF(AG52="","",SUMIF('SmålandsDM ute'!U$4:U$400,AG52,'SmålandsDM ute'!P$4:P$400)) -> 0 | S52: =IF(AG52="","",SUMIF('BlekingeDM ute'!U$4:U$400,AG52,'BlekingeDM ute'!P$4:P$400)) -> 0 | T52: =IF(AG52="","",SUMIF('StockholmsDM ute'!U$4:U$400,AG52,'StockholmsDM ute'!P$4:P$400)) -> 229 | U52: =IF(AG52="","",SUMIF('Åseda Open'!U$4:U$406,AG52,'Åseda Open'!P$4:P$406)) -> 168 | V52: =IF(AG52="","",SUMIF(Höstskon!U$4:U$400,AG52,Höstskon!P$4:P$400)) -> 0 | W52: =IF(AG52="","",SUMIF('Carlskrona Cup'!U$4:U$400,AG52,'Carlskrona Cup'!P$4:P$400)) -> 0 | X52: =IF(AG52="","",SUMIF('Sibbamåla Open'!U$4:U$400,AG52,'Sibbamåla Open'!P$4:P$400)) -> 319 | Y52: =IF(AG52="","",SUMIF('Vaxholm Indoor'!U$4:U$400,AG52,'Vaxholm Indoor'!P$4:P$400)) -> 0 | Z52: =IF(AG52="","",SUMIF('SM inne'!U$4:U$400,AG52,'SM inne'!P$4:P$400)) -> 396 | AA52: =IF(AG52="","",SUMIF('SmålandsDM inne'!U$4:U$400,AG52,'SmålandsDM inne'!P$4:P$400)) -> 0 | AB52: =IF(AG52="","",SUMIF('BlekingeDM inne'!U$4:U$400,AG52,'BlekingeDM inne'!P$4:P$400)) -> 0 | AC52: =IF(AG52="","",SUMIF('StockholmsDM inne'!U$4:U$400,AG52,'StockholmsDM inne'!P$4:P$400)) -> 0 | AD52: =IF(AG52="","",SUMIF(Värendspokalen!U$4:U$400,AG52,Värendspokalen!P$4:P$400)) -> 0 | AG52: =IF(B52="","",SUMIF(Kastare!B$2:B$2999,B52,Kastare!A$2:A$2999)) -> 1171
A53: 50 | B53: Yamonlada Damnoenngam | C53: Växjö Hsk | D53: 1804 | F53: 8 | G53: 112.75 | I53: =IF(AG53="","",SUMIF('Tingsryd Open'!U$4:U$400,AG53,'Tingsryd Open'!P$4:P$400)) -> 175 | J53: =IF(AG53="","",SUMIF('Jämjö Open'!U$4:U$400,AG53,'Jämjö Open'!P$4:P$400)) -> 0 | K53: =IF(AG53="","",SUMIF('Viby Open'!U$4:U$400,AG53,'Viby Open'!P$4:P$400)) -> 0 | L53: =IF(AG53="","",SUMIF('Björkenäs Open'!U$4:U$400,AG53,'Björkenäs Open'!P$4:P$400)) -> 260 | M53: =IF(AG53="","",SUMIF('SM ute Lö'!U$4:U$400,AG53,'SM ute Lö'!P$4:P$400)) -> 242 | N53: =IF(AG53="","",SUMIF('SM ute Sö'!U$4:U$401,AG53,'SM ute Sö'!P$4:P$401)) -> 369 | O53: =IF(AG53="","",SUMIF('Roslagen Open'!U$4:U$400,AG53,'Roslagen Open'!P$4:P$400)) -> 0 | P53: =IF(AG53="","",SUMIF('Vaxholm Open'!U$4:U$400,AG53,'Vaxholm Open'!P$4:P$400)) -> 0 | Q53: =IF(AG53="","",SUMIF('Dynapac Open'!U$4:U$400,AG53,'Dynapac Open'!P$4:P$400)) -> 0 | R53: =IF(AG53="","",SUMIF('SmålandsDM ute'!U$4:U$400,AG53,'SmålandsDM ute'!P$4:P$400)) -> 154 | S53: =IF(AG53="","",SUMIF('BlekingeDM ute'!U$4:U$400,AG53,'BlekingeDM ute'!P$4:P$400)) -> 0 | T53: =IF(AG53="","",SUMIF('StockholmsDM ute'!U$4:U$400,AG53,'StockholmsDM ute'!P$4:P$400)) -> 0 | U53: =IF(AG53="","",SUMIF('Åseda Open'!U$4:U$406,AG53,'Åseda Open'!P$4:P$406)) -> 235 | V53: =IF(AG53="","",SUMIF(Höstskon!U$4:U$400,AG53,Höstskon!P$4:P$400)) -> 0 | W53: =IF(AG53="","",SUMIF('Carlskrona Cup'!U$4:U$400,AG53,'Carlskrona Cup'!P$4:P$400)) -> 0 | X53: =IF(AG53="","",SUMIF('Sibbamåla Open'!U$4:U$400,AG53,'Sibbamåla Open'!P$4:P$400)) -> 0 | Y53: =IF(AG53="","",SUMIF('Vaxholm Indoor'!U$4:U$400,AG53,'Vaxholm Indoor'!P$4:P$400)) -> 0 | Z53: =IF(AG53="","",SUMIF('SM inne'!U$4:U$400,AG53,'SM inne'!P$4:P$400)) -> 179 | AA53: =IF(AG53="","",SUMIF('SmålandsDM inne'!U$4:U$400,AG53,'SmålandsDM inne'!P$4:P$400)) -> 0 | AB53: =IF(AG53="","",SUMIF('BlekingeDM inne'!U$4:U$400,AG53,'BlekingeDM inne'!P$4:P$400)) -> 0 | AC53: =IF(AG53="","",SUMIF('StockholmsDM inne'!U$4:U$400,AG53,'StockholmsDM inne'!P$4:P$400)) -> 0 | AD53: =IF(AG53="","",SUMIF(Värendspokalen!U$4:U$400,AG53,Värendspokalen!P$4:P$400)) -> 190 | AG53: =IF(B53="","",SUMIF(Kastare!B$2:B$2999,B53,Kastare!A$2:A$2999)) -> 1010
A54: 51 | B54: Leif Sundahl | C54: Carlskrona Hsc | D54: 1791 | F54: 9 | G54: 99.5 | I54: =IF(AG54="","",SUMIF('Tingsryd Open'!U$4:U$400,AG54,'Tingsryd Open'!P$4:P$400)) -> 198 | J54: =IF(AG54="","",SUMIF('Jämjö Open'!U$4:U$400,AG54,'Jämjö Open'!P$4:P$400)) -> 214 | K54: =IF(AG54="","",SUMIF('Viby Open'!U$4:U$400,AG54,'Viby Open'!P$4:P$400)) -> 0 | L54: =IF(AG54="","",SUMIF('Björkenäs Open'!U$4:U$400,AG54,'Björkenäs Open'!P$4:P$400)) -> 226 | M54: =IF(AG54="","",SUMIF('SM ute Lö'!U$4:U$400,AG54,'SM ute Lö'!P$4:P$400)) -> 195 | N54: =IF(AG54="","",SUMIF('SM ute Sö'!U$4:U$401,AG54,'SM ute Sö'!P$4:P$401)) -> 0 | O54: =IF(AG54="","",SUMIF('Roslagen Open'!U$4:U$400,AG54,'Roslagen Open'!P$4:P$400)) -> 0 | P54: =IF(AG54="","",SUMIF('Vaxholm Open'!U$4:U$400,AG54,'Vaxholm Open'!P$4:P$400)) -> 0 | Q54: =IF(AG54="","",SUMIF('Dynapac Open'!U$4:U$400,AG54,'Dynapac Open'!P$4:P$400)) -> 128 | R54: =IF(AG54="","",SUMIF('SmålandsDM ute'!U$4:U$400,AG54,'SmålandsDM ute'!P$4:P$400)) -> 0 | S54: =IF(AG54="","",SUMIF('BlekingeDM ute'!U$4:U$400,AG54,'BlekingeDM ute'!P$4:P$400)) -> 0 | T54: =IF(AG54="","",SUMIF('StockholmsDM ute'!U$4:U$400,AG54,'StockholmsDM ute'!P$4:P$400)) -> 0 | U54: =IF(AG54="","",SUMIF('Åseda Open'!U$4:U$406,AG54,'Åseda Open'!P$4:P$406)) -> 0 | V54: =IF(AG54="","",SUMIF(Höstskon!U$4:U$400,AG54,Höstskon!P$4:P$400)) -> 212 | W54: =IF(AG54="","",SUMIF('Carlskrona Cup'!U$4:U$400,AG54,'Carlskrona Cup'!P$4:P$400)) -> 204 | X54: =IF(AG54="","",SUMIF('Sibbamåla Open'!U$4:U$400,AG54,'Sibbamåla Open'!P$4:P$400)) -> 0 | Y54: =IF(AG54="","",SUMIF('Vaxholm Indoor'!U$4:U$400,AG54,'Vaxholm Indoor'!P$4:P$400)) -> 0 | Z54: =IF(AG54="","",SUMIF('SM inne'!U$4:U$400,AG54,'SM inne'!P$4:P$400)) -> 0 | AA54: =IF(AG54="","",SUMIF('SmålandsDM inne'!U$4:U$400,AG54,'SmålandsDM inne'!P$4:P$400)) -> 0 | AB54: =IF(AG54="","",SUMIF('BlekingeDM inne'!U$4:U$400,AG54,'BlekingeDM inne'!P$4:P$400)) -> 210 | AC54: =IF(AG54="","",SUMIF('StockholmsDM inne'!U$4:U$400,AG54,'StockholmsDM inne'!P$4:P$400)) -> 0 | AD54: =IF(AG54="","",SUMIF(Värendspokalen!U$4:U$400,AG54,Värendspokalen!P$4:P$400)) -> 204 | AG54: =IF(B54="","",SUMIF(Kastare!B$2:B$2999,B54,Kastare!A$2:A$2999)) -> 1071
A55: 52 | B55: Tomas Lindahl | C55: Korpen Åseda | D55: 1678 | F55: 9 | G55: 93.22222222 | I55: =IF(AG55="","",SUMIF('Tingsryd Open'!U$4:U$400,AG55,'Tingsryd Open'!P$4:P$400)) -> 189 | J55: =IF(AG55="","",SUMIF('Jämjö Open'!U$4:U$400,AG55,'Jämjö Open'!P$4:P$400)) -> 0 | K55: =IF(AG55="","",SUMIF('Viby Open'!U$4:U$400,AG55,'Viby Open'!P$4:P$400)) -> 0 | L55: =IF(AG55="","",SUMIF('Björkenäs Open'!U$4:U$400,AG55,'Björkenäs Open'!P$4:P$400)) -> 160 | M55: =IF(AG55="","",SUMIF('SM ute Lö'!U$4:U$400,AG55,'SM ute Lö'!P$4:P$400)) -> 181 | N55: =IF(AG55="","",SUMIF('SM ute Sö'!U$4:U$401,AG55,'SM ute Sö'!P$4:P$401)) -> 0 | O55: =IF(AG55="","",SUMIF('Roslagen Open'!U$4:U$400,AG55,'Roslagen Open'!P$4:P$400)) -> 0 | P55: =IF(AG55="","",SUMIF('Vaxholm Open'!U$4:U$400,AG55,'Vaxholm Open'!P$4:P$400)) -> 0 | Q55: =IF(AG55="","",SUMIF('Dynapac Open'!U$4:U$400,AG55,'Dynapac Open'!P$4:P$400)) -> 161 | R55: =IF(AG55="","",SUMIF('SmålandsDM ute'!U$4:U$400,AG55,'SmålandsDM ute'!P$4:P$400)) -> 0 | S55: =IF(AG55="","",SUMIF('BlekingeDM ute'!U$4:U$400,AG55,'BlekingeDM ute'!P$4:P$400)) -> 0 | T55: =IF(AG55="","",SUMIF('StockholmsDM ute'!U$4:U$400,AG55,'StockholmsDM ute'!P$4:P$400)) -> 0 | U55: =IF(AG55="","",SUMIF('Åseda Open'!U$4:U$406,AG55,'Åseda Open'!P$4:P$406)) -> 244 | V55: =IF(AG55="","",SUMIF(Höstskon!U$4:U$400,AG55,Höstskon!P$4:P$400)) -> 145 | W55: =IF(AG55="","",SUMIF('Carlskrona Cup'!U$4:U$400,AG55,'Carlskrona Cup'!P$4:P$400)) -> 248 | X55: =IF(AG55="","",SUMIF('Sibbamåla Open'!U$4:U$400,AG55,'Sibbamåla Open'!P$4:P$400)) -> 178 | Y55: =IF(AG55="","",SUMIF('Vaxholm Indoor'!U$4:U$400,AG55,'Vaxholm Indoor'!P$4:P$400)) -> 0 | Z55: =IF(AG55="","",SUMIF('SM inne'!U$4:U$400,AG55,'SM inne'!P$4:P$400)) -> 0 | AA55: =IF(AG55="","",SUMIF('SmålandsDM inne'!U$4:U$400,AG55,'SmålandsDM inne'!P$4:P$400)) -> 0 | AB55: =IF(AG55="","",SUMIF('BlekingeDM inne'!U$4:U$400,AG55,'BlekingeDM inne'!P$4:P$400)) -> 0 | AC55: =IF(AG55="","",SUMIF('StockholmsDM inne'!U$4:U$400,AG55,'StockholmsDM inne'!P$4:P$400)) -> 0 | AD55: =IF(AG55="","",SUMIF(Värendspokalen!U$4:U$400,AG55,Värendspokalen!P$4:P$400)) -> 172 | AG55: =IF(B55="","",SUMIF(Kastare!B$2:B$2999,B55,Kastare!A$2:A$2999)) -> 1013
A56: 53 | B56: Ewa Malmqvist | C56: Jämjö Hsk | D56: 1637 | F56: 8 | G56: 102.3125 | I56: =IF(AG56="","",SUMIF('Tingsryd Open'!U$4:U$400,AG56,'Tingsryd Open'!P$4:P$400)) -> 158 | J56: =IF(AG56="","",SUMIF('Jämjö Open'!U$4:U$400,AG56,'Jämjö Open'!P$4:P$400)) -> 201 | K56: =IF(AG56="","",SUMIF('Viby Open'!U$4:U$400,AG56,'Viby Open'!P$4:P$400)) -> 0 | L56: =IF(AG56="","",SUMIF('Björkenäs Open'!U$4:U$400,AG56,'Björkenäs Open'!P$4:P$400)) -> 244 | M56: =IF(AG56="","",SUMIF('SM ute Lö'!U$4:U$400,AG56,'SM ute Lö'!P$4:P$400)) -> 176 | N56: =IF(AG56="","",SUMIF('SM ute Sö'!U$4:U$401,AG56,'SM ute Sö'!P$4:P$401)) -> 0 | O56: =IF(AG56="","",SUMIF('Roslagen Open'!U$4:U$400,AG56,'Roslagen Open'!P$4:P$400)) -> 0 | P56: =IF(AG56="","",SUMIF('Vaxholm Open'!U$4:U$400,AG56,'Vaxholm Open'!P$4:P$400)) -> 0 | Q56: =IF(AG56="","",SUMIF('Dynapac Open'!U$4:U$400,AG56,'Dynapac Open'!P$4:P$400)) -> 0 | R56: =IF(AG56="","",SUMIF('SmålandsDM ute'!U$4:U$400,AG56,'SmålandsDM ute'!P$4:P$400)) -> 0 | S56: =IF(AG56="","",SUMIF('BlekingeDM ute'!U$4:U$400,AG56,'BlekingeDM ute'!P$4:P$400)) -> 0 | T56: =IF(AG56="","",SUMIF('StockholmsDM ute'!U$4:U$400,AG56,'StockholmsDM ute'!P$4:P$400)) -> 0 | U56: =IF(AG56="","",SUMIF('Åseda Open'!U$4:U$406,AG56,'Åseda Open'!P$4:P$406)) -> 192 | V56: =IF(AG56="","",SUMIF(Höstskon!U$4:U$400,AG56,Höstskon!P$4:P$400)) -> 0 | W56: =IF(AG56="","",SUMIF('Carlskrona Cup'!U$4:U$400,AG56,'Carlskrona Cup'!P$4:P$400)) -> 0 | X56: =IF(AG56="","",SUMIF('Sibbamåla Open'!U$4:U$400,AG56,'Sibbamåla Open'!P$4:P$400)) -> 253 | Y56: =IF(AG56="","",SUMIF('Vaxholm Indoor'!U$4:U$400,AG56,'Vaxholm Indoor'!P$4:P$400)) -> 0 | Z56: =IF(AG56="","",SUMIF('SM inne'!U$4:U$400,AG56,'SM inne'!P$4:P$400)) -> 0 | AA56: =IF(AG56="","",SUMIF('SmålandsDM inne'!U$4:U$400,AG56,'SmålandsDM inne'!P$4:P$400)) -> 0 | AB56: =IF(AG56="","",SUMIF('BlekingeDM inne'!U$4:U$400,AG56,'BlekingeDM inne'!P$4:P$400)) -> 224 | AC56: =IF(AG56="","",SUMIF('StockholmsDM inne'!U$4:U$400,AG56,'StockholmsDM inne'!P$4:P$400)) -> 0 | AD56: =IF(AG56="","",SUMIF(Värendspokalen!U$4:U$400,AG56,Värendspokalen!P$4:P$400)) -> 189 | AG56: =IF(B56="","",SUMIF(Kastare!B$2:B$2999,B56,Kastare!A$2:A$2999)) -> 1057
A57: 54 | B57: Lars Johannesson | C57: Jämjö Hsk | D57: 1555 | F57: 9 | G57: 86.38888889 | I57: =IF(AG57="","",SUMIF('Tingsryd Open'!U$4:U$400,AG57,'Tingsryd Open'!P$4:P$400)) -> 0 | J57: =IF(AG57="","",SUMIF('Jämjö Open'!U$4:U$400,AG57,'Jämjö Open'!P$4:P$400)) -> 87 | K57: =IF(AG57="","",SUMIF('Viby Open'!U$4:U$400,AG57,'Viby Open'!P$4:P$400)) -> 0 | L57: =IF(AG57="","",SUMIF('Björkenäs Open'!U$4:U$400,AG57,'Björkenäs Open'!P$4:P$400)) -> 129 | M57: =IF(AG57="","",SUMIF('SM ute Lö'!U$4:U$400,AG57,'SM ute Lö'!P$4:P$400)) -> 0 | N57: =IF(AG57="","",SUMIF('SM ute Sö'!U$4:U$401,AG57,'SM ute Sö'!P$4:P$401)) -> 0 | O57: =IF(AG57="","",SUMIF('Roslagen Open'!U$4:U$400,AG57,'Roslagen Open'!P$4:P$400)) -> 0 | P57: =IF(AG57="","",SUMIF('Vaxholm Open'!U$4:U$400,AG57,'Vaxholm Open'!P$4:P$400)) -> 0 | Q57: =IF(AG57="","",SUMIF('Dynapac Open'!U$4:U$400,AG57,'Dynapac Open'!P$4:P$400)) -> 182 | R57: =IF(AG57="","",SUMIF('SmålandsDM ute'!U$4:U$400,AG57,'SmålandsDM ute'!P$4:P$400)) -> 0 | S57: =IF(AG57="","",SUMIF('BlekingeDM ute'!U$4:U$400,AG57,'BlekingeDM ute'!P$4:P$400)) -> 169 | T57: =IF(AG57="","",SUMIF('StockholmsDM ute'!U$4:U$400,AG57,'StockholmsDM ute'!P$4:P$400)) -> 0 | U57: =IF(AG57="","",SUMIF('Åseda Open'!U$4:U$406,AG57,'Åseda Open'!P$4:P$406)) -> 186 | V57: =IF(AG57="","",SUMIF(Höstskon!U$4:U$400,AG57,Höstskon!P$4:P$400)) -> 228 | W57: =IF(AG57="","",SUMIF('Carlskrona Cup'!U$4:U$400,AG57,'Carlskrona Cup'!P$4:P$400)) -> 166 | X57: =IF(AG57="","",SUMIF('Sibbamåla Open'!U$4:U$400,AG57,'Sibbamåla Open'!P$4:P$400)) -> 0 | Y57: =IF(AG57="","",SUMIF('Vaxholm Indoor'!U$4:U$400,AG57,'Vaxholm Indoor'!P$4:P$400)) -> 0 | Z57: =IF(AG57="","",SUMIF('SM inne'!U$4:U$400,AG57,'SM inne'!P$4:P$400)) -> 187 | AA57: =IF(AG57="","",SUMIF('SmålandsDM inne'!U$4:U$400,AG57,'SmålandsDM inne'!P$4:P$400)) -> 0 | AB57: =IF(AG57="","",SUMIF('BlekingeDM inne'!U$4:U$400,AG57,'BlekingeDM inne'!P$4:P$400)) -> 221 | AC57: =IF(AG57="","",SUMIF('StockholmsDM inne'!U$4:U$400,AG57,'StockholmsDM inne'!P$4:P$400)) -> 0 | AD57: =IF(AG57="","",SUMIF(Värendspokalen!U$4:U$400,AG57,Värendspokalen!P$4:P$400)) -> 0 | AG57: =IF(B57="","",SUMIF(Kastare!B$2:B$2999,B57,Kastare!A$2:A$2999)) -> 1060
A58: 55 | B58: Clara Larsson | C58: Värends Hsk | D58: 1526 | F58: 9 | G58: 84.77777778 | I58: =IF(AG58="","",SUMIF('Tingsryd Open'!U$4:U$400,AG58,'Tingsryd Open'!P$4:P$400)) -> 127 | J58: =IF(AG58="","",SUMIF('Jämjö Open'!U$4:U$400,AG58,'Jämjö Open'!P$4:P$400)) -> 0 | K58: =IF(AG58="","",SUMIF('Viby Open'!U$4:U$400,AG58,'Viby Open'!P$4:P$400)) -> 0 | L58: =IF(AG58="","",SUMIF('Björkenäs Open'!U$4:U$400,AG58,'Björkenäs Open'!P$4:P$400)) -> 225 | M58: =IF(AG58="","",SUMIF('SM ute Lö'!U$4:U$400,AG58,'SM ute Lö'!P$4:P$400)) -> 170 | N58: =IF(AG58="","",SUMIF('SM ute Sö'!U$4:U$401,AG58,'SM ute Sö'!P$4:P$401)) -> 173 | O58: =IF(AG58="","",SUMIF('Roslagen Open'!U$4:U$400,AG58,'Roslagen Open'!P$4:P$400)) -> 0 | P58: =IF(AG58="","",SUMIF('Vaxholm Open'!U$4:U$400,AG58,'Vaxholm Open'!P$4:P$400)) -> 0 | Q58: =IF(AG58="","",SUMIF('Dynapac Open'!U$4:U$400,AG58,'Dynapac Open'!P$4:P$400)) -> 0 | R58: =IF(AG58="","",SUMIF('SmålandsDM ute'!U$4:U$400,AG58,'SmålandsDM ute'!P$4:P$400)) -> 108 | S58: =IF(AG58="","",SUMIF('BlekingeDM ute'!U$4:U$400,AG58,'BlekingeDM ute'!P$4:P$400)) -> 0 | T58: =IF(AG58="","",SUMIF('StockholmsDM ute'!U$4:U$400,AG58,'StockholmsDM ute'!P$4:P$400)) -> 0 | U58: =IF(AG58="","",SUMIF('Åseda Open'!U$4:U$406,AG58,'Åseda Open'!P$4:P$406)) -> 0 | V58: =IF(AG58="","",SUMIF(Höstskon!U$4:U$400,AG58,Höstskon!P$4:P$400)) -> 0 | W58: =IF(AG58="","",SUMIF('Carlskrona Cup'!U$4:U$400,AG58,'Carlskrona Cup'!P$4:P$400)) -> 219 | X58: =IF(AG58="","",SUMIF('Sibbamåla Open'!U$4:U$400,AG58,'Sibbamåla Open'!P$4:P$400)) -> 142 | Y58: =IF(AG58="","",SUMIF('Vaxholm Indoor'!U$4:U$400,AG58,'Vaxholm Indoor'!P$4:P$400)) -> 0 | Z58: =IF(AG58="","",SUMIF('SM inne'!U$4:U$400,AG58,'SM inne'!P$4:P$400)) -> 126 | AA58: =IF(AG58="","",SUMIF('SmålandsDM inne'!U$4:U$400,AG58,'SmålandsDM inne'!P$4:P$400)) -> 0 | AB58: =IF(AG58="","",SUMIF('BlekingeDM inne'!U$4:U$400,AG58,'BlekingeDM inne'!P$4:P$400)) -> 0 | AC58: =IF(AG58="","",SUMIF('StockholmsDM inne'!U$4:U$400,AG58,'StockholmsDM inne'!P$4:P$400)) -> 0 | AD58: =IF(AG58="","",SUMIF(Värendspokalen!U$4:U$400,AG58,Värendspokalen!P$4:P$400)) -> 236 | AG58: =IF(B58="","",SUMIF(Kastare!B$2:B$2999,B58,Kastare!A$2:A$2999)) -> 1072
A59: 56 | B59: Bela Bodi | C59: Växjö Hsk | D59: 1441 | F59: 10 | G59: 72.05 | I59: =IF(AG59="","",SUMIF('Tingsryd Open'!U$4:U$400,AG59,'Tingsryd Open'!P$4:P$400)) -> 122 | J59: =IF(AG59="","",SUMIF('Jämjö Open'!U$4:U$400,AG59,'Jämjö Open'!P$4:P$400)) -> 0 | K59: =IF(AG59="","",SUMIF('Viby Open'!U$4:U$400,AG59,'Viby Open'!P$4:P$400)) -> 0 | L59: =IF(AG59="","",SUMIF('Björkenäs Open'!U$4:U$400,AG59,'Björkenäs Open'!P$4:P$400)) -> 134 | M59: =IF(AG59="","",SUMIF('SM ute Lö'!U$4:U$400,AG59,'SM ute Lö'!P$4:P$400)) -> 125 | N59: =IF(AG59="","",SUMIF('SM ute Sö'!U$4:U$401,AG59,'SM ute Sö'!P$4:P$401)) -> 170 | O59: =IF(AG59="","",SUMIF('Roslagen Open'!U$4:U$400,AG59,'Roslagen Open'!P$4:P$400)) -> 0 | P59: =IF(AG59="","",SUMIF('Vaxholm Open'!U$4:U$400,AG59,'Vaxholm Open'!P$4:P$400)) -> 0 | Q59: =IF(AG59="","",SUMIF('Dynapac Open'!U$4:U$400,AG59,'Dynapac Open'!P$4:P$400)) -> 94 | R59: =IF(AG59="","",SUMIF('SmålandsDM ute'!U$4:U$400,AG59,'SmålandsDM ute'!P$4:P$400)) -> 149 | S59: =IF(AG59="","",SUMIF('BlekingeDM ute'!U$4:U$400,AG59,'BlekingeDM ute'!P$4:P$400)) -> 0 | T59: =IF(AG59="","",SUMIF('StockholmsDM ute'!U$4:U$400,AG59,'StockholmsDM ute'!P$4:P$400)) -> 0 | U59: =IF(AG59="","",SUMIF('Åseda Open'!U$4:U$406,AG59,'Åseda Open'!P$4:P$406)) -> 0 | V59: =IF(AG59="","",SUMIF(Höstskon!U$4:U$400,AG59,Höstskon!P$4:P$400)) -> 148 | W59: =IF(AG59="","",SUMIF('Carlskrona Cup'!U$4:U$400,AG59,'Carlskrona Cup'!P$4:P$400)) -> 0 | X59: =IF(AG59="","",SUMIF('Sibbamåla Open'!U$4:U$400,AG59,'Sibbamåla Open'!P$4:P$400)) -> 138 | Y59: =IF(AG59="","",SUMIF('Vaxholm Indoor'!U$4:U$400,AG59,'Vaxholm Indoor'!P$4:P$400)) -> 0 | Z59: =IF(AG59="","",SUMIF('SM inne'!U$4:U$400,AG59,'SM inne'!P$4:P$400)) -> 162 | AA59: =IF(AG59="","",SUMIF('SmålandsDM inne'!U$4:U$400,AG59,'SmålandsDM inne'!P$4:P$400)) -> 0 | AB59: =IF(AG59="","",SUMIF('BlekingeDM inne'!U$4:U$400,AG59,'BlekingeDM inne'!P$4:P$400)) -> 0 | AC59: =IF(AG59="","",SUMIF('StockholmsDM inne'!U$4:U$400,AG59,'StockholmsDM inne'!P$4:P$400)) -> 0 | AD59: =IF(AG59="","",SUMIF(Värendspokalen!U$4:U$400,AG59,Värendspokalen!P$4:P$400)) -> 199 | AG59: =IF(B59="","",SUMIF(Kastare!B$2:B$2999,B59,Kastare!A$2:A$2999)) -> 1039
A60: 57 | B60: Lukas Bern | C60: Dynapac | D60: 1422 | F60: 7 | G60: 101.5714286 | I60: =IF(AG60="","",SUMIF('Tingsryd Open'!U$4:U$400,AG60,'Tingsryd Open'!P$4:P$400)) -> 184 | J60: =IF(AG60="","",SUMIF('Jämjö Open'!U$4:U$400,AG60,'Jämjö Open'!P$4:P$400)) -> 0 | K60: =IF(AG60="","",SUMIF('Viby Open'!U$4:U$400,AG60,'Viby Open'!P$4:P$400)) -> 0 | L60: =IF(AG60="","",SUMIF('Björkenäs Open'!U$4:U$400,AG60,'Björkenäs Open'!P$4:P$400)) -> 244 | M60: =IF(AG60="","",SUMIF('SM ute Lö'!U$4:U$400,AG60,'SM ute Lö'!P$4:P$400)) -> 146 | N60: =IF(AG60="","",SUMIF('SM ute Sö'!U$4:U$401,AG60,'SM ute Sö'!P$4:P$401)) -> 249 | O60: =IF(AG60="","",SUMIF('Roslagen Open'!U$4:U$400,AG60,'Roslagen Open'!P$4:P$400)) -> 0 | P60: =IF(AG60="","",SUMIF('Vaxholm Open'!U$4:U$400,AG60,'Vaxholm Open'!P$4:P$400)) -> 0 | Q60: =IF(AG60="","",SUMIF('Dynapac Open'!U$4:U$400,AG60,'Dynapac Open'!P$4:P$400)) -> 0 | R60: =IF(AG60="","",SUMIF('SmålandsDM ute'!U$4:U$400,AG60,'SmålandsDM ute'!P$4:P$400)) -> 0 | S60: =IF(AG60="","",SUMIF('BlekingeDM ute'!U$4:U$400,AG60,'BlekingeDM ute'!P$4:P$400)) -> 132 | T60: =IF(AG60="","",SUMIF('StockholmsDM ute'!U$4:U$400,AG60,'StockholmsDM ute'!P$4:P$400)) -> 0 | U60: =IF(AG60="","",SUMIF('Åseda Open'!U$4:U$406,AG60,'Åseda Open'!P$4:P$406)) -> 0 | V60: =IF(AG60="","",SUMIF(Höstskon!U$4:U$400,AG60,Höstskon!P$4:P$400)) -> 0 | W60: =IF(AG60="","",SUMIF('Carlskrona Cup'!U$4:U$400,AG60,'Carlskrona Cup'!P$4:P$400)) -> 253 | X60: =IF(AG60="","",SUMIF('Sibbamåla Open'!U$4:U$400,AG60,'Sibbamåla Open'!P$4:P$400)) -> 214 | Y60: =IF(AG60="","",SUMIF('Vaxholm Indoor'!U$4:U$400,AG60,'Vaxholm Indoor'!P$4:P$400)) -> 0 | Z60: =IF(AG60="","",SUMIF('SM inne'!U$4:U$400,AG60,'SM inne'!P$4:P$400)) -> 0 | AA60: =IF(AG60="","",SUMIF('SmålandsDM inne'!U$4:U$400,AG60,'SmålandsDM inne'!P$4:P$400)) -> 0 | AB60: =IF(AG60="","",SUMIF('BlekingeDM inne'!U$4:U$400,AG60,'BlekingeDM inne'!P$4:P$400)) -> 0 | AC60: =IF(AG60="","",SUMIF('StockholmsDM inne'!U$4:U$400,AG60,'StockholmsDM inne'!P$4:P$400)) -> 0 | AD60: =IF(AG60="","",SUMIF(Värendspokalen!U$4:U$400,AG60,Värendspokalen!P$4:P$400)) -> 0 | AG60: =IF(B60="","",SUMIF(Kastare!B$2:B$2999,B60,Kastare!A$2:A$2999)) -> 1092
A61: 58 | B61: Gebriela Kostantinos | C61: Korpen Åseda | D61: 1393 | F61: 5 | G61: 139.3 | I61: =IF(AG61="","",SUMIF('Tingsryd Open'!U$4:U$400,AG61,'Tingsryd Open'!P$4:P$400)) -> 284 | J61: =IF(AG61="","",SUMIF('Jämjö Open'!U$4:U$400,AG61,'Jämjö Open'!P$4:P$400)) -> 220 | K61: =IF(AG61="","",SUMIF('Viby Open'!U$4:U$400,AG61,'Viby Open'!P$4:P$400)) -> 0 | L61: =IF(AG61="","",SUMIF('Björkenäs Open'!U$4:U$400,AG61,'Björkenäs Open'!P$4:P$400)) -> 293 | M61: =IF(AG61="","",SUMIF('SM ute Lö'!U$4:U$400,AG61,'SM ute Lö'!P$4:P$400)) -> 308 | N61: =IF(AG61="","",SUMIF('SM ute Sö'!U$4:U$401,AG61,'SM ute Sö'!P$4:P$401)) -> 288 | O61: =IF(AG61="","",SUMIF('Roslagen Open'!U$4:U$400,AG61,'Roslagen Open'!P$4:P$400)) -> 0 | P61: =IF(AG61="","",SUMIF('Vaxholm Open'!U$4:U$400,AG61,'Vaxholm Open'!P$4:P$400)) -> 0 | Q61: =IF(AG61="","",SUMIF('Dynapac Open'!U$4:U$400,AG61,'Dynapac Open'!P$4:P$400)) -> 0 | R61: =IF(AG61="","",SUMIF('SmålandsDM ute'!U$4:U$400,AG61,'SmålandsDM ute'!P$4:P$400)) -> 0 | S61: =IF(AG61="","",SUMIF('BlekingeDM ute'!U$4:U$400,AG61,'BlekingeDM ute'!P$4:P$400)) -> 0 | T61: =IF(AG61="","",SUMIF('StockholmsDM ute'!U$4:U$400,AG61,'StockholmsDM ute'!P$4:P$400)) -> 0 | U61: =IF(AG61="","",SUMIF('Åseda Open'!U$4:U$406,AG61,'Åseda Open'!P$4:P$406)) -> 0 | V61: =IF(AG61="","",SUMIF(Höstskon!U$4:U$400,AG61,Höstskon!P$4:P$400)) -> 0 | W61: =IF(AG61="","",SUMIF('Carlskrona Cup'!U$4:U$400,AG61,'Carlskrona Cup'!P$4:P$400)) -> 0 | X61: =IF(AG61="","",SUMIF('Sibbamåla Open'!U$4:U$400,AG61,'Sibbamåla Open'!P$4:P$400)) -> 0 | Y61: =IF(AG61="","",SUMIF('Vaxholm Indoor'!U$4:U$400,AG61,'Vaxholm Indoor'!P$4:P$400)) -> 0 | Z61: =IF(AG61="","",SUMIF('SM inne'!U$4:U$400,AG61,'SM inne'!P$4:P$400)) -> 0 | AA61: =IF(AG61="","",SUMIF('SmålandsDM inne'!U$4:U$400,AG61,'SmålandsDM inne'!P$4:P$400)) -> 0 | AB61: =IF(AG61="","",SUMIF('BlekingeDM inne'!U$4:U$400,AG61,'BlekingeDM inne'!P$4:P$400)) -> 0 | AC61: =IF(AG61="","",SUMIF('StockholmsDM inne'!U$4:U$400,AG61,'StockholmsDM inne'!P$4:P$400)) -> 0 | AD61: =IF(AG61="","",SUMIF(Värendspokalen!U$4:U$400,AG61,Värendspokalen!P$4:P$400)) -> 0 | AG61: =IF(B61="","",SUMIF(Kastare!B$2:B$2999,B61,Kastare!A$2:A$2999)) -> 1065
A62: 59 | B62: Thomas Dahl | C62: Växjö Hsk | D62: 1363 | F62: 11 | G62: 61.95454545 | I62: =IF(AG62="","",SUMIF('Tingsryd Open'!U$4:U$400,AG62,'Tingsryd Open'!P$4:P$400)) -> 133 | J62: =IF(AG62="","",SUMIF('Jämjö Open'!U$4:U$400,AG62,'Jämjö Open'!P$4:P$400)) -> 0 | K62: =IF(AG62="","",SUMIF('Viby Open'!U$4:U$400,AG62,'Viby Open'!P$4:P$400)) -> 0 | L62: =IF(AG62="","",SUMIF('Björkenäs Open'!U$4:U$400,AG62,'Björkenäs Open'!P$4:P$400)) -> 175 | M62: =IF(AG62="","",SUMIF('SM ute Lö'!U$4:U$400,AG62,'SM ute Lö'!P$4:P$400)) -> 177 | N62: =IF(AG62="","",SUMIF('SM ute Sö'!U$4:U$401,AG62,'SM ute Sö'!P$4:P$401)) -> 123 | O62: =IF(AG62="","",SUMIF('Roslagen Open'!U$4:U$400,AG62,'Roslagen Open'!P$4:P$400)) -> 0 | P62: =IF(AG62="","",SUMIF('Vaxholm Open'!U$4:U$400,AG62,'Vaxholm Open'!P$4:P$400)) -> 0 | Q62: =IF(AG62="","",SUMIF('Dynapac Open'!U$4:U$400,AG62,'Dynapac Open'!P$4:P$400)) -> 177 | R62: =IF(AG62="","",SUMIF('SmålandsDM ute'!U$4:U$400,AG62,'SmålandsDM ute'!P$4:P$400)) -> 113 | S62: =IF(AG62="","",SUMIF('BlekingeDM ute'!U$4:U$400,AG62,'BlekingeDM ute'!P$4:P$400)) -> 0 | T62: =IF(AG62="","",SUMIF('StockholmsDM ute'!U$4:U$400,AG62,'StockholmsDM ute'!P$4:P$400)) -> 0 | U62: =IF(AG62="","",SUMIF('Åseda Open'!U$4:U$406,AG62,'Åseda Open'!P$4:P$406)) -> 101 | V62: =IF(AG62="","",SUMIF(Höstskon!U$4:U$400,AG62,Höstskon!P$4:P$400)) -> 76 | W62: =IF(AG62="","",SUMIF('Carlskrona Cup'!U$4:U$400,AG62,'Carlskrona Cup'!P$4:P$400)) -> 85 | X62: =IF(AG62="","",SUMIF('Sibbamåla Open'!U$4:U$400,AG62,'Sibbamåla Open'!P$4:P$400)) -> 0 | Y62: =IF(AG62="","",SUMIF('Vaxholm Indoor'!U$4:U$400,AG62,'Vaxholm Indoor'!P$4:P$400)) -> 0 | Z62: =IF(AG62="","",SUMIF('SM inne'!U$4:U$400,AG62,'SM inne'!P$4:P$400)) -> 95 | AA62: =IF(AG62="","",SUMIF('SmålandsDM inne'!U$4:U$400,AG62,'SmålandsDM inne'!P$4:P$400)) -> 0 | AB62: =IF(AG62="","",SUMIF('BlekingeDM inne'!U$4:U$400,AG62,'BlekingeDM inne'!P$4:P$400)) -> 0 | AC62: =IF(AG62="","",SUMIF('StockholmsDM inne'!U$4:U$400,AG62,'StockholmsDM inne'!P$4:P$400)) -> 0 | AD62: =IF(AG62="","",SUMIF(Värendspokalen!U$4:U$400,AG62,Värendspokalen!P$4:P$400)) -> 108 | AG62: =IF(B62="","",SUMIF(Kastare!B$2:B$2999,B62,Kastare!A$2:A$2999)) -> 1051
A63: 60 | B63: Johan Johansson | C63: Tingsryd Hsc | D63: 1351 | F63: 5 | G63: 135.1 | I63: =IF(AG63="","",SUMIF('Tingsryd Open'!U$4:U$400,AG63,'Tingsryd Open'!P$4:P$400)) -> 303 | J63: =IF(AG63="","",SUMIF('Jämjö Open'!U$4:U$400,AG63,'Jämjö Open'!P$4:P$400)) -> 0 | K63: =IF(AG63="","",SUMIF('Viby Open'!U$4:U$400,AG63,'Viby Open'!P$4:P$400)) -> 0 | L63: =IF(AG63="","",SUMIF('Björkenäs Open'!U$4:U$400,AG63,'Björkenäs Open'!P$4:P$400)) -> 0 | M63: =IF(AG63="","",SUMIF('SM ute Lö'!U$4:U$400,AG63,'SM ute Lö'!P$4:P$400)) -> 217 | N63: =IF(AG63="","",SUMIF('SM ute Sö'!U$4:U$401,AG63,'SM ute Sö'!P$4:P$401)) -> 347 | O63: =IF(AG63="","",SUMIF('Roslagen Open'!U$4:U$400,AG63,'Roslagen Open'!P$4:P$400)) -> 0 | P63: =IF(AG63="","",SUMIF('Vaxholm Open'!U$4:U$400,AG63,'Vaxholm Open'!P$4:P$400)) -> 0 | Q63: =IF(AG63="","",SUMIF('Dynapac Open'!U$4:U$400,AG63,'Dynapac Open'!P$4:P$400)) -> 0 | R63: =IF(AG63="","",SUMIF('SmålandsDM ute'!U$4:U$400,AG63,'SmålandsDM ute'!P$4:P$400)) -> 0 | S63: =IF(AG63="","",SUMIF('BlekingeDM ute'!U$4:U$400,AG63,'BlekingeDM ute'!P$4:P$400)) -> 0 | T63: =IF(AG63="","",SUMIF('StockholmsDM ute'!U$4:U$400,AG63,'StockholmsDM ute'!P$4:P$400)) -> 0 | U63: =IF(AG63="","",SUMIF('Åseda Open'!U$4:U$406,AG63,'Åseda Open'!P$4:P$406)) -> 228 | V63: =IF(AG63="","",SUMIF(Höstskon!U$4:U$400,AG63,Höstskon!P$4:P$400)) -> 0 | W63: =IF(AG63="","",SUMIF('Carlskrona Cup'!U$4:U$400,AG63,'Carlskrona Cup'!P$4:P$400)) -> 0 | X63: =IF(AG63="","",SUMIF('Sibbamåla Open'!U$4:U$400,AG63,'Sibbamåla Open'!P$4:P$400)) -> 0 | Y63: =IF(AG63="","",SUMIF('Vaxholm Indoor'!U$4:U$400,AG63,'Vaxholm Indoor'!P$4:P$400)) -> 0 | Z63: =IF(AG63="","",SUMIF('SM inne'!U$4:U$400,AG63,'SM inne'!P$4:P$400)) -> 256 | AA63: =IF(AG63="","",SUMIF('SmålandsDM inne'!U$4:U$400,AG63,'SmålandsDM inne'!P$4:P$400)) -> 0 | AB63: =IF(AG63="","",SUMIF('BlekingeDM inne'!U$4:U$400,AG63,'BlekingeDM inne'!P$4:P$400)) -> 0 | AC63: =IF(AG63="","",SUMIF('StockholmsDM inne'!U$4:U$400,AG63,'StockholmsDM inne'!P$4:P$400)) -> 0 | AD63: =IF(AG63="","",SUMIF(Värendspokalen!U$4:U$400,AG63,Värendspokalen!P$4:P$400)) -> 0 | AG63: =IF(B63="","",SUMIF(Kastare!B$2:B$2999,B63,Kastare!A$2:A$2999)) -> 1025
A64: 61 | B64: Janne Pettersson | C64: Balders Hsk | D64: 1310 | F64: 7 | G64: 93.57142857 | I64: =IF(AG64="","",SUMIF('Tingsryd Open'!U$4:U$400,AG64,'Tingsryd Open'!P$4:P$400)) -> 0 | J64: =IF(AG64="","",SUMIF('Jämjö Open'!U$4:U$400,AG64,'Jämjö Open'!P$4:P$400)) -> 0 | K64: =IF(AG64="","",SUMIF('Viby Open'!U$4:U$400,AG64,'Viby Open'!P$4:P$400)) -> 0 | L64: =IF(AG64="","",SUMIF('Björkenäs Open'!U$4:U$400,AG64,'Björkenäs Open'!P$4:P$400)) -> 0 | M64: =IF(AG64="","",SUMIF('SM ute Lö'!U$4:U$400,AG64,'SM ute Lö'!P$4:P$400)) -> 206 | N64: =IF(AG64="","",SUMIF('SM ute Sö'!U$4:U$401,AG64,'SM ute Sö'!P$4:P$401)) -> 147 | O64: =IF(AG64="","",SUMIF('Roslagen Open'!U$4:U$400,AG64,'Roslagen Open'!P$4:P$400)) -> 147 | P64: =IF(AG64="","",SUMIF('Vaxholm Open'!U$4:U$400,AG64,'Vaxholm Open'!P$4:P$400)) -> 143 | Q64: =IF(AG64="","",SUMIF('Dynapac Open'!U$4:U$400,AG64,'Dynapac Open'!P$4:P$400)) -> 0 | R64: =IF(AG64="","",SUMIF('SmålandsDM ute'!U$4:U$400,AG64,'SmålandsDM ute'!P$4:P$400)) -> 0 | S64: =IF(AG64="","",SUMIF('BlekingeDM ute'!U$4:U$400,AG64,'BlekingeDM ute'!P$4:P$400)) -> 0 | T64: =IF(AG64="","",SUMIF('StockholmsDM ute'!U$4:U$400,AG64,'StockholmsDM ute'!P$4:P$400)) -> 224 | U64: =IF(AG64="","",SUMIF('Åseda Open'!U$4:U$406,AG64,'Åseda Open'!P$4:P$406)) -> 0 | V64: =IF(AG64="","",SUMIF(Höstskon!U$4:U$400,AG64,Höstskon!P$4:P$400)) -> 0 | W64: =IF(AG64="","",SUMIF('Carlskrona Cup'!U$4:U$400,AG64,'Carlskrona Cup'!P$4:P$400)) -> 0 | X64: =IF(AG64="","",SUMIF('Sibbamåla Open'!U$4:U$400,AG64,'Sibbamåla Open'!P$4:P$400)) -> 0 | Y64: =IF(AG64="","",SUMIF('Vaxholm Indoor'!U$4:U$400,AG64,'Vaxholm Indoor'!P$4:P$400)) -> 215 | Z64: =IF(AG64="","",SUMIF('SM inne'!U$4:U$400,AG64,'SM inne'!P$4:P$400)) -> 0 | AA64: =IF(AG64="","",SUMIF('SmålandsDM inne'!U$4:U$400,AG64,'SmålandsDM inne'!P$4:P$400)) -> 0 | AB64: =IF(AG64="","",SUMIF('BlekingeDM inne'!U$4:U$400,AG64,'BlekingeDM inne'!P$4:P$400)) -> 0 | AC64: =IF(AG64="","",SUMIF('StockholmsDM inne'!U$4:U$400,AG64,'StockholmsDM inne'!P$4:P$400)) -> 228 | AD64: =IF(AG64="","",SUMIF(Värendspokalen!U$4:U$400,AG64,Värendspokalen!P$4:P$400)) -> 0 | AG64: =IF(B64="","",SUMIF(Kastare!B$2:B$2999,B64,Kastare!A$2:A$2999)) -> 1098
A65: 62 | B65: Sebastian Israelsson | C65: Sibbamåla IF | D65: 1263 | F65: 7 | G65: 90.21428571 | I65: =IF(AG65="","",SUMIF('Tingsryd Open'!U$4:U$400,AG65,'Tingsryd Open'!P$4:P$400)) -> 160 | J65: =IF(AG65="","",SUMIF('Jämjö Open'!U$4:U$400,AG65,'Jämjö Open'!P$4:P$400)) -> 0 | K65: =IF(AG65="","",SUMIF('Viby Open'!U$4:U$400,AG65,'Viby Open'!P$4:P$400)) -> 0 | L65: =IF(AG65="","",SUMIF('Björkenäs Open'!U$4:U$400,AG65,'Björkenäs Open'!P$4:P$400)) -> 139 | M65: =IF(AG65="","",SUMIF('SM ute Lö'!U$4:U$400,AG65,'SM ute Lö'!P$4:P$400)) -> 192 | N65: =IF(AG65="","",SUMIF('SM ute Sö'!U$4:U$401,AG65,'SM ute Sö'!P$4:P$401)) -> 119 | O65: =IF(AG65="","",SUMIF('Roslagen Open'!U$4:U$400,AG65,'Roslagen Open'!P$4:P$400)) -> 0 | P65: =IF(AG65="","",SUMIF('Vaxholm Open'!U$4:U$400,AG65,'Vaxholm Open'!P$4:P$400)) -> 0 | Q65: =IF(AG65="","",SUMIF('Dynapac Open'!U$4:U$400,AG65,'Dynapac Open'!P$4:P$400)) -> 0 | R65: =IF(AG65="","",SUMIF('SmålandsDM ute'!U$4:U$400,AG65,'SmålandsDM ute'!P$4:P$400)) -> 0 | S65: =IF(AG65="","",SUMIF('BlekingeDM ute'!U$4:U$400,AG65,'BlekingeDM ute'!P$4:P$400)) -> 0 | T65: =IF(AG65="","",SUMIF('StockholmsDM ute'!U$4:U$400,AG65,'StockholmsDM ute'!P$4:P$400)) -> 0 | U65: =IF(AG65="","",SUMIF('Åseda Open'!U$4:U$406,AG65,'Åseda Open'!P$4:P$406)) -> 0 | V65: =IF(AG65="","",SUMIF(Höstskon!U$4:U$400,AG65,Höstskon!P$4:P$400)) -> 0 | W65: =IF(AG65="","",SUMIF('Carlskrona Cup'!U$4:U$400,AG65,'Carlskrona Cup'!P$4:P$400)) -> 0 | X65: =IF(AG65="","",SUMIF('Sibbamåla Open'!U$4:U$400,AG65,'Sibbamåla Open'!P$4:P$400)) -> 243 | Y65: =IF(AG65="","",SUMIF('Vaxholm Indoor'!U$4:U$400,AG65,'Vaxholm Indoor'!P$4:P$400)) -> 0 | Z65: =IF(AG65="","",SUMIF('SM inne'!U$4:U$400,AG65,'SM inne'!P$4:P$400)) -> 237 | AA65: =IF(AG65="","",SUMIF('SmålandsDM inne'!U$4:U$400,AG65,'SmålandsDM inne'!P$4:P$400)) -> 0 | AB65: =IF(AG65="","",SUMIF('BlekingeDM inne'!U$4:U$400,AG65,'BlekingeDM inne'!P$4:P$400)) -> 0 | AC65: =IF(AG65="","",SUMIF('StockholmsDM inne'!U$4:U$400,AG65,'StockholmsDM inne'!P$4:P$400)) -> 0 | AD65: =IF(AG65="","",SUMIF(Värendspokalen!U$4:U$400,AG65,Värendspokalen!P$4:P$400)) -> 173 | AG65: =IF(B65="","",SUMIF(Kastare!B$2:B$2999,B65,Kastare!A$2:A$2999)) -> 1035
A66: 63 | B66: Martin Antic | C66: Värends Hsk | D66: 1247 | F66: 7 | G66: 89.07142857 | I66: =IF(AG66="","",SUMIF('Tingsryd Open'!U$4:U$400,AG66,'Tingsryd Open'!P$4:P$400)) -> 0 | J66: =IF(AG66="","",SUMIF('Jämjö Open'!U$4:U$400,AG66,'Jämjö Open'!P$4:P$400)) -> 157 | K66: =IF(AG66="","",SUMIF('Viby Open'!U$4:U$400,AG66,'Viby Open'!P$4:P$400)) -> 0 | L66: =IF(AG66="","",SUMIF('Björkenäs Open'!U$4:U$400,AG66,'Björkenäs Open'!P$4:P$400)) -> 180 | M66: =IF(AG66="","",SUMIF('SM ute Lö'!U$4:U$400,AG66,'SM ute Lö'!P$4:P$400)) -> 181 | N66: =IF(AG66="","",SUMIF('SM ute Sö'!U$4:U$401,AG66,'SM ute Sö'!P$4:P$401)) -> 186 | O66: =IF(AG66="","",SUMIF('Roslagen Open'!U$4:U$400,AG66,'Roslagen Open'!P$4:P$400)) -> 0 | P66: =IF(AG66="","",SUMIF('Vaxholm Open'!U$4:U$400,AG66,'Vaxholm Open'!P$4:P$400)) -> 0 | Q66: =IF(AG66="","",SUMIF('Dynapac Open'!U$4:U$400,AG66,'Dynapac Open'!P$4:P$400)) -> 0 | R66: =IF(AG66="","",SUMIF('SmålandsDM ute'!U$4:U$400,AG66,'SmålandsDM ute'!P$4:P$400)) -> 0 | S66: =IF(AG66="","",SUMIF('BlekingeDM ute'!U$4:U$400,AG66,'BlekingeDM ute'!P$4:P$400)) -> 0 | T66: =IF(AG66="","",SUMIF('StockholmsDM ute'!U$4:U$400,AG66,'StockholmsDM ute'!P$4:P$400)) -> 0 | U66: =IF(AG66="","",SUMIF('Åseda Open'!U$4:U$406,AG66,'Åseda Open'!P$4:P$406)) -> 0 | V66: =IF(AG66="","",SUMIF(Höstskon!U$4:U$400,AG66,Höstskon!P$4:P$400)) -> 0 | W66: =IF(AG66="","",SUMIF('Carlskrona Cup'!U$4:U$400,AG66,'Carlskrona Cup'!P$4:P$400)) -> 152 | X66: =IF(AG66="","",SUMIF('Sibbamåla Open'!U$4:U$400,AG66,'Sibbamåla Open'!P$4:P$400)) -> 272 | Y66: =IF(AG66="","",SUMIF('Vaxholm Indoor'!U$4:U$400,AG66,'Vaxholm Indoor'!P$4:P$400)) -> 0 | Z66: =IF(AG66="","",SUMIF('SM inne'!U$4:U$400,AG66,'SM inne'!P$4:P$400)) -> 119 | AA66: =IF(AG66="","",SUMIF('SmålandsDM inne'!U$4:U$400,AG66,'SmålandsDM inne'!P$4:P$400)) -> 0 | AB66: =IF(AG66="","",SUMIF('BlekingeDM inne'!U$4:U$400,AG66,'BlekingeDM inne'!P$4:P$400)) -> 0 | AC66: =IF(AG66="","",SUMIF('StockholmsDM inne'!U$4:U$400,AG66,'StockholmsDM inne'!P$4:P$400)) -> 0 | AD66: =IF(AG66="","",SUMIF(Värendspokalen!U$4:U$400,AG66,Värendspokalen!P$4:P$400)) -> 0 | AG66: =IF(B66="","",SUMIF(Kastare!B$2:B$2999,B66,Kastare!A$2:A$2999)) -> 1166
A67: 64 | B67: Åke Bergqvist | C67: Tingsryd Hsc | D67: 1203 | F67: 6 | G67: 100.25 | I67: =IF(AG67="","",SUMIF('Tingsryd Open'!U$4:U$400,AG67,'Tingsryd Open'!P$4:P$400)) -> 207 | J67: =IF(AG67="","",SUMIF('Jämjö Open'!U$4:U$400,AG67,'Jämjö Open'!P$4:P$400)) -> 0 | K67: =IF(AG67="","",SUMIF('Viby Open'!U$4:U$400,AG67,'Viby Open'!P$4:P$400)) -> 0 | L67: =IF(AG67="","",SUMIF('Björkenäs Open'!U$4:U$400,AG67,'Björkenäs Open'!P$4:P$400)) -> 0 | M67: =IF(AG67="","",SUMIF('SM ute Lö'!U$4:U$400,AG67,'SM ute Lö'!P$4:P$400)) -> 190 | N67: =IF(AG67="","",SUMIF('SM ute Sö'!U$4:U$401,AG67,'SM ute Sö'!P$4:P$401)) -> 130 | O67: =IF(AG67="","",SUMIF('Roslagen Open'!U$4:U$400,AG67,'Roslagen Open'!P$4:P$400)) -> 0 | P67: =IF(AG67="","",SUMIF('Vaxholm Open'!U$4:U$400,AG67,'Vaxholm Open'!P$4:P$400)) -> 0 | Q67: =IF(AG67="","",SUMIF('Dynapac Open'!U$4:U$400,AG67,'Dynapac Open'!P$4:P$400)) -> 0 | R67: =IF(AG67="","",SUMIF('SmålandsDM ute'!U$4:U$400,AG67,'SmålandsDM ute'!P$4:P$400)) -> 250 | S67: =IF(AG67="","",SUMIF('BlekingeDM ute'!U$4:U$400,AG67,'BlekingeDM ute'!P$4:P$400)) -> 0 | T67: =IF(AG67="","",SUMIF('StockholmsDM ute'!U$4:U$400,AG67,'StockholmsDM ute'!P$4:P$400)) -> 0 | U67: =IF(AG67="","",SUMIF('Åseda Open'!U$4:U$406,AG67,'Åseda Open'!P$4:P$406)) -> 254 | V67: =IF(AG67="","",SUMIF(Höstskon!U$4:U$400,AG67,Höstskon!P$4:P$400)) -> 0 | W67: =IF(AG67="","",SUMIF('Carlskrona Cup'!U$4:U$400,AG67,'Carlskrona Cup'!P$4:P$400)) -> 0 | X67: =IF(AG67="","",SUMIF('Sibbamåla Open'!U$4:U$400,AG67,'Sibbamåla Open'!P$4:P$400)) -> 0 | Y67: =IF(AG67="","",SUMIF('Vaxholm Indoor'!U$4:U$400,AG67,'Vaxholm Indoor'!P$4:P$400)) -> 0 | Z67: =IF(AG67="","",SUMIF('SM inne'!U$4:U$400,AG67,'SM inne'!P$4:P$400)) -> 172 | AA67: =IF(AG67="","",SUMIF('SmålandsDM inne'!U$4:U$400,AG67,'SmålandsDM inne'!P$4:P$400)) -> 0 | AB67: =IF(AG67="","",SUMIF('BlekingeDM inne'!U$4:U$400,AG67,'BlekingeDM inne'!P$4:P$400)) -> 0 | AC67: =IF(AG67="","",SUMIF('StockholmsDM inne'!U$4:U$400,AG67,'StockholmsDM inne'!P$4:P$400)) -> 0 | AD67: =IF(AG67="","",SUMIF(Värendspokalen!U$4:U$400,AG67,Värendspokalen!P$4:P$400)) -> 0 | AG67: =IF(B67="","",SUMIF(Kastare!B$2:B$2999,B67,Kastare!A$2:A$2999)) -> 1064
A68: 65 | B68: Roger Eriksson | C68: Balders HSK | D68: =IF(B68="",0,IF($F68>0,LARGE($I68:$AD68,1),"")+IF($F68>0,LARGE($I68:$AD68,2),"")+IF($F68>0,LARGE($I68:$AD68,3),"")+IF($F68>0,LARGE($I68:$AD68,4),"")+IF($F68>0,LARGE($I68:$AD68,5),"")+IF($F68>0,LARGE($I68:$AD68,6),"")+IF($F68>0,LARGE($I68:$AD68,7),"")+IF($F68>0,LARGE($I68:$AD68,8),"")+IF($F68>0,LARGE($I68:$AD68,9),"")+IF($F68>0,LARGE($I68:$AD68,10),"")+IF($F68>0,LARGE($I68:$AD68,11),"")+IF($F68>0,LARGE($I68:$AD68,12),"")) -> 1197 | F68: =COUNTIF(I68:AD68,">0") -> 7 | G68: =IF(F68=0,"",SUM(H68:AD68)/(F68*2)) -> 85.5 | I68: =IF(AG68="","",SUMIF('Tingsryd Open'!U$4:U$400,AG68,'Tingsryd Open'!P$4:P$400)) -> 0 | J68: =IF(AG68="","",SUMIF('Jämjö Open'!U$4:U$400,AG68,'Jämjö Open'!P$4:P$400)) -> 0 | K68: =IF(AG68="","",SUMIF('Viby Open'!U$4:U$400,AG68,'Viby Open'!P$4:P$400)) -> 0 | L68: =IF(AG68="","",SUMIF('Björkenäs Open'!U$4:U$400,AG68,'Björkenäs Open'!P$4:P$400)) -> 0 | M68: =IF(AG68="","",SUMIF('SM ute Lö'!U$4:U$400,AG68,'SM ute Lö'!P$4:P$400)) -> 136 | N68: =IF(AG68="","",SUMIF('SM ute Sö'!U$4:U$401,AG68,'SM ute Sö'!P$4:P$401)) -> 0 | O68: =IF(AG68="","",SUMIF('Roslagen Open'!U$4:U$400,AG68,'Roslagen Open'!P$4:P$400)) -> 101 | P68: =IF(AG68="","",SUMIF('Vaxholm Open'!U$4:U$400,AG68,'Vaxholm Open'!P$4:P$400)) -> 176 | Q68: =IF(AG68="","",SUMIF('Dynapac Open'!U$4:U$400,AG68,'Dynapac Open'!P$4:P$400)) -> 0 | R68: =IF(AG68="","",SUMIF('SmålandsDM ute'!U$4:U$400,AG68,'SmålandsDM ute'!P$4:P$400)) -> 0 | S68: =IF(AG68="","",SUMIF('BlekingeDM ute'!U$4:U$400,AG68,'BlekingeDM ute'!P$4:P$400)) -> 0 | T68: =IF(AG68="","",SUMIF('StockholmsDM ute'!U$4:U$400,AG68,'StockholmsDM ute'!P$4:P$400)) -> 178 | U68: =IF(AG68="","",SUMIF('Åseda Open'!U$4:U$406,AG68,'Åseda Open'!P$4:P$406)) -> 198 | V68: =IF(AG68="","",SUMIF(Höstskon!U$4:U$400,AG68,Höstskon!P$4:P$400)) -> 0 | W68: =IF(AG68="","",SUMIF('Carlskrona Cup'!U$4:U$400,AG68,'Carlskrona Cup'!P$4:P$400)) -> 0 | X68: =IF(AG68="","",SUMIF('Sibbamåla Open'!U$4:U$400,AG68,'Sibbamåla Open'!P$4:P$400)) -> 187 | Y68: =IF(AG68="","",SUMIF('Vaxholm Indoor'!U$4:U$400,AG68,'Vaxholm Indoor'!P$4:P$400)) -> 0 | Z68: =IF(AG68="","",SUMIF('SM inne'!U$4:U$400,AG68,'SM inne'!P$4:P$400)) -> 221 | AA68: =IF(AG68="","",SUMIF('SmålandsDM inne'!U$4:U$400,AG68,'SmålandsDM inne'!P$4:P$400)) -> 0 | AB68: =IF(AG68="","",SUMIF('BlekingeDM inne'!U$4:U$400,AG68,'BlekingeDM inne'!P$4:P$400)) -> 0 | AC68: =IF(AG68="","",SUMIF('StockholmsDM inne'!U$4:U$400,AG68,'StockholmsDM inne'!P$4:P$400)) -> 0 | AD68: =IF(AG68="","",SUMIF(Värendspokalen!U$4:U$400,AG68,Värendspokalen!P$4:P$400)) -> 0 | AG68: =IF(B68="","",SUMIF(Kastare!B$2:B$2999,B68,Kastare!A$2:A$2999)) -> 1132
A69: =IF(B69="","",IF(D69<D68,ROW(66:66),A68)) -> 66 | B69: Hernan Hernandez | C69: Jämjö Hsk | D69: 1188 | F69: 8 | G69: 74.25 | I69: =IF(AG69="","",SUMIF('Tingsryd Open'!U$4:U$400,AG69,'Tingsryd Open'!P$4:P$400)) -> 0 | J69: =IF(AG69="","",SUMIF('Jämjö Open'!U$4:U$400,AG69,'Jämjö Open'!P$4:P$400)) -> 135 | K69: =IF(AG69="","",SUMIF('Viby Open'!U$4:U$400,AG69,'Viby Open'!P$4:P$400)) -> 0 | L69: =IF(AG69="","",SUMIF('Björkenäs Open'!U$4:U$400,AG69,'Björkenäs Open'!P$4:P$400)) -> 0 | M69: =IF(AG69="","",SUMIF('SM ute Lö'!U$4:U$400,AG69,'SM ute Lö'!P$4:P$400)) -> 212 | N69: =IF(AG69="","",SUMIF('SM ute Sö'!U$4:U$401,AG69,'SM ute Sö'!P$4:P$401)) -> 111 | O69: =IF(AG69="","",SUMIF('Roslagen Open'!U$4:U$400,AG69,'Roslagen Open'!P$4:P$400)) -> 0 | P69: =IF(AG69="","",SUMIF('Vaxholm Open'!U$4:U$400,AG69,'Vaxholm Open'!P$4:P$400)) -> 0 | Q69: =IF(AG69="","",SUMIF('Dynapac Open'!U$4:U$400,AG69,'Dynapac Open'!P$4:P$400)) -> 156 | R69: =IF(AG69="","",SUMIF('SmålandsDM ute'!U$4:U$400,AG69,'SmålandsDM ute'!P$4:P$400)) -> 0 | S69: =IF(AG69="","",SUMIF('BlekingeDM ute'!U$4:U$400,AG69,'BlekingeDM ute'!P$4:P$400)) -> 152 | T69: =IF(AG69="","",SUMIF('StockholmsDM ute'!U$4:U$400,AG69,'StockholmsDM ute'!P$4:P$400)) -> 0 | U69: =IF(AG69="","",SUMIF('Åseda Open'!U$4:U$406,AG69,'Åseda Open'!P$4:P$406)) -> 0 | V69: =IF(AG69="","",SUMIF(Höstskon!U$4:U$400,AG69,Höstskon!P$4:P$400)) -> 171 | W69: =IF(AG69="","",SUMIF('Carlskrona Cup'!U$4:U$400,AG69,'Carlskrona Cup'!P$4:P$400)) -> 139 | X69: =IF(AG69="","",SUMIF('Sibbamåla Open'!U$4:U$400,AG69,'Sibbamåla Open'!P$4:P$400)) -> 0 | Y69: =IF(AG69="","",SUMIF('Vaxholm Indoor'!U$4:U$400,AG69,'Vaxholm Indoor'!P$4:P$400)) -> 0 | Z69: =IF(AG69="","",SUMIF('SM inne'!U$4:U$400,AG69,'SM inne'!P$4:P$400)) -> 112 | AA69: =IF(AG69="","",SUMIF('SmålandsDM inne'!U$4:U$400,AG69,'SmålandsDM inne'!P$4:P$400)) -> 0 | AB69: =IF(AG69="","",SUMIF('BlekingeDM inne'!U$4:U$400,AG69,'BlekingeDM inne'!P$4:P$400)) -> 0 | AC69: =IF(AG69="","",SUMIF('StockholmsDM inne'!U$4:U$400,AG69,'StockholmsDM inne'!P$4:P$400)) -> 0 | AD69: =IF(AG69="","",SUMIF(Värendspokalen!U$4:U$400,AG69,Värendspokalen!P$4:P$400)) -> 0 | AG69: =IF(B69="","",SUMIF(Kastare!B$2:B$2999,B69,Kastare!A$2:A$2999)) -> 1046
A70: 67 | B70: Martin Anjou | C70: Balders HSK | D70: 1187 | F70: 5 | G70: 118.7 | I70: =IF(AG70="","",SUMIF('Tingsryd Open'!U$4:U$400,AG70,'Tingsryd Open'!P$4:P$400)) -> 0 | J70: =IF(AG70="","",SUMIF('Jämjö Open'!U$4:U$400,AG70,'Jämjö Open'!P$4:P$400)) -> 0 | K70: =IF(AG70="","",SUMIF('Viby Open'!U$4:U$400,AG70,'Viby Open'!P$4:P$400)) -> 0 | L70: =IF(AG70="","",SUMIF('Björkenäs Open'!U$4:U$400,AG70,'Björkenäs Open'!P$4:P$400)) -> 0 | M70: =IF(AG70="","",SUMIF('SM ute Lö'!U$4:U$400,AG70,'SM ute Lö'!P$4:P$400)) -> 0 | N70: =IF(AG70="","",SUMIF('SM ute Sö'!U$4:U$401,AG70,'SM ute Sö'!P$4:P$401)) -> 0 | O70: =IF(AG70="","",SUMIF('Roslagen Open'!U$4:U$400,AG70,'Roslagen Open'!P$4:P$400)) -> 218 | P70: =IF(AG70="","",SUMIF('Vaxholm Open'!U$4:U$400,AG70,'Vaxholm Open'!P$4:P$400)) -> 170 | Q70: =IF(AG70="","",SUMIF('Dynapac Open'!U$4:U$400,AG70,'Dynapac Open'!P$4:P$400)) -> 0 | R70: =IF(AG70="","",SUMIF('SmålandsDM ute'!U$4:U$400,AG70,'SmålandsDM ute'!P$4:P$400)) -> 0 | S70: =IF(AG70="","",SUMIF('BlekingeDM ute'!U$4:U$400,AG70,'BlekingeDM ute'!P$4:P$400)) -> 0 | T70: =IF(AG70="","",SUMIF('StockholmsDM ute'!U$4:U$400,AG70,'StockholmsDM ute'!P$4:P$400)) -> 368 | U70: =IF(AG70="","",SUMIF('Åseda Open'!U$4:U$406,AG70,'Åseda Open'!P$4:P$406)) -> 0 | V70: =IF(AG70="","",SUMIF(Höstskon!U$4:U$400,AG70,Höstskon!P$4:P$400)) -> 0 | W70: =IF(AG70="","",SUMIF('Carlskrona Cup'!U$4:U$400,AG70,'Carlskrona Cup'!P$4:P$400)) -> 0 | X70: =IF(AG70="","",SUMIF('Sibbamåla Open'!U$4:U$400,AG70,'Sibbamåla Open'!P$4:P$400)) -> 0 | Y70: =IF(AG70="","",SUMIF('Vaxholm Indoor'!U$4:U$400,AG70,'Vaxholm Indoor'!P$4:P$400)) -> 216 | Z70: =IF(AG70="","",SUMIF('SM inne'!U$4:U$400,AG70,'SM inne'!P$4:P$400)) -> 0 | AA70: =IF(AG70="","",SUMIF('SmålandsDM inne'!U$4:U$400,AG70,'SmålandsDM inne'!P$4:P$400)) -> 0 | AB70: =IF(AG70="","",SUMIF('BlekingeDM inne'!U$4:U$400,AG70,'BlekingeDM inne'!P$4:P$400)) -> 0 | AC70: =IF(AG70="","",SUMIF('StockholmsDM inne'!U$4:U$400,AG70,'StockholmsDM inne'!P$4:P$400)) -> 215 | AD70: =IF(AG70="","",SUMIF(Värendspokalen!U$4:U$400,AG70,Värendspokalen!P$4:P$400)) -> 0 | AG70: =IF(B70="","",SUMIF(Kastare!B$2:B$2999,B70,Kastare!A$2:A$2999)) -> 1066
A71: 68 | B71: Christian Balsiger | C71: Värends Hsk | D71: 1181 | F71: 5 | G71: 118.1 | I71: =IF(AG71="","",SUMIF('Tingsryd Open'!U$4:U$400,AG71,'Tingsryd Open'!P$4:P$400)) -> 0 | J71: =IF(AG71="","",SUMIF('Jämjö Open'!U$4:U$400,AG71,'Jämjö Open'!P$4:P$400)) -> 0 | K71: =IF(AG71="","",SUMIF('Viby Open'!U$4:U$400,AG71,'Viby Open'!P$4:P$400)) -> 0 | L71: =IF(AG71="","",SUMIF('Björkenäs Open'!U$4:U$400,AG71,'Björkenäs Open'!P$4:P$400)) -> 238 | M71: =IF(AG71="","",SUMIF('SM ute Lö'!U$4:U$400,AG71,'SM ute Lö'!P$4:P$400)) -> 185 | N71: =IF(AG71="","",SUMIF('SM ute Sö'!U$4:U$401,AG71,'SM ute Sö'!P$4:P$401)) -> 295 | O71: =IF(AG71="","",SUMIF('Roslagen Open'!U$4:U$400,AG71,'Roslagen Open'!P$4:P$400)) -> 0 | P71: =IF(AG71="","",SUMIF('Vaxholm Open'!U$4:U$400,AG71,'Vaxholm Open'!P$4:P$400)) -> 0 | Q71: =IF(AG71="","",SUMIF('Dynapac Open'!U$4:U$400,AG71,'Dynapac Open'!P$4:P$400)) -> 0 | R71: =IF(AG71="","",SUMIF('SmålandsDM ute'!U$4:U$400,AG71,'SmålandsDM ute'!P$4:P$400)) -> 0 | S71: =IF(AG71="","",SUMIF('BlekingeDM ute'!U$4:U$400,AG71,'BlekingeDM ute'!P$4:P$400)) -> 0 | T71: =IF(AG71="","",SUMIF('StockholmsDM ute'!U$4:U$400,AG71,'StockholmsDM ute'!P$4:P$400)) -> 0 | U71: =IF(AG71="","",SUMIF('Åseda Open'!U$4:U$406,AG71,'Åseda Open'!P$4:P$406)) -> 0 | V71: =IF(AG71="","",SUMIF(Höstskon!U$4:U$400,AG71,Höstskon!P$4:P$400)) -> 0 | W71: =IF(AG71="","",SUMIF('Carlskrona Cup'!U$4:U$400,AG71,'Carlskrona Cup'!P$4:P$400)) -> 0 | X71: =IF(AG71="","",SUMIF('Sibbamåla Open'!U$4:U$400,AG71,'Sibbamåla Open'!P$4:P$400)) -> 0 | Y71: =IF(AG71="","",SUMIF('Vaxholm Indoor'!U$4:U$400,AG71,'Vaxholm Indoor'!P$4:P$400)) -> 0 | Z71: =IF(AG71="","",SUMIF('SM inne'!U$4:U$400,AG71,'SM inne'!P$4:P$400)) -> 179 | AA71: =IF(AG71="","",SUMIF('SmålandsDM inne'!U$4:U$400,AG71,'SmålandsDM inne'!P$4:P$400)) -> 0 | AB71: =IF(AG71="","",SUMIF('BlekingeDM inne'!U$4:U$400,AG71,'BlekingeDM inne'!P$4:P$400)) -> 0 | AC71: =IF(AG71="","",SUMIF('StockholmsDM inne'!U$4:U$400,AG71,'StockholmsDM inne'!P$4:P$400)) -> 0 | AD71: =IF(AG71="","",SUMIF(Värendspokalen!U$4:U$400,AG71,Värendspokalen!P$4:P$400)) -> 284 | AG71: =IF(B71="","",SUMIF(Kastare!B$2:B$2999,B71,Kastare!A$2:A$2999)) -> 1227
A72: 69 | B72: Mikael Grönskog | C72: Sibbamåla IF | D72: 1146 | F72: 6 | G72: 95.5 | I72: =IF(AG72="","",SUMIF('Tingsryd Open'!U$4:U$400,AG72,'Tingsryd Open'!P$4:P$400)) -> 0 | J72: =IF(AG72="","",SUMIF('Jämjö Open'!U$4:U$400,AG72,'Jämjö Open'!P$4:P$400)) -> 156 | K72: =IF(AG72="","",SUMIF('Viby Open'!U$4:U$400,AG72,'Viby Open'!P$4:P$400)) -> 0 | L72: =IF(AG72="","",SUMIF('Björkenäs Open'!U$4:U$400,AG72,'Björkenäs Open'!P$4:P$400)) -> 0 | M72: =IF(AG72="","",SUMIF('SM ute Lö'!U$4:U$400,AG72,'SM ute Lö'!P$4:P$400)) -> 130 | N72: =IF(AG72="","",SUMIF('SM ute Sö'!U$4:U$401,AG72,'SM ute Sö'!P$4:P$401)) -> 264 | O72: =IF(AG72="","",SUMIF('Roslagen Open'!U$4:U$400,AG72,'Roslagen Open'!P$4:P$400)) -> 0 | P72: =IF(AG72="","",SUMIF('Vaxholm Open'!U$4:U$400,AG72,'Vaxholm Open'!P$4:P$400)) -> 0 | Q72: =IF(AG72="","",SUMIF('Dynapac Open'!U$4:U$400,AG72,'Dynapac Open'!P$4:P$400)) -> 163 | R72: =IF(AG72="","",SUMIF('SmålandsDM ute'!U$4:U$400,AG72,'SmålandsDM ute'!P$4:P$400)) -> 0 | S72: =IF(AG72="","",SUMIF('BlekingeDM ute'!U$4:U$400,AG72,'BlekingeDM ute'!P$4:P$400)) -> 0 | T72: =IF(AG72="","",SUMIF('StockholmsDM ute'!U$4:U$400,AG72,'StockholmsDM ute'!P$4:P$400)) -> 0 | U72: =IF(AG72="","",SUMIF('Åseda Open'!U$4:U$406,AG72,'Åseda Open'!P$4:P$406)) -> 0 | V72: =IF(AG72="","",SUMIF(Höstskon!U$4:U$400,AG72,Höstskon!P$4:P$400)) -> 210 | W72: =IF(AG72="","",SUMIF('Carlskrona Cup'!U$4:U$400,AG72,'Carlskrona Cup'!P$4:P$400)) -> 0 | X72: =IF(AG72="","",SUMIF('Sibbamåla Open'!U$4:U$400,AG72,'Sibbamåla Open'!P$4:P$400)) -> 223 | Y72: =IF(AG72="","",SUMIF('Vaxholm Indoor'!U$4:U$400,AG72,'Vaxholm Indoor'!P$4:P$400)) -> 0 | Z72: =IF(AG72="","",SUMIF('SM inne'!U$4:U$400,AG72,'SM inne'!P$4:P$400)) -> 0 | AA72: =IF(AG72="","",SUMIF('SmålandsDM inne'!U$4:U$400,AG72,'SmålandsDM inne'!P$4:P$400)) -> 0 | AB72: =IF(AG72="","",SUMIF('BlekingeDM inne'!U$4:U$400,AG72,'BlekingeDM inne'!P$4:P$400)) -> 0 | AC72: =IF(AG72="","",SUMIF('StockholmsDM inne'!U$4:U$400,AG72,'StockholmsDM inne'!P$4:P$400)) -> 0 | AD72: =IF(AG72="","",SUMIF(Värendspokalen!U$4:U$400,AG72,Värendspokalen!P$4:P$400)) -> 0 | AG72: =IF(B72="","",SUMIF(Kastare!B$2:B$2999,B72,Kastare!A$2:A$2999)) -> 1112
A73: 70 | B73: Maria Andersson | C73: Team Småland Hsk | D73: 1145 | F73: 9 | G73: 63.61111111 | I73: =IF(AG73="","",SUMIF('Tingsryd Open'!U$4:U$400,AG73,'Tingsryd Open'!P$4:P$400)) -> 113 | J73: =IF(AG73="","",SUMIF('Jämjö Open'!U$4:U$400,AG73,'Jämjö Open'!P$4:P$400)) -> 0 | K73: =IF(AG73="","",SUMIF('Viby Open'!U$4:U$400,AG73,'Viby Open'!P$4:P$400)) -> 0 | L73: =IF(AG73="","",SUMIF('Björkenäs Open'!U$4:U$400,AG73,'Björkenäs Open'!P$4:P$400)) -> 0 | M73: =IF(AG73="","",SUMIF('SM ute Lö'!U$4:U$400,AG73,'SM ute Lö'!P$4:P$400)) -> 112 | N73: =IF(AG73="","",SUMIF('SM ute Sö'!U$4:U$401,AG73,'SM ute Sö'!P$4:P$401)) -> 200 | O73: =IF(AG73="","",SUMIF('Roslagen Open'!U$4:U$400,AG73,'Roslagen Open'!P$4:P$400)) -> 0 | P73: =IF(AG73="","",SUMIF('Vaxholm Open'!U$4:U$400,AG73,'Vaxholm Open'!P$4:P$400)) -> 0 | Q73: =IF(AG73="","",SUMIF('Dynapac Open'!U$4:U$400,AG73,'Dynapac Open'!P$4:P$400)) -> 0 | R73: =IF(AG73="","",SUMIF('SmålandsDM ute'!U$4:U$400,AG73,'SmålandsDM ute'!P$4:P$400)) -> 103 | S73: =IF(AG73="","",SUMIF('BlekingeDM ute'!U$4:U$400,AG73,'BlekingeDM ute'!P$4:P$400)) -> 0 | T73: =IF(AG73="","",SUMIF('StockholmsDM ute'!U$4:U$400,AG73,'StockholmsDM ute'!P$4:P$400)) -> 0 | U73: =IF(AG73="","",SUMIF('Åseda Open'!U$4:U$406,AG73,'Åseda Open'!P$4:P$406)) -> 0 | V73: =IF(AG73="","",SUMIF(Höstskon!U$4:U$400,AG73,Höstskon!P$4:P$400)) -> 106 | W73: =IF(AG73="","",SUMIF('Carlskrona Cup'!U$4:U$400,AG73,'Carlskrona Cup'!P$4:P$400)) -> 168 | X73: =IF(AG73="","",SUMIF('Sibbamåla Open'!U$4:U$400,AG73,'Sibbamåla Open'!P$4:P$400)) -> 95 | Y73: =IF(AG73="","",SUMIF('Vaxholm Indoor'!U$4:U$400,AG73,'Vaxholm Indoor'!P$4:P$400)) -> 0 | Z73: =IF(AG73="","",SUMIF('SM inne'!U$4:U$400,AG73,'SM inne'!P$4:P$400)) -> 110 | AA73: =IF(AG73="","",SUMIF('SmålandsDM inne'!U$4:U$400,AG73,'SmålandsDM inne'!P$4:P$400)) -> 0 | AB73: =IF(AG73="","",SUMIF('BlekingeDM inne'!U$4:U$400,AG73,'BlekingeDM inne'!P$4:P$400)) -> 0 | AC73: =IF(AG73="","",SUMIF('StockholmsDM inne'!U$4:U$400,AG73,'StockholmsDM inne'!P$4:P$400)) -> 0 | AD73: =IF(AG73="","",SUMIF(Värendspokalen!U$4:U$400,AG73,Värendspokalen!P$4:P$400)) -> 138 | AG73: =IF(B73="","",SUMIF(Kastare!B$2:B$2999,B73,Kastare!A$2:A$2999)) -> 1038
A74: 71 | B74: Bengt Andersson | C74: Växjö Hsk | D74: 1122 | F74: 5 | G74: 112.2 | I74: =IF(AG74="","",SUMIF('Tingsryd Open'!U$4:U$400,AG74,'Tingsryd Open'!P$4:P$400)) -> 173 | J74: =IF(AG74="","",SUMIF('Jämjö Open'!U$4:U$400,AG74,'Jämjö Open'!P$4:P$400)) -> 0 | K74: =IF(AG74="","",SUMIF('Viby Open'!U$4:U$400,AG74,'Viby Open'!P$4:P$400)) -> 0 | L74: =IF(AG74="","",SUMIF('Björkenäs Open'!U$4:U$400,AG74,'Björkenäs Open'!P$4:P$400)) -> 0 | M74: =IF(AG74="","",SUMIF('SM ute Lö'!U$4:U$400,AG74,'SM ute Lö'!P$4:P$400)) -> 0 | N74: =IF(AG74="","",SUMIF('SM ute Sö'!U$4:U$401,AG74,'SM ute Sö'!P$4:P$401)) -> 0 | O74: =IF(AG74="","",SUMIF('Roslagen Open'!U$4:U$400,AG74,'Roslagen Open'!P$4:P$400)) -> 0 | P74: =IF(AG74="","",SUMIF('Vaxholm Open'!U$4:U$400,AG74,'Vaxholm Open'!P$4:P$400)) -> 0 | Q74: =IF(AG74="","",SUMIF('Dynapac Open'!U$4:U$400,AG74,'Dynapac Open'!P$4:P$400)) -> 0 | R74: =IF(AG74="","",SUMIF('SmålandsDM ute'!U$4:U$400,AG74,'SmålandsDM ute'!P$4:P$400)) -> 0 | S74: =IF(AG74="","",SUMIF('BlekingeDM ute'!U$4:U$400,AG74,'BlekingeDM ute'!P$4:P$400)) -> 0 | T74: =IF(AG74="","",SUMIF('StockholmsDM ute'!U$4:U$400,AG74,'StockholmsDM ute'!P$4:P$400)) -> 0 | U74: =IF(AG74="","",SUMIF('Åseda Open'!U$4:U$406,AG74,'Åseda Open'!P$4:P$406)) -> 243 | V74: =IF(AG74="","",SUMIF(Höstskon!U$4:U$400,AG74,Höstskon!P$4:P$400)) -> 201 | W74: =IF(AG74="","",SUMIF('Carlskrona Cup'!U$4:U$400,AG74,'Carlskrona Cup'!P$4:P$400)) -> 0 | X74: =IF(AG74="","",SUMIF('Sibbamåla Open'!U$4:U$400,AG74,'Sibbamåla Open'!P$4:P$400)) -> 0 | Y74: =IF(AG74="","",SUMIF('Vaxholm Indoor'!U$4:U$400,AG74,'Vaxholm Indoor'!P$4:P$400)) -> 0 | Z74: =IF(AG74="","",SUMIF('SM inne'!U$4:U$400,AG74,'SM inne'!P$4:P$400)) -> 214 | AA74: =IF(AG74="","",SUMIF('SmålandsDM inne'!U$4:U$400,AG74,'SmålandsDM inne'!P$4:P$400)) -> 0 | AB74: =IF(AG74="","",SUMIF('BlekingeDM inne'!U$4:U$400,AG74,'BlekingeDM inne'!P$4:P$400)) -> 0 | AC74: =IF(AG74="","",SUMIF('StockholmsDM inne'!U$4:U$400,AG74,'StockholmsDM inne'!P$4:P$400)) -> 0 | AD74: =IF(AG74="","",SUMIF(Värendspokalen!U$4:U$400,AG74,Värendspokalen!P$4:P$400)) -> 291 | AG74: =IF(B74="","",SUMIF(Kastare!B$2:B$2999,B74,Kastare!A$2:A$2999)) -> 1026
A75: 72 | B75: Pascal Letter | C75: Balders Hsk | D75: 1108 | F75: 5 | G75: 110.8 | I75: =IF(AG75="","",SUMIF('Tingsryd Open'!U$4:U$400,AG75,'Tingsryd Open'!P$4:P$400)) -> 0 | J75: =IF(AG75="","",SUMIF('Jämjö Open'!U$4:U$400,AG75,'Jämjö Open'!P$4:P$400)) -> 0 | K75: =IF(AG75="","",SUMIF('Viby Open'!U$4:U$400,AG75,'Viby Open'!P$4:P$400)) -> 0 | L75: =IF(AG75="","",SUMIF('Björkenäs Open'!U$4:U$400,AG75,'Björkenäs Open'!P$4:P$400)) -> 0 | M75: =IF(AG75="","",SUMIF('SM ute Lö'!U$4:U$400,AG75,'SM ute Lö'!P$4:P$400)) -> 280 | N75: =IF(AG75="","",SUMIF('SM ute Sö'!U$4:U$401,AG75,'SM ute Sö'!P$4:P$401)) -> 213 | O75: =IF(AG75="","",SUMIF('Roslagen Open'!U$4:U$400,AG75,'Roslagen Open'!P$4:P$400)) -> 166 | P75: =IF(AG75="","",SUMIF('Vaxholm Open'!U$4:U$400,AG75,'Vaxholm Open'!P$4:P$400)) -> 248 | Q75: =IF(AG75="","",SUMIF('Dynapac Open'!U$4:U$400,AG75,'Dynapac Open'!P$4:P$400)) -> 0 | R75: =IF(AG75="","",SUMIF('SmålandsDM ute'!U$4:U$400,AG75,'SmålandsDM ute'!P$4:P$400)) -> 0 | S75: =IF(AG75="","",SUMIF('BlekingeDM ute'!U$4:U$400,AG75,'BlekingeDM ute'!P$4:P$400)) -> 0 | T75: =IF(AG75="","",SUMIF('StockholmsDM ute'!U$4:U$400,AG75,'StockholmsDM ute'!P$4:P$400)) -> 0 | U75: =IF(AG75="","",SUMIF('Åseda Open'!U$4:U$406,AG75,'Åseda Open'!P$4:P$406)) -> 0 | V75: =IF(AG75="","",SUMIF(Höstskon!U$4:U$400,AG75,Höstskon!P$4:P$400)) -> 0 | W75: =IF(AG75="","",SUMIF('Carlskrona Cup'!U$4:U$400,AG75,'Carlskrona Cup'!P$4:P$400)) -> 0 | X75: =IF(AG75="","",SUMIF('Sibbamåla Open'!U$4:U$400,AG75,'Sibbamåla Open'!P$4:P$400)) -> 0 | Y75: =IF(AG75="","",SUMIF('Vaxholm Indoor'!U$4:U$400,AG75,'Vaxholm Indoor'!P$4:P$400)) -> 0 | Z75: =IF(AG75="","",SUMIF('SM inne'!U$4:U$400,AG75,'SM inne'!P$4:P$400)) -> 201 | AA75: =IF(AG75="","",SUMIF('SmålandsDM inne'!U$4:U$400,AG75,'SmålandsDM inne'!P$4:P$400)) -> 0 | AB75: =IF(AG75="","",SUMIF('BlekingeDM inne'!U$4:U$400,AG75,'BlekingeDM inne'!P$4:P$400)) -> 0 | AC75: =IF(AG75="","",SUMIF('StockholmsDM inne'!U$4:U$400,AG75,'StockholmsDM inne'!P$4:P$400)) -> 0 | AD75: =IF(AG75="","",SUMIF(Värendspokalen!U$4:U$400,AG75,Värendspokalen!P$4:P$400)) -> 0 | AG75: =IF(B75="","",SUMIF(Kastare!B$2:B$2999,B75,Kastare!A$2:A$2999)) -> 1194
A76: 73 | B76: Jonas Klarström | C76: Team Småland Hsk | D76: 1089 | F76: 9 | G76: 60.5 | I76: =IF(AG76="","",SUMIF('Tingsryd Open'!U$4:U$400,AG76,'Tingsryd Open'!P$4:P$400)) -> 68 | J76: =IF(AG76="","",SUMIF('Jämjö Open'!U$4:U$400,AG76,'Jämjö Open'!P$4:P$400)) -> 0 | K76: =IF(AG76="","",SUMIF('Viby Open'!U$4:U$400,AG76,'Viby Open'!P$4:P$400)) -> 0 | L76: =IF(AG76="","",SUMIF('Björkenäs Open'!U$4:U$400,AG76,'Björkenäs Open'!P$4:P$400)) -> 0 | M76: =IF(AG76="","",SUMIF('SM ute Lö'!U$4:U$400,AG76,'SM ute Lö'!P$4:P$400)) -> 176 | N76: =IF(AG76="","",SUMIF('SM ute Sö'!U$4:U$401,AG76,'SM ute Sö'!P$4:P$401)) -> 156 | O76: =IF(AG76="","",SUMIF('Roslagen Open'!U$4:U$400,AG76,'Roslagen Open'!P$4:P$400)) -> 0 | P76: =IF(AG76="","",SUMIF('Vaxholm Open'!U$4:U$400,AG76,'Vaxholm Open'!P$4:P$400)) -> 0 | Q76: =IF(AG76="","",SUMIF('Dynapac Open'!U$4:U$400,AG76,'Dynapac Open'!P$4:P$400)) -> 0 | R76: =IF(AG76="","",SUMIF('SmålandsDM ute'!U$4:U$400,AG76,'SmålandsDM ute'!P$4:P$400)) -> 80 | S76: =IF(AG76="","",SUMIF('BlekingeDM ute'!U$4:U$400,AG76,'BlekingeDM ute'!P$4:P$400)) -> 0 | T76: =IF(AG76="","",SUMIF('StockholmsDM ute'!U$4:U$400,AG76,'StockholmsDM ute'!P$4:P$400)) -> 0 | U76: =IF(AG76="","",SUMIF('Åseda Open'!U$4:U$406,AG76,'Åseda Open'!P$4:P$406)) -> 0 | V76: =IF(AG76="","",SUMIF(Höstskon!U$4:U$400,AG76,Höstskon!P$4:P$400)) -> 178 | W76: =IF(AG76="","",SUMIF('Carlskrona Cup'!U$4:U$400,AG76,'Carlskrona Cup'!P$4:P$400)) -> 101 | X76: =IF(AG76="","",SUMIF('Sibbamåla Open'!U$4:U$400,AG76,'Sibbamåla Open'!P$4:P$400)) -> 139 | Y76: =IF(AG76="","",SUMIF('Vaxholm Indoor'!U$4:U$400,AG76,'Vaxholm Indoor'!P$4:P$400)) -> 0 | Z76: =IF(AG76="","",SUMIF('SM inne'!U$4:U$400,AG76,'SM inne'!P$4:P$400)) -> 91 | AA76: =IF(AG76="","",SUMIF('SmålandsDM inne'!U$4:U$400,AG76,'SmålandsDM inne'!P$4:P$400)) -> 0 | AB76: =IF(AG76="","",SUMIF('BlekingeDM inne'!U$4:U$400,AG76,'BlekingeDM inne'!P$4:P$400)) -> 0 | AC76: =IF(AG76="","",SUMIF('StockholmsDM inne'!U$4:U$400,AG76,'StockholmsDM inne'!P$4:P$400)) -> 0 | AD76: =IF(AG76="","",SUMIF(Värendspokalen!U$4:U$400,AG76,Värendspokalen!P$4:P$400)) -> 100 | AG76: =IF(B76="","",SUMIF(Kastare!B$2:B$2999,B76,Kastare!A$2:A$2999)) -> 1053
A77: 74 | B77: Ted Lilja | C77: Lanternan | D77: 1052 | F77: 7 | G77: 75.14285714 | I77: =IF(AG77="","",SUMIF('Tingsryd Open'!U$4:U$400,AG77,'Tingsryd Open'!P$4:P$400)) -> 0 | J77: =IF(AG77="","",SUMIF('Jämjö Open'!U$4:U$400,AG77,'Jämjö Open'!P$4:P$400)) -> 0 | K77: =IF(AG77="","",SUMIF('Viby Open'!U$4:U$400,AG77,'Viby Open'!P$4:P$400)) -> 0 | L77: =IF(AG77="","",SUMIF('Björkenäs Open'!U$4:U$400,AG77,'Björkenäs Open'!P$4:P$400)) -> 101 | M77: =IF(AG77="","",SUMIF('SM ute Lö'!U$4:U$400,AG77,'SM ute Lö'!P$4:P$400)) -> 0 | N77: =IF(AG77="","",SUMIF('SM ute Sö'!U$4:U$401,AG77,'SM ute Sö'!P$4:P$401)) -> 0 | O77: =IF(AG77="","",SUMIF('Roslagen Open'!U$4:U$400,AG77,'Roslagen Open'!P$4:P$400)) -> 0 | P77: =IF(AG77="","",SUMIF('Vaxholm Open'!U$4:U$400,AG77,'Vaxholm Open'!P$4:P$400)) -> 0 | Q77: =IF(AG77="","",SUMIF('Dynapac Open'!U$4:U$400,AG77,'Dynapac Open'!P$4:P$400)) -> 135 | R77: =IF(AG77="","",SUMIF('SmålandsDM ute'!U$4:U$400,AG77,'SmålandsDM ute'!P$4:P$400)) -> 0 | S77: =IF(AG77="","",SUMIF('BlekingeDM ute'!U$4:U$400,AG77,'BlekingeDM ute'!P$4:P$400)) -> 147 | T77: =IF(AG77="","",SUMIF('StockholmsDM ute'!U$4:U$400,AG77,'StockholmsDM ute'!P$4:P$400)) -> 0 | U77: =IF(AG77="","",SUMIF('Åseda Open'!U$4:U$406,AG77,'Åseda Open'!P$4:P$406)) -> 0 | V77: =IF(AG77="","",SUMIF(Höstskon!U$4:U$400,AG77,Höstskon!P$4:P$400)) -> 215 | W77: =IF(AG77="","",SUMIF('Carlskrona Cup'!U$4:U$400,AG77,'Carlskrona Cup'!P$4:P$400)) -> 155 | X77: =IF(AG77="","",SUMIF('Sibbamåla Open'!U$4:U$400,AG77,'Sibbamåla Open'!P$4:P$400)) -> 0 | Y77: =IF(AG77="","",SUMIF('Vaxholm Indoor'!U$4:U$400,AG77,'Vaxholm Indoor'!P$4:P$400)) -> 0 | Z77: =IF(AG77="","",SUMIF('SM inne'!U$4:U$400,AG77,'SM inne'!P$4:P$400)) -> 140 | AA77: =IF(AG77="","",SUMIF('SmålandsDM inne'!U$4:U$400,AG77,'SmålandsDM inne'!P$4:P$400)) -> 0 | AB77: =IF(AG77="","",SUMIF('BlekingeDM inne'!U$4:U$400,AG77,'BlekingeDM inne'!P$4:P$400)) -> 0 | AC77: =IF(AG77="","",SUMIF('StockholmsDM inne'!U$4:U$400,AG77,'StockholmsDM inne'!P$4:P$400)) -> 0 | AD77: =IF(AG77="","",SUMIF(Värendspokalen!U$4:U$400,AG77,Värendspokalen!P$4:P$400)) -> 159 | AG77: =IF(B77="","",SUMIF(Kastare!B$2:B$2999,B77,Kastare!A$2:A$2999)) -> 1255
A78: 75 | B78: Ulrika Rydell | C78: Värends Hsk | D78: 1034 | F78: 7 | G78: 73.85714286 | I78: =IF(AG78="","",SUMIF('Tingsryd Open'!U$4:U$400,AG78,'Tingsryd Open'!P$4:P$400)) -> 112 | J78: =IF(AG78="","",SUMIF('Jämjö Open'!U$4:U$400,AG78,'Jämjö Open'!P$4:P$400)) -> 0 | K78: =IF(AG78="","",SUMIF('Viby Open'!U$4:U$400,AG78,'Viby Open'!P$4:P$400)) -> 0 | L78: =IF(AG78="","",SUMIF('Björkenäs Open'!U$4:U$400,AG78,'Björkenäs Open'!P$4:P$400)) -> 0 | M78: =IF(AG78="","",SUMIF('SM ute Lö'!U$4:U$400,AG78,'SM ute Lö'!P$4:P$400)) -> 94 | N78: =IF(AG78="","",SUMIF('SM ute Sö'!U$4:U$401,AG78,'SM ute Sö'!P$4:P$401)) -> 132 | O78: =IF(AG78="","",SUMIF('Roslagen Open'!U$4:U$400,AG78,'Roslagen Open'!P$4:P$400)) -> 0 | P78: =IF(AG78="","",SUMIF('Vaxholm Open'!U$4:U$400,AG78,'Vaxholm Open'!P$4:P$400)) -> 0 | Q78: =IF(AG78="","",SUMIF('Dynapac Open'!U$4:U$400,AG78,'Dynapac Open'!P$4:P$400)) -> 0 | R78: =IF(AG78="","",SUMIF('SmålandsDM ute'!U$4:U$400,AG78,'SmålandsDM ute'!P$4:P$400)) -> 193 | S78: =IF(AG78="","",SUMIF('BlekingeDM ute'!U$4:U$400,AG78,'BlekingeDM ute'!P$4:P$400)) -> 0 | T78: =IF(AG78="","",SUMIF('StockholmsDM ute'!U$4:U$400,AG78,'StockholmsDM ute'!P$4:P$400)) -> 0 | U78: =IF(AG78="","",SUMIF('Åseda Open'!U$4:U$406,AG78,'Åseda Open'!P$4:P$406)) -> 0 | V78: =IF(AG78="","",SUMIF(Höstskon!U$4:U$400,AG78,Höstskon!P$4:P$400)) -> 0 | W78: =IF(AG78="","",SUMIF('Carlskrona Cup'!U$4:U$400,AG78,'Carlskrona Cup'!P$4:P$400)) -> 123 | X78: =IF(AG78="","",SUMIF('Sibbamåla Open'!U$4:U$400,AG78,'Sibbamåla Open'!P$4:P$400)) -> 185 | Y78: =IF(AG78="","",SUMIF('Vaxholm Indoor'!U$4:U$400,AG78,'Vaxholm Indoor'!P$4:P$400)) -> 0 | Z78: =IF(AG78="","",SUMIF('SM inne'!U$4:U$400,AG78,'SM inne'!P$4:P$400)) -> 195 | AA78: =IF(AG78="","",SUMIF('SmålandsDM inne'!U$4:U$400,AG78,'SmålandsDM inne'!P$4:P$400)) -> 0 | AB78: =IF(AG78="","",SUMIF('BlekingeDM inne'!U$4:U$400,AG78,'BlekingeDM inne'!P$4:P$400)) -> 0 | AC78: =IF(AG78="","",SUMIF('StockholmsDM inne'!U$4:U$400,AG78,'StockholmsDM inne'!P$4:P$400)) -> 0 | AD78: =IF(AG78="","",SUMIF(Värendspokalen!U$4:U$400,AG78,Värendspokalen!P$4:P$400)) -> 0 | AG78: =IF(B78="","",SUMIF(Kastare!B$2:B$2999,B78,Kastare!A$2:A$2999)) -> 1101
A79: 76 | B79: Nick Gibbs | C79: Dynapac Hsc | D79: 1014 | F79: 6 | G79: 84.5 | I79: =IF(AG79="","",SUMIF('Tingsryd Open'!U$4:U$400,AG79,'Tingsryd Open'!P$4:P$400)) -> 0 | J79: =IF(AG79="","",SUMIF('Jämjö Open'!U$4:U$400,AG79,'Jämjö Open'!P$4:P$400)) -> 129 | K79: =IF(AG79="","",SUMIF('Viby Open'!U$4:U$400,AG79,'Viby Open'!P$4:P$400)) -> 0 | L79: =IF(AG79="","",SUMIF('Björkenäs Open'!U$4:U$400,AG79,'Björkenäs Open'!P$4:P$400)) -> 168 | M79: =IF(AG79="","",SUMIF('SM ute Lö'!U$4:U$400,AG79,'SM ute Lö'!P$4:P$400)) -> 150 | N79: =IF(AG79="","",SUMIF('SM ute Sö'!U$4:U$401,AG79,'SM ute Sö'!P$4:P$401)) -> 195 | O79: =IF(AG79="","",SUMIF('Roslagen Open'!U$4:U$400,AG79,'Roslagen Open'!P$4:P$400)) -> 176 | P79: =IF(AG79="","",SUMIF('Vaxholm Open'!U$4:U$400,AG79,'Vaxholm Open'!P$4:P$400)) -> 196 | Q79: =IF(AG79="","",SUMIF('Dynapac Open'!U$4:U$400,AG79,'Dynapac Open'!P$4:P$400)) -> 0 | R79: =IF(AG79="","",SUMIF('SmålandsDM ute'!U$4:U$400,AG79,'SmålandsDM ute'!P$4:P$400)) -> 0 | S79: =IF(AG79="","",SUMIF('BlekingeDM ute'!U$4:U$400,AG79,'BlekingeDM ute'!P$4:P$400)) -> 0 | T79: =IF(AG79="","",SUMIF('StockholmsDM ute'!U$4:U$400,AG79,'StockholmsDM ute'!P$4:P$400)) -> 0 | U79: =IF(AG79="","",SUMIF('Åseda Open'!U$4:U$406,AG79,'Åseda Open'!P$4:P$406)) -> 0 | V79: =IF(AG79="","",SUMIF(Höstskon!U$4:U$400,AG79,Höstskon!P$4:P$400)) -> 0 | W79: =IF(AG79="","",SUMIF('Carlskrona Cup'!U$4:U$400,AG79,'Carlskrona Cup'!P$4:P$400)) -> 0 | X79: =IF(AG79="","",SUMIF('Sibbamåla Open'!U$4:U$400,AG79,'Sibbamåla Open'!P$4:P$400)) -> 0 | Y79: =IF(AG79="","",SUMIF('Vaxholm Indoor'!U$4:U$400,AG79,'Vaxholm Indoor'!P$4:P$400)) -> 0 | Z79: =IF(AG79="","",SUMIF('SM inne'!U$4:U$400,AG79,'SM inne'!P$4:P$400)) -> 0 | AA79: =IF(AG79="","",SUMIF('SmålandsDM inne'!U$4:U$400,AG79,'SmålandsDM inne'!P$4:P$400)) -> 0 | AB79: =IF(AG79="","",SUMIF('BlekingeDM inne'!U$4:U$400,AG79,'BlekingeDM inne'!P$4:P$400)) -> 0 | AC79: =IF(AG79="","",SUMIF('StockholmsDM inne'!U$4:U$400,AG79,'StockholmsDM inne'!P$4:P$400)) -> 0 | AD79: =IF(AG79="","",SUMIF(Värendspokalen!U$4:U$400,AG79,Värendspokalen!P$4:P$400)) -> 0 | AG79: =IF(B79="","",SUMIF(Kastare!B$2:B$2999,B79,Kastare!A$2:A$2999)) -> 1220
A80: 77 | B80: Markus Peterson | C80: Balders HSK | D80: 1000 | F80: 4 | G80: 125 | I80: =IF(AG80="","",SUMIF('Tingsryd Open'!U$4:U$400,AG80,'Tingsryd Open'!P$4:P$400)) -> 0 | J80: =IF(AG80="","",SUMIF('Jämjö Open'!U$4:U$400,AG80,'Jämjö Open'!P$4:P$400)) -> 0 | K80: =IF(AG80="","",SUMIF('Viby Open'!U$4:U$400,AG80,'Viby Open'!P$4:P$400)) -> 0 | L80: =IF(AG80="","",SUMIF('Björkenäs Open'!U$4:U$400,AG80,'Björkenäs Open'!P$4:P$400)) -> 0 | M80: =IF(AG80="","",SUMIF('SM ute Lö'!U$4:U$400,AG80,'SM ute Lö'!P$4:P$400)) -> 0 | N80: =IF(AG80="","",SUMIF('SM ute Sö'!U$4:U$401,AG80,'SM ute Sö'!P$4:P$401)) -> 0 | O80: =IF(AG80="","",SUMIF('Roslagen Open'!U$4:U$400,AG80,'Roslagen Open'!P$4:P$400)) -> 199 | P80: =IF(AG80="","",SUMIF('Vaxholm Open'!U$4:U$400,AG80,'Vaxholm Open'!P$4:P$400)) -> 0 | Q80: =IF(AG80="","",SUMIF('Dynapac Open'!U$4:U$400,AG80,'Dynapac Open'!P$4:P$400)) -> 0 | R80: =IF(AG80="","",SUMIF('SmålandsDM ute'!U$4:U$400,AG80,'SmålandsDM ute'!P$4:P$400)) -> 0 | S80: =IF(AG80="","",SUMIF('BlekingeDM ute'!U$4:U$400,AG80,'BlekingeDM ute'!P$4:P$400)) -> 0 | T80: =IF(AG80="","",SUMIF('StockholmsDM ute'!U$4:U$400,AG80,'StockholmsDM ute'!P$4:P$400)) -> 0 | U80: =IF(AG80="","",SUMIF('Åseda Open'!U$4:U$406,AG80,'Åseda Open'!P$4:P$406)) -> 0 | V80: =IF(AG80="","",SUMIF(Höstskon!U$4:U$400,AG80,Höstskon!P$4:P$400)) -> 0 | W80: =IF(AG80="","",SUMIF('Carlskrona Cup'!U$4:U$400,AG80,'Carlskrona Cup'!P$4:P$400)) -> 0 | X80: =IF(AG80="","",SUMIF('Sibbamåla Open'!U$4:U$400,AG80,'Sibbamåla Open'!P$4:P$400)) -> 0 | Y80: =IF(AG80="","",SUMIF('Vaxholm Indoor'!U$4:U$400,AG80,'Vaxholm Indoor'!P$4:P$400)) -> 278 | Z80: =IF(AG80="","",SUMIF('SM inne'!U$4:U$400,AG80,'SM inne'!P$4:P$400)) -> 230 | AA80: =IF(AG80="","",SUMIF('SmålandsDM inne'!U$4:U$400,AG80,'SmålandsDM inne'!P$4:P$400)) -> 0 | AB80: =IF(AG80="","",SUMIF('BlekingeDM inne'!U$4:U$400,AG80,'BlekingeDM inne'!P$4:P$400)) -> 0 | AC80: =IF(AG80="","",SUMIF('StockholmsDM inne'!U$4:U$400,AG80,'StockholmsDM inne'!P$4:P$400)) -> 293 | AD80: =IF(AG80="","",SUMIF(Värendspokalen!U$4:U$400,AG80,Värendspokalen!P$4:P$400)) -> 0 | AG80: =IF(B80="","",SUMIF(Kastare!B$2:B$2999,B80,Kastare!A$2:A$2999)) -> 1211
A81: 78 | B81: Morgan Athle | C81: Dynapac Hsc | D81: 927 | F81: 9 | G81: 51.5 | I81: =IF(AG81="","",SUMIF('Tingsryd Open'!U$4:U$400,AG81,'Tingsryd Open'!P$4:P$400)) -> 86 | J81: =IF(AG81="","",SUMIF('Jämjö Open'!U$4:U$400,AG81,'Jämjö Open'!P$4:P$400)) -> 155 | K81: =IF(AG81="","",SUMIF('Viby Open'!U$4:U$400,AG81,'Viby Open'!P$4:P$400)) -> 0 | L81: =IF(AG81="","",SUMIF('Björkenäs Open'!U$4:U$400,AG81,'Björkenäs Open'!P$4:P$400)) -> 178 | M81: =IF(AG81="","",SUMIF('SM ute Lö'!U$4:U$400,AG81,'SM ute Lö'!P$4:P$400)) -> 130 | N81: =IF(AG81="","",SUMIF('SM ute Sö'!U$4:U$401,AG81,'SM ute Sö'!P$4:P$401)) -> 112 | O81: =IF(AG81="","",SUMIF('Roslagen Open'!U$4:U$400,AG81,'Roslagen Open'!P$4:P$400)) -> 41 | P81: =IF(AG81="","",SUMIF('Vaxholm Open'!U$4:U$400,AG81,'Vaxholm Open'!P$4:P$400)) -> 84 | Q81: =IF(AG81="","",SUMIF('Dynapac Open'!U$4:U$400,AG81,'Dynapac Open'!P$4:P$400)) -> 0 | R81: =IF(AG81="","",SUMIF('SmålandsDM ute'!U$4:U$400,AG81,'SmålandsDM ute'!P$4:P$400)) -> 0 | S81: =IF(AG81="","",SUMIF('BlekingeDM ute'!U$4:U$400,AG81,'BlekingeDM ute'!P$4:P$400)) -> 80 | T81: =IF(AG81="","",SUMIF('StockholmsDM ute'!U$4:U$400,AG81,'StockholmsDM ute'!P$4:P$400)) -> 0 | U81: =IF(AG81="","",SUMIF('Åseda Open'!U$4:U$406,AG81,'Åseda Open'!P$4:P$406)) -> 0 | V81: =IF(AG81="","",SUMIF(Höstskon!U$4:U$400,AG81,Höstskon!P$4:P$400)) -> 0 | W81: =IF(AG81="","",SUMIF('Carlskrona Cup'!U$4:U$400,AG81,'Carlskrona Cup'!P$4:P$400)) -> 0 | X81: =IF(AG81="","",SUMIF('Sibbamåla Open'!U$4:U$400,AG81,'Sibbamåla Open'!P$4:P$400)) -> 0 | Y81: =IF(AG81="","",SUMIF('Vaxholm Indoor'!U$4:U$400,AG81,'Vaxholm Indoor'!P$4:P$400)) -> 0 | Z81: =IF(AG81="","",SUMIF('SM inne'!U$4:U$400,AG81,'SM inne'!P$4:P$400)) -> 61 | AA81: =IF(AG81="","",SUMIF('SmålandsDM inne'!U$4:U$400,AG81,'SmålandsDM inne'!P$4:P$400)) -> 0 | AB81: =IF(AG81="","",SUMIF('BlekingeDM inne'!U$4:U$400,AG81,'BlekingeDM inne'!P$4:P$400)) -> 0 | AC81: =IF(AG81="","",SUMIF('StockholmsDM inne'!U$4:U$400,AG81,'StockholmsDM inne'!P$4:P$400)) -> 0 | AD81: =IF(AG81="","",SUMIF(Värendspokalen!U$4:U$400,AG81,Värendspokalen!P$4:P$400)) -> 0 | AG81: =IF(B81="","",SUMIF(Kastare!B$2:B$2999,B81,Kastare!A$2:A$2999)) -> 1105
A82: 79 | B82: Julia Eriksson | C82: Balders HSK | D82: 910 | F82: 5 | G82: 91 | I82: =IF(AG82="","",SUMIF('Tingsryd Open'!U$4:U$400,AG82,'Tingsryd Open'!P$4:P$400)) -> 0 | J82: =IF(AG82="","",SUMIF('Jämjö Open'!U$4:U$400,AG82,'Jämjö Open'!P$4:P$400)) -> 0 | K82: =IF(AG82="","",SUMIF('Viby Open'!U$4:U$400,AG82,'Viby Open'!P$4:P$400)) -> 0 | L82: =IF(AG82="","",SUMIF('Björkenäs Open'!U$4:U$400,AG82,'Björkenäs Open'!P$4:P$400)) -> 0 | M82: =IF(AG82="","",SUMIF('SM ute Lö'!U$4:U$400,AG82,'SM ute Lö'!P$4:P$400)) -> 0 | N82: =IF(AG82="","",SUMIF('SM ute Sö'!U$4:U$401,AG82,'SM ute Sö'!P$4:P$401)) -> 0 | O82: =IF(AG82="","",SUMIF('Roslagen Open'!U$4:U$400,AG82,'Roslagen Open'!P$4:P$400)) -> 170 | P82: =IF(AG82="","",SUMIF('Vaxholm Open'!U$4:U$400,AG82,'Vaxholm Open'!P$4:P$400)) -> 155 | Q82: =IF(AG82="","",SUMIF('Dynapac Open'!U$4:U$400,AG82,'Dynapac Open'!P$4:P$400)) -> 0 | R82: =IF(AG82="","",SUMIF('SmålandsDM ute'!U$4:U$400,AG82,'SmålandsDM ute'!P$4:P$400)) -> 0 | S82: =IF(AG82="","",SUMIF('BlekingeDM ute'!U$4:U$400,AG82,'BlekingeDM ute'!P$4:P$400)) -> 0 | T82: =IF(AG82="","",SUMIF('StockholmsDM ute'!U$4:U$400,AG82,'StockholmsDM ute'!P$4:P$400)) -> 201 | U82: =IF(AG82="","",SUMIF('Åseda Open'!U$4:U$406,AG82,'Åseda Open'!P$4:P$406)) -> 0 | V82: =IF(AG82="","",SUMIF(Höstskon!U$4:U$400,AG82,Höstskon!P$4:P$400)) -> 0 | W82: =IF(AG82="","",SUMIF('Carlskrona Cup'!U$4:U$400,AG82,'Carlskrona Cup'!P$4:P$400)) -> 0 | X82: =IF(AG82="","",SUMIF('Sibbamåla Open'!U$4:U$400,AG82,'Sibbamåla Open'!P$4:P$400)) -> 0 | Y82: =IF(AG82="","",SUMIF('Vaxholm Indoor'!U$4:U$400,AG82,'Vaxholm Indoor'!P$4:P$400)) -> 187 | Z82: =IF(AG82="","",SUMIF('SM inne'!U$4:U$400,AG82,'SM inne'!P$4:P$400)) -> 0 | AA82: =IF(AG82="","",SUMIF('SmålandsDM inne'!U$4:U$400,AG82,'SmålandsDM inne'!P$4:P$400)) -> 0 | AB82: =IF(AG82="","",SUMIF('BlekingeDM inne'!U$4:U$400,AG82,'BlekingeDM inne'!P$4:P$400)) -> 0 | AC82: =IF(AG82="","",SUMIF('StockholmsDM inne'!U$4:U$400,AG82,'StockholmsDM inne'!P$4:P$400)) -> 197 | AD82: =IF(AG82="","",SUMIF(Värendspokalen!U$4:U$400,AG82,Värendspokalen!P$4:P$400)) -> 0 | AG82: =IF(B82="","",SUMIF(Kastare!B$2:B$2999,B82,Kastare!A$2:A$2999)) -> 1213
A83: 80 | B83: Jan Petersson | C83: Lanternan B.c | D83: 860 | F83: 5 | G83: 86 | I83: =IF(AG83="","",SUMIF('Tingsryd Open'!U$4:U$400,AG83,'Tingsryd Open'!P$4:P$400)) -> 0 | J83: =IF(AG83="","",SUMIF('Jämjö Open'!U$4:U$400,AG83,'Jämjö Open'!P$4:P$400)) -> 0 | K83: =IF(AG83="","",SUMIF('Viby Open'!U$4:U$400,AG83,'Viby Open'!P$4:P$400)) -> 0 | L83: =IF(AG83="","",SUMIF('Björkenäs Open'!U$4:U$400,AG83,'Björkenäs Open'!P$4:P$400)) -> 257 | M83: =IF(AG83="","",SUMIF('SM ute Lö'!U$4:U$400,AG83,'SM ute Lö'!P$4:P$400)) -> 143 | N83: =IF(AG83="","",SUMIF('SM ute Sö'!U$4:U$401,AG83,'SM ute Sö'!P$4:P$401)) -> 0 | O83: =IF(AG83="","",SUMIF('Roslagen Open'!U$4:U$400,AG83,'Roslagen Open'!P$4:P$400)) -> 0 | P83: =IF(AG83="","",SUMIF('Vaxholm Open'!U$4:U$400,AG83,'Vaxholm Open'!P$4:P$400)) -> 0 | Q83: =IF(AG83="","",SUMIF('Dynapac Open'!U$4:U$400,AG83,'Dynapac Open'!P$4:P$400)) -> 0 | R83: =IF(AG83="","",SUMIF('SmålandsDM ute'!U$4:U$400,AG83,'SmålandsDM ute'!P$4:P$400)) -> 0 | S83: =IF(AG83="","",SUMIF('BlekingeDM ute'!U$4:U$400,AG83,'BlekingeDM ute'!P$4:P$400)) -> 0 | T83: =IF(AG83="","",SUMIF('StockholmsDM ute'!U$4:U$400,AG83,'StockholmsDM ute'!P$4:P$400)) -> 0 | U83: =IF(AG83="","",SUMIF('Åseda Open'!U$4:U$406,AG83,'Åseda Open'!P$4:P$406)) -> 0 | V83: =IF(AG83="","",SUMIF(Höstskon!U$4:U$400,AG83,Höstskon!P$4:P$400)) -> 150 | W83: =IF(AG83="","",SUMIF('Carlskrona Cup'!U$4:U$400,AG83,'Carlskrona Cup'!P$4:P$400)) -> 0 | X83: =IF(AG83="","",SUMIF('Sibbamåla Open'!U$4:U$400,AG83,'Sibbamåla Open'!P$4:P$400)) -> 170 | Y83: =IF(AG83="","",SUMIF('Vaxholm Indoor'!U$4:U$400,AG83,'Vaxholm Indoor'!P$4:P$400)) -> 0 | Z83: =IF(AG83="","",SUMIF('SM inne'!U$4:U$400,AG83,'SM inne'!P$4:P$400)) -> 140 | AA83: =IF(AG83="","",SUMIF('SmålandsDM inne'!U$4:U$400,AG83,'SmålandsDM inne'!P$4:P$400)) -> 0 | AB83: =IF(AG83="","",SUMIF('BlekingeDM inne'!U$4:U$400,AG83,'BlekingeDM inne'!P$4:P$400)) -> 0 | AC83: =IF(AG83="","",SUMIF('StockholmsDM inne'!U$4:U$400,AG83,'StockholmsDM inne'!P$4:P$400)) -> 0 | AD83: =IF(AG83="","",SUMIF(Värendspokalen!U$4:U$400,AG83,Värendspokalen!P$4:P$400)) -> 0 | AG83: =IF(B83="","",SUMIF(Kastare!B$2:B$2999,B83,Kastare!A$2:A$2999)) -> 1063
A84: 81 | B84: Erik Smiding | C84: Vaxholm Hsk | D84: 851 | F84: 4 | G84: 106.375 | I84: =IF(AG84="","",SUMIF('Tingsryd Open'!U$4:U$400,AG84,'Tingsryd Open'!P$4:P$400)) -> 0 | J84: =IF(AG84="","",SUMIF('Jämjö Open'!U$4:U$400,AG84,'Jämjö Open'!P$4:P$400)) -> 0 | K84: =IF(AG84="","",SUMIF('Viby Open'!U$4:U$400,AG84,'Viby Open'!P$4:P$400)) -> 0 | L84: =IF(AG84="","",SUMIF('Björkenäs Open'!U$4:U$400,AG84,'Björkenäs Open'!P$4:P$400)) -> 0 | M84: =IF(AG84="","",SUMIF('SM ute Lö'!U$4:U$400,AG84,'SM ute Lö'!P$4:P$400)) -> 249 | N84: =IF(AG84="","",SUMIF('SM ute Sö'!U$4:U$401,AG84,'SM ute Sö'!P$4:P$401)) -> 201 | O84: =IF(AG84="","",SUMIF('Roslagen Open'!U$4:U$400,AG84,'Roslagen Open'!P$4:P$400)) -> 0 | P84: =IF(AG84="","",SUMIF('Vaxholm Open'!U$4:U$400,AG84,'Vaxholm Open'!P$4:P$400)) -> 0 | Q84: =IF(AG84="","",SUMIF('Dynapac Open'!U$4:U$400,AG84,'Dynapac Open'!P$4:P$400)) -> 0 | R84: =IF(AG84="","",SUMIF('SmålandsDM ute'!U$4:U$400,AG84,'SmålandsDM ute'!P$4:P$400)) -> 0 | S84: =IF(AG84="","",SUMIF('BlekingeDM ute'!U$4:U$400,AG84,'BlekingeDM ute'!P$4:P$400)) -> 0 | T84: =IF(AG84="","",SUMIF('StockholmsDM ute'!U$4:U$400,AG84,'StockholmsDM ute'!P$4:P$400)) -> 204 | U84: =IF(AG84="","",SUMIF('Åseda Open'!U$4:U$406,AG84,'Åseda Open'!P$4:P$406)) -> 0 | V84: =IF(AG84="","",SUMIF(Höstskon!U$4:U$400,AG84,Höstskon!P$4:P$400)) -> 0 | W84: =IF(AG84="","",SUMIF('Carlskrona Cup'!U$4:U$400,AG84,'Carlskrona Cup'!P$4:P$400)) -> 0 | X84: =IF(AG84="","",SUMIF('Sibbamåla Open'!U$4:U$400,AG84,'Sibbamåla Open'!P$4:P$400)) -> 0 | Y84: =IF(AG84="","",SUMIF('Vaxholm Indoor'!U$4:U$400,AG84,'Vaxholm Indoor'!P$4:P$400)) -> 0 | Z84: =IF(AG84="","",SUMIF('SM inne'!U$4:U$400,AG84,'SM inne'!P$4:P$400)) -> 197 | AA84: =IF(AG84="","",SUMIF('SmålandsDM inne'!U$4:U$400,AG84,'SmålandsDM inne'!P$4:P$400)) -> 0 | AB84: =IF(AG84="","",SUMIF('BlekingeDM inne'!U$4:U$400,AG84,'BlekingeDM inne'!P$4:P$400)) -> 0 | AC84: =IF(AG84="","",SUMIF('StockholmsDM inne'!U$4:U$400,AG84,'StockholmsDM inne'!P$4:P$400)) -> 0 | AD84: =IF(AG84="","",SUMIF(Värendspokalen!U$4:U$400,AG84,Värendspokalen!P$4:P$400)) -> 0 | AG84: =IF(B84="","",SUMIF(Kastare!B$2:B$2999,B84,Kastare!A$2:A$2999)) -> 1059
A85: 82 | B85: Arne Blihd | C85: Lanternan | D85: 838 | F85: 6 | G85: 69.83333333 | I85: =IF(AG85="","",SUMIF('Tingsryd Open'!U$4:U$400,AG85,'Tingsryd Open'!P$4:P$400)) -> 0 | J85: =IF(AG85="","",SUMIF('Jämjö Open'!U$4:U$400,AG85,'Jämjö Open'!P$4:P$400)) -> 79 | K85: =IF(AG85="","",SUMIF('Viby Open'!U$4:U$400,AG85,'Viby Open'!P$4:P$400)) -> 0 | L85: =IF(AG85="","",SUMIF('Björkenäs Open'!U$4:U$400,AG85,'Björkenäs Open'!P$4:P$400)) -> 192 | M85: =IF(AG85="","",SUMIF('SM ute Lö'!U$4:U$400,AG85,'SM ute Lö'!P$4:P$400)) -> 116 | N85: =IF(AG85="","",SUMIF('SM ute Sö'!U$4:U$401,AG85,'SM ute Sö'!P$4:P$401)) -> 0 | O85: =IF(AG85="","",SUMIF('Roslagen Open'!U$4:U$400,AG85,'Roslagen Open'!P$4:P$400)) -> 0 | P85: =IF(AG85="","",SUMIF('Vaxholm Open'!U$4:U$400,AG85,'Vaxholm Open'!P$4:P$400)) -> 0 | Q85: =IF(AG85="","",SUMIF('Dynapac Open'!U$4:U$400,AG85,'Dynapac Open'!P$4:P$400)) -> 126 | R85: =IF(AG85="","",SUMIF('SmålandsDM ute'!U$4:U$400,AG85,'SmålandsDM ute'!P$4:P$400)) -> 0 | S85: =IF(AG85="","",SUMIF('BlekingeDM ute'!U$4:U$400,AG85,'BlekingeDM ute'!P$4:P$400)) -> 132 | T85: =IF(AG85="","",SUMIF('StockholmsDM ute'!U$4:U$400,AG85,'StockholmsDM ute'!P$4:P$400)) -> 0 | U85: =IF(AG85="","",SUMIF('Åseda Open'!U$4:U$406,AG85,'Åseda Open'!P$4:P$406)) -> 0 | V85: =IF(AG85="","",SUMIF(Höstskon!U$4:U$400,AG85,Höstskon!P$4:P$400)) -> 0 | W85: =IF(AG85="","",SUMIF('Carlskrona Cup'!U$4:U$400,AG85,'Carlskrona Cup'!P$4:P$400)) -> 193 | X85: =IF(AG85="","",SUMIF('Sibbamåla Open'!U$4:U$400,AG85,'Sibbamåla Open'!P$4:P$400)) -> 0 | Y85: =IF(AG85="","",SUMIF('Vaxholm Indoor'!U$4:U$400,AG85,'Vaxholm Indoor'!P$4:P$400)) -> 0 | Z85: =IF(AG85="","",SUMIF('SM inne'!U$4:U$400,AG85,'SM inne'!P$4:P$400)) -> 0 | AA85: =IF(AG85="","",SUMIF('SmålandsDM inne'!U$4:U$400,AG85,'SmålandsDM inne'!P$4:P$400)) -> 0 | AB85: =IF(AG85="","",SUMIF('BlekingeDM inne'!U$4:U$400,AG85,'BlekingeDM inne'!P$4:P$400)) -> 0 | AC85: =IF(AG85="","",SUMIF('StockholmsDM inne'!U$4:U$400,AG85,'StockholmsDM inne'!P$4:P$400)) -> 0 | AD85: =IF(AG85="","",SUMIF(Värendspokalen!U$4:U$400,AG85,Värendspokalen!P$4:P$400)) -> 0 | AG85: =IF(B85="","",SUMIF(Kastare!B$2:B$2999,B85,Kastare!A$2:A$2999)) -> 1085
A86: 83 | B86: Sune Andersson | C86: Jämjö Hsk | D86: 818 | F86: 5 | G86: 81.8 | I86: =IF(AG86="","",SUMIF('Tingsryd Open'!U$4:U$400,AG86,'Tingsryd Open'!P$4:P$400)) -> 0 | J86: =IF(AG86="","",SUMIF('Jämjö Open'!U$4:U$400,AG86,'Jämjö Open'!P$4:P$400)) -> 154 | K86: =IF(AG86="","",SUMIF('Viby Open'!U$4:U$400,AG86,'Viby Open'!P$4:P$400)) -> 0 | L86: =IF(AG86="","",SUMIF('Björkenäs Open'!U$4:U$400,AG86,'Björkenäs Open'!P$4:P$400)) -> 0 | M86: =IF(AG86="","",SUMIF('SM ute Lö'!U$4:U$400,AG86,'SM ute Lö'!P$4:P$400)) -> 179 | N86: =IF(AG86="","",SUMIF('SM ute Sö'!U$4:U$401,AG86,'SM ute Sö'!P$4:P$401)) -> 154 | O86: =IF(AG86="","",SUMIF('Roslagen Open'!U$4:U$400,AG86,'Roslagen Open'!P$4:P$400)) -> 0 | P86: =IF(AG86="","",SUMIF('Vaxholm Open'!U$4:U$400,AG86,'Vaxholm Open'!P$4:P$400)) -> 0 | Q86: =IF(AG86="","",SUMIF('Dynapac Open'!U$4:U$400,AG86,'Dynapac Open'!P$4:P$400)) -> 0 | R86: =IF(AG86="","",SUMIF('SmålandsDM ute'!U$4:U$400,AG86,'SmålandsDM ute'!P$4:P$400)) -> 0 | S86: =IF(AG86="","",SUMIF('BlekingeDM ute'!U$4:U$400,AG86,'BlekingeDM ute'!P$4:P$400)) -> 0 | T86: =IF(AG86="","",SUMIF('StockholmsDM ute'!U$4:U$400,AG86,'StockholmsDM ute'!P$4:P$400)) -> 0 | U86: =IF(AG86="","",SUMIF('Åseda Open'!U$4:U$406,AG86,'Åseda Open'!P$4:P$406)) -> 168 | V86: =IF(AG86="","",SUMIF(Höstskon!U$4:U$400,AG86,Höstskon!P$4:P$400)) -> 0 | W86: =IF(AG86="","",SUMIF('Carlskrona Cup'!U$4:U$400,AG86,'Carlskrona Cup'!P$4:P$400)) -> 0 | X86: =IF(AG86="","",SUMIF('Sibbamåla Open'!U$4:U$400,AG86,'Sibbamåla Open'!P$4:P$400)) -> 163 | Y86: =IF(AG86="","",SUMIF('Vaxholm Indoor'!U$4:U$400,AG86,'Vaxholm Indoor'!P$4:P$400)) -> 0 | Z86: =IF(AG86="","",SUMIF('SM inne'!U$4:U$400,AG86,'SM inne'!P$4:P$400)) -> 0 | AA86: =IF(AG86="","",SUMIF('SmålandsDM inne'!U$4:U$400,AG86,'SmålandsDM inne'!P$4:P$400)) -> 0 | AB86: =IF(AG86="","",SUMIF('BlekingeDM inne'!U$4:U$400,AG86,'BlekingeDM inne'!P$4:P$400)) -> 0 | AC86: =IF(AG86="","",SUMIF('StockholmsDM inne'!U$4:U$400,AG86,'StockholmsDM inne'!P$4:P$400)) -> 0 | AD86: =IF(AG86="","",SUMIF(Värendspokalen!U$4:U$400,AG86,Värendspokalen!P$4:P$400)) -> 0 | AG86: =IF(B86="","",SUMIF(Kastare!B$2:B$2999,B86,Kastare!A$2:A$2999)) -> 1169
A87: 84 | B87: Amanda Blomgren | C87: Lanternan | D87: 814 | F87: 6 | G87: 67.83333333 | I87: =IF(AG87="","",SUMIF('Tingsryd Open'!U$4:U$400,AG87,'Tingsryd Open'!P$4:P$400)) -> 0 | J87: =IF(AG87="","",SUMIF('Jämjö Open'!U$4:U$400,AG87,'Jämjö Open'!P$4:P$400)) -> 0 | K87: =IF(AG87="","",SUMIF('Viby Open'!U$4:U$400,AG87,'Viby Open'!P$4:P$400)) -> 0 | L87: =IF(AG87="","",SUMIF('Björkenäs Open'!U$4:U$400,AG87,'Björkenäs Open'!P$4:P$400)) -> 0 | M87: =IF(AG87="","",SUMIF('SM ute Lö'!U$4:U$400,AG87,'SM ute Lö'!P$4:P$400)) -> 0 | N87: =IF(AG87="","",SUMIF('SM ute Sö'!U$4:U$401,AG87,'SM ute Sö'!P$4:P$401)) -> 0 | O87: =IF(AG87="","",SUMIF('Roslagen Open'!U$4:U$400,AG87,'Roslagen Open'!P$4:P$400)) -> 0 | P87: =IF(AG87="","",SUMIF('Vaxholm Open'!U$4:U$400,AG87,'Vaxholm Open'!P$4:P$400)) -> 0 | Q87: =IF(AG87="","",SUMIF('Dynapac Open'!U$4:U$400,AG87,'Dynapac Open'!P$4:P$400)) -> 103 | R87: =IF(AG87="","",SUMIF('SmålandsDM ute'!U$4:U$400,AG87,'SmålandsDM ute'!P$4:P$400)) -> 0 | S87: =IF(AG87="","",SUMIF('BlekingeDM ute'!U$4:U$400,AG87,'BlekingeDM ute'!P$4:P$400)) -> 137 | T87: =IF(AG87="","",SUMIF('StockholmsDM ute'!U$4:U$400,AG87,'StockholmsDM ute'!P$4:P$400)) -> 0 | U87: =IF(AG87="","",SUMIF('Åseda Open'!U$4:U$406,AG87,'Åseda Open'!P$4:P$406)) -> 0 | V87: =IF(AG87="","",SUMIF(Höstskon!U$4:U$400,AG87,Höstskon!P$4:P$400)) -> 106 | W87: =IF(AG87="","",SUMIF('Carlskrona Cup'!U$4:U$400,AG87,'Carlskrona Cup'!P$4:P$400)) -> 168 | X87: =IF(AG87="","",SUMIF('Sibbamåla Open'!U$4:U$400,AG87,'Sibbamåla Open'!P$4:P$400)) -> 0 | Y87: =IF(AG87="","",SUMIF('Vaxholm Indoor'!U$4:U$400,AG87,'Vaxholm Indoor'!P$4:P$400)) -> 0 | Z87: =IF(AG87="","",SUMIF('SM inne'!U$4:U$400,AG87,'SM inne'!P$4:P$400)) -> 195 | AA87: =IF(AG87="","",SUMIF('SmålandsDM inne'!U$4:U$400,AG87,'SmålandsDM inne'!P$4:P$400)) -> 0 | AB87: =IF(AG87="","",SUMIF('BlekingeDM inne'!U$4:U$400,AG87,'BlekingeDM inne'!P$4:P$400)) -> 0 | AC87: =IF(AG87="","",SUMIF('StockholmsDM inne'!U$4:U$400,AG87,'StockholmsDM inne'!P$4:P$400)) -> 0 | AD87: =IF(AG87="","",SUMIF(Värendspokalen!U$4:U$400,AG87,Värendspokalen!P$4:P$400)) -> 105 | AG87: =IF(B87="","",SUMIF(Kastare!B$2:B$2999,B87,Kastare!A$2:A$2999)) -> 1265
A88: 85 | B88: Conny Bark | C88: Värends Hsk | D88: =IF(B88="",0,IF($F88>0,LARGE($J88:$AE88,1),"")+IF($F88>0,LARGE($J88:$AE88,2),"")+IF($F88>0,LARGE($J88:$AE88,3),"")+IF($F88>0,LARGE($J88:$AE88,4),"")+IF($F88>0,LARGE($J88:$AE88,5),"")+IF($F88>0,LARGE($J88:$AE88,6),"")+IF($F88>0,LARGE($J88:$AE88,7),"")+IF($F88>0,LARGE($J88:$AE88,8),"")+IF($F88>0,LARGE($J88:$AE88,9),"")+IF($F88>0,LARGE($J88:$AE88,10),"")+IF($F88>0,LARGE($J88:$AE88,11),"")+IF($F88>0,LARGE($J88:$AE88,12),"")) -> 804 | F88: =COUNTIF(J88:AE88,">0") -> 5 | G88: 80.4 | I88: =IF(AG88="","",SUMIF('Tingsryd Open'!U$4:U$400,AG88,'Tingsryd Open'!P$4:P$400)) -> 0 | J88: =IF(AG88="","",SUMIF('Jämjö Open'!U$4:U$400,AG88,'Jämjö Open'!P$4:P$400)) -> 0 | K88: =IF(AG88="","",SUMIF('Viby Open'!U$4:U$400,AG88,'Viby Open'!P$4:P$400)) -> 0 | L88: =IF(AG88="","",SUMIF('Björkenäs Open'!U$4:U$400,AG88,'Björkenäs Open'!P$4:P$400)) -> 149 | M88: =IF(AG88="","",SUMIF('SM ute Lö'!U$4:U$400,AG88,'SM ute Lö'!P$4:P$400)) -> 171 | N88: =IF(AG88="","",SUMIF('SM ute Sö'!U$4:U$401,AG88,'SM ute Sö'!P$4:P$401)) -> 0 | O88: =IF(AG88="","",SUMIF('Roslagen Open'!U$4:U$400,AG88,'Roslagen Open'!P$4:P$400)) -> 0 | P88: =IF(AG88="","",SUMIF('Vaxholm Open'!U$4:U$400,AG88,'Vaxholm Open'!P$4:P$400)) -> 0 | Q88: =IF(AG88="","",SUMIF('Dynapac Open'!U$4:U$400,AG88,'Dynapac Open'!P$4:P$400)) -> 0 | R88: =IF(AG88="","",SUMIF('SmålandsDM ute'!U$4:U$400,AG88,'SmålandsDM ute'!P$4:P$400)) -> 0 | S88: =IF(AG88="","",SUMIF('BlekingeDM ute'!U$4:U$400,AG88,'BlekingeDM ute'!P$4:P$400)) -> 0 | T88: =IF(AG88="","",SUMIF('StockholmsDM ute'!U$4:U$400,AG88,'StockholmsDM ute'!P$4:P$400)) -> 0 | U88: =IF(AG88="","",SUMIF('Åseda Open'!U$4:U$406,AG88,'Åseda Open'!P$4:P$406)) -> 0 | V88: =IF(AG88="","",SUMIF(Höstskon!U$4:U$400,AG88,Höstskon!P$4:P$400)) -> 0 | W88: =IF(AG88="","",SUMIF('Carlskrona Cup'!U$4:U$400,AG88,'Carlskrona Cup'!P$4:P$400)) -> 178 | X88: =IF(AG88="","",SUMIF('Sibbamåla Open'!U$4:U$400,AG88,'Sibbamåla Open'!P$4:P$400)) -> 173 | Y88: =IF(AG88="","",SUMIF('Vaxholm Indoor'!U$4:U$400,AG88,'Vaxholm Indoor'!P$4:P$400)) -> 0 | Z88: =IF(AG88="","",SUMIF('SM inne'!U$4:U$400,AG88,'SM inne'!P$4:P$400)) -> 133 | AA88: =IF(AG88="","",SUMIF('SmålandsDM inne'!U$4:U$400,AG88,'SmålandsDM inne'!P$4:P$400)) -> 0 | AB88: =IF(AG88="","",SUMIF('BlekingeDM inne'!U$4:U$400,AG88,'BlekingeDM inne'!P$4:P$400)) -> 0 | AC88: =IF(AG88="","",SUMIF('StockholmsDM inne'!U$4:U$400,AG88,'StockholmsDM inne'!P$4:P$400)) -> 0 | AD88: =IF(AG88="","",SUMIF(Värendspokalen!U$4:U$400,AG88,Värendspokalen!P$4:P$400)) -> 0 | AG88: =IF(B88="","",SUMIF(Kastare!B$2:B$2999,B88,Kastare!A$2:A$2999)) -> 1252
A89: 86 | B89: Kjell Åkesson | C89: Lanternan | D89: =IF(B89="",0,IF($F89>0,LARGE($I89:$AD89,1),"")+IF($F89>0,LARGE($I89:$AD89,2),"")+IF($F89>0,LARGE($I89:$AD89,3),"")+IF($F89>0,LARGE($I89:$AD89,4),"")+IF($F89>0,LARGE($I89:$AD89,5),"")+IF($F89>0,LARGE($I89:$AD89,6),"")+IF($F89>0,LARGE($I89:$AD89,7),"")+IF($F89>0,LARGE($I89:$AD89,8),"")+IF($F89>0,LARGE($I89:$AD89,9),"")+IF($F89>0,LARGE($I89:$AD89,10),"")+IF($F89>0,LARGE($I89:$AD89,11),"")+IF($F89>0,LARGE($I89:$AD89,12),"")) -> 727 | F89: =COUNTIF(I89:AD89,">0") -> 4 | G89: 90.875 | I89: =IF(AG89="","",SUMIF('Tingsryd Open'!U$4:U$400,AG89,'Tingsryd Open'!P$4:P$400)) -> 0 | J89: =IF(AG89="","",SUMIF('Jämjö Open'!U$4:U$400,AG89,'Jämjö Open'!P$4:P$400)) -> 0 | K89: =IF(AG89="","",SUMIF('Viby Open'!U$4:U$400,AG89,'Viby Open'!P$4:P$400)) -> 0 | L89: =IF(AG89="","",SUMIF('Björkenäs Open'!U$4:U$400,AG89,'Björkenäs Open'!P$4:P$400)) -> 198 | M89: =IF(AG89="","",SUMIF('SM ute Lö'!U$4:U$400,AG89,'SM ute Lö'!P$4:P$400)) -> 166 | N89: =IF(AG89="","",SUMIF('SM ute Sö'!U$4:U$401,AG89,'SM ute Sö'!P$4:P$401)) -> 0 | O89: =IF(AG89="","",SUMIF('Roslagen Open'!U$4:U$400,AG89,'Roslagen Open'!P$4:P$400)) -> 0 | P89: =IF(AG89="","",SUMIF('Vaxholm Open'!U$4:U$400,AG89,'Vaxholm Open'!P$4:P$400)) -> 0 | Q89: =IF(AG89="","",SUMIF('Dynapac Open'!U$4:U$400,AG89,'Dynapac Open'!P$4:P$400)) -> 0 | R89: =IF(AG89="","",SUMIF('SmålandsDM ute'!U$4:U$400,AG89,'SmålandsDM ute'!P$4:P$400)) -> 0 | S89: =IF(AG89="","",SUMIF('BlekingeDM ute'!U$4:U$400,AG89,'BlekingeDM ute'!P$4:P$400)) -> 205 | T89: =IF(AG89="","",SUMIF('StockholmsDM ute'!U$4:U$400,AG89,'StockholmsDM ute'!P$4:P$400)) -> 0 | U89: =IF(AG89="","",SUMIF('Åseda Open'!U$4:U$406,AG89,'Åseda Open'!P$4:P$406)) -> 0 | V89: =IF(AG89="","",SUMIF(Höstskon!U$4:U$400,AG89,Höstskon!P$4:P$400)) -> 0 | W89: =IF(AG89="","",SUMIF('Carlskrona Cup'!U$4:U$400,AG89,'Carlskrona Cup'!P$4:P$400)) -> 158 | X89: =IF(AG89="","",SUMIF('Sibbamåla Open'!U$4:U$400,AG89,'Sibbamåla Open'!P$4:P$400)) -> 0 | Y89: =IF(AG89="","",SUMIF('Vaxholm Indoor'!U$4:U$400,AG89,'Vaxholm Indoor'!P$4:P$400)) -> 0 | Z89: =IF(AG89="","",SUMIF('SM inne'!U$4:U$400,AG89,'SM inne'!P$4:P$400)) -> 0 | AA89: =IF(AG89="","",SUMIF('SmålandsDM inne'!U$4:U$400,AG89,'SmålandsDM inne'!P$4:P$400)) -> 0 | AB89: =IF(AG89="","",SUMIF('BlekingeDM inne'!U$4:U$400,AG89,'BlekingeDM inne'!P$4:P$400)) -> 0 | AC89: =IF(AG89="","",SUMIF('StockholmsDM inne'!U$4:U$400,AG89,'StockholmsDM inne'!P$4:P$400)) -> 0 | AD89: =IF(AG89="","",SUMIF(Värendspokalen!U$4:U$400,AG89,Värendspokalen!P$4:P$400)) -> 0 | AG89: =IF(B89="","",SUMIF(Kastare!B$2:B$2999,B89,Kastare!A$2:A$2999)) -> 1096
A90: 87 | B90: Marianne Karlsson | C90: Jämjö Hsk | D90: 715 | F90: 5 | G90: 71.5 | I90: =IF(AG90="","",SUMIF('Tingsryd Open'!U$4:U$400,AG90,'Tingsryd Open'!P$4:P$400)) -> 0 | J90: =IF(AG90="","",SUMIF('Jämjö Open'!U$4:U$400,AG90,'Jämjö Open'!P$4:P$400)) -> 131 | K90: =IF(AG90="","",SUMIF('Viby Open'!U$4:U$400,AG90,'Viby Open'!P$4:P$400)) -> 0 | L90: =IF(AG90="","",SUMIF('Björkenäs Open'!U$4:U$400,AG90,'Björkenäs Open'!P$4:P$400)) -> 0 | M90: =IF(AG90="","",SUMIF('SM ute Lö'!U$4:U$400,AG90,'SM ute Lö'!P$4:P$400)) -> 89 | N90: =IF(AG90="","",SUMIF('SM ute Sö'!U$4:U$401,AG90,'SM ute Sö'!P$4:P$401)) -> 205 | O90: =IF(AG90="","",SUMIF('Roslagen Open'!U$4:U$400,AG90,'Roslagen Open'!P$4:P$400)) -> 0 | P90: =IF(AG90="","",SUMIF('Vaxholm Open'!U$4:U$400,AG90,'Vaxholm Open'!P$4:P$400)) -> 0 | Q90: =IF(AG90="","",SUMIF('Dynapac Open'!U$4:U$400,AG90,'Dynapac Open'!P$4:P$400)) -> 0 | R90: =IF(AG90="","",SUMIF('SmålandsDM ute'!U$4:U$400,AG90,'SmålandsDM ute'!P$4:P$400)) -> 0 | S90: =IF(AG90="","",SUMIF('BlekingeDM ute'!U$4:U$400,AG90,'BlekingeDM ute'!P$4:P$400)) -> 0 | T90: =IF(AG90="","",SUMIF('StockholmsDM ute'!U$4:U$400,AG90,'StockholmsDM ute'!P$4:P$400)) -> 0 | U90: =IF(AG90="","",SUMIF('Åseda Open'!U$4:U$406,AG90,'Åseda Open'!P$4:P$406)) -> 130 | V90: =IF(AG90="","",SUMIF(Höstskon!U$4:U$400,AG90,Höstskon!P$4:P$400)) -> 0 | W90: =IF(AG90="","",SUMIF('Carlskrona Cup'!U$4:U$400,AG90,'Carlskrona Cup'!P$4:P$400)) -> 0 | X90: =IF(AG90="","",SUMIF('Sibbamåla Open'!U$4:U$400,AG90,'Sibbamåla Open'!P$4:P$400)) -> 160 | Y90: =IF(AG90="","",SUMIF('Vaxholm Indoor'!U$4:U$400,AG90,'Vaxholm Indoor'!P$4:P$400)) -> 0 | Z90: =IF(AG90="","",SUMIF('SM inne'!U$4:U$400,AG90,'SM inne'!P$4:P$400)) -> 0 | AA90: =IF(AG90="","",SUMIF('SmålandsDM inne'!U$4:U$400,AG90,'SmålandsDM inne'!P$4:P$400)) -> 0 | AB90: =IF(AG90="","",SUMIF('BlekingeDM inne'!U$4:U$400,AG90,'BlekingeDM inne'!P$4:P$400)) -> 0 | AC90: =IF(AG90="","",SUMIF('StockholmsDM inne'!U$4:U$400,AG90,'StockholmsDM inne'!P$4:P$400)) -> 0 | AD90: =IF(AG90="","",SUMIF(Värendspokalen!U$4:U$400,AG90,Värendspokalen!P$4:P$400)) -> 0 | AG90: =IF(B90="","",SUMIF(Kastare!B$2:B$2999,B90,Kastare!A$2:A$2999)) -> 1086
A91: 88 | B91: Malin Löwberg | C91: Balders Hsk | D91: 712 | F91: 6 | G91: 59.33333333 | I91: =IF(AG91="","",SUMIF('Tingsryd Open'!U$4:U$400,AG91,'Tingsryd Open'!P$4:P$400)) -> 0 | J91: =IF(AG91="","",SUMIF('Jämjö Open'!U$4:U$400,AG91,'Jämjö Open'!P$4:P$400)) -> 0 | K91: =IF(AG91="","",SUMIF('Viby Open'!U$4:U$400,AG91,'Viby Open'!P$4:P$400)) -> 0 | L91: =IF(AG91="","",SUMIF('Björkenäs Open'!U$4:U$400,AG91,'Björkenäs Open'!P$4:P$400)) -> 0 | M91: =IF(AG91="","",SUMIF('SM ute Lö'!U$4:U$400,AG91,'SM ute Lö'!P$4:P$400)) -> 118 | N91: =IF(AG91="","",SUMIF('SM ute Sö'!U$4:U$401,AG91,'SM ute Sö'!P$4:P$401)) -> 59 | O91: =IF(AG91="","",SUMIF('Roslagen Open'!U$4:U$400,AG91,'Roslagen Open'!P$4:P$400)) -> 160 | P91: =IF(AG91="","",SUMIF('Vaxholm Open'!U$4:U$400,AG91,'Vaxholm Open'!P$4:P$400)) -> 153 | Q91: =IF(AG91="","",SUMIF('Dynapac Open'!U$4:U$400,AG91,'Dynapac Open'!P$4:P$400)) -> 0 | R91: =IF(AG91="","",SUMIF('SmålandsDM ute'!U$4:U$400,AG91,'SmålandsDM ute'!P$4:P$400)) -> 0 | S91: =IF(AG91="","",SUMIF('BlekingeDM ute'!U$4:U$400,AG91,'BlekingeDM ute'!P$4:P$400)) -> 0 | T91: =IF(AG91="","",SUMIF('StockholmsDM ute'!U$4:U$400,AG91,'StockholmsDM ute'!P$4:P$400)) -> 0 | U91: =IF(AG91="","",SUMIF('Åseda Open'!U$4:U$406,AG91,'Åseda Open'!P$4:P$406)) -> 0 | V91: =IF(AG91="","",SUMIF(Höstskon!U$4:U$400,AG91,Höstskon!P$4:P$400)) -> 0 | W91: =IF(AG91="","",SUMIF('Carlskrona Cup'!U$4:U$400,AG91,'Carlskrona Cup'!P$4:P$400)) -> 0 | X91: =IF(AG91="","",SUMIF('Sibbamåla Open'!U$4:U$400,AG91,'Sibbamåla Open'!P$4:P$400)) -> 0 | Y91: =IF(AG91="","",SUMIF('Vaxholm Indoor'!U$4:U$400,AG91,'Vaxholm Indoor'!P$4:P$400)) -> 94 | Z91: =IF(AG91="","",SUMIF('SM inne'!U$4:U$400,AG91,'SM inne'!P$4:P$400)) -> 0 | AA91: =IF(AG91="","",SUMIF('SmålandsDM inne'!U$4:U$400,AG91,'SmålandsDM inne'!P$4:P$400)) -> 0 | AB91: =IF(AG91="","",SUMIF('BlekingeDM inne'!U$4:U$400,AG91,'BlekingeDM inne'!P$4:P$400)) -> 0 | AC91: =IF(AG91="","",SUMIF('StockholmsDM inne'!U$4:U$400,AG91,'StockholmsDM inne'!P$4:P$400)) -> 128 | AD91: =IF(AG91="","",SUMIF(Värendspokalen!U$4:U$400,AG91,Värendspokalen!P$4:P$400)) -> 0 | AG91: =IF(B91="","",SUMIF(Kastare!B$2:B$2999,B91,Kastare!A$2:A$2999)) -> 1143
A92: 89 | B92: Lisbeth Blihd | C92: Lanternan | D92: 665 | F92: 5 | G92: 66.5 | I92: =IF(AG92="","",SUMIF('Tingsryd Open'!U$4:U$400,AG92,'Tingsryd Open'!P$4:P$400)) -> 0 | J92: =IF(AG92="","",SUMIF('Jämjö Open'!U$4:U$400,AG92,'Jämjö Open'!P$4:P$400)) -> 138 | K92: =IF(AG92="","",SUMIF('Viby Open'!U$4:U$400,AG92,'Viby Open'!P$4:P$400)) -> 0 | L92: =IF(AG92="","",SUMIF('Björkenäs Open'!U$4:U$400,AG92,'Björkenäs Open'!P$4:P$400)) -> 120 | M92: =IF(AG92="","",SUMIF('SM ute Lö'!U$4:U$400,AG92,'SM ute Lö'!P$4:P$400)) -> 0 | N92: =IF(AG92="","",SUMIF('SM ute Sö'!U$4:U$401,AG92,'SM ute Sö'!P$4:P$401)) -> 0 | O92: =IF(AG92="","",SUMIF('Roslagen Open'!U$4:U$400,AG92,'Roslagen Open'!P$4:P$400)) -> 0 | P92: =IF(AG92="","",SUMIF('Vaxholm Open'!U$4:U$400,AG92,'Vaxholm Open'!P$4:P$400)) -> 0 | Q92: =IF(AG92="","",SUMIF('Dynapac Open'!U$4:U$400,AG92,'Dynapac Open'!P$4:P$400)) -> 76 | R92: =IF(AG92="","",SUMIF('SmålandsDM ute'!U$4:U$400,AG92,'SmålandsDM ute'!P$4:P$400)) -> 0 | S92: =IF(AG92="","",SUMIF('BlekingeDM ute'!U$4:U$400,AG92,'BlekingeDM ute'!P$4:P$400)) -> 218 | T92: =IF(AG92="","",SUMIF('StockholmsDM ute'!U$4:U$400,AG92,'StockholmsDM ute'!P$4:P$400)) -> 0 | U92: =IF(AG92="","",SUMIF('Åseda Open'!U$4:U$406,AG92,'Åseda Open'!P$4:P$406)) -> 0 | V92: =IF(AG92="","",SUMIF(Höstskon!U$4:U$400,AG92,Höstskon!P$4:P$400)) -> 0 | W92: =IF(AG92="","",SUMIF('Carlskrona Cup'!U$4:U$400,AG92,'Carlskrona Cup'!P$4:P$400)) -> 113 | X92: =IF(AG92="","",SUMIF('Sibbamåla Open'!U$4:U$400,AG92,'Sibbamåla Open'!P$4:P$400)) -> 0 | Y92: =IF(AG92="","",SUMIF('Vaxholm Indoor'!U$4:U$400,AG92,'Vaxholm Indoor'!P$4:P$400)) -> 0 | Z92: =IF(AG92="","",SUMIF('SM inne'!U$4:U$400,AG92,'SM inne'!P$4:P$400)) -> 0 | AA92: =IF(AG92="","",SUMIF('SmålandsDM inne'!U$4:U$400,AG92,'SmålandsDM inne'!P$4:P$400)) -> 0 | AB92: =IF(AG92="","",SUMIF('BlekingeDM inne'!U$4:U$400,AG92,'BlekingeDM inne'!P$4:P$400)) -> 0 | AC92: =IF(AG92="","",SUMIF('StockholmsDM inne'!U$4:U$400,AG92,'StockholmsDM inne'!P$4:P$400)) -> 0 | AD92: =IF(AG92="","",SUMIF(Värendspokalen!U$4:U$400,AG92,Värendspokalen!P$4:P$400)) -> 0 | AG92: =IF(B92="","",SUMIF(Kastare!B$2:B$2999,B92,Kastare!A$2:A$2999)) -> 1080
A93: 90 | B93: Magnus Härdling | C93: Vaxholm | D93: 659 | F93: 4 | G93: 82.375 | I93: =IF(AG93="","",SUMIF('Tingsryd Open'!U$4:U$400,AG93,'Tingsryd Open'!P$4:P$400)) -> 0 | J93: =IF(AG93="","",SUMIF('Jämjö Open'!U$4:U$400,AG93,'Jämjö Open'!P$4:P$400)) -> 0 | K93: =IF(AG93="","",SUMIF('Viby Open'!U$4:U$400,AG93,'Viby Open'!P$4:P$400)) -> 0 | L93: =IF(AG93="","",SUMIF('Björkenäs Open'!U$4:U$400,AG93,'Björkenäs Open'!P$4:P$400)) -> 0 | M93: =IF(AG93="","",SUMIF('SM ute Lö'!U$4:U$400,AG93,'SM ute Lö'!P$4:P$400)) -> 0 | N93: =IF(AG93="","",SUMIF('SM ute Sö'!U$4:U$401,AG93,'SM ute Sö'!P$4:P$401)) -> 0 | O93: =IF(AG93="","",SUMIF('Roslagen Open'!U$4:U$400,AG93,'Roslagen Open'!P$4:P$400)) -> 0 | P93: =IF(AG93="","",SUMIF('Vaxholm Open'!U$4:U$400,AG93,'Vaxholm Open'!P$4:P$400)) -> 106 | Q93: =IF(AG93="","",SUMIF('Dynapac Open'!U$4:U$400,AG93,'Dynapac Open'!P$4:P$400)) -> 0 | R93: =IF(AG93="","",SUMIF('SmålandsDM ute'!U$4:U$400,AG93,'SmålandsDM ute'!P$4:P$400)) -> 0 | S93: =IF(AG93="","",SUMIF('BlekingeDM ute'!U$4:U$400,AG93,'BlekingeDM ute'!P$4:P$400)) -> 0 | T93: =IF(AG93="","",SUMIF('StockholmsDM ute'!U$4:U$400,AG93,'StockholmsDM ute'!P$4:P$400)) -> 227 | U93: =IF(AG93="","",SUMIF('Åseda Open'!U$4:U$406,AG93,'Åseda Open'!P$4:P$406)) -> 0 | V93: =IF(AG93="","",SUMIF(Höstskon!U$4:U$400,AG93,Höstskon!P$4:P$400)) -> 0 | W93: =IF(AG93="","",SUMIF('Carlskrona Cup'!U$4:U$400,AG93,'Carlskrona Cup'!P$4:P$400)) -> 0 | X93: =IF(AG93="","",SUMIF('Sibbamåla Open'!U$4:U$400,AG93,'Sibbamåla Open'!P$4:P$400)) -> 0 | Y93: =IF(AG93="","",SUMIF('Vaxholm Indoor'!U$4:U$400,AG93,'Vaxholm Indoor'!P$4:P$400)) -> 161 | Z93: =IF(AG93="","",SUMIF('SM inne'!U$4:U$400,AG93,'SM inne'!P$4:P$400)) -> 0 | AA93: =IF(AG93="","",SUMIF('SmålandsDM inne'!U$4:U$400,AG93,'SmålandsDM inne'!P$4:P$400)) -> 0 | AB93: =IF(AG93="","",SUMIF('BlekingeDM inne'!U$4:U$400,AG93,'BlekingeDM inne'!P$4:P$400)) -> 0 | AC93: =IF(AG93="","",SUMIF('StockholmsDM inne'!U$4:U$400,AG93,'StockholmsDM inne'!P$4:P$400)) -> 165 | AD93: =IF(AG93="","",SUMIF(Värendspokalen!U$4:U$400,AG93,Värendspokalen!P$4:P$400)) -> 0 | AG93: =IF(B93="","",SUMIF(Kastare!B$2:B$2999,B93,Kastare!A$2:A$2999)) -> 1273
A94: 91 | B94: Julius Gneupel | C94: Sibbamåla IF | D94: 622 | F94: 3 | G94: 103.6666667 | I94: =IF(AG94="","",SUMIF('Tingsryd Open'!U$4:U$400,AG94,'Tingsryd Open'!P$4:P$400)) -> 0 | J94: =IF(AG94="","",SUMIF('Jämjö Open'!U$4:U$400,AG94,'Jämjö Open'!P$4:P$400)) -> 0 | K94: =IF(AG94="","",SUMIF('Viby Open'!U$4:U$400,AG94,'Viby Open'!P$4:P$400)) -> 0 | L94: =IF(AG94="","",SUMIF('Björkenäs Open'!U$4:U$400,AG94,'Björkenäs Open'!P$4:P$400)) -> 0 | M94: =IF(AG94="","",SUMIF('SM ute Lö'!U$4:U$400,AG94,'SM ute Lö'!P$4:P$400)) -> 168 | N94: =IF(AG94="","",SUMIF('SM ute Sö'!U$4:U$401,AG94,'SM ute Sö'!P$4:P$401)) -> 194 | O94: =IF(AG94="","",SUMIF('Roslagen Open'!U$4:U$400,AG94,'Roslagen Open'!P$4:P$400)) -> 0 | P94: =IF(AG94="","",SUMIF('Vaxholm Open'!U$4:U$400,AG94,'Vaxholm Open'!P$4:P$400)) -> 0 | Q94: =IF(AG94="","",SUMIF('Dynapac Open'!U$4:U$400,AG94,'Dynapac Open'!P$4:P$400)) -> 0 | R94: =IF(AG94="","",SUMIF('SmålandsDM ute'!U$4:U$400,AG94,'SmålandsDM ute'!P$4:P$400)) -> 0 | S94: =IF(AG94="","",SUMIF('BlekingeDM ute'!U$4:U$400,AG94,'BlekingeDM ute'!P$4:P$400)) -> 0 | T94: =IF(AG94="","",SUMIF('StockholmsDM ute'!U$4:U$400,AG94,'StockholmsDM ute'!P$4:P$400)) -> 0 | U94: =IF(AG94="","",SUMIF('Åseda Open'!U$4:U$406,AG94,'Åseda Open'!P$4:P$406)) -> 0 | V94: =IF(AG94="","",SUMIF(Höstskon!U$4:U$400,AG94,Höstskon!P$4:P$400)) -> 0 | W94: =IF(AG94="","",SUMIF('Carlskrona Cup'!U$4:U$400,AG94,'Carlskrona Cup'!P$4:P$400)) -> 0 | X94: =IF(AG94="","",SUMIF('Sibbamåla Open'!U$4:U$400,AG94,'Sibbamåla Open'!P$4:P$400)) -> 0 | Y94: =IF(AG94="","",SUMIF('Vaxholm Indoor'!U$4:U$400,AG94,'Vaxholm Indoor'!P$4:P$400)) -> 0 | Z94: =IF(AG94="","",SUMIF('SM inne'!U$4:U$400,AG94,'SM inne'!P$4:P$400)) -> 0 | AA94: =IF(AG94="","",SUMIF('SmålandsDM inne'!U$4:U$400,AG94,'SmålandsDM inne'!P$4:P$400)) -> 0 | AB94: =IF(AG94="","",SUMIF('BlekingeDM inne'!U$4:U$400,AG94,'BlekingeDM inne'!P$4:P$400)) -> 0 | AC94: =IF(AG94="","",SUMIF('StockholmsDM inne'!U$4:U$400,AG94,'StockholmsDM inne'!P$4:P$400)) -> 0 | AD94: =IF(AG94="","",SUMIF(Värendspokalen!U$4:U$400,AG94,Värendspokalen!P$4:P$400)) -> 260 | AG94: =IF(B94="","",SUMIF(Kastare!B$2:B$2999,B94,Kastare!A$2:A$2999)) -> 1075
A95: 92 | B95: Anders Karlsson | C95: Värends Hsk | D95: 601 | F95: 4 | G95: 75.125 | I95: =IF(AG95="","",SUMIF('Tingsryd Open'!U$4:U$400,AG95,'Tingsryd Open'!P$4:P$400)) -> 0 | J95: =IF(AG95="","",SUMIF('Jämjö Open'!U$4:U$400,AG95,'Jämjö Open'!P$4:P$400)) -> 0 | K95: =IF(AG95="","",SUMIF('Viby Open'!U$4:U$400,AG95,'Viby Open'!P$4:P$400)) -> 0 | L95: =IF(AG95="","",SUMIF('Björkenäs Open'!U$4:U$400,AG95,'Björkenäs Open'!P$4:P$400)) -> 0 | M95: =IF(AG95="","",SUMIF('SM ute Lö'!U$4:U$400,AG95,'SM ute Lö'!P$4:P$400)) -> 0 | N95: =IF(AG95="","",SUMIF('SM ute Sö'!U$4:U$401,AG95,'SM ute Sö'!P$4:P$401)) -> 0 | O95: =IF(AG95="","",SUMIF('Roslagen Open'!U$4:U$400,AG95,'Roslagen Open'!P$4:P$400)) -> 0 | P95: =IF(AG95="","",SUMIF('Vaxholm Open'!U$4:U$400,AG95,'Vaxholm Open'!P$4:P$400)) -> 0 | Q95: =IF(AG95="","",SUMIF('Dynapac Open'!U$4:U$400,AG95,'Dynapac Open'!P$4:P$400)) -> 0 | R95: =IF(AG95="","",SUMIF('SmålandsDM ute'!U$4:U$400,AG95,'SmålandsDM ute'!P$4:P$400)) -> 0 | S95: =IF(AG95="","",SUMIF('BlekingeDM ute'!U$4:U$400,AG95,'BlekingeDM ute'!P$4:P$400)) -> 0 | T95: =IF(AG95="","",SUMIF('StockholmsDM ute'!U$4:U$400,AG95,'StockholmsDM ute'!P$4:P$400)) -> 0 | U95: =IF(AG95="","",SUMIF('Åseda Open'!U$4:U$406,AG95,'Åseda Open'!P$4:P$406)) -> 123 | V95: =IF(AG95="","",SUMIF(Höstskon!U$4:U$400,AG95,Höstskon!P$4:P$400)) -> 0 | W95: =IF(AG95="","",SUMIF('Carlskrona Cup'!U$4:U$400,AG95,'Carlskrona Cup'!P$4:P$400)) -> 87 | X95: =IF(AG95="","",SUMIF('Sibbamåla Open'!U$4:U$400,AG95,'Sibbamåla Open'!P$4:P$400)) -> 213 | Y95: =IF(AG95="","",SUMIF('Vaxholm Indoor'!U$4:U$400,AG95,'Vaxholm Indoor'!P$4:P$400)) -> 0 | Z95: =IF(AG95="","",SUMIF('SM inne'!U$4:U$400,AG95,'SM inne'!P$4:P$400)) -> 178 | AA95: =IF(AG95="","",SUMIF('SmålandsDM inne'!U$4:U$400,AG95,'SmålandsDM inne'!P$4:P$400)) -> 0 | AB95: =IF(AG95="","",SUMIF('BlekingeDM inne'!U$4:U$400,AG95,'BlekingeDM inne'!P$4:P$400)) -> 0 | AC95: =IF(AG95="","",SUMIF('StockholmsDM inne'!U$4:U$400,AG95,'StockholmsDM inne'!P$4:P$400)) -> 0 | AD95: =IF(AG95="","",SUMIF(Värendspokalen!U$4:U$400,AG95,Värendspokalen!P$4:P$400)) -> 0 | AG95: =IF(B95="","",SUMIF(Kastare!B$2:B$2999,B95,Kastare!A$2:A$2999)) -> 1068
A96: 93 | B96: Nisse Hansson | C96: Korpen Nybro | D96: 573 | F96: 6 | G96: 47.75 | I96: =IF(AG96="","",SUMIF('Tingsryd Open'!U$4:U$400,AG96,'Tingsryd Open'!P$4:P$400)) -> 96 | J96: =IF(AG96="","",SUMIF('Jämjö Open'!U$4:U$400,AG96,'Jämjö Open'!P$4:P$400)) -> 135 | K96: =IF(AG96="","",SUMIF('Viby Open'!U$4:U$400,AG96,'Viby Open'!P$4:P$400)) -> 0 | L96: =IF(AG96="","",SUMIF('Björkenäs Open'!U$4:U$400,AG96,'Björkenäs Open'!P$4:P$400)) -> 112 | M96: =IF(AG96="","",SUMIF('SM ute Lö'!U$4:U$400,AG96,'SM ute Lö'!P$4:P$400)) -> 59 | N96: =IF(AG96="","",SUMIF('SM ute Sö'!U$4:U$401,AG96,'SM ute Sö'!P$4:P$401)) -> 106 | O96: =IF(AG96="","",SUMIF('Roslagen Open'!U$4:U$400,AG96,'Roslagen Open'!P$4:P$400)) -> 0 | P96: =IF(AG96="","",SUMIF('Vaxholm Open'!U$4:U$400,AG96,'Vaxholm Open'!P$4:P$400)) -> 0 | Q96: =IF(AG96="","",SUMIF('Dynapac Open'!U$4:U$400,AG96,'Dynapac Open'!P$4:P$400)) -> 0 | R96: =IF(AG96="","",SUMIF('SmålandsDM ute'!U$4:U$400,AG96,'SmålandsDM ute'!P$4:P$400)) -> 65 | S96: =IF(AG96="","",SUMIF('BlekingeDM ute'!U$4:U$400,AG96,'BlekingeDM ute'!P$4:P$400)) -> 0 | T96: =IF(AG96="","",SUMIF('StockholmsDM ute'!U$4:U$400,AG96,'StockholmsDM ute'!P$4:P$400)) -> 0 | U96: =IF(AG96="","",SUMIF('Åseda Open'!U$4:U$406,AG96,'Åseda Open'!P$4:P$406)) -> 0 | V96: =IF(AG96="","",SUMIF(Höstskon!U$4:U$400,AG96,Höstskon!P$4:P$400)) -> 0 | W96: =IF(AG96="","",SUMIF('Carlskrona Cup'!U$4:U$400,AG96,'Carlskrona Cup'!P$4:P$400)) -> 0 | X96: =IF(AG96="","",SUMIF('Sibbamåla Open'!U$4:U$400,AG96,'Sibbamåla Open'!P$4:P$400)) -> 0 | Y96: =IF(AG96="","",SUMIF('Vaxholm Indoor'!U$4:U$400,AG96,'Vaxholm Indoor'!P$4:P$400)) -> 0 | Z96: =IF(AG96="","",SUMIF('SM inne'!U$4:U$400,AG96,'SM inne'!P$4:P$400)) -> 0 | AA96: =IF(AG96="","",SUMIF('SmålandsDM inne'!U$4:U$400,AG96,'SmålandsDM inne'!P$4:P$400)) -> 0 | AB96: =IF(AG96="","",SUMIF('BlekingeDM inne'!U$4:U$400,AG96,'BlekingeDM inne'!P$4:P$400)) -> 0 | AC96: =IF(AG96="","",SUMIF('StockholmsDM inne'!U$4:U$400,AG96,'StockholmsDM inne'!P$4:P$400)) -> 0 | AD96: =IF(AG96="","",SUMIF(Värendspokalen!U$4:U$400,AG96,Värendspokalen!P$4:P$400)) -> 0 | AG96: =IF(B96="","",SUMIF(Kastare!B$2:B$2999,B96,Kastare!A$2:A$2999)) -> 1110
A97: 94 | B97: Sune Olsson | C97: Korpen Nybro | D97: 567 | F97: 3 | G97: 94.5 | I97: =IF(AG97="","",SUMIF('Tingsryd Open'!U$4:U$400,AG97,'Tingsryd Open'!P$4:P$400)) -> 0 | J97: =IF(AG97="","",SUMIF('Jämjö Open'!U$4:U$400,AG97,'Jämjö Open'!P$4:P$400)) -> 0 | K97: =IF(AG97="","",SUMIF('Viby Open'!U$4:U$400,AG97,'Viby Open'!P$4:P$400)) -> 0 | L97: =IF(AG97="","",SUMIF('Björkenäs Open'!U$4:U$400,AG97,'Björkenäs Open'!P$4:P$400)) -> 0 | M97: =IF(AG97="","",SUMIF('SM ute Lö'!U$4:U$400,AG97,'SM ute Lö'!P$4:P$400)) -> 0 | N97: =IF(AG97="","",SUMIF('SM ute Sö'!U$4:U$401,AG97,'SM ute Sö'!P$4:P$401)) -> 0 | O97: =IF(AG97="","",SUMIF('Roslagen Open'!U$4:U$400,AG97,'Roslagen Open'!P$4:P$400)) -> 0 | P97: =IF(AG97="","",SUMIF('Vaxholm Open'!U$4:U$400,AG97,'Vaxholm Open'!P$4:P$400)) -> 0 | Q97: =IF(AG97="","",SUMIF('Dynapac Open'!U$4:U$400,AG97,'Dynapac Open'!P$4:P$400)) -> 0 | R97: =IF(AG97="","",SUMIF('SmålandsDM ute'!U$4:U$400,AG97,'SmålandsDM ute'!P$4:P$400)) -> 0 | S97: =IF(AG97="","",SUMIF('BlekingeDM ute'!U$4:U$400,AG97,'BlekingeDM ute'!P$4:P$400)) -> 0 | T97: =IF(AG97="","",SUMIF('StockholmsDM ute'!U$4:U$400,AG97,'StockholmsDM ute'!P$4:P$400)) -> 0 | U97: =IF(AG97="","",SUMIF('Åseda Open'!U$4:U$406,AG97,'Åseda Open'!P$4:P$406)) -> 166 | V97: =IF(AG97="","",SUMIF(Höstskon!U$4:U$400,AG97,Höstskon!P$4:P$400)) -> 170 | W97: =IF(AG97="","",SUMIF('Carlskrona Cup'!U$4:U$400,AG97,'Carlskrona Cup'!P$4:P$400)) -> 0 | X97: =IF(AG97="","",SUMIF('Sibbamåla Open'!U$4:U$400,AG97,'Sibbamåla Open'!P$4:P$400)) -> 231 | Y97: =IF(AG97="","",SUMIF('Vaxholm Indoor'!U$4:U$400,AG97,'Vaxholm Indoor'!P$4:P$400)) -> 0 | Z97: =IF(AG97="","",SUMIF('SM inne'!U$4:U$400,AG97,'SM inne'!P$4:P$400)) -> 0 | AA97: =IF(AG97="","",SUMIF('SmålandsDM inne'!U$4:U$400,AG97,'SmålandsDM inne'!P$4:P$400)) -> 0 | AB97: =IF(AG97="","",SUMIF('BlekingeDM inne'!U$4:U$400,AG97,'BlekingeDM inne'!P$4:P$400)) -> 0 | AC97: =IF(AG97="","",SUMIF('StockholmsDM inne'!U$4:U$400,AG97,'StockholmsDM inne'!P$4:P$400)) -> 0 | AD97: =IF(AG97="","",SUMIF(Värendspokalen!U$4:U$400,AG97,Värendspokalen!P$4:P$400)) -> 0 | AG97: =IF(B97="","",SUMIF(Kastare!B$2:B$2999,B97,Kastare!A$2:A$2999)) -> 1100
A98: 95 | B98: Sandra Rydell | C98: Värends Hsk | D98: 549 | F98: 3 | G98: 91.5 | I98: =IF(AG98="","",SUMIF('Tingsryd Open'!U$4:U$400,AG98,'Tingsryd Open'!P$4:P$400)) -> 0 | J98: =IF(AG98="","",SUMIF('Jämjö Open'!U$4:U$400,AG98,'Jämjö Open'!P$4:P$400)) -> 0 | K98: =IF(AG98="","",SUMIF('Viby Open'!U$4:U$400,AG98,'Viby Open'!P$4:P$400)) -> 0 | L98: =IF(AG98="","",SUMIF('Björkenäs Open'!U$4:U$400,AG98,'Björkenäs Open'!P$4:P$400)) -> 0 | M98: =IF(AG98="","",SUMIF('SM ute Lö'!U$4:U$400,AG98,'SM ute Lö'!P$4:P$400)) -> 0 | N98: =IF(AG98="","",SUMIF('SM ute Sö'!U$4:U$401,AG98,'SM ute Sö'!P$4:P$401)) -> 0 | O98: =IF(AG98="","",SUMIF('Roslagen Open'!U$4:U$400,AG98,'Roslagen Open'!P$4:P$400)) -> 0 | P98: =IF(AG98="","",SUMIF('Vaxholm Open'!U$4:U$400,AG98,'Vaxholm Open'!P$4:P$400)) -> 0 | Q98: =IF(AG98="","",SUMIF('Dynapac Open'!U$4:U$400,AG98,'Dynapac Open'!P$4:P$400)) -> 0 | R98: =IF(AG98="","",SUMIF('SmålandsDM ute'!U$4:U$400,AG98,'SmålandsDM ute'!P$4:P$400)) -> 168 | S98: =IF(AG98="","",SUMIF('BlekingeDM ute'!U$4:U$400,AG98,'BlekingeDM ute'!P$4:P$400)) -> 0 | T98: =IF(AG98="","",SUMIF('StockholmsDM ute'!U$4:U$400,AG98,'StockholmsDM ute'!P$4:P$400)) -> 0 | U98: =IF(AG98="","",SUMIF('Åseda Open'!U$4:U$406,AG98,'Åseda Open'!P$4:P$406)) -> 0 | V98: =IF(AG98="","",SUMIF(Höstskon!U$4:U$400,AG98,Höstskon!P$4:P$400)) -> 0 | W98: =IF(AG98="","",SUMIF('Carlskrona Cup'!U$4:U$400,AG98,'Carlskrona Cup'!P$4:P$400)) -> 0 | X98: =IF(AG98="","",SUMIF('Sibbamåla Open'!U$4:U$400,AG98,'Sibbamåla Open'!P$4:P$400)) -> 192 | Y98: =IF(AG98="","",SUMIF('Vaxholm Indoor'!U$4:U$400,AG98,'Vaxholm Indoor'!P$4:P$400)) -> 0 | Z98: =IF(AG98="","",SUMIF('SM inne'!U$4:U$400,AG98,'SM inne'!P$4:P$400)) -> 0 | AA98: =IF(AG98="","",SUMIF('SmålandsDM inne'!U$4:U$400,AG98,'SmålandsDM inne'!P$4:P$400)) -> 0 | AB98: =IF(AG98="","",SUMIF('BlekingeDM inne'!U$4:U$400,AG98,'BlekingeDM inne'!P$4:P$400)) -> 0 | AC98: =IF(AG98="","",SUMIF('StockholmsDM inne'!U$4:U$400,AG98,'StockholmsDM inne'!P$4:P$400)) -> 0 | AD98: =IF(AG98="","",SUMIF(Värendspokalen!U$4:U$400,AG98,Värendspokalen!P$4:P$400)) -> 189 | AG98: =IF(B98="","",SUMIF(Kastare!B$2:B$2999,B98,Kastare!A$2:A$2999)) -> 1114
A99: 96 | B99: Malena Rågfeldt | C99: Balders HSK | D99: =IF(B99="",0,IF($F99>0,LARGE($J99:$AE99,1),"")+IF($F99>0,LARGE($J99:$AE99,2),"")+IF($F99>0,LARGE($J99:$AE99,3),"")+IF($F99>0,LARGE($J99:$AE99,4),"")+IF($F99>0,LARGE($J99:$AE99,5),"")+IF($F99>0,LARGE($J99:$AE99,6),"")+IF($F99>0,LARGE($J99:$AE99,7),"")+IF($F99>0,LARGE($J99:$AE99,8),"")+IF($F99>0,LARGE($J99:$AE99,9),"")+IF($F99>0,LARGE($J99:$AE99,10),"")+IF($F99>0,LARGE($J99:$AE99,11),"")+IF($F99>0,LARGE($J99:$AE99,12),"")) -> 539 | F99: =COUNTIF(J99:AE99,">0") -> 3 | G99: =IF(F99=0,"",SUM(D99)/(F99*2)) -> 89.83333333 | I99: =IF(AG99="","",SUMIF('Tingsryd Open'!U$4:U$400,AG99,'Tingsryd Open'!P$4:P$400)) -> 0 | J99: =IF(AG99="","",SUMIF('Jämjö Open'!U$4:U$400,AG99,'Jämjö Open'!P$4:P$400)) -> 0 | K99: =IF(AG99="","",SUMIF('Viby Open'!U$4:U$400,AG99,'Viby Open'!P$4:P$400)) -> 0 | L99: =IF(AG99="","",SUMIF('Björkenäs Open'!U$4:U$400,AG99,'Björkenäs Open'!P$4:P$400)) -> 0 | M99: =IF(AG99="","",SUMIF('SM ute Lö'!U$4:U$400,AG99,'SM ute Lö'!P$4:P$400)) -> 142 | N99: =IF(AG99="","",SUMIF('SM ute Sö'!U$4:U$401,AG99,'SM ute Sö'!P$4:P$401)) -> 181 | O99: =IF(AG99="","",SUMIF('Roslagen Open'!U$4:U$400,AG99,'Roslagen Open'!P$4:P$400)) -> 216 | P99: =IF(AG99="","",SUMIF('Vaxholm Open'!U$4:U$400,AG99,'Vaxholm Open'!P$4:P$400)) -> 0 | Q99: =IF(AG99="","",SUMIF('Dynapac Open'!U$4:U$400,AG99,'Dynapac Open'!P$4:P$400)) -> 0 | R99: =IF(AG99="","",SUMIF('SmålandsDM ute'!U$4:U$400,AG99,'SmålandsDM ute'!P$4:P$400)) -> 0 | S99: =IF(AG99="","",SUMIF('BlekingeDM ute'!U$4:U$400,AG99,'BlekingeDM ute'!P$4:P$400)) -> 0 | T99: =IF(AG99="","",SUMIF('StockholmsDM ute'!U$4:U$400,AG99,'StockholmsDM ute'!P$4:P$400)) -> 0 | U99: =IF(AG99="","",SUMIF('Åseda Open'!U$4:U$406,AG99,'Åseda Open'!P$4:P$406)) -> 0 | V99: =IF(AG99="","",SUMIF(Höstskon!U$4:U$400,AG99,Höstskon!P$4:P$400)) -> 0 | W99: =IF(AG99="","",SUMIF('Carlskrona Cup'!U$4:U$400,AG99,'Carlskrona Cup'!P$4:P$400)) -> 0 | X99: =IF(AG99="","",SUMIF('Sibbamåla Open'!U$4:U$400,AG99,'Sibbamåla Open'!P$4:P$400)) -> 0 | Y99: =IF(AG99="","",SUMIF('Vaxholm Indoor'!U$4:U$400,AG99,'Vaxholm Indoor'!P$4:P$400)) -> 0 | Z99: =IF(AG99="","",SUMIF('SM inne'!U$4:U$400,AG99,'SM inne'!P$4:P$400)) -> 0 | AA99: =IF(AG99="","",SUMIF('SmålandsDM inne'!U$4:U$400,AG99,'SmålandsDM inne'!P$4:P$400)) -> 0 | AB99: =IF(AG99="","",SUMIF('BlekingeDM inne'!U$4:U$400,AG99,'BlekingeDM inne'!P$4:P$400)) -> 0 | AC99: =IF(AG99="","",SUMIF('StockholmsDM inne'!U$4:U$400,AG99,'StockholmsDM inne'!P$4:P$400)) -> 0 | AD99: =IF(AG99="","",SUMIF(Värendspokalen!U$4:U$400,AG99,Värendspokalen!P$4:P$400)) -> 0 | AG99: =IF(B99="","",SUMIF(Kastare!B$2:B$2999,B99,Kastare!A$2:A$2999)) -> 1260
A100: 97 | B100: Ulf Svensson | C100: Jämjö Hsk | D100: =IF(B100="",0,IF($F100>0,LARGE($I100:$AD100,1),"")+IF($F100>0,LARGE($I100:$AD100,2),"")+IF($F100>0,LARGE($I100:$AD100,3),"")+IF($F100>0,LARGE($I100:$AD100,4),"")+IF($F100>0,LARGE($I100:$AD100,5),"")+IF($F100>0,LARGE($I100:$AD100,6),"")+IF($F100>0,LARGE($I100:$AD100,7),"")+IF($F100>0,LARGE($I100:$AD100,8),"")+IF($F100>0,LARGE($I100:$AD100,9),"")+IF($F100>0,LARGE($I100:$AD100,10),"")+IF($F100>0,LARGE($I100:$AD100,11),"")+IF($F100>0,LARGE($I100:$AD100,12),"")) -> 516 | F100: =COUNTIF(I100:AD100,">0") -> 3 | G100: =IF(F100=0,"",SUM(H100:AD100)/(F100*2)) -> 86 | I100: =IF(AG100="","",SUMIF('Tingsryd Open'!U$4:U$400,AG100,'Tingsryd Open'!P$4:P$400)) -> 0 | J100: =IF(AG100="","",SUMIF('Jämjö Open'!U$4:U$400,AG100,'Jämjö Open'!P$4:P$400)) -> 0 | K100: =IF(AG100="","",SUMIF('Viby Open'!U$4:U$400,AG100,'Viby Open'!P$4:P$400)) -> 0 | L100: =IF(AG100="","",SUMIF('Björkenäs Open'!U$4:U$400,AG100,'Björkenäs Open'!P$4:P$400)) -> 0 | M100: =IF(AG100="","",SUMIF('SM ute Lö'!U$4:U$400,AG100,'SM ute Lö'!P$4:P$400)) -> 0 | N100: =IF(AG100="","",SUMIF('SM ute Sö'!U$4:U$401,AG100,'SM ute Sö'!P$4:P$401)) -> 0 | O100: =IF(AG100="","",SUMIF('Roslagen Open'!U$4:U$400,AG100,'Roslagen Open'!P$4:P$400)) -> 0 | P100: =IF(AG100="","",SUMIF('Vaxholm Open'!U$4:U$400,AG100,'Vaxholm Open'!P$4:P$400)) -> 0 | Q100: =IF(AG100="","",SUMIF('Dynapac Open'!U$4:U$400,AG100,'Dynapac Open'!P$4:P$400)) -> 0 | R100: =IF(AG100="","",SUMIF('SmålandsDM ute'!U$4:U$400,AG100,'SmålandsDM ute'!P$4:P$400)) -> 0 | S100: =IF(AG100="","",SUMIF('BlekingeDM ute'!U$4:U$400,AG100,'BlekingeDM ute'!P$4:P$400)) -> 0 | T100: =IF(AG100="","",SUMIF('StockholmsDM ute'!U$4:U$400,AG100,'StockholmsDM ute'!P$4:P$400)) -> 0 | U100: =IF(AG100="","",SUMIF('Åseda Open'!U$4:U$406,AG100,'Åseda Open'!P$4:P$406)) -> 0 | V100: =IF(AG100="","",SUMIF(Höstskon!U$4:U$400,AG100,Höstskon!P$4:P$400)) -> 0 | W100: =IF(AG100="","",SUMIF('Carlskrona Cup'!U$4:U$400,AG100,'Carlskrona Cup'!P$4:P$400)) -> 0 | X100: =IF(AG100="","",SUMIF('Sibbamåla Open'!U$4:U$400,AG100,'Sibbamåla Open'!P$4:P$400)) -> 0 | Y100: =IF(AG100="","",SUMIF('Vaxholm Indoor'!U$4:U$400,AG100,'Vaxholm Indoor'!P$4:P$400)) -> 0 | Z100: =IF(AG100="","",SUMIF('SM inne'!U$4:U$400,AG100,'SM inne'!P$4:P$400)) -> 133 | AA100: =IF(AG100="","",SUMIF('SmålandsDM inne'!U$4:U$400,AG100,'SmålandsDM inne'!P$4:P$400)) -> 0 | AB100: =IF(AG100="","",SUMIF('BlekingeDM inne'!U$4:U$400,AG100,'BlekingeDM inne'!P$4:P$400)) -> 190 | AC100: =IF(AG100="","",SUMIF('StockholmsDM inne'!U$4:U$400,AG100,'StockholmsDM inne'!P$4:P$400)) -> 0 | AD100: =IF(AG100="","",SUMIF(Värendspokalen!U$4:U$400,AG100,Värendspokalen!P$4:P$400)) -> 193 | AG100: =IF(B100="","",SUMIF(Kastare!B$2:B$2999,B100,Kastare!A$2:A$2999)) -> 1306
A101: 98 | B101: Bo Petersson | C101: Korpen Nybro | D101: 503 | F101: 4 | G101: 62.875 | I101: =IF(AG101="","",SUMIF('Tingsryd Open'!U$4:U$400,AG101,'Tingsryd Open'!P$4:P$400)) -> 0 | J101: =IF(AG101="","",SUMIF('Jämjö Open'!U$4:U$400,AG101,'Jämjö Open'!P$4:P$400)) -> 137 | K101: =IF(AG101="","",SUMIF('Viby Open'!U$4:U$400,AG101,'Viby Open'!P$4:P$400)) -> 0 | L101: =IF(AG101="","",SUMIF('Björkenäs Open'!U$4:U$400,AG101,'Björkenäs Open'!P$4:P$400)) -> 0 | M101: =IF(AG101="","",SUMIF('SM ute Lö'!U$4:U$400,AG101,'SM ute Lö'!P$4:P$400)) -> 135 | N101: =IF(AG101="","",SUMIF('SM ute Sö'!U$4:U$401,AG101,'SM ute Sö'!P$4:P$401)) -> 123 | O101: =IF(AG101="","",SUMIF('Roslagen Open'!U$4:U$400,AG101,'Roslagen Open'!P$4:P$400)) -> 0 | P101: =IF(AG101="","",SUMIF('Vaxholm Open'!U$4:U$400,AG101,'Vaxholm Open'!P$4:P$400)) -> 0 | Q101: =IF(AG101="","",SUMIF('Dynapac Open'!U$4:U$400,AG101,'Dynapac Open'!P$4:P$400)) -> 0 | R101: =IF(AG101="","",SUMIF('SmålandsDM ute'!U$4:U$400,AG101,'SmålandsDM ute'!P$4:P$400)) -> 0 | S101: =IF(AG101="","",SUMIF('BlekingeDM ute'!U$4:U$400,AG101,'BlekingeDM ute'!P$4:P$400)) -> 0 | T101: =IF(AG101="","",SUMIF('StockholmsDM ute'!U$4:U$400,AG101,'StockholmsDM ute'!P$4:P$400)) -> 0 | U101: =IF(AG101="","",SUMIF('Åseda Open'!U$4:U$406,AG101,'Åseda Open'!P$4:P$406)) -> 0 | V101: =IF(AG101="","",SUMIF(Höstskon!U$4:U$400,AG101,Höstskon!P$4:P$400)) -> 108 | W101: =IF(AG101="","",SUMIF('Carlskrona Cup'!U$4:U$400,AG101,'Carlskrona Cup'!P$4:P$400)) -> 0 | X101: =IF(AG101="","",SUMIF('Sibbamåla Open'!U$4:U$400,AG101,'Sibbamåla Open'!P$4:P$400)) -> 0 | Y101: =IF(AG101="","",SUMIF('Vaxholm Indoor'!U$4:U$400,AG101,'Vaxholm Indoor'!P$4:P$400)) -> 0 | Z101: =IF(AG101="","",SUMIF('SM inne'!U$4:U$400,AG101,'SM inne'!P$4:P$400)) -> 0 | AA101: =IF(AG101="","",SUMIF('SmålandsDM inne'!U$4:U$400,AG101,'SmålandsDM inne'!P$4:P$400)) -> 0 | AB101: =IF(AG101="","",SUMIF('BlekingeDM inne'!U$4:U$400,AG101,'BlekingeDM inne'!P$4:P$400)) -> 0 | AC101: =IF(AG101="","",SUMIF('StockholmsDM inne'!U$4:U$400,AG101,'StockholmsDM inne'!P$4:P$400)) -> 0 | AD101: =IF(AG101="","",SUMIF(Värendspokalen!U$4:U$400,AG101,Värendspokalen!P$4:P$400)) -> 0 | AG101: =IF(B101="","",SUMIF(Kastare!B$2:B$2999,B101,Kastare!A$2:A$2999)) -> 1048
A102: 99 | B102: Göran Örjebo | C102: Vaxholm Hsk | D102: 481 | F102: 4 | G102: 60.125 | I102: =IF(AG102="","",SUMIF('Tingsryd Open'!U$4:U$400,AG102,'Tingsryd Open'!P$4:P$400)) -> 0 | J102: =IF(AG102="","",SUMIF('Jämjö Open'!U$4:U$400,AG102,'Jämjö Open'!P$4:P$400)) -> 0 | K102: =IF(AG102="","",SUMIF('Viby Open'!U$4:U$400,AG102,'Viby Open'!P$4:P$400)) -> 0 | L102: =IF(AG102="","",SUMIF('Björkenäs Open'!U$4:U$400,AG102,'Björkenäs Open'!P$4:P$400)) -> 0 | M102: =IF(AG102="","",SUMIF('SM ute Lö'!U$4:U$400,AG102,'SM ute Lö'!P$4:P$400)) -> 0 | N102: =IF(AG102="","",SUMIF('SM ute Sö'!U$4:U$401,AG102,'SM ute Sö'!P$4:P$401)) -> 0 | O102: =IF(AG102="","",SUMIF('Roslagen Open'!U$4:U$400,AG102,'Roslagen Open'!P$4:P$400)) -> 0 | P102: =IF(AG102="","",SUMIF('Vaxholm Open'!U$4:U$400,AG102,'Vaxholm Open'!P$4:P$400)) -> 112 | Q102: =IF(AG102="","",SUMIF('Dynapac Open'!U$4:U$400,AG102,'Dynapac Open'!P$4:P$400)) -> 0 | R102: =IF(AG102="","",SUMIF('SmålandsDM ute'!U$4:U$400,AG102,'SmålandsDM ute'!P$4:P$400)) -> 0 | S102: =IF(AG102="","",SUMIF('BlekingeDM ute'!U$4:U$400,AG102,'BlekingeDM ute'!P$4:P$400)) -> 0 | T102: =IF(AG102="","",SUMIF('StockholmsDM ute'!U$4:U$400,AG102,'StockholmsDM ute'!P$4:P$400)) -> 227 | U102: =IF(AG102="","",SUMIF('Åseda Open'!U$4:U$406,AG102,'Åseda Open'!P$4:P$406)) -> 0 | V102: =IF(AG102="","",SUMIF(Höstskon!U$4:U$400,AG102,Höstskon!P$4:P$400)) -> 0 | W102: =IF(AG102="","",SUMIF('Carlskrona Cup'!U$4:U$400,AG102,'Carlskrona Cup'!P$4:P$400)) -> 0 | X102: =IF(AG102="","",SUMIF('Sibbamåla Open'!U$4:U$400,AG102,'Sibbamåla Open'!P$4:P$400)) -> 0 | Y102: =IF(AG102="","",SUMIF('Vaxholm Indoor'!U$4:U$400,AG102,'Vaxholm Indoor'!P$4:P$400)) -> 58 | Z102: =IF(AG102="","",SUMIF('SM inne'!U$4:U$400,AG102,'SM inne'!P$4:P$400)) -> 0 | AA102: =IF(AG102="","",SUMIF('SmålandsDM inne'!U$4:U$400,AG102,'SmålandsDM inne'!P$4:P$400)) -> 0 | AB102: =IF(AG102="","",SUMIF('BlekingeDM inne'!U$4:U$400,AG102,'BlekingeDM inne'!P$4:P$400)) -> 0 | AC102: =IF(AG102="","",SUMIF('StockholmsDM inne'!U$4:U$400,AG102,'StockholmsDM inne'!P$4:P$400)) -> 84 | AD102: =IF(AG102="","",SUMIF(Värendspokalen!U$4:U$400,AG102,Värendspokalen!P$4:P$400)) -> 0 | AG102: =IF(B102="","",SUMIF(Kastare!B$2:B$2999,B102,Kastare!A$2:A$2999)) -> 1102
A103: 100 | B103: Billy Klarström | C103: Team Småland | D103: 467 | F103: 3 | G103: 77.83333333 | I103: =IF(AG103="","",SUMIF('Tingsryd Open'!U$4:U$400,AG103,'Tingsryd Open'!P$4:P$400)) -> 169 | J103: =IF(AG103="","",SUMIF('Jämjö Open'!U$4:U$400,AG103,'Jämjö Open'!P$4:P$400)) -> 0 | K103: =IF(AG103="","",SUMIF('Viby Open'!U$4:U$400,AG103,'Viby Open'!P$4:P$400)) -> 0 | L103: =IF(AG103="","",SUMIF('Björkenäs Open'!U$4:U$400,AG103,'Björkenäs Open'!P$4:P$400)) -> 0 | M103: =IF(AG103="","",SUMIF('SM ute Lö'!U$4:U$400,AG103,'SM ute Lö'!P$4:P$400)) -> 0 | N103: =IF(AG103="","",SUMIF('SM ute Sö'!U$4:U$401,AG103,'SM ute Sö'!P$4:P$401)) -> 0 | O103: =IF(AG103="","",SUMIF('Roslagen Open'!U$4:U$400,AG103,'Roslagen Open'!P$4:P$400)) -> 0 | P103: =IF(AG103="","",SUMIF('Vaxholm Open'!U$4:U$400,AG103,'Vaxholm Open'!P$4:P$400)) -> 0 | Q103: =IF(AG103="","",SUMIF('Dynapac Open'!U$4:U$400,AG103,'Dynapac Open'!P$4:P$400)) -> 0 | R103: =IF(AG103="","",SUMIF('SmålandsDM ute'!U$4:U$400,AG103,'SmålandsDM ute'!P$4:P$400)) -> 151 | S103: =IF(AG103="","",SUMIF('BlekingeDM ute'!U$4:U$400,AG103,'BlekingeDM ute'!P$4:P$400)) -> 0 | T103: =IF(AG103="","",SUMIF('StockholmsDM ute'!U$4:U$400,AG103,'StockholmsDM ute'!P$4:P$400)) -> 0 | U103: =IF(AG103="","",SUMIF('Åseda Open'!U$4:U$406,AG103,'Åseda Open'!P$4:P$406)) -> 0 | V103: =IF(AG103="","",SUMIF(Höstskon!U$4:U$400,AG103,Höstskon!P$4:P$400)) -> 0 | W103: =IF(AG103="","",SUMIF('Carlskrona Cup'!U$4:U$400,AG103,'Carlskrona Cup'!P$4:P$400)) -> 0 | X103: =IF(AG103="","",SUMIF('Sibbamåla Open'!U$4:U$400,AG103,'Sibbamåla Open'!P$4:P$400)) -> 0 | Y103: =IF(AG103="","",SUMIF('Vaxholm Indoor'!U$4:U$400,AG103,'Vaxholm Indoor'!P$4:P$400)) -> 0 | Z103: =IF(AG103="","",SUMIF('SM inne'!U$4:U$400,AG103,'SM inne'!P$4:P$400)) -> 0 | AA103: =IF(AG103="","",SUMIF('SmålandsDM inne'!U$4:U$400,AG103,'SmålandsDM inne'!P$4:P$400)) -> 0 | AB103: =IF(AG103="","",SUMIF('BlekingeDM inne'!U$4:U$400,AG103,'BlekingeDM inne'!P$4:P$400)) -> 0 | AC103: =IF(AG103="","",SUMIF('StockholmsDM inne'!U$4:U$400,AG103,'StockholmsDM inne'!P$4:P$400)) -> 0 | AD103: =IF(AG103="","",SUMIF(Värendspokalen!U$4:U$400,AG103,Värendspokalen!P$4:P$400)) -> 147 | AG103: =IF(B103="","",SUMIF(Kastare!B$2:B$2999,B103,Kastare!A$2:A$2999)) -> 1078
A104: 101 | B104: Peter Olsson 2 | C104: Dynapac | D104: 439 | F104: 3 | G104: 73.16666667 | I104: =IF(AG104="","",SUMIF('Tingsryd Open'!U$4:U$400,AG104,'Tingsryd Open'!P$4:P$400)) -> 0 | J104: =IF(AG104="","",SUMIF('Jämjö Open'!U$4:U$400,AG104,'Jämjö Open'!P$4:P$400)) -> 0 | K104: =IF(AG104="","",SUMIF('Viby Open'!U$4:U$400,AG104,'Viby Open'!P$4:P$400)) -> 0 | L104: =IF(AG104="","",SUMIF('Björkenäs Open'!U$4:U$400,AG104,'Björkenäs Open'!P$4:P$400)) -> 0 | M104: =IF(AG104="","",SUMIF('SM ute Lö'!U$4:U$400,AG104,'SM ute Lö'!P$4:P$400)) -> 0 | N104: =IF(AG104="","",SUMIF('SM ute Sö'!U$4:U$401,AG104,'SM ute Sö'!P$4:P$401)) -> 0 | O104: =IF(AG104="","",SUMIF('Roslagen Open'!U$4:U$400,AG104,'Roslagen Open'!P$4:P$400)) -> 0 | P104: =IF(AG104="","",SUMIF('Vaxholm Open'!U$4:U$400,AG104,'Vaxholm Open'!P$4:P$400)) -> 0 | Q104: =IF(AG104="","",SUMIF('Dynapac Open'!U$4:U$400,AG104,'Dynapac Open'!P$4:P$400)) -> 131 | R104: =IF(AG104="","",SUMIF('SmålandsDM ute'!U$4:U$400,AG104,'SmålandsDM ute'!P$4:P$400)) -> 0 | S104: =IF(AG104="","",SUMIF('BlekingeDM ute'!U$4:U$400,AG104,'BlekingeDM ute'!P$4:P$400)) -> 0 | T104: =IF(AG104="","",SUMIF('StockholmsDM ute'!U$4:U$400,AG104,'StockholmsDM ute'!P$4:P$400)) -> 0 | U104: =IF(AG104="","",SUMIF('Åseda Open'!U$4:U$406,AG104,'Åseda Open'!P$4:P$406)) -> 0 | V104: =IF(AG104="","",SUMIF(Höstskon!U$4:U$400,AG104,Höstskon!P$4:P$400)) -> 0 | W104: =IF(AG104="","",SUMIF('Carlskrona Cup'!U$4:U$400,AG104,'Carlskrona Cup'!P$4:P$400)) -> 120 | X104: =IF(AG104="","",SUMIF('Sibbamåla Open'!U$4:U$400,AG104,'Sibbamåla Open'!P$4:P$400)) -> 188 | Y104: =IF(AG104="","",SUMIF('Vaxholm Indoor'!U$4:U$400,AG104,'Vaxholm Indoor'!P$4:P$400)) -> 0 | Z104: =IF(AG104="","",SUMIF('SM inne'!U$4:U$400,AG104,'SM inne'!P$4:P$400)) -> 0 | AA104: =IF(AG104="","",SUMIF('SmålandsDM inne'!U$4:U$400,AG104,'SmålandsDM inne'!P$4:P$400)) -> 0 | AB104: =IF(AG104="","",SUMIF('BlekingeDM inne'!U$4:U$400,AG104,'BlekingeDM inne'!P$4:P$400)) -> 0 | AC104: =IF(AG104="","",SUMIF('StockholmsDM inne'!U$4:U$400,AG104,'StockholmsDM inne'!P$4:P$400)) -> 0 | AD104: =IF(AG104="","",SUMIF(Värendspokalen!U$4:U$400,AG104,Värendspokalen!P$4:P$400)) -> 0 | AG104: =IF(B104="","",SUMIF(Kastare!B$2:B$2999,B104,Kastare!A$2:A$2999)) -> 1277
A105: 102 | B105: Günther Iraschko | C105: Växjö Hsk | D105: 434 | F105: 2 | G105: 108.5 | I105: =IF(AG105="","",SUMIF('Tingsryd Open'!U$4:U$400,AG105,'Tingsryd Open'!P$4:P$400)) -> 0 | J105: =IF(AG105="","",SUMIF('Jämjö Open'!U$4:U$400,AG105,'Jämjö Open'!P$4:P$400)) -> 0 | K105: =IF(AG105="","",SUMIF('Viby Open'!U$4:U$400,AG105,'Viby Open'!P$4:P$400)) -> 0 | L105: =IF(AG105="","",SUMIF('Björkenäs Open'!U$4:U$400,AG105,'Björkenäs Open'!P$4:P$400)) -> 0 | M105: =IF(AG105="","",SUMIF('SM ute Lö'!U$4:U$400,AG105,'SM ute Lö'!P$4:P$400)) -> 199 | N105: =IF(AG105="","",SUMIF('SM ute Sö'!U$4:U$401,AG105,'SM ute Sö'!P$4:P$401)) -> 235 | O105: =IF(AG105="","",SUMIF('Roslagen Open'!U$4:U$400,AG105,'Roslagen Open'!P$4:P$400)) -> 0 | P105: =IF(AG105="","",SUMIF('Vaxholm Open'!U$4:U$400,AG105,'Vaxholm Open'!P$4:P$400)) -> 0 | Q105: =IF(AG105="","",SUMIF('Dynapac Open'!U$4:U$400,AG105,'Dynapac Open'!P$4:P$400)) -> 0 | R105: =IF(AG105="","",SUMIF('SmålandsDM ute'!U$4:U$400,AG105,'SmålandsDM ute'!P$4:P$400)) -> 0 | S105: =IF(AG105="","",SUMIF('BlekingeDM ute'!U$4:U$400,AG105,'BlekingeDM ute'!P$4:P$400)) -> 0 | T105: =IF(AG105="","",SUMIF('StockholmsDM ute'!U$4:U$400,AG105,'StockholmsDM ute'!P$4:P$400)) -> 0 | U105: =IF(AG105="","",SUMIF('Åseda Open'!U$4:U$406,AG105,'Åseda Open'!P$4:P$406)) -> 0 | V105: =IF(AG105="","",SUMIF(Höstskon!U$4:U$400,AG105,Höstskon!P$4:P$400)) -> 0 | W105: =IF(AG105="","",SUMIF('Carlskrona Cup'!U$4:U$400,AG105,'Carlskrona Cup'!P$4:P$400)) -> 0 | X105: =IF(AG105="","",SUMIF('Sibbamåla Open'!U$4:U$400,AG105,'Sibbamåla Open'!P$4:P$400)) -> 0 | Y105: =IF(AG105="","",SUMIF('Vaxholm Indoor'!U$4:U$400,AG105,'Vaxholm Indoor'!P$4:P$400)) -> 0 | Z105: =IF(AG105="","",SUMIF('SM inne'!U$4:U$400,AG105,'SM inne'!P$4:P$400)) -> 0 | AA105: =IF(AG105="","",SUMIF('SmålandsDM inne'!U$4:U$400,AG105,'SmålandsDM inne'!P$4:P$400)) -> 0 | AB105: =IF(AG105="","",SUMIF('BlekingeDM inne'!U$4:U$400,AG105,'BlekingeDM inne'!P$4:P$400)) -> 0 | AC105: =IF(AG105="","",SUMIF('StockholmsDM inne'!U$4:U$400,AG105,'StockholmsDM inne'!P$4:P$400)) -> 0 | AD105: =IF(AG105="","",SUMIF(Värendspokalen!U$4:U$400,AG105,Värendspokalen!P$4:P$400)) -> 0 | AG105: =IF(B105="","",SUMIF(Kastare!B$2:B$2999,B105,Kastare!A$2:A$2999)) -> 1056
A106: 103 | B106: Fredrik Lundin | C106: Lanternan | D106: 431 | F106: 2 | G106: 107.75 | I106: =IF(AG106="","",SUMIF('Tingsryd Open'!U$4:U$400,AG106,'Tingsryd Open'!P$4:P$400)) -> 0 | J106: =IF(AG106="","",SUMIF('Jämjö Open'!U$4:U$400,AG106,'Jämjö Open'!P$4:P$400)) -> 0 | K106: =IF(AG106="","",SUMIF('Viby Open'!U$4:U$400,AG106,'Viby Open'!P$4:P$400)) -> 0 | L106: =IF(AG106="","",SUMIF('Björkenäs Open'!U$4:U$400,AG106,'Björkenäs Open'!P$4:P$400)) -> 227 | M106: =IF(AG106="","",SUMIF('SM ute Lö'!U$4:U$400,AG106,'SM ute Lö'!P$4:P$400)) -> 0 | N106: =IF(AG106="","",SUMIF('SM ute Sö'!U$4:U$401,AG106,'SM ute Sö'!P$4:P$401)) -> 204 | O106: =IF(AG106="","",SUMIF('Roslagen Open'!U$4:U$400,AG106,'Roslagen Open'!P$4:P$400)) -> 0 | P106: =IF(AG106="","",SUMIF('Vaxholm Open'!U$4:U$400,AG106,'Vaxholm Open'!P$4:P$400)) -> 0 | Q106: =IF(AG106="","",SUMIF('Dynapac Open'!U$4:U$400,AG106,'Dynapac Open'!P$4:P$400)) -> 0 | R106: =IF(AG106="","",SUMIF('SmålandsDM ute'!U$4:U$400,AG106,'SmålandsDM ute'!P$4:P$400)) -> 0 | S106: =IF(AG106="","",SUMIF('BlekingeDM ute'!U$4:U$400,AG106,'BlekingeDM ute'!P$4:P$400)) -> 0 | T106: =IF(AG106="","",SUMIF('StockholmsDM ute'!U$4:U$400,AG106,'StockholmsDM ute'!P$4:P$400)) -> 0 | U106: =IF(AG106="","",SUMIF('Åseda Open'!U$4:U$406,AG106,'Åseda Open'!P$4:P$406)) -> 0 | V106: =IF(AG106="","",SUMIF(Höstskon!U$4:U$400,AG106,Höstskon!P$4:P$400)) -> 0 | W106: =IF(AG106="","",SUMIF('Carlskrona Cup'!U$4:U$400,AG106,'Carlskrona Cup'!P$4:P$400)) -> 0 | X106: =IF(AG106="","",SUMIF('Sibbamåla Open'!U$4:U$400,AG106,'Sibbamåla Open'!P$4:P$400)) -> 0 | Y106: =IF(AG106="","",SUMIF('Vaxholm Indoor'!U$4:U$400,AG106,'Vaxholm Indoor'!P$4:P$400)) -> 0 | Z106: =IF(AG106="","",SUMIF('SM inne'!U$4:U$400,AG106,'SM inne'!P$4:P$400)) -> 0 | AA106: =IF(AG106="","",SUMIF('SmålandsDM inne'!U$4:U$400,AG106,'SmålandsDM inne'!P$4:P$400)) -> 0 | AB106: =IF(AG106="","",SUMIF('BlekingeDM inne'!U$4:U$400,AG106,'BlekingeDM inne'!P$4:P$400)) -> 0 | AC106: =IF(AG106="","",SUMIF('StockholmsDM inne'!U$4:U$400,AG106,'StockholmsDM inne'!P$4:P$400)) -> 0 | AD106: =IF(AG106="","",SUMIF(Värendspokalen!U$4:U$400,AG106,Värendspokalen!P$4:P$400)) -> 0 | AG106: =IF(B106="","",SUMIF(Kastare!B$2:B$2999,B106,Kastare!A$2:A$2999)) -> 1250
A107: 104 | B107: Roland Andreasson | C107: Lanternan | D107: 421 | F107: 2 | G107: 105.25 | I107: =IF(AG107="","",SUMIF('Tingsryd Open'!U$4:U$400,AG107,'Tingsryd Open'!P$4:P$400)) -> 0 | J107: =IF(AG107="","",SUMIF('Jämjö Open'!U$4:U$400,AG107,'Jämjö Open'!P$4:P$400)) -> 0 | K107: =IF(AG107="","",SUMIF('Viby Open'!U$4:U$400,AG107,'Viby Open'!P$4:P$400)) -> 0 | L107: =IF(AG107="","",SUMIF('Björkenäs Open'!U$4:U$400,AG107,'Björkenäs Open'!P$4:P$400)) -> 0 | M107: =IF(AG107="","",SUMIF('SM ute Lö'!U$4:U$400,AG107,'SM ute Lö'!P$4:P$400)) -> 0 | N107: =IF(AG107="","",SUMIF('SM ute Sö'!U$4:U$401,AG107,'SM ute Sö'!P$4:P$401)) -> 0 | O107: =IF(AG107="","",SUMIF('Roslagen Open'!U$4:U$400,AG107,'Roslagen Open'!P$4:P$400)) -> 0 | P107: =IF(AG107="","",SUMIF('Vaxholm Open'!U$4:U$400,AG107,'Vaxholm Open'!P$4:P$400)) -> 0 | Q107: =IF(AG107="","",SUMIF('Dynapac Open'!U$4:U$400,AG107,'Dynapac Open'!P$4:P$400)) -> 0 | R107: =IF(AG107="","",SUMIF('SmålandsDM ute'!U$4:U$400,AG107,'SmålandsDM ute'!P$4:P$400)) -> 0 | S107: =IF(AG107="","",SUMIF('BlekingeDM ute'!U$4:U$400,AG107,'BlekingeDM ute'!P$4:P$400)) -> 0 | T107: =IF(AG107="","",SUMIF('StockholmsDM ute'!U$4:U$400,AG107,'StockholmsDM ute'!P$4:P$400)) -> 0 | U107: =IF(AG107="","",SUMIF('Åseda Open'!U$4:U$406,AG107,'Åseda Open'!P$4:P$406)) -> 0 | V107: =IF(AG107="","",SUMIF(Höstskon!U$4:U$400,AG107,Höstskon!P$4:P$400)) -> 0 | W107: =IF(AG107="","",SUMIF('Carlskrona Cup'!U$4:U$400,AG107,'Carlskrona Cup'!P$4:P$400)) -> 259 | X107: =IF(AG107="","",SUMIF('Sibbamåla Open'!U$4:U$400,AG107,'Sibbamåla Open'!P$4:P$400)) -> 0 | Y107: =IF(AG107="","",SUMIF('Vaxholm Indoor'!U$4:U$400,AG107,'Vaxholm Indoor'!P$4:P$400)) -> 0 | Z107: =IF(AG107="","",SUMIF('SM inne'!U$4:U$400,AG107,'SM inne'!P$4:P$400)) -> 162 | AA107: =IF(AG107="","",SUMIF('SmålandsDM inne'!U$4:U$400,AG107,'SmålandsDM inne'!P$4:P$400)) -> 0 | AB107: =IF(AG107="","",SUMIF('BlekingeDM inne'!U$4:U$400,AG107,'BlekingeDM inne'!P$4:P$400)) -> 0 | AC107: =IF(AG107="","",SUMIF('StockholmsDM inne'!U$4:U$400,AG107,'StockholmsDM inne'!P$4:P$400)) -> 0 | AD107: =IF(AG107="","",SUMIF(Värendspokalen!U$4:U$400,AG107,Värendspokalen!P$4:P$400)) -> 0 | AG107: =IF(B107="","",SUMIF(Kastare!B$2:B$2999,B107,Kastare!A$2:A$2999)) -> 1111
A108: 105 | B108: Therese Fredriksson | C108: PBHSPC | D108: 418 | F108: 3 | G108: 69.66666667 | I108: =IF(AG108="","",SUMIF('Tingsryd Open'!U$4:U$400,AG108,'Tingsryd Open'!P$4:P$400)) -> 0 | J108: =IF(AG108="","",SUMIF('Jämjö Open'!U$4:U$400,AG108,'Jämjö Open'!P$4:P$400)) -> 0 | K108: =IF(AG108="","",SUMIF('Viby Open'!U$4:U$400,AG108,'Viby Open'!P$4:P$400)) -> 0 | L108: =IF(AG108="","",SUMIF('Björkenäs Open'!U$4:U$400,AG108,'Björkenäs Open'!P$4:P$400)) -> 0 | M108: =IF(AG108="","",SUMIF('SM ute Lö'!U$4:U$400,AG108,'SM ute Lö'!P$4:P$400)) -> 0 | N108: =IF(AG108="","",SUMIF('SM ute Sö'!U$4:U$401,AG108,'SM ute Sö'!P$4:P$401)) -> 0 | O108: =IF(AG108="","",SUMIF('Roslagen Open'!U$4:U$400,AG108,'Roslagen Open'!P$4:P$400)) -> 0 | P108: =IF(AG108="","",SUMIF('Vaxholm Open'!U$4:U$400,AG108,'Vaxholm Open'!P$4:P$400)) -> 148 | Q108: =IF(AG108="","",SUMIF('Dynapac Open'!U$4:U$400,AG108,'Dynapac Open'!P$4:P$400)) -> 0 | R108: =IF(AG108="","",SUMIF('SmålandsDM ute'!U$4:U$400,AG108,'SmålandsDM ute'!P$4:P$400)) -> 0 | S108: =IF(AG108="","",SUMIF('BlekingeDM ute'!U$4:U$400,AG108,'BlekingeDM ute'!P$4:P$400)) -> 0 | T108: =IF(AG108="","",SUMIF('StockholmsDM ute'!U$4:U$400,AG108,'StockholmsDM ute'!P$4:P$400)) -> 0 | U108: =IF(AG108="","",SUMIF('Åseda Open'!U$4:U$406,AG108,'Åseda Open'!P$4:P$406)) -> 0 | V108: =IF(AG108="","",SUMIF(Höstskon!U$4:U$400,AG108,Höstskon!P$4:P$400)) -> 0 | W108: =IF(AG108="","",SUMIF('Carlskrona Cup'!U$4:U$400,AG108,'Carlskrona Cup'!P$4:P$400)) -> 0 | X108: =IF(AG108="","",SUMIF('Sibbamåla Open'!U$4:U$400,AG108,'Sibbamåla Open'!P$4:P$400)) -> 0 | Y108: =IF(AG108="","",SUMIF('Vaxholm Indoor'!U$4:U$400,AG108,'Vaxholm Indoor'!P$4:P$400)) -> 128 | Z108: =IF(AG108="","",SUMIF('SM inne'!U$4:U$400,AG108,'SM inne'!P$4:P$400)) -> 0 | AA108: =IF(AG108="","",SUMIF('SmålandsDM inne'!U$4:U$400,AG108,'SmålandsDM inne'!P$4:P$400)) -> 0 | AB108: =IF(AG108="","",SUMIF('BlekingeDM inne'!U$4:U$400,AG108,'BlekingeDM inne'!P$4:P$400)) -> 0 | AC108: =IF(AG108="","",SUMIF('StockholmsDM inne'!U$4:U$400,AG108,'StockholmsDM inne'!P$4:P$400)) -> 142 | AD108: =IF(AG108="","",SUMIF(Värendspokalen!U$4:U$400,AG108,Värendspokalen!P$4:P$400)) -> 0 | AG108: =IF(B108="","",SUMIF(Kastare!B$2:B$2999,B108,Kastare!A$2:A$2999)) -> 1238
A109: 106 | B109: Pontus Strandell | C109: PBHSPC | D109: 410 | F109: 3 | G109: 68.33333333 | I109: =IF(AG109="","",SUMIF('Tingsryd Open'!U$4:U$400,AG109,'Tingsryd Open'!P$4:P$400)) -> 0 | J109: =IF(AG109="","",SUMIF('Jämjö Open'!U$4:U$400,AG109,'Jämjö Open'!P$4:P$400)) -> 0 | K109: =IF(AG109="","",SUMIF('Viby Open'!U$4:U$400,AG109,'Viby Open'!P$4:P$400)) -> 0 | L109: =IF(AG109="","",SUMIF('Björkenäs Open'!U$4:U$400,AG109,'Björkenäs Open'!P$4:P$400)) -> 0 | M109: =IF(AG109="","",SUMIF('SM ute Lö'!U$4:U$400,AG109,'SM ute Lö'!P$4:P$400)) -> 0 | N109: =IF(AG109="","",SUMIF('SM ute Sö'!U$4:U$401,AG109,'SM ute Sö'!P$4:P$401)) -> 0 | O109: =IF(AG109="","",SUMIF('Roslagen Open'!U$4:U$400,AG109,'Roslagen Open'!P$4:P$400)) -> 0 | P109: =IF(AG109="","",SUMIF('Vaxholm Open'!U$4:U$400,AG109,'Vaxholm Open'!P$4:P$400)) -> 88 | Q109: =IF(AG109="","",SUMIF('Dynapac Open'!U$4:U$400,AG109,'Dynapac Open'!P$4:P$400)) -> 0 | R109: =IF(AG109="","",SUMIF('SmålandsDM ute'!U$4:U$400,AG109,'SmålandsDM ute'!P$4:P$400)) -> 0 | S109: =IF(AG109="","",SUMIF('BlekingeDM ute'!U$4:U$400,AG109,'BlekingeDM ute'!P$4:P$400)) -> 0 | T109: =IF(AG109="","",SUMIF('StockholmsDM ute'!U$4:U$400,AG109,'StockholmsDM ute'!P$4:P$400)) -> 0 | U109: =IF(AG109="","",SUMIF('Åseda Open'!U$4:U$406,AG109,'Åseda Open'!P$4:P$406)) -> 0 | V109: =IF(AG109="","",SUMIF(Höstskon!U$4:U$400,AG109,Höstskon!P$4:P$400)) -> 0 | W109: =IF(AG109="","",SUMIF('Carlskrona Cup'!U$4:U$400,AG109,'Carlskrona Cup'!P$4:P$400)) -> 0 | X109: =IF(AG109="","",SUMIF('Sibbamåla Open'!U$4:U$400,AG109,'Sibbamåla Open'!P$4:P$400)) -> 0 | Y109: =IF(AG109="","",SUMIF('Vaxholm Indoor'!U$4:U$400,AG109,'Vaxholm Indoor'!P$4:P$400)) -> 154 | Z109: =IF(AG109="","",SUMIF('SM inne'!U$4:U$400,AG109,'SM inne'!P$4:P$400)) -> 0 | AA109: =IF(AG109="","",SUMIF('SmålandsDM inne'!U$4:U$400,AG109,'SmålandsDM inne'!P$4:P$400)) -> 0 | AB109: =IF(AG109="","",SUMIF('BlekingeDM inne'!U$4:U$400,AG109,'BlekingeDM inne'!P$4:P$400)) -> 0 | AC109: =IF(AG109="","",SUMIF('StockholmsDM inne'!U$4:U$400,AG109,'StockholmsDM inne'!P$4:P$400)) -> 168 | AD109: =IF(AG109="","",SUMIF(Värendspokalen!U$4:U$400,AG109,Värendspokalen!P$4:P$400)) -> 0 | AG109: =IF(B109="","",SUMIF(Kastare!B$2:B$2999,B109,Kastare!A$2:A$2999)) -> 1154
A110: 107 | B110: Christer Blomgren | C110: Lanternan | D110: 409 | F110: 2 | G110: 102.25 | I110: =IF(AG110="","",SUMIF('Tingsryd Open'!U$4:U$400,AG110,'Tingsryd Open'!P$4:P$400)) -> 0 | J110: =IF(AG110="","",SUMIF('Jämjö Open'!U$4:U$400,AG110,'Jämjö Open'!P$4:P$400)) -> 0 | K110: =IF(AG110="","",SUMIF('Viby Open'!U$4:U$400,AG110,'Viby Open'!P$4:P$400)) -> 0 | L110: =IF(AG110="","",SUMIF('Björkenäs Open'!U$4:U$400,AG110,'Björkenäs Open'!P$4:P$400)) -> 0 | M110: =IF(AG110="","",SUMIF('SM ute Lö'!U$4:U$400,AG110,'SM ute Lö'!P$4:P$400)) -> 0 | N110: =IF(AG110="","",SUMIF('SM ute Sö'!U$4:U$401,AG110,'SM ute Sö'!P$4:P$401)) -> 0 | O110: =IF(AG110="","",SUMIF('Roslagen Open'!U$4:U$400,AG110,'Roslagen Open'!P$4:P$400)) -> 0 | P110: =IF(AG110="","",SUMIF('Vaxholm Open'!U$4:U$400,AG110,'Vaxholm Open'!P$4:P$400)) -> 0 | Q110: =IF(AG110="","",SUMIF('Dynapac Open'!U$4:U$400,AG110,'Dynapac Open'!P$4:P$400)) -> 237 | R110: =IF(AG110="","",SUMIF('SmålandsDM ute'!U$4:U$400,AG110,'SmålandsDM ute'!P$4:P$400)) -> 0 | S110: =IF(AG110="","",SUMIF('BlekingeDM ute'!U$4:U$400,AG110,'BlekingeDM ute'!P$4:P$400)) -> 172 | T110: =IF(AG110="","",SUMIF('StockholmsDM ute'!U$4:U$400,AG110,'StockholmsDM ute'!P$4:P$400)) -> 0 | U110: =IF(AG110="","",SUMIF('Åseda Open'!U$4:U$406,AG110,'Åseda Open'!P$4:P$406)) -> 0 | V110: =IF(AG110="","",SUMIF(Höstskon!U$4:U$400,AG110,Höstskon!P$4:P$400)) -> 0 | W110: =IF(AG110="","",SUMIF('Carlskrona Cup'!U$4:U$400,AG110,'Carlskrona Cup'!P$4:P$400)) -> 0 | X110: =IF(AG110="","",SUMIF('Sibbamåla Open'!U$4:U$400,AG110,'Sibbamåla Open'!P$4:P$400)) -> 0 | Y110: =IF(AG110="","",SUMIF('Vaxholm Indoor'!U$4:U$400,AG110,'Vaxholm Indoor'!P$4:P$400)) -> 0 | Z110: =IF(AG110="","",SUMIF('SM inne'!U$4:U$400,AG110,'SM inne'!P$4:P$400)) -> 0 | AA110: =IF(AG110="","",SUMIF('SmålandsDM inne'!U$4:U$400,AG110,'SmålandsDM inne'!P$4:P$400)) -> 0 | AB110: =IF(AG110="","",SUMIF('BlekingeDM inne'!U$4:U$400,AG110,'BlekingeDM inne'!P$4:P$400)) -> 0 | AC110: =IF(AG110="","",SUMIF('StockholmsDM inne'!U$4:U$400,AG110,'StockholmsDM inne'!P$4:P$400)) -> 0 | AD110: =IF(AG110="","",SUMIF(Värendspokalen!U$4:U$400,AG110,Värendspokalen!P$4:P$400)) -> 0 | AG110: =IF(B110="","",SUMIF(Kastare!B$2:B$2999,B110,Kastare!A$2:A$2999)) -> 1173
A111: 108 | B111: Micael Karlsson | C111: Värends Hsk | D111: 402 | F111: 3 | G111: 67 | I111: =IF(AG111="","",SUMIF('Tingsryd Open'!U$4:U$400,AG111,'Tingsryd Open'!P$4:P$400)) -> 71 | J111: =IF(AG111="","",SUMIF('Jämjö Open'!U$4:U$400,AG111,'Jämjö Open'!P$4:P$400)) -> 0 | K111: =IF(AG111="","",SUMIF('Viby Open'!U$4:U$400,AG111,'Viby Open'!P$4:P$400)) -> 0 | L111: =IF(AG111="","",SUMIF('Björkenäs Open'!U$4:U$400,AG111,'Björkenäs Open'!P$4:P$400)) -> 0 | M111: =IF(AG111="","",SUMIF('SM ute Lö'!U$4:U$400,AG111,'SM ute Lö'!P$4:P$400)) -> 0 | N111: =IF(AG111="","",SUMIF('SM ute Sö'!U$4:U$401,AG111,'SM ute Sö'!P$4:P$401)) -> 0 | O111: =IF(AG111="","",SUMIF('Roslagen Open'!U$4:U$400,AG111,'Roslagen Open'!P$4:P$400)) -> 0 | P111: =IF(AG111="","",SUMIF('Vaxholm Open'!U$4:U$400,AG111,'Vaxholm Open'!P$4:P$400)) -> 0 | Q111: =IF(AG111="","",SUMIF('Dynapac Open'!U$4:U$400,AG111,'Dynapac Open'!P$4:P$400)) -> 0 | R111: =IF(AG111="","",SUMIF('SmålandsDM ute'!U$4:U$400,AG111,'SmålandsDM ute'!P$4:P$400)) -> 0 | S111: =IF(AG111="","",SUMIF('BlekingeDM ute'!U$4:U$400,AG111,'BlekingeDM ute'!P$4:P$400)) -> 0 | T111: =IF(AG111="","",SUMIF('StockholmsDM ute'!U$4:U$400,AG111,'StockholmsDM ute'!P$4:P$400)) -> 0 | U111: =IF(AG111="","",SUMIF('Åseda Open'!U$4:U$406,AG111,'Åseda Open'!P$4:P$406)) -> 0 | V111: =IF(AG111="","",SUMIF(Höstskon!U$4:U$400,AG111,Höstskon!P$4:P$400)) -> 0 | W111: =IF(AG111="","",SUMIF('Carlskrona Cup'!U$4:U$400,AG111,'Carlskrona Cup'!P$4:P$400)) -> 0 | X111: =IF(AG111="","",SUMIF('Sibbamåla Open'!U$4:U$400,AG111,'Sibbamåla Open'!P$4:P$400)) -> 183 | Y111: =IF(AG111="","",SUMIF('Vaxholm Indoor'!U$4:U$400,AG111,'Vaxholm Indoor'!P$4:P$400)) -> 0 | Z111: =IF(AG111="","",SUMIF('SM inne'!U$4:U$400,AG111,'SM inne'!P$4:P$400)) -> 0 | AA111: =IF(AG111="","",SUMIF('SmålandsDM inne'!U$4:U$400,AG111,'SmålandsDM inne'!P$4:P$400)) -> 0 | AB111: =IF(AG111="","",SUMIF('BlekingeDM inne'!U$4:U$400,AG111,'BlekingeDM inne'!P$4:P$400)) -> 0 | AC111: =IF(AG111="","",SUMIF('StockholmsDM inne'!U$4:U$400,AG111,'StockholmsDM inne'!P$4:P$400)) -> 0 | AD111: =IF(AG111="","",SUMIF(Värendspokalen!U$4:U$400,AG111,Värendspokalen!P$4:P$400)) -> 148 | AG111: =IF(B111="","",SUMIF(Kastare!B$2:B$2999,B111,Kastare!A$2:A$2999)) -> 1229
A112: 109 | B112: Torbjörn Svennberg | C112: Balders HSK | D112: 385 | F112: 2 | G112: 96.25 | I112: =IF(AG112="","",SUMIF('Tingsryd Open'!U$4:U$400,AG112,'Tingsryd Open'!P$4:P$400)) -> 0 | J112: =IF(AG112="","",SUMIF('Jämjö Open'!U$4:U$400,AG112,'Jämjö Open'!P$4:P$400)) -> 0 | K112: =IF(AG112="","",SUMIF('Viby Open'!U$4:U$400,AG112,'Viby Open'!P$4:P$400)) -> 0 | L112: =IF(AG112="","",SUMIF('Björkenäs Open'!U$4:U$400,AG112,'Björkenäs Open'!P$4:P$400)) -> 0 | M112: =IF(AG112="","",SUMIF('SM ute Lö'!U$4:U$400,AG112,'SM ute Lö'!P$4:P$400)) -> 0 | N112: =IF(AG112="","",SUMIF('SM ute Sö'!U$4:U$401,AG112,'SM ute Sö'!P$4:P$401)) -> 0 | O112: =IF(AG112="","",SUMIF('Roslagen Open'!U$4:U$400,AG112,'Roslagen Open'!P$4:P$400)) -> 165 | P112: =IF(AG112="","",SUMIF('Vaxholm Open'!U$4:U$400,AG112,'Vaxholm Open'!P$4:P$400)) -> 0 | Q112: =IF(AG112="","",SUMIF('Dynapac Open'!U$4:U$400,AG112,'Dynapac Open'!P$4:P$400)) -> 0 | R112: =IF(AG112="","",SUMIF('SmålandsDM ute'!U$4:U$400,AG112,'SmålandsDM ute'!P$4:P$400)) -> 0 | S112: =IF(AG112="","",SUMIF('BlekingeDM ute'!U$4:U$400,AG112,'BlekingeDM ute'!P$4:P$400)) -> 0 | T112: =IF(AG112="","",SUMIF('StockholmsDM ute'!U$4:U$400,AG112,'StockholmsDM ute'!P$4:P$400)) -> 220 | U112: =IF(AG112="","",SUMIF('Åseda Open'!U$4:U$406,AG112,'Åseda Open'!P$4:P$406)) -> 0 | V112: =IF(AG112="","",SUMIF(Höstskon!U$4:U$400,AG112,Höstskon!P$4:P$400)) -> 0 | W112: =IF(AG112="","",SUMIF('Carlskrona Cup'!U$4:U$400,AG112,'Carlskrona Cup'!P$4:P$400)) -> 0 | X112: =IF(AG112="","",SUMIF('Sibbamåla Open'!U$4:U$400,AG112,'Sibbamåla Open'!P$4:P$400)) -> 0 | Y112: =IF(AG112="","",SUMIF('Vaxholm Indoor'!U$4:U$400,AG112,'Vaxholm Indoor'!P$4:P$400)) -> 0 | Z112: =IF(AG112="","",SUMIF('SM inne'!U$4:U$400,AG112,'SM inne'!P$4:P$400)) -> 0 | AA112: =IF(AG112="","",SUMIF('SmålandsDM inne'!U$4:U$400,AG112,'SmålandsDM inne'!P$4:P$400)) -> 0 | AB112: =IF(AG112="","",SUMIF('BlekingeDM inne'!U$4:U$400,AG112,'BlekingeDM inne'!P$4:P$400)) -> 0 | AC112: =IF(AG112="","",SUMIF('StockholmsDM inne'!U$4:U$400,AG112,'StockholmsDM inne'!P$4:P$400)) -> 0 | AD112: =IF(AG112="","",SUMIF(Värendspokalen!U$4:U$400,AG112,Värendspokalen!P$4:P$400)) -> 0 | AG112: =IF(B112="","",SUMIF(Kastare!B$2:B$2999,B112,Kastare!A$2:A$2999)) -> 1188
A113: 110 | B113: Moje Liljegren | C113: Tingsryd Hsc | D113: 382 | F113: 3 | G113: 63.66666667 | I113: =IF(AG113="","",SUMIF('Tingsryd Open'!U$4:U$400,AG113,'Tingsryd Open'!P$4:P$400)) -> 124 | J113: =IF(AG113="","",SUMIF('Jämjö Open'!U$4:U$400,AG113,'Jämjö Open'!P$4:P$400)) -> 0 | K113: =IF(AG113="","",SUMIF('Viby Open'!U$4:U$400,AG113,'Viby Open'!P$4:P$400)) -> 0 | L113: =IF(AG113="","",SUMIF('Björkenäs Open'!U$4:U$400,AG113,'Björkenäs Open'!P$4:P$400)) -> 0 | M113: =IF(AG113="","",SUMIF('SM ute Lö'!U$4:U$400,AG113,'SM ute Lö'!P$4:P$400)) -> 0 | N113: =IF(AG113="","",SUMIF('SM ute Sö'!U$4:U$401,AG113,'SM ute Sö'!P$4:P$401)) -> 0 | O113: =IF(AG113="","",SUMIF('Roslagen Open'!U$4:U$400,AG113,'Roslagen Open'!P$4:P$400)) -> 0 | P113: =IF(AG113="","",SUMIF('Vaxholm Open'!U$4:U$400,AG113,'Vaxholm Open'!P$4:P$400)) -> 0 | Q113: =IF(AG113="","",SUMIF('Dynapac Open'!U$4:U$400,AG113,'Dynapac Open'!P$4:P$400)) -> 0 | R113: =IF(AG113="","",SUMIF('SmålandsDM ute'!U$4:U$400,AG113,'SmålandsDM ute'!P$4:P$400)) -> 166 | S113: =IF(AG113="","",SUMIF('BlekingeDM ute'!U$4:U$400,AG113,'BlekingeDM ute'!P$4:P$400)) -> 0 | T113: =IF(AG113="","",SUMIF('StockholmsDM ute'!U$4:U$400,AG113,'StockholmsDM ute'!P$4:P$400)) -> 0 | U113: =IF(AG113="","",SUMIF('Åseda Open'!U$4:U$406,AG113,'Åseda Open'!P$4:P$406)) -> 92 | V113: =IF(AG113="","",SUMIF(Höstskon!U$4:U$400,AG113,Höstskon!P$4:P$400)) -> 0 | W113: =IF(AG113="","",SUMIF('Carlskrona Cup'!U$4:U$400,AG113,'Carlskrona Cup'!P$4:P$400)) -> 0 | X113: =IF(AG113="","",SUMIF('Sibbamåla Open'!U$4:U$400,AG113,'Sibbamåla Open'!P$4:P$400)) -> 0 | Y113: =IF(AG113="","",SUMIF('Vaxholm Indoor'!U$4:U$400,AG113,'Vaxholm Indoor'!P$4:P$400)) -> 0 | Z113: =IF(AG113="","",SUMIF('SM inne'!U$4:U$400,AG113,'SM inne'!P$4:P$400)) -> 0 | AA113: =IF(AG113="","",SUMIF('SmålandsDM inne'!U$4:U$400,AG113,'SmålandsDM inne'!P$4:P$400)) -> 0 | AB113: =IF(AG113="","",SUMIF('BlekingeDM inne'!U$4:U$400,AG113,'BlekingeDM inne'!P$4:P$400)) -> 0 | AC113: =IF(AG113="","",SUMIF('StockholmsDM inne'!U$4:U$400,AG113,'StockholmsDM inne'!P$4:P$400)) -> 0 | AD113: =IF(AG113="","",SUMIF(Värendspokalen!U$4:U$400,AG113,Värendspokalen!P$4:P$400)) -> 0 | AG113: =IF(B113="","",SUMIF(Kastare!B$2:B$2999,B113,Kastare!A$2:A$2999)) -> 1262
A114: 111 | B114: Robert Wretborg | C114: CBAR | D114: 372 | F114: 2 | G114: 93 | I114: =IF(AG114="","",SUMIF('Tingsryd Open'!U$4:U$400,AG114,'Tingsryd Open'!P$4:P$400)) -> 0 | J114: =IF(AG114="","",SUMIF('Jämjö Open'!U$4:U$400,AG114,'Jämjö Open'!P$4:P$400)) -> 0 | K114: =IF(AG114="","",SUMIF('Viby Open'!U$4:U$400,AG114,'Viby Open'!P$4:P$400)) -> 0 | L114: =IF(AG114="","",SUMIF('Björkenäs Open'!U$4:U$400,AG114,'Björkenäs Open'!P$4:P$400)) -> 0 | M114: =IF(AG114="","",SUMIF('SM ute Lö'!U$4:U$400,AG114,'SM ute Lö'!P$4:P$400)) -> 0 | N114: =IF(AG114="","",SUMIF('SM ute Sö'!U$4:U$401,AG114,'SM ute Sö'!P$4:P$401)) -> 0 | O114: =IF(AG114="","",SUMIF('Roslagen Open'!U$4:U$400,AG114,'Roslagen Open'!P$4:P$400)) -> 0 | P114: =IF(AG114="","",SUMIF('Vaxholm Open'!U$4:U$400,AG114,'Vaxholm Open'!P$4:P$400)) -> 0 | Q114: =IF(AG114="","",SUMIF('Dynapac Open'!U$4:U$400,AG114,'Dynapac Open'!P$4:P$400)) -> 0 | R114: =IF(AG114="","",SUMIF('SmålandsDM ute'!U$4:U$400,AG114,'SmålandsDM ute'!P$4:P$400)) -> 0 | S114: =IF(AG114="","",SUMIF('BlekingeDM ute'!U$4:U$400,AG114,'BlekingeDM ute'!P$4:P$400)) -> 0 | T114: =IF(AG114="","",SUMIF('StockholmsDM ute'!U$4:U$400,AG114,'StockholmsDM ute'!P$4:P$400)) -> 0 | U114: =IF(AG114="","",SUMIF('Åseda Open'!U$4:U$406,AG114,'Åseda Open'!P$4:P$406)) -> 0 | V114: =IF(AG114="","",SUMIF(Höstskon!U$4:U$400,AG114,Höstskon!P$4:P$400)) -> 0 | W114: =IF(AG114="","",SUMIF('Carlskrona Cup'!U$4:U$400,AG114,'Carlskrona Cup'!P$4:P$400)) -> 0 | X114: =IF(AG114="","",SUMIF('Sibbamåla Open'!U$4:U$400,AG114,'Sibbamåla Open'!P$4:P$400)) -> 0 | Y114: =IF(AG114="","",SUMIF('Vaxholm Indoor'!U$4:U$400,AG114,'Vaxholm Indoor'!P$4:P$400)) -> 176 | Z114: =IF(AG114="","",SUMIF('SM inne'!U$4:U$400,AG114,'SM inne'!P$4:P$400)) -> 0 | AA114: =IF(AG114="","",SUMIF('SmålandsDM inne'!U$4:U$400,AG114,'SmålandsDM inne'!P$4:P$400)) -> 0 | AB114: =IF(AG114="","",SUMIF('BlekingeDM inne'!U$4:U$400,AG114,'BlekingeDM inne'!P$4:P$400)) -> 0 | AC114: =IF(AG114="","",SUMIF('StockholmsDM inne'!U$4:U$400,AG114,'StockholmsDM inne'!P$4:P$400)) -> 196 | AD114: =IF(AG114="","",SUMIF(Värendspokalen!U$4:U$400,AG114,Värendspokalen!P$4:P$400)) -> 0 | AG114: =IF(B114="","",SUMIF(Kastare!B$2:B$2999,B114,Kastare!A$2:A$2999)) -> 1293
A115: 112 | B115: Ove Klasson | C115: Tingsryd Hsc | D115: 371 | F115: 3 | G115: 61.83333333 | I115: =IF(AG115="","",SUMIF('Tingsryd Open'!U$4:U$400,AG115,'Tingsryd Open'!P$4:P$400)) -> 92 | J115: =IF(AG115="","",SUMIF('Jämjö Open'!U$4:U$400,AG115,'Jämjö Open'!P$4:P$400)) -> 0 | K115: =IF(AG115="","",SUMIF('Viby Open'!U$4:U$400,AG115,'Viby Open'!P$4:P$400)) -> 0 | L115: =IF(AG115="","",SUMIF('Björkenäs Open'!U$4:U$400,AG115,'Björkenäs Open'!P$4:P$400)) -> 0 | M115: =IF(AG115="","",SUMIF('SM ute Lö'!U$4:U$400,AG115,'SM ute Lö'!P$4:P$400)) -> 0 | N115: =IF(AG115="","",SUMIF('SM ute Sö'!U$4:U$401,AG115,'SM ute Sö'!P$4:P$401)) -> 0 | O115: =IF(AG115="","",SUMIF('Roslagen Open'!U$4:U$400,AG115,'Roslagen Open'!P$4:P$400)) -> 0 | P115: =IF(AG115="","",SUMIF('Vaxholm Open'!U$4:U$400,AG115,'Vaxholm Open'!P$4:P$400)) -> 0 | Q115: =IF(AG115="","",SUMIF('Dynapac Open'!U$4:U$400,AG115,'Dynapac Open'!P$4:P$400)) -> 0 | R115: =IF(AG115="","",SUMIF('SmålandsDM ute'!U$4:U$400,AG115,'SmålandsDM ute'!P$4:P$400)) -> 129 | S115: =IF(AG115="","",SUMIF('BlekingeDM ute'!U$4:U$400,AG115,'BlekingeDM ute'!P$4:P$400)) -> 0 | T115: =IF(AG115="","",SUMIF('StockholmsDM ute'!U$4:U$400,AG115,'StockholmsDM ute'!P$4:P$400)) -> 0 | U115: =IF(AG115="","",SUMIF('Åseda Open'!U$4:U$406,AG115,'Åseda Open'!P$4:P$406)) -> 150 | V115: =IF(AG115="","",SUMIF(Höstskon!U$4:U$400,AG115,Höstskon!P$4:P$400)) -> 0 | W115: =IF(AG115="","",SUMIF('Carlskrona Cup'!U$4:U$400,AG115,'Carlskrona Cup'!P$4:P$400)) -> 0 | X115: =IF(AG115="","",SUMIF('Sibbamåla Open'!U$4:U$400,AG115,'Sibbamåla Open'!P$4:P$400)) -> 0 | Y115: =IF(AG115="","",SUMIF('Vaxholm Indoor'!U$4:U$400,AG115,'Vaxholm Indoor'!P$4:P$400)) -> 0 | Z115: =IF(AG115="","",SUMIF('SM inne'!U$4:U$400,AG115,'SM inne'!P$4:P$400)) -> 0 | AA115: =IF(AG115="","",SUMIF('SmålandsDM inne'!U$4:U$400,AG115,'SmålandsDM inne'!P$4:P$400)) -> 0 | AB115: =IF(AG115="","",SUMIF('BlekingeDM inne'!U$4:U$400,AG115,'BlekingeDM inne'!P$4:P$400)) -> 0 | AC115: =IF(AG115="","",SUMIF('StockholmsDM inne'!U$4:U$400,AG115,'StockholmsDM inne'!P$4:P$400)) -> 0 | AD115: =IF(AG115="","",SUMIF(Värendspokalen!U$4:U$400,AG115,Värendspokalen!P$4:P$400)) -> 0 | AG115: =IF(B115="","",SUMIF(Kastare!B$2:B$2999,B115,Kastare!A$2:A$2999)) -> 1263
A116: 113 | B116: Peter Olofsson | C116: Korpen Nybro | D116: 368 | F116: 2 | G116: 92 | I116: =IF(AG116="","",SUMIF('Tingsryd Open'!U$4:U$400,AG116,'Tingsryd Open'!P$4:P$400)) -> 0 | J116: =IF(AG116="","",SUMIF('Jämjö Open'!U$4:U$400,AG116,'Jämjö Open'!P$4:P$400)) -> 0 | K116: =IF(AG116="","",SUMIF('Viby Open'!U$4:U$400,AG116,'Viby Open'!P$4:P$400)) -> 0 | L116: =IF(AG116="","",SUMIF('Björkenäs Open'!U$4:U$400,AG116,'Björkenäs Open'!P$4:P$400)) -> 0 | M116: =IF(AG116="","",SUMIF('SM ute Lö'!U$4:U$400,AG116,'SM ute Lö'!P$4:P$400)) -> 0 | N116: =IF(AG116="","",SUMIF('SM ute Sö'!U$4:U$401,AG116,'SM ute Sö'!P$4:P$401)) -> 0 | O116: =IF(AG116="","",SUMIF('Roslagen Open'!U$4:U$400,AG116,'Roslagen Open'!P$4:P$400)) -> 0 | P116: =IF(AG116="","",SUMIF('Vaxholm Open'!U$4:U$400,AG116,'Vaxholm Open'!P$4:P$400)) -> 0 | Q116: =IF(AG116="","",SUMIF('Dynapac Open'!U$4:U$400,AG116,'Dynapac Open'!P$4:P$400)) -> 0 | R116: =IF(AG116="","",SUMIF('SmålandsDM ute'!U$4:U$400,AG116,'SmålandsDM ute'!P$4:P$400)) -> 0 | S116: =IF(AG116="","",SUMIF('BlekingeDM ute'!U$4:U$400,AG116,'BlekingeDM ute'!P$4:P$400)) -> 0 | T116: =IF(AG116="","",SUMIF('StockholmsDM ute'!U$4:U$400,AG116,'StockholmsDM ute'!P$4:P$400)) -> 0 | U116: =IF(AG116="","",SUMIF('Åseda Open'!U$4:U$406,AG116,'Åseda Open'!P$4:P$406)) -> 0 | V116: =IF(AG116="","",SUMIF(Höstskon!U$4:U$400,AG116,Höstskon!P$4:P$400)) -> 0 | W116: =IF(AG116="","",SUMIF('Carlskrona Cup'!U$4:U$400,AG116,'Carlskrona Cup'!P$4:P$400)) -> 0 | X116: =IF(AG116="","",SUMIF('Sibbamåla Open'!U$4:U$400,AG116,'Sibbamåla Open'!P$4:P$400)) -> 0 | Y116: =IF(AG116="","",SUMIF('Vaxholm Indoor'!U$4:U$400,AG116,'Vaxholm Indoor'!P$4:P$400)) -> 0 | Z116: =IF(AG116="","",SUMIF('SM inne'!U$4:U$400,AG116,'SM inne'!P$4:P$400)) -> 149 | AA116: =IF(AG116="","",SUMIF('SmålandsDM inne'!U$4:U$400,AG116,'SmålandsDM inne'!P$4:P$400)) -> 0 | AB116: =IF(AG116="","",SUMIF('BlekingeDM inne'!U$4:U$400,AG116,'BlekingeDM inne'!P$4:P$400)) -> 0 | AC116: =IF(AG116="","",SUMIF('StockholmsDM inne'!U$4:U$400,AG116,'StockholmsDM inne'!P$4:P$400)) -> 0 | AD116: =IF(AG116="","",SUMIF(Värendspokalen!U$4:U$400,AG116,Värendspokalen!P$4:P$400)) -> 219 | AG116: =IF(B116="","",SUMIF(Kastare!B$2:B$2999,B116,Kastare!A$2:A$2999)) -> 1304
A117: 114 | B117: Sonlard Berglund | C117: PBHSPC | D117: 363 | F117: 2 | G117: 90.75 | I117: =IF(AG117="","",SUMIF('Tingsryd Open'!U$4:U$400,AG117,'Tingsryd Open'!P$4:P$400)) -> 0 | J117: =IF(AG117="","",SUMIF('Jämjö Open'!U$4:U$400,AG117,'Jämjö Open'!P$4:P$400)) -> 0 | K117: =IF(AG117="","",SUMIF('Viby Open'!U$4:U$400,AG117,'Viby Open'!P$4:P$400)) -> 0 | L117: =IF(AG117="","",SUMIF('Björkenäs Open'!U$4:U$400,AG117,'Björkenäs Open'!P$4:P$400)) -> 0 | M117: =IF(AG117="","",SUMIF('SM ute Lö'!U$4:U$400,AG117,'SM ute Lö'!P$4:P$400)) -> 0 | N117: =IF(AG117="","",SUMIF('SM ute Sö'!U$4:U$401,AG117,'SM ute Sö'!P$4:P$401)) -> 0 | O117: =IF(AG117="","",SUMIF('Roslagen Open'!U$4:U$400,AG117,'Roslagen Open'!P$4:P$400)) -> 0 | P117: =IF(AG117="","",SUMIF('Vaxholm Open'!U$4:U$400,AG117,'Vaxholm Open'!P$4:P$400)) -> 0 | Q117: =IF(AG117="","",SUMIF('Dynapac Open'!U$4:U$400,AG117,'Dynapac Open'!P$4:P$400)) -> 0 | R117: =IF(AG117="","",SUMIF('SmålandsDM ute'!U$4:U$400,AG117,'SmålandsDM ute'!P$4:P$400)) -> 0 | S117: =IF(AG117="","",SUMIF('BlekingeDM ute'!U$4:U$400,AG117,'BlekingeDM ute'!P$4:P$400)) -> 0 | T117: =IF(AG117="","",SUMIF('StockholmsDM ute'!U$4:U$400,AG117,'StockholmsDM ute'!P$4:P$400)) -> 0 | U117: =IF(AG117="","",SUMIF('Åseda Open'!U$4:U$406,AG117,'Åseda Open'!P$4:P$406)) -> 0 | V117: =IF(AG117="","",SUMIF(Höstskon!U$4:U$400,AG117,Höstskon!P$4:P$400)) -> 0 | W117: =IF(AG117="","",SUMIF('Carlskrona Cup'!U$4:U$400,AG117,'Carlskrona Cup'!P$4:P$400)) -> 0 | X117: =IF(AG117="","",SUMIF('Sibbamåla Open'!U$4:U$400,AG117,'Sibbamåla Open'!P$4:P$400)) -> 0 | Y117: =IF(AG117="","",SUMIF('Vaxholm Indoor'!U$4:U$400,AG117,'Vaxholm Indoor'!P$4:P$400)) -> 201 | Z117: =IF(AG117="","",SUMIF('SM inne'!U$4:U$400,AG117,'SM inne'!P$4:P$400)) -> 0 | AA117: =IF(AG117="","",SUMIF('SmålandsDM inne'!U$4:U$400,AG117,'SmålandsDM inne'!P$4:P$400)) -> 0 | AB117: =IF(AG117="","",SUMIF('BlekingeDM inne'!U$4:U$400,AG117,'BlekingeDM inne'!P$4:P$400)) -> 0 | AC117: =IF(AG117="","",SUMIF('StockholmsDM inne'!U$4:U$400,AG117,'StockholmsDM inne'!P$4:P$400)) -> 162 | AD117: =IF(AG117="","",SUMIF(Värendspokalen!U$4:U$400,AG117,Värendspokalen!P$4:P$400)) -> 0 | AG117: =IF(B117="","",SUMIF(Kastare!B$2:B$2999,B117,Kastare!A$2:A$2999)) -> 1140
A118: 115 | B118: Saga Karlberg | C118: Jämjö Hsk | D118: 330 | F118: 3 | G118: 55 | I118: =IF(AG118="","",SUMIF('Tingsryd Open'!U$4:U$400,AG118,'Tingsryd Open'!P$4:P$400)) -> 0 | J118: =IF(AG118="","",SUMIF('Jämjö Open'!U$4:U$400,AG118,'Jämjö Open'!P$4:P$400)) -> 123 | K118: =IF(AG118="","",SUMIF('Viby Open'!U$4:U$400,AG118,'Viby Open'!P$4:P$400)) -> 0 | L118: =IF(AG118="","",SUMIF('Björkenäs Open'!U$4:U$400,AG118,'Björkenäs Open'!P$4:P$400)) -> 0 | M118: =IF(AG118="","",SUMIF('SM ute Lö'!U$4:U$400,AG118,'SM ute Lö'!P$4:P$400)) -> 113 | N118: =IF(AG118="","",SUMIF('SM ute Sö'!U$4:U$401,AG118,'SM ute Sö'!P$4:P$401)) -> 94 | O118: =IF(AG118="","",SUMIF('Roslagen Open'!U$4:U$400,AG118,'Roslagen Open'!P$4:P$400)) -> 0 | P118: =IF(AG118="","",SUMIF('Vaxholm Open'!U$4:U$400,AG118,'Vaxholm Open'!P$4:P$400)) -> 0 | Q118: =IF(AG118="","",SUMIF('Dynapac Open'!U$4:U$400,AG118,'Dynapac Open'!P$4:P$400)) -> 0 | R118: =IF(AG118="","",SUMIF('SmålandsDM ute'!U$4:U$400,AG118,'SmålandsDM ute'!P$4:P$400)) -> 0 | S118: =IF(AG118="","",SUMIF('BlekingeDM ute'!U$4:U$400,AG118,'BlekingeDM ute'!P$4:P$400)) -> 0 | T118: =IF(AG118="","",SUMIF('StockholmsDM ute'!U$4:U$400,AG118,'StockholmsDM ute'!P$4:P$400)) -> 0 | U118: =IF(AG118="","",SUMIF('Åseda Open'!U$4:U$406,AG118,'Åseda Open'!P$4:P$406)) -> 0 | V118: =IF(AG118="","",SUMIF(Höstskon!U$4:U$400,AG118,Höstskon!P$4:P$400)) -> 0 | W118: =IF(AG118="","",SUMIF('Carlskrona Cup'!U$4:U$400,AG118,'Carlskrona Cup'!P$4:P$400)) -> 0 | X118: =IF(AG118="","",SUMIF('Sibbamåla Open'!U$4:U$400,AG118,'Sibbamåla Open'!P$4:P$400)) -> 0 | Y118: =IF(AG118="","",SUMIF('Vaxholm Indoor'!U$4:U$400,AG118,'Vaxholm Indoor'!P$4:P$400)) -> 0 | Z118: =IF(AG118="","",SUMIF('SM inne'!U$4:U$400,AG118,'SM inne'!P$4:P$400)) -> 0 | AA118: =IF(AG118="","",SUMIF('SmålandsDM inne'!U$4:U$400,AG118,'SmålandsDM inne'!P$4:P$400)) -> 0 | AB118: =IF(AG118="","",SUMIF('BlekingeDM inne'!U$4:U$400,AG118,'BlekingeDM inne'!P$4:P$400)) -> 0 | AC118: =IF(AG118="","",SUMIF('StockholmsDM inne'!U$4:U$400,AG118,'StockholmsDM inne'!P$4:P$400)) -> 0 | AD118: =IF(AG118="","",SUMIF(Värendspokalen!U$4:U$400,AG118,Värendspokalen!P$4:P$400)) -> 0 | AG118: =IF(B118="","",SUMIF(Kastare!B$2:B$2999,B118,Kastare!A$2:A$2999)) -> 1144
A119: 116 | B119: Christoffer Lovén | C119: Balders Hsk | D119: 321 | F119: 2 | G119: 80.25 | I119: =IF(AG119="","",SUMIF('Tingsryd Open'!U$4:U$400,AG119,'Tingsryd Open'!P$4:P$400)) -> 0 | J119: =IF(AG119="","",SUMIF('Jämjö Open'!U$4:U$400,AG119,'Jämjö Open'!P$4:P$400)) -> 0 | K119: =IF(AG119="","",SUMIF('Viby Open'!U$4:U$400,AG119,'Viby Open'!P$4:P$400)) -> 0 | L119: =IF(AG119="","",SUMIF('Björkenäs Open'!U$4:U$400,AG119,'Björkenäs Open'!P$4:P$400)) -> 0 | M119: =IF(AG119="","",SUMIF('SM ute Lö'!U$4:U$400,AG119,'SM ute Lö'!P$4:P$400)) -> 179 | N119: =IF(AG119="","",SUMIF('SM ute Sö'!U$4:U$401,AG119,'SM ute Sö'!P$4:P$401)) -> 142 | O119: =IF(AG119="","",SUMIF('Roslagen Open'!U$4:U$400,AG119,'Roslagen Open'!P$4:P$400)) -> 0 | P119: =IF(AG119="","",SUMIF('Vaxholm Open'!U$4:U$400,AG119,'Vaxholm Open'!P$4:P$400)) -> 0 | Q119: =IF(AG119="","",SUMIF('Dynapac Open'!U$4:U$400,AG119,'Dynapac Open'!P$4:P$400)) -> 0 | R119: =IF(AG119="","",SUMIF('SmålandsDM ute'!U$4:U$400,AG119,'SmålandsDM ute'!P$4:P$400)) -> 0 | S119: =IF(AG119="","",SUMIF('BlekingeDM ute'!U$4:U$400,AG119,'BlekingeDM ute'!P$4:P$400)) -> 0 | T119: =IF(AG119="","",SUMIF('StockholmsDM ute'!U$4:U$400,AG119,'StockholmsDM ute'!P$4:P$400)) -> 0 | U119: =IF(AG119="","",SUMIF('Åseda Open'!U$4:U$406,AG119,'Åseda Open'!P$4:P$406)) -> 0 | V119: =IF(AG119="","",SUMIF(Höstskon!U$4:U$400,AG119,Höstskon!P$4:P$400)) -> 0 | W119: =IF(AG119="","",SUMIF('Carlskrona Cup'!U$4:U$400,AG119,'Carlskrona Cup'!P$4:P$400)) -> 0 | X119: =IF(AG119="","",SUMIF('Sibbamåla Open'!U$4:U$400,AG119,'Sibbamåla Open'!P$4:P$400)) -> 0 | Y119: =IF(AG119="","",SUMIF('Vaxholm Indoor'!U$4:U$400,AG119,'Vaxholm Indoor'!P$4:P$400)) -> 0 | Z119: =IF(AG119="","",SUMIF('SM inne'!U$4:U$400,AG119,'SM inne'!P$4:P$400)) -> 0 | AA119: =IF(AG119="","",SUMIF('SmålandsDM inne'!U$4:U$400,AG119,'SmålandsDM inne'!P$4:P$400)) -> 0 | AB119: =IF(AG119="","",SUMIF('BlekingeDM inne'!U$4:U$400,AG119,'BlekingeDM inne'!P$4:P$400)) -> 0 | AC119: =IF(AG119="","",SUMIF('StockholmsDM inne'!U$4:U$400,AG119,'StockholmsDM inne'!P$4:P$400)) -> 0 | AD119: =IF(AG119="","",SUMIF(Värendspokalen!U$4:U$400,AG119,Värendspokalen!P$4:P$400)) -> 0 | AG119: =IF(B119="","",SUMIF(Kastare!B$2:B$2999,B119,Kastare!A$2:A$2999)) -> 1145
A120: 117 | B120: Karin Gullbrand | C120: Värends Hsk | D120: 309 | F120: 4 | G120: 38.625 | I120: =IF(AG120="","",SUMIF('Tingsryd Open'!U$4:U$400,AG120,'Tingsryd Open'!P$4:P$400)) -> 0 | J120: =IF(AG120="","",SUMIF('Jämjö Open'!U$4:U$400,AG120,'Jämjö Open'!P$4:P$400)) -> 0 | K120: =IF(AG120="","",SUMIF('Viby Open'!U$4:U$400,AG120,'Viby Open'!P$4:P$400)) -> 0 | L120: =IF(AG120="","",SUMIF('Björkenäs Open'!U$4:U$400,AG120,'Björkenäs Open'!P$4:P$400)) -> 85 | M120: =IF(AG120="","",SUMIF('SM ute Lö'!U$4:U$400,AG120,'SM ute Lö'!P$4:P$400)) -> 30 | N120: =IF(AG120="","",SUMIF('SM ute Sö'!U$4:U$401,AG120,'SM ute Sö'!P$4:P$401)) -> 106 | O120: =IF(AG120="","",SUMIF('Roslagen Open'!U$4:U$400,AG120,'Roslagen Open'!P$4:P$400)) -> 0 | P120: =IF(AG120="","",SUMIF('Vaxholm Open'!U$4:U$400,AG120,'Vaxholm Open'!P$4:P$400)) -> 0 | Q120: =IF(AG120="","",SUMIF('Dynapac Open'!U$4:U$400,AG120,'Dynapac Open'!P$4:P$400)) -> 0 | R120: =IF(AG120="","",SUMIF('SmålandsDM ute'!U$4:U$400,AG120,'SmålandsDM ute'!P$4:P$400)) -> 0 | S120: =IF(AG120="","",SUMIF('BlekingeDM ute'!U$4:U$400,AG120,'BlekingeDM ute'!P$4:P$400)) -> 0 | T120: =IF(AG120="","",SUMIF('StockholmsDM ute'!U$4:U$400,AG120,'StockholmsDM ute'!P$4:P$400)) -> 0 | U120: =IF(AG120="","",SUMIF('Åseda Open'!U$4:U$406,AG120,'Åseda Open'!P$4:P$406)) -> 0 | V120: =IF(AG120="","",SUMIF(Höstskon!U$4:U$400,AG120,Höstskon!P$4:P$400)) -> 88 | W120: =IF(AG120="","",SUMIF('Carlskrona Cup'!U$4:U$400,AG120,'Carlskrona Cup'!P$4:P$400)) -> 0 | X120: =IF(AG120="","",SUMIF('Sibbamåla Open'!U$4:U$400,AG120,'Sibbamåla Open'!P$4:P$400)) -> 0 | Y120: =IF(AG120="","",SUMIF('Vaxholm Indoor'!U$4:U$400,AG120,'Vaxholm Indoor'!P$4:P$400)) -> 0 | Z120: =IF(AG120="","",SUMIF('SM inne'!U$4:U$400,AG120,'SM inne'!P$4:P$400)) -> 0 | AA120: =IF(AG120="","",SUMIF('SmålandsDM inne'!U$4:U$400,AG120,'SmålandsDM inne'!P$4:P$400)) -> 0 | AB120: =IF(AG120="","",SUMIF('BlekingeDM inne'!U$4:U$400,AG120,'BlekingeDM inne'!P$4:P$400)) -> 0 | AC120: =IF(AG120="","",SUMIF('StockholmsDM inne'!U$4:U$400,AG120,'StockholmsDM inne'!P$4:P$400)) -> 0 | AD120: =IF(AG120="","",SUMIF(Värendspokalen!U$4:U$400,AG120,Värendspokalen!P$4:P$400)) -> 0 | AG120: =IF(B120="","",SUMIF(Kastare!B$2:B$2999,B120,Kastare!A$2:A$2999)) -> 1079
A121: 118 | B121: Jimmy Athle | C121: Athleterna | D121: 307 | F121: 2 | G121: 76.75 | I121: =IF(AG121="","",SUMIF('Tingsryd Open'!U$4:U$400,AG121,'Tingsryd Open'!P$4:P$400)) -> 0 | J121: =IF(AG121="","",SUMIF('Jämjö Open'!U$4:U$400,AG121,'Jämjö Open'!P$4:P$400)) -> 0 | K121: =IF(AG121="","",SUMIF('Viby Open'!U$4:U$400,AG121,'Viby Open'!P$4:P$400)) -> 0 | L121: =IF(AG121="","",SUMIF('Björkenäs Open'!U$4:U$400,AG121,'Björkenäs Open'!P$4:P$400)) -> 0 | M121: =IF(AG121="","",SUMIF('SM ute Lö'!U$4:U$400,AG121,'SM ute Lö'!P$4:P$400)) -> 0 | N121: =IF(AG121="","",SUMIF('SM ute Sö'!U$4:U$401,AG121,'SM ute Sö'!P$4:P$401)) -> 0 | O121: =IF(AG121="","",SUMIF('Roslagen Open'!U$4:U$400,AG121,'Roslagen Open'!P$4:P$400)) -> 187 | P121: =IF(AG121="","",SUMIF('Vaxholm Open'!U$4:U$400,AG121,'Vaxholm Open'!P$4:P$400)) -> 120 | Q121: =IF(AG121="","",SUMIF('Dynapac Open'!U$4:U$400,AG121,'Dynapac Open'!P$4:P$400)) -> 0 | R121: =IF(AG121="","",SUMIF('SmålandsDM ute'!U$4:U$400,AG121,'SmålandsDM ute'!P$4:P$400)) -> 0 | S121: =IF(AG121="","",SUMIF('BlekingeDM ute'!U$4:U$400,AG121,'BlekingeDM ute'!P$4:P$400)) -> 0 | T121: =IF(AG121="","",SUMIF('StockholmsDM ute'!U$4:U$400,AG121,'StockholmsDM ute'!P$4:P$400)) -> 0 | U121: =IF(AG121="","",SUMIF('Åseda Open'!U$4:U$406,AG121,'Åseda Open'!P$4:P$406)) -> 0 | V121: =IF(AG121="","",SUMIF(Höstskon!U$4:U$400,AG121,Höstskon!P$4:P$400)) -> 0 | W121: =IF(AG121="","",SUMIF('Carlskrona Cup'!U$4:U$400,AG121,'Carlskrona Cup'!P$4:P$400)) -> 0 | X121: =IF(AG121="","",SUMIF('Sibbamåla Open'!U$4:U$400,AG121,'Sibbamåla Open'!P$4:P$400)) -> 0 | Y121: =IF(AG121="","",SUMIF('Vaxholm Indoor'!U$4:U$400,AG121,'Vaxholm Indoor'!P$4:P$400)) -> 0 | Z121: =IF(AG121="","",SUMIF('SM inne'!U$4:U$400,AG121,'SM inne'!P$4:P$400)) -> 0 | AA121: =IF(AG121="","",SUMIF('SmålandsDM inne'!U$4:U$400,AG121,'SmålandsDM inne'!P$4:P$400)) -> 0 | AB121: =IF(AG121="","",SUMIF('BlekingeDM inne'!U$4:U$400,AG121,'BlekingeDM inne'!P$4:P$400)) -> 0 | AC121: =IF(AG121="","",SUMIF('StockholmsDM inne'!U$4:U$400,AG121,'StockholmsDM inne'!P$4:P$400)) -> 0 | AD121: =IF(AG121="","",SUMIF(Värendspokalen!U$4:U$400,AG121,Värendspokalen!P$4:P$400)) -> 0 | AG121: =IF(B121="","",SUMIF(Kastare!B$2:B$2999,B121,Kastare!A$2:A$2999)) -> 1200
A122: 119 | B122: Henrik Fresk | C122: Viby HSK | D122: 296 | F122: 2 | G122: 74 | I122: =IF(AG122="","",SUMIF('Tingsryd Open'!U$4:U$400,AG122,'Tingsryd Open'!P$4:P$400)) -> 0 | J122: =IF(AG122="","",SUMIF('Jämjö Open'!U$4:U$400,AG122,'Jämjö Open'!P$4:P$400)) -> 0 | K122: =IF(AG122="","",SUMIF('Viby Open'!U$4:U$400,AG122,'Viby Open'!P$4:P$400)) -> 0 | L122: =IF(AG122="","",SUMIF('Björkenäs Open'!U$4:U$400,AG122,'Björkenäs Open'!P$4:P$400)) -> 0 | M122: =IF(AG122="","",SUMIF('SM ute Lö'!U$4:U$400,AG122,'SM ute Lö'!P$4:P$400)) -> 0 | N122: =IF(AG122="","",SUMIF('SM ute Sö'!U$4:U$401,AG122,'SM ute Sö'!P$4:P$401)) -> 0 | O122: =IF(AG122="","",SUMIF('Roslagen Open'!U$4:U$400,AG122,'Roslagen Open'!P$4:P$400)) -> 134 | P122: =IF(AG122="","",SUMIF('Vaxholm Open'!U$4:U$400,AG122,'Vaxholm Open'!P$4:P$400)) -> 162 | Q122: =IF(AG122="","",SUMIF('Dynapac Open'!U$4:U$400,AG122,'Dynapac Open'!P$4:P$400)) -> 0 | R122: =IF(AG122="","",SUMIF('SmålandsDM ute'!U$4:U$400,AG122,'SmålandsDM ute'!P$4:P$400)) -> 0 | S122: =IF(AG122="","",SUMIF('BlekingeDM ute'!U$4:U$400,AG122,'BlekingeDM ute'!P$4:P$400)) -> 0 | T122: =IF(AG122="","",SUMIF('StockholmsDM ute'!U$4:U$400,AG122,'StockholmsDM ute'!P$4:P$400)) -> 0 | U122: =IF(AG122="","",SUMIF('Åseda Open'!U$4:U$406,AG122,'Åseda Open'!P$4:P$406)) -> 0 | V122: =IF(AG122="","",SUMIF(Höstskon!U$4:U$400,AG122,Höstskon!P$4:P$400)) -> 0 | W122: =IF(AG122="","",SUMIF('Carlskrona Cup'!U$4:U$400,AG122,'Carlskrona Cup'!P$4:P$400)) -> 0 | X122: =IF(AG122="","",SUMIF('Sibbamåla Open'!U$4:U$400,AG122,'Sibbamåla Open'!P$4:P$400)) -> 0 | Y122: =IF(AG122="","",SUMIF('Vaxholm Indoor'!U$4:U$400,AG122,'Vaxholm Indoor'!P$4:P$400)) -> 0 | Z122: =IF(AG122="","",SUMIF('SM inne'!U$4:U$400,AG122,'SM inne'!P$4:P$400)) -> 0 | AA122: =IF(AG122="","",SUMIF('SmålandsDM inne'!U$4:U$400,AG122,'SmålandsDM inne'!P$4:P$400)) -> 0 | AB122: =IF(AG122="","",SUMIF('BlekingeDM inne'!U$4:U$400,AG122,'BlekingeDM inne'!P$4:P$400)) -> 0 | AC122: =IF(AG122="","",SUMIF('StockholmsDM inne'!U$4:U$400,AG122,'StockholmsDM inne'!P$4:P$400)) -> 0 | AD122: =IF(AG122="","",SUMIF(Värendspokalen!U$4:U$400,AG122,Värendspokalen!P$4:P$400)) -> 0 | AG122: =IF(B122="","",SUMIF(Kastare!B$2:B$2999,B122,Kastare!A$2:A$2999)) -> 1049
A123: 120 | B123: Bobby Parming | C123: CBAR | D123: 293 | F123: 2 | G123: 73.25 | I123: =IF(AG123="","",SUMIF('Tingsryd Open'!U$4:U$400,AG123,'Tingsryd Open'!P$4:P$400)) -> 0 | J123: =IF(AG123="","",SUMIF('Jämjö Open'!U$4:U$400,AG123,'Jämjö Open'!P$4:P$400)) -> 0 | K123: =IF(AG123="","",SUMIF('Viby Open'!U$4:U$400,AG123,'Viby Open'!P$4:P$400)) -> 0 | L123: =IF(AG123="","",SUMIF('Björkenäs Open'!U$4:U$400,AG123,'Björkenäs Open'!P$4:P$400)) -> 0 | M123: =IF(AG123="","",SUMIF('SM ute Lö'!U$4:U$400,AG123,'SM ute Lö'!P$4:P$400)) -> 0 | N123: =IF(AG123="","",SUMIF('SM ute Sö'!U$4:U$401,AG123,'SM ute Sö'!P$4:P$401)) -> 0 | O123: =IF(AG123="","",SUMIF('Roslagen Open'!U$4:U$400,AG123,'Roslagen Open'!P$4:P$400)) -> 0 | P123: =IF(AG123="","",SUMIF('Vaxholm Open'!U$4:U$400,AG123,'Vaxholm Open'!P$4:P$400)) -> 0 | Q123: =IF(AG123="","",SUMIF('Dynapac Open'!U$4:U$400,AG123,'Dynapac Open'!P$4:P$400)) -> 0 | R123: =IF(AG123="","",SUMIF('SmålandsDM ute'!U$4:U$400,AG123,'SmålandsDM ute'!P$4:P$400)) -> 0 | S123: =IF(AG123="","",SUMIF('BlekingeDM ute'!U$4:U$400,AG123,'BlekingeDM ute'!P$4:P$400)) -> 0 | T123: =IF(AG123="","",SUMIF('StockholmsDM ute'!U$4:U$400,AG123,'StockholmsDM ute'!P$4:P$400)) -> 0 | U123: =IF(AG123="","",SUMIF('Åseda Open'!U$4:U$406,AG123,'Åseda Open'!P$4:P$406)) -> 0 | V123: =IF(AG123="","",SUMIF(Höstskon!U$4:U$400,AG123,Höstskon!P$4:P$400)) -> 0 | W123: =IF(AG123="","",SUMIF('Carlskrona Cup'!U$4:U$400,AG123,'Carlskrona Cup'!P$4:P$400)) -> 0 | X123: =IF(AG123="","",SUMIF('Sibbamåla Open'!U$4:U$400,AG123,'Sibbamåla Open'!P$4:P$400)) -> 0 | Y123: =IF(AG123="","",SUMIF('Vaxholm Indoor'!U$4:U$400,AG123,'Vaxholm Indoor'!P$4:P$400)) -> 183 | Z123: =IF(AG123="","",SUMIF('SM inne'!U$4:U$400,AG123,'SM inne'!P$4:P$400)) -> 0 | AA123: =IF(AG123="","",SUMIF('SmålandsDM inne'!U$4:U$400,AG123,'SmålandsDM inne'!P$4:P$400)) -> 0 | AB123: =IF(AG123="","",SUMIF('BlekingeDM inne'!U$4:U$400,AG123,'BlekingeDM inne'!P$4:P$400)) -> 0 | AC123: =IF(AG123="","",SUMIF('StockholmsDM inne'!U$4:U$400,AG123,'StockholmsDM inne'!P$4:P$400)) -> 110 | AD123: =IF(AG123="","",SUMIF(Värendspokalen!U$4:U$400,AG123,Värendspokalen!P$4:P$400)) -> 0 | AG123: =IF(B123="","",SUMIF(Kastare!B$2:B$2999,B123,Kastare!A$2:A$2999)) -> 1292
A124: 121 | B124: Björn Bydén | C124: PBHSPC | D124: 292 | F124: 2 | G124: 73 | I124: =IF(AG124="","",SUMIF('Tingsryd Open'!U$4:U$400,AG124,'Tingsryd Open'!P$4:P$400)) -> 0 | J124: =IF(AG124="","",SUMIF('Jämjö Open'!U$4:U$400,AG124,'Jämjö Open'!P$4:P$400)) -> 0 | K124: =IF(AG124="","",SUMIF('Viby Open'!U$4:U$400,AG124,'Viby Open'!P$4:P$400)) -> 0 | L124: =IF(AG124="","",SUMIF('Björkenäs Open'!U$4:U$400,AG124,'Björkenäs Open'!P$4:P$400)) -> 0 | M124: =IF(AG124="","",SUMIF('SM ute Lö'!U$4:U$400,AG124,'SM ute Lö'!P$4:P$400)) -> 0 | N124: =IF(AG124="","",SUMIF('SM ute Sö'!U$4:U$401,AG124,'SM ute Sö'!P$4:P$401)) -> 0 | O124: =IF(AG124="","",SUMIF('Roslagen Open'!U$4:U$400,AG124,'Roslagen Open'!P$4:P$400)) -> 0 | P124: =IF(AG124="","",SUMIF('Vaxholm Open'!U$4:U$400,AG124,'Vaxholm Open'!P$4:P$400)) -> 0 | Q124: =IF(AG124="","",SUMIF('Dynapac Open'!U$4:U$400,AG124,'Dynapac Open'!P$4:P$400)) -> 0 | R124: =IF(AG124="","",SUMIF('SmålandsDM ute'!U$4:U$400,AG124,'SmålandsDM ute'!P$4:P$400)) -> 0 | S124: =IF(AG124="","",SUMIF('BlekingeDM ute'!U$4:U$400,AG124,'BlekingeDM ute'!P$4:P$400)) -> 0 | T124: =IF(AG124="","",SUMIF('StockholmsDM ute'!U$4:U$400,AG124,'StockholmsDM ute'!P$4:P$400)) -> 0 | U124: =IF(AG124="","",SUMIF('Åseda Open'!U$4:U$406,AG124,'Åseda Open'!P$4:P$406)) -> 0 | V124: =IF(AG124="","",SUMIF(Höstskon!U$4:U$400,AG124,Höstskon!P$4:P$400)) -> 0 | W124: =IF(AG124="","",SUMIF('Carlskrona Cup'!U$4:U$400,AG124,'Carlskrona Cup'!P$4:P$400)) -> 0 | X124: =IF(AG124="","",SUMIF('Sibbamåla Open'!U$4:U$400,AG124,'Sibbamåla Open'!P$4:P$400)) -> 0 | Y124: =IF(AG124="","",SUMIF('Vaxholm Indoor'!U$4:U$400,AG124,'Vaxholm Indoor'!P$4:P$400)) -> 149 | Z124: =IF(AG124="","",SUMIF('SM inne'!U$4:U$400,AG124,'SM inne'!P$4:P$400)) -> 0 | AA124: =IF(AG124="","",SUMIF('SmålandsDM inne'!U$4:U$400,AG124,'SmålandsDM inne'!P$4:P$400)) -> 0 | AB124: =IF(AG124="","",SUMIF('BlekingeDM inne'!U$4:U$400,AG124,'BlekingeDM inne'!P$4:P$400)) -> 0 | AC124: =IF(AG124="","",SUMIF('StockholmsDM inne'!U$4:U$400,AG124,'StockholmsDM inne'!P$4:P$400)) -> 143 | AD124: =IF(AG124="","",SUMIF(Värendspokalen!U$4:U$400,AG124,Värendspokalen!P$4:P$400)) -> 0 | AG124: =IF(B124="","",SUMIF(Kastare!B$2:B$2999,B124,Kastare!A$2:A$2999)) -> 1235
A125: 121 | B125: Calle Jacobsson | C125: CBAR | D125: 292 | F125: 2 | G125: 73 | I125: =IF(AG125="","",SUMIF('Tingsryd Open'!U$4:U$400,AG125,'Tingsryd Open'!P$4:P$400)) -> 0 | J125: =IF(AG125="","",SUMIF('Jämjö Open'!U$4:U$400,AG125,'Jämjö Open'!P$4:P$400)) -> 0 | K125: =IF(AG125="","",SUMIF('Viby Open'!U$4:U$400,AG125,'Viby Open'!P$4:P$400)) -> 0 | L125: =IF(AG125="","",SUMIF('Björkenäs Open'!U$4:U$400,AG125,'Björkenäs Open'!P$4:P$400)) -> 0 | M125: =IF(AG125="","",SUMIF('SM ute Lö'!U$4:U$400,AG125,'SM ute Lö'!P$4:P$400)) -> 0 | N125: =IF(AG125="","",SUMIF('SM ute Sö'!U$4:U$401,AG125,'SM ute Sö'!P$4:P$401)) -> 0 | O125: =IF(AG125="","",SUMIF('Roslagen Open'!U$4:U$400,AG125,'Roslagen Open'!P$4:P$400)) -> 0 | P125: =IF(AG125="","",SUMIF('Vaxholm Open'!U$4:U$400,AG125,'Vaxholm Open'!P$4:P$400)) -> 0 | Q125: =IF(AG125="","",SUMIF('Dynapac Open'!U$4:U$400,AG125,'Dynapac Open'!P$4:P$400)) -> 0 | R125: =IF(AG125="","",SUMIF('SmålandsDM ute'!U$4:U$400,AG125,'SmålandsDM ute'!P$4:P$400)) -> 0 | S125: =IF(AG125="","",SUMIF('BlekingeDM ute'!U$4:U$400,AG125,'BlekingeDM ute'!P$4:P$400)) -> 0 | T125: =IF(AG125="","",SUMIF('StockholmsDM ute'!U$4:U$400,AG125,'StockholmsDM ute'!P$4:P$400)) -> 0 | U125: =IF(AG125="","",SUMIF('Åseda Open'!U$4:U$406,AG125,'Åseda Open'!P$4:P$406)) -> 0 | V125: =IF(AG125="","",SUMIF(Höstskon!U$4:U$400,AG125,Höstskon!P$4:P$400)) -> 0 | W125: =IF(AG125="","",SUMIF('Carlskrona Cup'!U$4:U$400,AG125,'Carlskrona Cup'!P$4:P$400)) -> 0 | X125: =IF(AG125="","",SUMIF('Sibbamåla Open'!U$4:U$400,AG125,'Sibbamåla Open'!P$4:P$400)) -> 0 | Y125: =IF(AG125="","",SUMIF('Vaxholm Indoor'!U$4:U$400,AG125,'Vaxholm Indoor'!P$4:P$400)) -> 155 | Z125: =IF(AG125="","",SUMIF('SM inne'!U$4:U$400,AG125,'SM inne'!P$4:P$400)) -> 0 | AA125: =IF(AG125="","",SUMIF('SmålandsDM inne'!U$4:U$400,AG125,'SmålandsDM inne'!P$4:P$400)) -> 0 | AB125: =IF(AG125="","",SUMIF('BlekingeDM inne'!U$4:U$400,AG125,'BlekingeDM inne'!P$4:P$400)) -> 0 | AC125: =IF(AG125="","",SUMIF('StockholmsDM inne'!U$4:U$400,AG125,'StockholmsDM inne'!P$4:P$400)) -> 137 | AD125: =IF(AG125="","",SUMIF(Värendspokalen!U$4:U$400,AG125,Värendspokalen!P$4:P$400)) -> 0 | AG125: =IF(B125="","",SUMIF(Kastare!B$2:B$2999,B125,Kastare!A$2:A$2999)) -> 1295
A126: 123 | B126: Andreas Westberg | C126: CBAR | D126: 274 | F126: 2 | G126: 68.5 | I126: =IF(AG126="","",SUMIF('Tingsryd Open'!U$4:U$400,AG126,'Tingsryd Open'!P$4:P$400)) -> 0 | J126: =IF(AG126="","",SUMIF('Jämjö Open'!U$4:U$400,AG126,'Jämjö Open'!P$4:P$400)) -> 0 | K126: =IF(AG126="","",SUMIF('Viby Open'!U$4:U$400,AG126,'Viby Open'!P$4:P$400)) -> 0 | L126: =IF(AG126="","",SUMIF('Björkenäs Open'!U$4:U$400,AG126,'Björkenäs Open'!P$4:P$400)) -> 0 | M126: =IF(AG126="","",SUMIF('SM ute Lö'!U$4:U$400,AG126,'SM ute Lö'!P$4:P$400)) -> 0 | N126: =IF(AG126="","",SUMIF('SM ute Sö'!U$4:U$401,AG126,'SM ute Sö'!P$4:P$401)) -> 0 | O126: =IF(AG126="","",SUMIF('Roslagen Open'!U$4:U$400,AG126,'Roslagen Open'!P$4:P$400)) -> 0 | P126: =IF(AG126="","",SUMIF('Vaxholm Open'!U$4:U$400,AG126,'Vaxholm Open'!P$4:P$400)) -> 0 | Q126: =IF(AG126="","",SUMIF('Dynapac Open'!U$4:U$400,AG126,'Dynapac Open'!P$4:P$400)) -> 0 | R126: =IF(AG126="","",SUMIF('SmålandsDM ute'!U$4:U$400,AG126,'SmålandsDM ute'!P$4:P$400)) -> 0 | S126: =IF(AG126="","",SUMIF('BlekingeDM ute'!U$4:U$400,AG126,'BlekingeDM ute'!P$4:P$400)) -> 0 | T126: =IF(AG126="","",SUMIF('StockholmsDM ute'!U$4:U$400,AG126,'StockholmsDM ute'!P$4:P$400)) -> 0 | U126: =IF(AG126="","",SUMIF('Åseda Open'!U$4:U$406,AG126,'Åseda Open'!P$4:P$406)) -> 0 | V126: =IF(AG126="","",SUMIF(Höstskon!U$4:U$400,AG126,Höstskon!P$4:P$400)) -> 0 | W126: =IF(AG126="","",SUMIF('Carlskrona Cup'!U$4:U$400,AG126,'Carlskrona Cup'!P$4:P$400)) -> 0 | X126: =IF(AG126="","",SUMIF('Sibbamåla Open'!U$4:U$400,AG126,'Sibbamåla Open'!P$4:P$400)) -> 0 | Y126: =IF(AG126="","",SUMIF('Vaxholm Indoor'!U$4:U$400,AG126,'Vaxholm Indoor'!P$4:P$400)) -> 119 | Z126: =IF(AG126="","",SUMIF('SM inne'!U$4:U$400,AG126,'SM inne'!P$4:P$400)) -> 0 | AA126: =IF(AG126="","",SUMIF('SmålandsDM inne'!U$4:U$400,AG126,'SmålandsDM inne'!P$4:P$400)) -> 0 | AB126: =IF(AG126="","",SUMIF('BlekingeDM inne'!U$4:U$400,AG126,'BlekingeDM inne'!P$4:P$400)) -> 0 | AC126: =IF(AG126="","",SUMIF('StockholmsDM inne'!U$4:U$400,AG126,'StockholmsDM inne'!P$4:P$400)) -> 155 | AD126: =IF(AG126="","",SUMIF(Värendspokalen!U$4:U$400,AG126,Värendspokalen!P$4:P$400)) -> 0 | AG126: =IF(B126="","",SUMIF(Kastare!B$2:B$2999,B126,Kastare!A$2:A$2999)) -> 1296
A127: 124 | B127: Thomas Marklund | C127: Värends Hsk | D127: 266 | F127: 2 | G127: 66.5 | I127: =IF(AG127="","",SUMIF('Tingsryd Open'!U$4:U$400,AG127,'Tingsryd Open'!P$4:P$400)) -> 0 | J127: =IF(AG127="","",SUMIF('Jämjö Open'!U$4:U$400,AG127,'Jämjö Open'!P$4:P$400)) -> 0 | K127: =IF(AG127="","",SUMIF('Viby Open'!U$4:U$400,AG127,'Viby Open'!P$4:P$400)) -> 0 | L127: =IF(AG127="","",SUMIF('Björkenäs Open'!U$4:U$400,AG127,'Björkenäs Open'!P$4:P$400)) -> 0 | M127: =IF(AG127="","",SUMIF('SM ute Lö'!U$4:U$400,AG127,'SM ute Lö'!P$4:P$400)) -> 0 | N127: =IF(AG127="","",SUMIF('SM ute Sö'!U$4:U$401,AG127,'SM ute Sö'!P$4:P$401)) -> 0 | O127: =IF(AG127="","",SUMIF('Roslagen Open'!U$4:U$400,AG127,'Roslagen Open'!P$4:P$400)) -> 0 | P127: =IF(AG127="","",SUMIF('Vaxholm Open'!U$4:U$400,AG127,'Vaxholm Open'!P$4:P$400)) -> 0 | Q127: =IF(AG127="","",SUMIF('Dynapac Open'!U$4:U$400,AG127,'Dynapac Open'!P$4:P$400)) -> 0 | R127: =IF(AG127="","",SUMIF('SmålandsDM ute'!U$4:U$400,AG127,'SmålandsDM ute'!P$4:P$400)) -> 136 | S127: =IF(AG127="","",SUMIF('BlekingeDM ute'!U$4:U$400,AG127,'BlekingeDM ute'!P$4:P$400)) -> 0 | T127: =IF(AG127="","",SUMIF('StockholmsDM ute'!U$4:U$400,AG127,'StockholmsDM ute'!P$4:P$400)) -> 0 | U127: =IF(AG127="","",SUMIF('Åseda Open'!U$4:U$406,AG127,'Åseda Open'!P$4:P$406)) -> 130 | V127: =IF(AG127="","",SUMIF(Höstskon!U$4:U$400,AG127,Höstskon!P$4:P$400)) -> 0 | W127: =IF(AG127="","",SUMIF('Carlskrona Cup'!U$4:U$400,AG127,'Carlskrona Cup'!P$4:P$400)) -> 0 | X127: =IF(AG127="","",SUMIF('Sibbamåla Open'!U$4:U$400,AG127,'Sibbamåla Open'!P$4:P$400)) -> 0 | Y127: =IF(AG127="","",SUMIF('Vaxholm Indoor'!U$4:U$400,AG127,'Vaxholm Indoor'!P$4:P$400)) -> 0 | Z127: =IF(AG127="","",SUMIF('SM inne'!U$4:U$400,AG127,'SM inne'!P$4:P$400)) -> 0 | AA127: =IF(AG127="","",SUMIF('SmålandsDM inne'!U$4:U$400,AG127,'SmålandsDM inne'!P$4:P$400)) -> 0 | AB127: =IF(AG127="","",SUMIF('BlekingeDM inne'!U$4:U$400,AG127,'BlekingeDM inne'!P$4:P$400)) -> 0 | AC127: =IF(AG127="","",SUMIF('StockholmsDM inne'!U$4:U$400,AG127,'StockholmsDM inne'!P$4:P$400)) -> 0 | AD127: =IF(AG127="","",SUMIF(Värendspokalen!U$4:U$400,AG127,Värendspokalen!P$4:P$400)) -> 0 | AG127: =IF(B127="","",SUMIF(Kastare!B$2:B$2999,B127,Kastare!A$2:A$2999)) -> 1081
A128: 125 | B128: Kim Knudsen | C128: Värends Hsk | D128: 264 | F128: 2 | G128: 66 | I128: =IF(AG128="","",SUMIF('Tingsryd Open'!U$4:U$400,AG128,'Tingsryd Open'!P$4:P$400)) -> 0 | J128: =IF(AG128="","",SUMIF('Jämjö Open'!U$4:U$400,AG128,'Jämjö Open'!P$4:P$400)) -> 0 | K128: =IF(AG128="","",SUMIF('Viby Open'!U$4:U$400,AG128,'Viby Open'!P$4:P$400)) -> 0 | L128: =IF(AG128="","",SUMIF('Björkenäs Open'!U$4:U$400,AG128,'Björkenäs Open'!P$4:P$400)) -> 0 | M128: =IF(AG128="","",SUMIF('SM ute Lö'!U$4:U$400,AG128,'SM ute Lö'!P$4:P$400)) -> 0 | N128: =IF(AG128="","",SUMIF('SM ute Sö'!U$4:U$401,AG128,'SM ute Sö'!P$4:P$401)) -> 0 | O128: =IF(AG128="","",SUMIF('Roslagen Open'!U$4:U$400,AG128,'Roslagen Open'!P$4:P$400)) -> 0 | P128: =IF(AG128="","",SUMIF('Vaxholm Open'!U$4:U$400,AG128,'Vaxholm Open'!P$4:P$400)) -> 0 | Q128: =IF(AG128="","",SUMIF('Dynapac Open'!U$4:U$400,AG128,'Dynapac Open'!P$4:P$400)) -> 0 | R128: =IF(AG128="","",SUMIF('SmålandsDM ute'!U$4:U$400,AG128,'SmålandsDM ute'!P$4:P$400)) -> 0 | S128: =IF(AG128="","",SUMIF('BlekingeDM ute'!U$4:U$400,AG128,'BlekingeDM ute'!P$4:P$400)) -> 0 | T128: =IF(AG128="","",SUMIF('StockholmsDM ute'!U$4:U$400,AG128,'StockholmsDM ute'!P$4:P$400)) -> 0 | U128: =IF(AG128="","",SUMIF('Åseda Open'!U$4:U$406,AG128,'Åseda Open'!P$4:P$406)) -> 0 | V128: =IF(AG128="","",SUMIF(Höstskon!U$4:U$400,AG128,Höstskon!P$4:P$400)) -> 0 | W128: =IF(AG128="","",SUMIF('Carlskrona Cup'!U$4:U$400,AG128,'Carlskrona Cup'!P$4:P$400)) -> 0 | X128: =IF(AG128="","",SUMIF('Sibbamåla Open'!U$4:U$400,AG128,'Sibbamåla Open'!P$4:P$400)) -> 0 | Y128: =IF(AG128="","",SUMIF('Vaxholm Indoor'!U$4:U$400,AG128,'Vaxholm Indoor'!P$4:P$400)) -> 0 | Z128: =IF(AG128="","",SUMIF('SM inne'!U$4:U$400,AG128,'SM inne'!P$4:P$400)) -> 140 | AA128: =IF(AG128="","",SUMIF('SmålandsDM inne'!U$4:U$400,AG128,'SmålandsDM inne'!P$4:P$400)) -> 0 | AB128: =IF(AG128="","",SUMIF('BlekingeDM inne'!U$4:U$400,AG128,'BlekingeDM inne'!P$4:P$400)) -> 0 | AC128: =IF(AG128="","",SUMIF('StockholmsDM inne'!U$4:U$400,AG128,'StockholmsDM inne'!P$4:P$400)) -> 0 | AD128: =IF(AG128="","",SUMIF(Värendspokalen!U$4:U$400,AG128,Värendspokalen!P$4:P$400)) -> 124 | AG128: =IF(B128="","",SUMIF(Kastare!B$2:B$2999,B128,Kastare!A$2:A$2999)) -> 1305
